Workbook

Sheet INDICE
F1: PAÍSES BAIXOS
F2: Trocas comerciais com Portugal (PT) 2019-2023 Setores agrícola e agroalimentar, do mar e das florestas
C3: Fonte
D4: Estatísticas do Comércio Internacional | F4: Países Baixos - Síntese
D5: dados: 2022 definitivos | F5: 1. Evolução da balança comercial
F6: 2. Ranking dos parceiros comerciais de Portugal por país
C7: Data | D7: 2024-05-10T17:34:55.090 | F7: 2A Parceiros comerciais de Portugal - UE vs. Países Terceiros
F8: 3. Principais produtos transacionados (NC a 2 e 4 dígitos)
F9: 3A Principais produtos transacionados (sem mar nem florestas)
F10: 4A Evolução da balança comercial por produto
F11: 5.2. Trocas comerciais por produto (NC 2 dígitos)

Sheet Sintese
A1: Países Baixos - Síntese (2019-2023)
A3: • As trocas comerciais de bens transacionáveis (excluindo serviços) entre Portugal e Países Baixos representam um total de 2,5 mil milhões de € (M€) em exportações e 4,7 mil M€ em importações, na média do período 2019-2023, correspondendo a um saldo negativo da balança comercial de cerca de -2,1 mil M€.
A4: • No que respeita aos produtos dos setores agrícola e agroalimentar, mar e florestas, Portugal exportou para Países Baixos 633,5 M€ em média anual, no mesmo período (este país ocupa assim a 5ª posição em relação ao total dos países), enquanto as importações totalizaram 947,3 M€ (3ª posição), com um saldo negativo de -313,8 M€. Estes setores representam perto de 25% do total de exportações de bens transacionáveis e 20,3% das correspondentes importações.
A5: • Se nos referirmos apenas ao setor agrícola e agroalimentar, as exportações representam, em média, 368,7 M€ (5ª posição) e as importações 679,5 milhões (4ª posição), ou seja, Portugal tem um saldo negativo de -310,8 M€. Estes valores representam, respetivamente, cerca de 58,2% das exportações do setor agroflorestal e mar e 71,7% das importações.
A6: • As principais exportações agrícolas e agroalimentares (NC 4 dígitos) neste período são Outras frutas frescas (20%), Vinhos de uvas frescas (13%) e Plantas vivas (10%). As importações agrícolas e agroalimentares mais relevantes referem-se a Carnes de bovino, frescas ou refrigeradas (16%), Plantas vivas (6%) e Queijos e requeijão (5%). Se considerarmos também os produtos do mar e da floresta, merecem particular destaque, em termos de exportações, Pastas químicas de madeira, à soda ou ao sulfato (13%), Outras frutas frescas (12%) e Vinhos de uvas frescas (8%). Nas importações destes setores, destacam-se Peixes secos, salgados ou fumados (12%), Carnes de bovino, frescas ou refrigeradas (11%) e Peixes frescos ou refrigerados (5%).
A9: Saldo da Balança Comercial | B9: 2019 | C9: 2020 | D9: 2021 | E9: 2022 | F9: 2023 | G9: média 2019-2023 | J9: Posição entre os parceiros comerciais de Portugal (milhares de euros)
A10: Total de Bens Transacionáveis* | B10: -1634094.744 | C10: -1762391.496 | D10: -1947183.744 | E10: -2362034.813 | F10: -2954563.982 | G10: -2132053.756 | J10: AA + M + F | K10: Posição | L10: média 2019-2023 | M10: % do total | N10: TVMA* 2019-2023 | O10: TVT* 2019-2023
A11: Agrícola e Agroalimentar (AA) | B11: -248929.248 | C11: -211553.773 | D11: -213163.894 | E11: -420886.323 | F11: -459405.407 | G11: -310787.729 | J11: Exportações | K11: 5ª | L11: 633522.1196 | M11: 0.04565600659 | N11: 0.08501306047 | O11: 0.3859254298
A12: Mar (M) | B12: -171300.196 | C12: -160211.399 | D12: -136436.602 | E12: -268139.668 | F12: -314980.032 | G12: -210213.5794 | J12: Importações | K12: 3ª | L12: 947328.0688 | M12: 0.05856341467 | N12: 0.1371393381 | O12: 0.6720710785
A13: Florestas (F) | B13: 169263.743 | C13: 2302-09-29T19:22:04.800 | D13: 226869.249 | E13: 285226.481 | F13: 2468-02-26T12:23:02.400 | G13: 207195.3592 | J13: AA
A14: AA + M + F | B14: -250965.701 | C14: -224664.365 | D14: -122731.247 | E14: -403799.51 | F14: -566868.923 | G14: -313805.9492 | J14: Exportações | K14: 5ª | L14: 368702.5402 | M14: 0.04759385563 | N14: 0.1071162958 | O14: 0.5023564058
J15: Importações | K15: 4ª | L15: 679490.2692 | M15: 0.06057298194 | N15: 0.1065983179 | O15: 0.6593959611
A16: milhares de euros *exclui serviços | K16: *TVMA - Taxa de variação média anual; TVT - Taxa de variação total
A18: Evolução das trocas comerciais Portugal-Países Baixos em milhares de euros (2019-2023)
E27: Exportações | G27: Importações | I27: Saldo
A28: Principais produtos agrícolas e agroalimentares, do mar e da floresta transacionados (NC 4 dígitos)
A47: Principais produtos agrícolas e agroalimentares transacionados (NC 4 dígitos)
A81: Fonte: GPP a partir de dados INE/Comércio Internacional (2022 definitivos) | N81: 2024-05-10T17:34:55.090

Sheet 1
A1: Evolução da balança comercial Portugal-Países Baixos 2019-2023 em milhões de euros
A3: Total de Bens Transacionáveis (BT)(1) | B3: 2019 | C3: 2020 | D3: 2021 | E3: 2022 | F3: 2023 | G3: média quinquénio | H3: var. 19/20 | I3: var. 20/21 | J3: var. 21/22 | K3: var. 22/23 | L3: TVMA* 2019-2023 | M3: TVT* 2019-2023
A4: Exportações | B4: 2340.984633 | C4: 2004.17395 | D4: 2487.611772 | E4: 3134.24915 | F4: 2700.403335 | G4: 2533.484568 | H4: -0.1438756488 | I4: 0.2412155003 | J4: 0.2599430447 | K4: -0.1384209724 | L4: 0.03635254489 | M4: 0.1535331317
A5: Importações | B5: 3975.079377 | C5: 3766.565446 | D5: 4434.795516 | E5: 5496.283963 | F5: 5654.967317 | G5: 4665.538324 | H5: -0.05245528736 | I5: 0.1774109808 | J5: 0.2393545414 | K5: 0.02887102542 | L5: 0.09212179313 | M5: 0.4226048792
A6: Saldo (exp-imp) | B6: -1634.094744 | C6: -1762.391496 | D6: -1947.183744 | E6: -2362.034813 | F6: -2954.563982 | G6: -2132.053756
A7: Cobertura (exp/imp) | B7: 0.5889151916 | C7: 0.5320958785 | D7: 0.5609304337 | E7: 0.5702487665 | F7: 0.4775276644 | G7: 0.5430208461
A8: Exp BT Países Baixos / Exp BT Mundo | B8: 0.03907971321 | C8: 0.03728182961 | D8: 0.03910200308 | E8: 0.04000923375 | F8: 0.03484539779 | G8: 0.03802733927 | L8: Exportações
A9: Imp BT Países Baixos / Imp BT Mundo | B9: 0.049702702 | C9: 0.05527234651 | D9: 0.05333763173 | E9: 0.0502008835 | F9: 0.05387346825 | G9: 0.05233688878 | L9: Importações
A10: Exp BT Países Baixos / Exp TE Mundo | B10: 0.02509873682 | C10: 0.02697924484 | D10: 0.027810164 | E10: 0.0260756004 | F10: 0.02142480434 | G10: 0.02517143079
A11: Imp BT Países Baixos / Imp TE Mundo | B11: 0.04306612297 | C11: 0.04792996534 | D11: 0.0464144237 | E11: 0.04361015648 | F11: 0.04569707671 | G11: 0.04518982953
A12: (1) Todos os produtos transacionados entre PT e Países Baixos (exclui serviços) | D12: TE - Total da Economia (bens e serviços) Fonte: INE/Contas Nacionais | H12: *TVMA - Taxa de variação média anual; TVT - Taxa de variação total
A24: Agro(1) + Mar + Florestas (AMF) | B24: 2019 | C24: 2020 | D24: 2021 | E24: 2022 | F24: 2023 | G24: média quinquénio | H24: var. 19/20 | I24: var. 20/21 | J24: var. 21/22 | K24: var. 22/23 | L24: TVMA* 2019-2023 | M24: TVT* 2019-2023
A25: Exportações | B25: 514.550661 | C25: 525.816598 | D25: 671.129421 | E25: 742.985072 | F25: 713.128846 | G25: 633.5221196 | H25: 0.02189470902 | I25: 0.2763564778 | J25: 0.1070667575 | K25: -0.04018415326 | L25: 0.08501306047 | M25: 0.3859254298
A26: Importações | B26: 765.516362 | C26: 750.480963 | D26: 793.860668 | E26: 1146.784582 | F26: 1279.997769 | G26: 947.3280688 | H26: -0.01964085909 | I26: 0.05780253882 | J26: 0.4445665697 | K26: 0.1161623456 | L26: 0.1371393381 | M26: 0.6720710785
A27: Saldo (exp-imp) | B27: -250.965701 | C27: -224.664365 | D27: -122.731247 | E27: -403.79951 | F27: -566.868923 | G27: -313.8059492
A28: Cobertura (exp/imp) | B28: 0.6721615455 | C28: 0.7006394884 | D28: 0.8453995116 | E28: 0.6478854736 | F28: 0.557132882 | G28: 0.6687462775
A29: Exp AMF / Exp BT | B29: 0.2198009563 | C29: 0.2623607587 | D29: 0.2697886497 | E29: 0.2370536088 | F29: 0.2640823453 | G29: 0.2500595929 | L29: Exportações
A30: Imp AMF / Imp BT | B30: 0.192578887 | C30: 0.1992480879 | D30: 0.1790072767 | E30: 0.2086472587 | F30: 0.2263492779 | G30: 0.2030479664 | L30: Importações
A31: Exp AMF Países Baixos / Exp AMF Mundo | B31: 0.04350340352 | C31: 0.04558271218 | D31: 0.05009711018 | E31: 0.04533613196 | F31: 0.04393424124 | G31: 0.04565600659
A32: Imp AMF Países Baixos / Imp AMF Mundo | B32: 0.05533840329 | C32: 0.05752845169 | D32: 0.05312019581 | E32: 0.05937788419 | F32: 0.06483022549 | G32: 0.05856341467
A33: (1) Produtos agrícolas e agroalimentares | B33: BT - Total de Bens Transacionáveis (exclui serviços) | H33: *TVMA - Taxa de variação média anual; TVT - Taxa de variação total
A45: Agroalimentar (AA)(1) | B45: 2019 | C45: 2020 | D45: 2021 | E45: 2022 | F45: 2023 | G45: média quinquénio | H45: var. 19/20 | I45: var. 20/21 | J45: var. 21/22 | K45: var. 22/23 | L45: TVMA* 2019-2023 | M45: TVT* 2019-2023
A46: Exportações | B46: 295.041706 | C46: 328.22304 | D46: 390.051941 | E46: 386.938217 | F46: 443.257797 | G46: 368.7025402 | H46: 0.1124631987 | I46: 0.1883746522 | J46: -0.007982844521 | K46: 0.1455518673 | L46: 0.1071162958 | M46: 0.5023564058
A47: Importações | B47: 543.970954 | C47: 539.776813 | D47: 603.215835 | E47: 807.82454 | F47: 902.663204 | G47: 679.4902692 | H47: -0.00771022969 | I47: 0.1175282459 | J47: 0.3391965083 | K47: 0.117400078 | L47: 0.1349781667 | M47: 0.6593959611
A48: Saldo (exp-imp) | B48: -248.929248 | C48: -211.553773 | D48: -213.163894 | E48: -420.886323 | F48: -459.405407 | G48: -310.787729
A49: Cobertura (exp/imp) | B49: 0.542385037 | C49: 0.6080717661 | D49: 0.6466208584 | E49: 0.4789879458 | F49: 0.4910555731 | G49: 0.5426163654
A50: Exp AA / Exp AMF | B50: 0.5733968069 | C50: 0.6242158221 | D50: 0.5811873668 | E50: 0.5207886828 | F50: 0.6215676164 | G50: 0.5819884244 | L50: Exportações
A51: Imp AA / Imp AMF | B51: 0.7105935039 | C51: 0.7192411795 | D51: 0.7598510158 | E51: 0.704425707 | F51: 0.7052068573 | G51: 0.71727028 | L51: Importações
A52: Exp AA / Exp BT | B52: 0.1260331665 | C52: 0.1637697367 | D52: 0.1567977549 | E52: 0.1234548367 | F52: 0.1641450339 | G52: 0.1455317885
A53: Imp AA / Imp BT | B53: 0.1368453061 | C53: 0.1433074297 | D53: 0.136018861 | E53: 0.1469764927 | F53: 0.1596230629 | G53: 0.1456402717
A54: Exp AA Países Baixos / Exp AA Mundo | B54: 0.04689409988 | C54: 0.04960238639 | D54: 0.05234329882 | E54: 0.04358690597 | F54: 0.04667680312 | G54: 0.04759385563
A55: Imp AA Países Baixos / Imp AA Mundo | B55: 0.0583843172 | C55: 0.05941765795 | D55: 0.05873089538 | E55: 0.06102684022 | F55: 0.06366201711 | G55: 0.06057298194
A56: (1) Produtos agrícolas e agroalimentares | B56: AMF - Agroalimentar, Mar e Florestas; BT - Total de Bens Transacionáveis (exclui serviços) | H56: *TVMA - Taxa de variação média anual; TVT - Taxa de variação total
A67: Mar (M) | B67: 2019 | C67: 2020 | D67: 2021 | E67: 2022 | F67: 2023 | G67: média quinquénio | H67: var. 19/20 | I67: var. 20/21 | J67: var. 21/22 | K67: var. 22/23 | L67: TVMA* 2019-2023 | M67: TVT* 2019-2023
A68: Exportações | B68: 5.511207 | C68: 7.699755 | D68: 11.080851 | E68: 13.932284 | F68: 15.4958 | G68: 10.7439794 | H68: 0.3971086551 | I68: 0.4391173485 | J68: 0.2573297845 | K68: 0.1122225186 | L68: 0.2949166641 | M68: 1.811688982
A69: Importações | B69: 176.811403 | C69: 167.911154 | D69: 147.517453 | E69: 282.071952 | F69: 330.475832 | G69: 220.9575588 | H69: -0.05033752829 | I69: -0.1214553084 | J69: 0.9121259638 | K69: 0.1716011807 | L69: 0.1692499462
A70: Saldo (exp-imp) | B70: -171.300196 | C70: -160.211399 | D70: -136.436602 | E70: -268.139668 | F70: -314.980032 | G70: -210.2135794
A71: Cobertura (exp/imp) | B71: 0.03116997494 | C71: 0.04585612579 | D71: 0.07511552548 | E71: 0.04939265993 | F71: 0.04688935922 | G71: 0.04862462936
A72: Exp M / Exp AMF | B72: 0.01071071795 | C72: 0.01464342326 | D72: 0.01651075136 | E72: 0.01875176841 | F72: 0.02172931313 | G72: 0.01695912276 | L72: Exportações
A73: Imp M / Imp AMF | B73: 0.2309701161 | C73: 0.223738059 | D73: 0.1858228515 | E73: 0.2459676878 | F73: 0.2581846938 | G73: 0.2332429135 | L73: Importações
A74: Exp M / Exp BT | B74: 0.002354226048 | C74: 0.003841859635 | D74: 0.004454413315 | E74: 0.004445174373 | F74: 0.005738327975 | G74: 0.004240791334
A75: Imp M / Imp BT | B75: 0.04447996788 | C75: 0.04457938045 | D75: 0.03326364259 | E75: 0.05132048378 | F75: 0.05843991901 | G75: 0.04735949926
A76: Exp M Países Baixos / Exp M Mundo | B76: 0.00515843728 | C76: 0.008558424361 | D76: 0.01011556264 | E76: 0.01089207041 | F76: 0.01162267929 | G76: 0.009464655827
A77: Imp M Países Baixos / Imp M Mundo | B77: 0.08113062721 | C77: 0.08723260484 | D77: 0.07051319471 | E77: 0.1084711849 | F77: 0.1302705006 | G77: 0.09747950666
A78: AMF - Agroalimentar, Mar e Florestas; BT - Total de Bens Transacionáveis (exclui serviços) | H78: *TVMA - Taxa de variação média anual; TVT - Taxa de variação total
A90: Florestas (F) | B90: 2019 | C90: 2020 | D90: 2021 | E90: 2022 | F90: 2023 | G90: média quinquénio | H90: var. 19/20 | I90: var. 20/21 | J90: var. 21/22 | K90: var. 22/23 | L90: TVMA* 2019-2023 | M90: TVT* 2019-2023
A91: Exportações | B91: 213.997748 | C91: 189.893803 | D91: 269.996629 | E91: 342.114571 | F91: 254.375249 | G91: 254.0756 | H91: -0.1126364423 | I91: 0.4218295949 | J91: 0.2671068238 | K91: -0.2564618097 | L91: 0.04415846137 | M91: 0.1886818968
A92: Importações | B92: 44.734005 | C92: 42.792996 | D92: 43.12738 | E92: 56.88809 | F92: 46.858733 | G92: 46.8802408 | H92: -0.04339001169 | I92: 0.007813989 | J92: 0.3190713185 | K92: -0.1762997668 | L92: 0.01166841197 | M92: 0.04749693214
A93: Saldo (exp-imp) | B93: 169.263743 | C93: 147.100807 | D93: 226.869249 | E93: 285.226481 | F93: 207.516516 | G93: 207.1953592
A94: Cobertura (exp/imp) | B94: 4.783782449 | C94: 4.437497272 | D94: 6.260445893 | E94: 6.013817145 | F94: 5.428555847 | G94: 5.419673527
A95: Exp F / Exp AMF | B95: 0.4158924752 | C95: 0.3611407546 | D95: 0.4023018818 | E95: 0.4604595488 | F95: 0.3567030705 | G95: 0.4010524528 | L95: Exportações
A96: Imp F / Imp AMF | B96: 0.05843637997 | C96: 0.0570207615 | D96: 0.05432613271 | E96: 0.04960660519 | F96: 0.03660844896 | G96: 0.04948680647 | L96: Importações
A97: Exp F / Exp BT | B97: 0.09141356376 | C97: 0.09474916237 | D97: 0.1085364815 | E97: 0.1091535978 | F97: 0.09419898343 | G97: 0.1002870131
A98: Imp F / Imp BT | B98: 0.01125361301 | C98: 0.0113612777 | D98: 0.009724773069 | E98: 0.01035028219 | F98: 0.00828629599 | G98: 0.01004819542
A99: Exp F Países Baixos / Exp F Mundo | B99: 0.04789801528 | C99: 0.04725268947 | D99: 0.05567697688 | E99: 0.05489777818 | F99: 0.04708755736 | G99: 0.05087651729
A100: Imp F Países Baixos / Imp F Mundo | B100: 0.01914204489 | C100: 0.02101745107 | D100: 0.0167049474 | E100: 0.01636739733 | F100: 0.01547510283 | G100: 0.01741667446
A101: AMF - Agroalimentar, Mar e Florestas; BT - Total de Bens Transacionáveis (exclui serviços) | H101: *TVMA - Taxa de variação média anual; TVT - Taxa de variação total
A111: Fonte: GPP a partir de dados INE/Comércio Internacional (2022 definitivos) | H111: 2024-05-10T17:34:55.090

Sheet 2
A1: Ranking dos parceiros comerciais de Portugal por país (média 2019-2023 em milhares de euros) produtos agrícolas e agroalimentares, do mar e da floresta
A2: Exportações | F2: Importações | K2: Trocas comerciais (total e saldo)
A3: P | B3: País | C3: média quinquénio | D3: % do Total | F3: P | G3: País | H3: média quinquénio | I3: % do Total | K3: P | L3: País | M3: Total (exp+imp) | N3: % do Total | O3: Saldo (exp-imp)
A4: 1 | B4: Espanha | C4: 4589477.65 | D4: 0.330749654 | F4: 1 | G4: Espanha | H4: 7534700.686 | I4: 0.4657919629 | K4: 1 | L4: Espanha | M4: 12124178.34 | N4: 0.4034387285 | O4: -2945223.036
A5: 2 | B5: França | C5: 1475809.99 | D5: 0.106357124 | F5: 2 | G5: França | H5: 1064197.953 | I5: 0.06578826077 | K5: 2 | L5: França | M5: 2540007.943 | N5: 0.08452016677 | O5: 411612.0364
A6: 3 | B6: Itália | C6: 915116.4714 | D6: 0.06594965252 | F6: 3 | G6: Países Baixos | H6: 947328.0688 | I6: 0.05856341467 | K6: 3 | L6: Países Baixos | M6: 1580850.188 | N6: 0.05260366289 | O6: -313805.9492
A7: 4 | B7: Alemanha | C7: 650630.7046 | D7: 0.04688897012 | F7: 4 | G7: Alemanha | H7: 912999.7532 | I7: 0.05644125293 | K7: 4 | L7: Alemanha | M7: 1563630.458 | N7: 0.05203066685 | O7: -262369.0486
A8: 5 | B8: Países Baixos | C8: 633522.1196 | D8: 0.04565600659 | F8: 5 | G8: Brasil | H8: 813481.1404 | I8: 0.050289055 | K8: 5 | L8: Itália | M8: 1408658.586 | N8: 0.04687389224 | O8: 421574.357
A9: 6 | B9: Estados Unidos | C9: 565282.6516 | D9: 0.0407381963 | F9: 6 | G9: Itália | H9: 493542.1144 | I9: 0.03051056171 | K9: 6 | L9: Brasil | M9: 1307207.503 | N9: 0.04349805145 | O9: -319754.7774 | P9: Nota: Nesta listagem, o Reino Unido passa a ser constituído por três componentes: Reino Unido [até 2020] ; Reino Unido (sem Irlanda do Norte) pós-2020 e Reino Unido (Irlanda do Norte) pós-2020. Estas componentes são calculadas igualmente como média do quinquénio, embora a primeira corresponda apenas a 2019-2020 e as duas últimas a 2021-2023.
A10: 7 | B10: Brasil | C10: 493726.363 | D10: 0.03558135286 | F10: 7 | G10: Suécia | H10: 338954.0252 | I10: 0.02095399238 | K10: 7 | L10: Estados Unidos | M10: 831258.1132 | N10: 0.0276605727 | O10: 299307.19
A11: 8 | B11: Reino Unido (sem Irlanda do Norte) pós 2020 | C11: 454913.9818 | D11: 0.03278426295 | F11: 8 | G11: Bélgica | H11: 311896.3766 | I11: 0.01928130015 | K11: 8 | L11: Bélgica | M11: 566475.8276 | N11: 0.01884979594 | O11: -57316.9256
A12: 9 | B12: Angola | C12: 292707.7282 | D12: 0.02109455306 | F12: 9 | G12: Estados Unidos | H12: 265975.4616 | I12: 0.01644248889 | K12: 9 | L12: Reino Unido (sem Irlanda do Norte) pós 2020 | M12: 544532.3606 | N12: 0.01811961496 | O12: 365295.603
A13: 10 | B13: Reino Unido | C13: 261878.4294 | D13: 0.01887277954 | F13: 10 | G13: Polónia | H13: 241286.9558 | I13: 0.01491625606 | K13: 10 | L13: Polónia | M13: 500653.6594 | N13: 0.01665952695 | O13: 18079.7478
A14: 11 | B14: Polónia | C14: 259366.7036 | D14: 0.01869176713 | F14: 11 | G14: Ucrânia | H14: 222824.0602 | I14: 0.01377488778 | K14: 11 | L14: Suécia | M14: 438293.7972 | N14: 0.01458446811 | O14: -239614.2532
A15: 12 | B15: Bélgica | C15: 254579.451 | D15: 0.01834676444 | F15: 12 | G15: China, República Popular da | H15: 185792.3874 | I15: 0.01148560566 | K15: 12 | L15: China, República Popular da | M15: 398800.9512 | N15: 0.01327032185 | O15: 27216.1764
A16: 13 | B16: Israel | C16: 229312.128 | D16: 0.01652582555 | F16: 13 | G16: Dinamarca | H16: 157445.0856 | I16: 0.009733187625 | K16: 13 | L16: Reino Unido | M16: 360801.6302 | N16: 0.01200587346 | O16: 162955.2286
A17: 14 | B17: China, República Popular da | C17: 213008.5638 | D17: 0.01535087741 | F17: 14 | G17: África do Sul | H17: 152632.7646 | I17: 0.009435692006 | K17: 14 | L17: Angola | M17: 311606.1852 | N17: 0.01036886787 | O17: 273809.2712
A18: 15 | B18: Turquia | C18: 183340.2302 | D18: 0.01321277111 | F18: 15 | G18: Roménia | H18: 151340.3218 | I18: 0.009355793747 | K18: 15 | L18: Turquia | M18: 242682.4712 | N18: 0.008075393227 | O18: 123997.9892
A19: 16 | B19: Suíça | C19: 154487.3474 | D19: 0.01113343186 | F19: 16 | G19: Irlanda | H19: 122298.3798 | I19: 0.007560433355 | K19: 16 | L19: Dinamarca | M19: 241944.339 | N19: 0.00805083147 | O19: -72945.8322
A20: 17 | B20: Marrocos | C20: 118641.6206 | D20: 0.008550139679 | F20: 17 | G20: Canadá | H20: 119672.9708 | I20: 0.007398131698 | K20: 17 | L20: Ucrânia | M20: 239492.5 | N20: 0.007969245174 | O20: -206155.6204
A21: 18 | B21: Cabo Verde | C21: 109797.6224 | D21: 0.007912779707 | F21: 18 | G21: Argentina | H21: 105868.1334 | I21: 0.006544722574 | K21: 18 | L21: Israel | M21: 237364.4856 | N21: 0.00789843432 | O21: 221259.7704
A22: 19 | B22: Suécia | C22: 99339.772 | D22: 0.007159114331 | F22: 19 | G22: Uruguai | H22: 104314.013 | I22: 0.006448647518 | K22: 19 | L22: Canadá | M22: 218508.6438 | N22: 0.007270995772 | O22: -20837.2978
A23: 20 | B23: Canadá | C23: 98835.673 | D23: 0.007122785454 | F23: 20 | G23: Rússia, Federação da | H23: 103735.9496 | I23: 0.006412911886 | K23: 20 | L23: Irlanda | M23: 195589.7628 | N23: 0.006508357353 | O23: -49006.9968
A24: 21 | B24: Argélia | C24: 96652.6324 | D24: 0.006965460377 | F24: 21 | G24: Reino Unido | H24: 98923.2008 | I24: 0.006115389821 | K24: 21 | L24: África do Sul | M24: 189444.1922 | N24: 0.006303860098 | O24: -115821.337
A25: 22 | B25: Dinamarca | C25: 84499.2534 | D25: 0.006089603427 | F25: 22 | G25: Reino Unido (sem Irlanda do Norte) pós 2020 | H25: 89618.3788 | I25: 0.005540169718 | K25: 22 | L25: Roménia | M25: 177441.9662 | N25: 0.0059044794 | O25: -125238.6774
A26: 23 | B26: Egito | C26: 82715.0134 | D26: 0.005961018693 | F26: 23 | G26: Finlândia | H26: 81334.7174 | I26: 0.005028077325 | K26: 23 | L26: Rússia, Federação da | M26: 176432.6266 | N26: 0.005870893068 | O26: -31039.2726
A27: 24 | B27: México | C27: 78972.8492 | D27: 0.005691332334 | F27: 24 | G27: Índia | H27: 79609.9066 | I27: 0.004921450262 | K27: 24 | L27: Marrocos | M27: 161461.9424 | N27: 0.005372735285 | O27: 75821.2988
A28: 25 | B28: Japão | C28: 73363.5888 | D28: 0.005287090048 | F28: 25 | G28: Costa Rica | H28: 70759.3454 | I28: 0.004374312367 | K28: 25 | L28: Suíça | M28: 158551.5506 | N28: 0.005275890391 | O28: 150423.1442
A29: 26 | B29: Irlanda | C29: 73291.383 | D29: 0.005281886397 | F29: 26 | G29: Áustria | H29: 70408.8626 | I29: 0.00435264567 | K29: 26 | L29: Argentina | M29: 121955.0376 | N29: 0.004058121214 | O29: -89781.2292
A30: 27 | B30: Rússia, Federação da | C30: 72696.677 | D30: 0.005239027749 | F30: 27 | G30: Vietname | H30: 69724.8096 | I30: 0.004310357807 | K30: 27 | L30: Grécia | M30: 120604.866 | N30: 0.004013193508 | O30: -5813.7356
A31: 28 | B31: Luxemburgo | C31: 58628.216 | D31: 0.004225156681 | F31: 28 | G31: Grécia | H31: 63209.3008 | I31: 0.003907571849 | K31: 28 | L31: Áustria | M31: 112631.9138 | N31: 0.003747889122 | O31: -28185.8114
A32: 29 | B32: Grécia | C32: 57395.5652 | D32: 0.004136323298 | F32: 29 | G32: Turquia | H32: 59342.241 | I32: 0.003668511872 | K32: 29 | L32: Finlândia | M32: 112130.7098 | N32: 0.003731211282 | O32: -50538.725
A33: 30 | B33: Áustria | C33: 42223.0512 | D33: 0.003042886498 | F33: 30 | G33: Equador | H33: 58414.7256 | I33: 0.003611173268 | K33: 30 | L33: Índia | M33: 110947.4156 | N33: 0.003691836514 | O33: -48272.3976
A34: 31 | B34: Moçambique | C34: 41346.8404 | D34: 0.002979740659 | F34: 31 | G34: Chile | H34: 53583.805 | I34: 0.00331252783 | K34: 31 | L34: Cabo Verde | M34: 110216.5244 | N34: 0.003667515706 | O34: 109378.7204
A35: 32 | B35: África do Sul | C35: 36811.4276 | D35: 0.002652887293 | F35: 32 | G35: Bulgária | H35: 44086.0538 | I35: 0.002725380927 | K35: 32 | L35: Uruguai | M35: 107585.2684 | N35: 0.003579959209 | O35: -101042.7576
A36: 33 | B36: Arábia Saudita | C36: 35880.8896 | D36: 0.002585826258 | F36: 33 | G36: Marrocos | H36: 42820.3218 | I36: 0.002647133918 | K36: 33 | L36: Argélia | M36: 103327.6826 | N36: 0.003438285691 | O36: 89977.5822
A37: 34 | B37: Austrália | C37: 35113.0132 | D37: 0.002530487749 | F37: 34 | G37: Checa, República | H37: 40116.599 | I37: 0.002479990934 | K37: 34 | L37: Egito | M37: 96954.5744 | N37: 0.003226216997 | O37: 68475.4524
A38: 35 | B38: Guiné-Bissau | C38: 34934.7244 | D38: 0.002517639019 | F38: 35 | G38: Moçambique | H38: 38763.0688 | I38: 0.002396316278 | K38: 35 | L38: México | M38: 96736.9562 | N38: 0.003218975631 | O38: 61208.7422
A39: 36 | B39: Índia | C39: 31337.509 | D39: 0.002258398678 | F39: 36 | G39: Cuba | H39: 37252.762 | I39: 0.00230294976 | K39: 36 | L39: Japão | M39: 88210.8558 | N39: 0.002935264933 | O39: 58516.3218
A40: 37 | B40: Emirados Árabes Unidos | C40: 31194.84 | D40: 0.002248116959 | F40: 37 | G40: Colômbia | H40: 31648.7828 | I40: 0.001956514171 | K40: 37 | L40: Chile | M40: 83999.5896 | N40: 0.002795132725 | O40: -23168.0204
A41: 38 | B41: Checa, República | C41: 30815.952 | D41: 0.002220811656 | F41: 38 | G41: Guiana | H41: 31014.2578 | I41: 0.001917288108 | K41: 38 | L41: Moçambique | M41: 80109.9092 | N41: 0.002665701462 | O41: 2583.7716
A42: 39 | B42: Finlândia | C42: 30795.9924 | D42: 0.002219373229 | F42: 39 | G42: Indonésia | H42: 29000.573 | I42: 0.001792802977 | K42: 39 | L42: Vietname | M42: 76018.5502 | N42: 0.002529559232 | O42: -63431.069
A43: 40 | B43: Chile | C43: 30415.7846 | D43: 0.002191972812 | F43: 40 | G43: Hungria | H43: 27853.1164 | I43: 0.001721867703 | K43: 40 | L43: Costa Rica | M43: 75105.2118 | N43: 0.002499167392 | O43: -66413.479
A44: 41 | B44: Jordânia | C44: 29568.7308 | D44: 0.002130928229 | F44: 41 | G44: Costa do Marfim | H44: 23657.68 | I44: 0.001462507625 | K44: 41 | L44: Checa, República | M44: 70932.551 | N44: 0.0023603198 | O44: -9300.647
A45: 42 | B45: São Tomé e Príncipe | C45: 26643.6118 | D45: 0.001920123826 | F45: 42 | G45: Uganda | H45: 22974.374 | I45: 0.001420265941 | K45: 42 | L45: Luxemburgo | M45: 67457.2882 | N45: 0.002244678512 | O45: 49799.1438
A46: 43 | B46: Roménia | C46: 26101.6444 | D46: 0.001881065889 | F46: 43 | G46: Namíbia | H46: 22899.6914 | I46: 0.001415649095 | K46: 43 | L46: Equador | M46: 61226.8336 | N46: 0.002037356695 | O46: -55602.6176
A47: 44 | B47: Tunísia | C47: 25934.5578 | D47: 0.001869024467 | F47: 44 | G47: Peru | H47: 21918.8742 | I47: 0.001355015397 | K47: 44 | L47: Bulgária | M47: 58372.2568 | N47: 0.001942369075 | O47: -29799.8508
A48: 45 | B48: Noruega | C48: 23600.8176 | D48: 0.00170083893 | F48: 45 | G48: Letónia | H48: 19634.0354 | I48: 0.001213767643 | K48: 45 | L48: Austrália | M48: 52768.539 | N48: 0.001755902271 | O48: 17457.4874
A49: 46 | B49: Coreia, República da | C49: 22131.0668 | D49: 0.001594918473 | F49: 46 | G49: Lituânia | H49: 19279.9074 | I49: 0.001191875602 | K49: 46 | L49: Hungria | M49: 47560.2566 | N49: 0.001582593799 | O49: -8145.9762
A50: 47 | B50: Hungria | C50: 19707.1402 | D50: 0.001420233477 | F50: 47 | G50: Angola | H50: 18898.457 | I50: 0.001168294502 | K50: 47 | L50: Cuba | M50: 44341.484 | N50: 0.001475487363 | O50: -30164.04
A51: 48 | B51: Nigéria | C51: 18837.3684 | D51: 0.001357551677 | F51: 48 | G51: Suazilândia | H51: 17908.5294 | I51: 0.001107097602 | K51: 48 | L51: Colômbia | M51: 40554.3906 | N51: 0.001349469739 | O51: -22743.175
A52: 49 | B52: Ucrânia | C52: 16668.4398 | D52: 0.001201243609 | F52: 49 | G52: México | H52: 17764.107 | I52: 0.001098169471 | K52: 49 | L52: Noruega | M52: 38853.5172 | N52: 0.001292872238 | O52: 8348.118
A53: 50 | B53: Argentina | C53: 16086.9042 | D53: 0.001159334112 | F53: 50 | G53: Austrália | H53: 17655.5258 | I53: 0.001091457028 | K53: 50 | L53: Tunísia | M53: 37484.3298 | N53: 0.001247311771 | O53: 14384.7858
A54: 51 | B54: Lituânia | C54: 15764.2352 | D54: 0.001136080342 | F54: 51 | G54: Senegal | H54: 16694.6988 | I54: 0.001032059115 | K54: 51 | L54: Arábia Saudita | M54: 35932.1724 | N54: 0.001195662877 | O54: 35829.6068
A55: 52 | B55: Macau | C55: 14584.6512 | D55: 0.001051071321 | F55: 52 | G55: Nova Zelânda | H55: 16509.396 | I55: 0.001020603776 | K55: 52 | L55: Costa do Marfim | M55: 35761.2586 | N55: 0.001189975626 | O55: -11554.1014
A56: 53 | B56: Bulgária | C56: 14286.203 | D56: 0.00102956307 | F56: 53 | G56: Estónia | H56: 16320.5418 | I56: 0.00100892889 | K56: 53 | L56: Guiné-Bissau | M56: 35226.5238 | N56: 0.00117218203 | O56: 34642.925
A57: 54 | B57: Líbia, Jamahira Árabe da | C57: 13798.5402 | D57: 0.0009944186996 | F57: 54 | G57: Eslovénia | H57: 16026.5852 | I57: 0.0009907566193 | K57: 54 | L57: Coreia, República da | M57: 35092.7906 | N57: 0.001167731984 | O57: 9169.343
A58: 55 | B58: Iraque | C58: 13659.5246 | D58: 0.0009844002694 | F58: 55 | G58: Noruega | H58: 15252.6996 | I58: 0.0009429153436 | K58: 55 | L58: Lituânia | M58: 35044.1426 | N58: 0.001166113195 | O58: -3515.6722
A59: 56 | B59: Senegal | C59: 13224.0438 | D59: 0.0009530164966 | F59: 56 | G59: Japão | H59: 14847.267 | I59: 0.0009178516743 | K59: 56 | L59: Indonésia | M59: 33328.2666 | N59: 0.001109016473 | O59: -24672.8794
A60: 57 | B60: Letónia | C60: 13144.4668 | D60: 0.0009472816249 | F60: 57 | G60: Egito | H60: 14239.561 | I60: 0.0008802835502 | K60: 57 | L60: Letónia | M60: 32778.5022 | N60: 0.001090722759 | O60: -6489.5686
A61: 58 | B61: Eslováquia | C61: 12793.9168 | D61: 0.0009220185558 | F61: 58 | G61: Mauritânia | H61: 13443.2356 | I61: 0.0008310550557 | K61: 58 | L61: Emirados Árabes Unidos | M61: 31953.4188 | N61: 0.001063267654 | O61: 30436.2612
A62: 59 | B62: Croácia | C62: 12333.56 | D62: 0.0008888420455 | F62: 59 | G62: Tanzânia, República Unida da | H62: 13079.5878 | I62: 0.0008085745048 | K62: 59 | L62: Guiana | M62: 31130.901 | N62: 0.00103589792 | O62: -30897.6146
A63: 60 | B63: Costa do Marfim | C63: 12103.5786 | D63: 0.0008722679876 | F63: 60 | G63: Camarões | H63: 13022.8276 | I63: 0.0008050656135 | K63: 60 | L63: Senegal | M63: 29918.7426 | N63: 0.0009955626797 | O63: -3470.655
A64: 61 | B64: Síria, República Árabe da | C64: 11995.3212 | D64: 0.000864466207 | F64: 61 | G64: Coreia, República da | H64: 12961.7238 | I64: 0.0008012882029 | K64: 61 | L64: Jordânia | M64: 29716.5252 | N64: 0.0009888337841 | O64: 29420.9364
A65: 62 | B65: Dominicana, República | C65: 11848.0206 | D65: 0.0008538507021 | F65: 62 | G65: Paquistão | H65: 12615.7756 | I65: 0.0007799018336 | K65: 62 | L65: São Tomé e Príncipe | M65: 27732.7016 | N65: 0.0009228209584 | O65: 25554.522
A66: 63 | B66: Território Palestiniano Ocupado | C66: 11806.0928 | D66: 0.0008508290935 | F66: 63 | G66: Tailândia | H66: 12316.114 | I66: 0.0007613768821 | K66: 63 | L66: Peru | M66: 27430.0544 | N66: 0.0009127502057 | O66: -16407.694
A67: 64 | B67: HongKong | C67: 11528.0934 | D67: 0.0008307945247 | F67: 64 | G67: Moldava, República de | H67: 12178.8658 | I67: 0.0007528922573 | K67: 64 | L67: Nigéria | M67: 25016.4128 | N67: 0.0008324349488 | O67: 12658.324
A68: 65 | B68: Kuwait | C68: 10775.802 | D68: 0.0007765791784 | F68: 65 | G68: Sérvia | H68: 11730.1152 | I68: 0.0007251506877 | K68: 65 | L68: Estónia | M68: 24786.1618 | N68: 0.0008247732196 | O68: -7854.9218
A69: 66 | B69: Chipre | C69: 10753.9998 | D69: 0.0007750079604 | F69: 66 | G69: Tunísia | H69: 11549.772 | I69: 0.0007140019485 | K69: 66 | L69: Uganda | M69: 24133.8048 | N69: 0.0008030656803 | O69: -21814.9432
A70: 67 | B70: Malta | C70: 10377.2016 | D70: 0.0007478532635 | F70: 67 | G70: Belize | H70: 10934.5394 | I70: 0.0006759685332 | K70: 67 | L70: Eslovénia | M70: 23946.301 | N70: 0.0007968263878 | O70: -8106.8694
A71: 68 | B71: Tailândia | C71: 9256.6804 | D71: 0.0006671007188 | F71: 68 | G71: Paraguai | H71: 10263.5706 | I71: 0.0006344895299 | K71: 68 | L71: Namíbia | M71: 23765.809 | N71: 0.0007908204168 | O71: -22033.5738
A72: 69 | B72: Colômbia | C72: 8905.6078 | D72: 0.0006417999875 | F72: 69 | G72: Maurícias | H72: 9873.1322 | I72: 0.0006103527956 | K72: 69 | L72: Camarões | M72: 21652.1438 | N72: 0.0007204870402 | O72: -4393.5114
A73: 70 | B73: Geórgia | C73: 8776.724 | D73: 0.0006325117252 | F73: 70 | G73: Reino Unido (Irlanda do Norte) pós-2020 | H73: 9138.2728 | I73: 0.0005649241029 | K73: 70 | L73: Tailândia | M73: 21572.7944 | N73: 0.0007178466451 | O73: -3059.4336
A74: 71 | B74: Líbano | C74: 8677.7716 | D74: 0.0006253805276 | F74: 71 | G74: Islândia | H74: 9112.164 | I74: 0.000563310068 | K74: 71 | L74: Nova Zelânda | M74: 20810.7044 | N74: 0.0006924876796 | O74: -12208.0876
A75: 72 | B75: Camarões | C75: 8629.3162 | D75: 0.0006218884947 | F75: 72 | G75: Luxemburgo | H75: 8829.0722 | I75: 0.0005458094545 | K75: 72 | L75: Croácia | M75: 20488.528 | N75: 0.000681767082 | O75: 4178.592
A76: 73 | B76: Estónia | C76: 8465.62 | D76: 0.0006100914089 | F76: 73 | G76: Croácia | H76: 8154.968 | I76: 0.0005041366221 | K76: 73 | L76: Eslováquia | M76: 20124.608 | N76: 0.000669657443 | O76: 5463.2256
A77: 74 | B77: Gana | C77: 8178.0838 | D77: 0.0005893695521 | F77: 74 | G77: Israel | H77: 8052.3576 | I77: 0.0004977932912 | K77: 74 | L77: Suazilândia | M77: 19975.6478 | N77: 0.0006647007101 | O77: -15841.411
A78: 75 | B78: Eslovénia | C78: 7919.7158 | D78: 0.0005707497585 | F78: 75 | G78: Bangladesh | H78: 7823.177 | I78: 0.0004836254449 | K78: 75 | L78: Sérvia | M78: 19112.5644 | N78: 0.0006359811335 | O78: -4347.666
A79: 76 | B79: Belarus | C79: 7872.655 | D79: 0.0005673582302 | F79: 76 | G79: Malásia | H79: 7805.5168 | I79: 0.0004825336989 | K79: 76 | L79: Paquistão | M79: 17209.3712 | N79: 0.0005726513289 | O79: -8022.18
A80: 77 | B80: Sérvia | C80: 7382.4492 | D80: 0.0005320305936 | F80: 77 | G80: Quénia | H80: 7356.7132 | I80: 0.0004547888529 | K80: 77 | L80: Mauritânia | M80: 16816.7526 | N80: 0.0005595867282 | O80: -10069.7186
A81: 78 | B81: Gibraltar | C81: 7309.7404 | D81: 0.0005267906922 | F81: 78 | G81: Eslováquia | H81: 7330.6912 | I81: 0.0004531801841 | K81: 78 | L81: Maurícias | M81: 16663.174 | N81: 0.0005544763155 | O81: -3083.0904
A82: 79 | B82: Cuba | C82: 7088.722 | D82: 0.0005108625703 | F82: 79 | G82: Filipinas | H82: 7323.2812 | I82: 0.000452722101 | K82: 79 | L82: Moldava, República de | M82: 15413.0416 | N82: 0.0005128774696 | O82: -8944.69
A83: 80 | B83: Maurícias | C83: 6790.0418 | D83: 0.0004893375994 | F83: 80 | G83: Gana | H83: 6780.4694 | I83: 0.0004191657085 | K83: 80 | L83: Chipre | M83: 14994.9744 | N83: 0.0004989660527 | O83: 6513.0252
A84: 81 | B84: Taiwan | C84: 6498.8018 | D84: 0.0004683488211 | F84: 81 | G84: Argélia | H84: 6675.0502 | I84: 0.0004126487388 | K84: 81 | L84: Gana | M84: 14958.5532 | N84: 0.0004977541171 | O84: 1397.6144
A85: 82 | B85: Vietname | C85: 6293.7406 | D85: 0.0004535706859 | F85: 82 | G85: Nigéria | H85: 6179.0444 | I85: 0.0003819858731 | K85: 82 | L85: Macau | M85: 14605.4142 | N85: 0.0004860032219 | O85: 14563.8882
A86: 83 | B86: Andorra | C86: 6022.5714 | D86: 0.0004340283489 | F86: 83 | G86: Panamá | H86: 5653.6226 | I86: 0.0003495045229 | K86: 83 | L86: HongKong | M86: 14502.5934 | N86: 0.000482581803 | O86: 8553.5934
A87: 84 | B87: Guatemala | C87: 5731.0826 | D87: 0.0004130216402 | F87: 84 | G87: Congo | H87: 5587.8752 | I87: 0.0003454400469 | K87: 84 | L87: Dominicana, República | M87: 14480.0812 | N87: 0.0004818326971 | O87: 9215.96
A88: 85 | B88: Peru | C88: 5511.1802 | D88: 0.0003971739451 | F88: 85 | G88: Honduras | H88: 5352.3066 | I88: 0.0003308772971 | K88: 85 | L88: Líbia, Jamahira Árabe da | M88: 13839.6806 | N88: 0.0004605230136 | O88: 13757.3998
A89: 86 | B89: Singapura | C89: 5118.6402 | D89: 0.0003688847847 | F89: 86 | G89: Camboja | H89: 5251.3418 | I89: 0.0003246356965 | K89: 86 | L89: Iraque | M89: 13672.6982 | N89: 0.000454966582 | O89: 13646.351
A90: 87 | B90: Omã | C90: 4766.6966 | D90: 0.0003435212831 | F90: 87 | G90: Zimbabwe | H90: 5173.412 | I90: 0.0003198181097 | K90: 87 | L90: Tanzânia, República Unida da | M90: 13489.132 | N90: 0.0004488583154 | O90: -12670.0436
A91: 88 | B91: Panamá | C91: 4742.5904 | D91: 0.0003417840228 | F91: 88 | G91: Etiópia | H91: 4865.2444 | I91: 0.0003007673209 | K91: 88 | L91: Malta | M91: 12868.9092 | N91: 0.0004282200592 | O91: 7885.494
A92: 89 | B92: Paquistão | C92: 4593.5956 | D92: 0.0003310464221 | F92: 89 | G92: Sri Lanca | H92: 4526.3628 | I92: 0.0002798178058 | K92: 89 | L92: Reino Unido (Irlanda do Norte) pós-2020 | M92: 12739.7782 | N92: 0.0004239231539 | O92: -5536.7674
A93: 90 | B93: Mali | C93: 4507.5844 | D93: 0.0003248478573 | F93: 90 | G93: Suriname | H93: 4461.0484 | I93: 0.0002757800977 | K93: 90 | L93: Kuwait | M93: 12319.6144 | N93: 0.0004099419715 | O93: 9231.9896
A94: 91 | B94: Costa Rica | C94: 4345.8664 | D94: 0.0003131933343 | F94: 91 | G94: Macedónia, Antiga República jugoslava da | H94: 4419.1744 | I94: 0.0002731914649 | K94: 91 | L94: Síria, República Árabe da | M94: 12141.732 | N94: 0.0004040228364 | O94: 11848.9104
A95: 92 | B95: Indonésia | C95: 4327.6936 | D95: 0.0003118836761 | F95: 92 | G95: Myanmar | H95: 4417.7084 | I95: 0.0002731008374 | K95: 92 | L95: Território Palestiniano Ocupado | M95: 11817.7626 | N95: 0.0003932425757 | O95: 11794.423
A96: 93 | B96: Nova Zelânda | C96: 4301.3084 | D96: 0.0003099821752 | F96: 93 | G96: Papuásia-Nova Guiné | H96: 4268.11 | I96: 0.0002638527286 | K96: 93 | L96: Paraguai | M96: 11233.3798 | N96: 0.0003737969154 | O96: -9293.7614
A97: 94 | B97: Burquina Faso | C97: 4086.0794 | D97: 0.0002944712777 | F97: 94 | G97: Chipre | H97: 4240.9746 | I97: 0.0002621752298 | K97: 94 | L97: Islândia | M97: 10997.3204 | N97: 0.0003659419085 | O97: -7227.0076
A98: 95 | B98: Venezuela | C98: 3914.122 | D98: 0.0002820788325 | F98: 95 | G98: Suíça | H98: 4064.2032 | I98: 0.0002512472977 | K98: 95 | L98: Belize | M98: 10954.0486 | N98: 0.0003645020155 | O98: -10915.0302
A99: 96 | B99: Reino Unido (Irlanda do Norte) pós-2020 | C99: 3601.5054 | D99: 0.0002595495077 | F99: 96 | G99: Guatemala | H99: 3891.5604 | I99: 0.0002405745939 | K99: 96 | L99: Filipinas | M99: 10864.8014 | N99: 0.0003615322656 | O99: -3781.761
A100: 97 | B100: Filipinas | C100: 3541.5202 | D100: 0.0002552265574 | F100: 97 | G100: Malavi | H100: 3761.9744 | I100: 0.000232563643 | K100: 97 | L100: Malásia | M100: 10802.9 | N100: 0.0003594724623 | O100: -4808.1336
A101: 98 | B101: Catar | C101: 3509.4766 | D101: 0.0002529172729 | F101: 98 | G101: Congo, República Democrática do | H101: 3658.6746 | I101: 0.0002261776937 | K101: 98 | L101: Panamá | M101: 10396.213 | N101: 0.0003459397279 | O101: -911.0322
A102: 99 | B102: Mauritânia | C102: 3373.517 | D102: 0.0002431190792 | F102: 99 | G102: Madagáscar | H102: 3530.0814 | I102: 0.0002182281172 | K102: 99 | L102: Bangladesh | M102: 9992.5026 | N102: 0.0003325060414 | O102: -5653.8514
A103: 100 | B103: Uruguai | C103: 3271.2554 | D103: 0.0002357493977 | F103: 100 | G103: Taiwan | H103: 3371.904 | I103: 0.0002084496582 | K103: 100 | L103: Taiwan | M103: 9870.7058 | N103: 0.0003284531856 | O103: 3126.8978
A104: 101 | B104: Moldava, República de | C104: 3234.1758 | D104: 0.000233077184 | F104: 101 | G104: Nicarágua | H104: 3348.1498 | I104: 0.0002069811838 | K104: 101 | L104: Geórgia | M104: 9763.0358 | N104: 0.0003248704069 | O104: 7790.4122
A105: 102 | B105: Guiné | C105: 3199.9078 | D105: 0.0002306075938 | F105: 102 | G105: Gâmbia | H105: 3121.0524 | I105: 0.00019294212 | K105: 102 | L105: Quénia | M105: 9728.6568 | N105: 0.0003237264267 | O105: -4984.7696
A106: 103 | B106: Malásia | C106: 2997.3832 | D106: 0.0002160122637 | F106: 103 | G106: HongKong | H106: 2974.5 | I106: 0.0001838823135 | K106: 103 | L106: Guatemala | M106: 9622.643 | N106: 0.000320198759 | O106: 1839.5222
A107: 104 | B107: Gabão | C107: 2969.7446 | D107: 0.0002140204341 | F107: 104 | G107: Gabão | H107: 2833.2392 | I107: 0.0001751496315 | K107: 104 | L107: Líbano | M107: 9030.5168 | N107: 0.0003004954327 | O107: 8325.0264
A108: 105 | B108: Equador | C108: 2812.108 | D108: 0.0002026600452 | F108: 105 | G108: Dominicana, República | H108: 2632.0606 | I108: 0.0001627128568 | K108: 105 | L108: Belarus | M108: 8568.8254 | N108: 0.0002851323965 | O108: 7176.4846
A109: 106 | B109: Arménia | C109: 2727.7232 | D109: 0.0001965786901 | F109: 106 | G109: Malta | H109: 2491.7076 | I109: 0.0001540362945 | K109: 106 | L109: Congo | M109: 8278.2768 | N109: 0.0002754642314 | O109: -2897.4736
A110: 107 | B110: Guiné Equatorial | C110: 2712.0278 | D110: 0.0001954475705 | F110: 107 | G110: Mali | H110: 2475.2544 | I110: 0.0001530191648 | K110: 107 | L110: Gibraltar | M110: 7352.4128 | N110: 0.0002446555956 | O110: 7267.068
A111: 108 | B111: Congo | C111: 2690.4016 | D111: 0.0001938890362 | F111: 108 | G111: Centro-Africana, República | H111: 2466.2132 | I111: 0.0001524602417 | K111: 108 | L111: Mali | M111: 6982.8388 | N111: 0.0002323578167 | O111: 2032.33
A112: 109 | B112: Timor-Leste | C112: 2668.7438 | D112: 0.0001923282246 | F112: 109 | G112: Benim | H112: 1927.4492 | I112: 0.0001191540824 | K112: 109 | L112: Singapura | M112: 6659.3268 | N112: 0.0002215927762 | O112: 3577.9536
A113: 110 | B113: Benim | C113: 2476.0626 | D113: 0.0001784422783 | F113: 110 | G113: Serra Leoa | H113: 1903.7664 | I113: 0.0001176900219 | K113: 110 | L113: Honduras | M113: 6528.2066 | N113: 0.0002172296792 | O113: -4176.4066
A114: 111 | B114: Quénia | C114: 2371.9436 | D114: 0.0001709387396 | F114: 111 | G114: Laos, República Democrática Popular do | H114: 1764.877 | I114: 0.0001091039388 | K114: 111 | L114: Etiópia | M114: 6273.7972 | N114: 0.0002087640659 | O114: -3456.6916
A115: 112 | B115: Seychelles | C115: 2348.937 | D115: 0.0001692807241 | F115: 112 | G115: Burquina Faso | H115: 1596.8146 | I115: 9.871439331e-05 | K115: 112 | L115: Camboja | M115: 6129.6458 | N115: 0.0002039673485 | O115: -4373.0378
A116: 113 | B116: Congo, República Democrática do | C116: 2232.4506 | D116: 0.0001608859046 | F116: 113 | G116: Kuwait | H116: 1543.8124 | I116: 9.543782005e-05 | K116: 113 | L116: Andorra | M116: 6085.3588 | N116: 0.0002024936741 | O116: 5959.784
A117: 114 | B117: Bangladesh | C117: 2169.3256 | D117: 0.0001563366784 | F117: 114 | G117: Singapura | H117: 1540.6866 | I117: 9.524458443e-05 | K117: 114 | L117: Sri Lanca | M117: 6081.5556 | N117: 0.0002023671205 | O117: -2971.17
A118: 115 | B118: Suazilândia | C118: 2067.1184 | D118: 0.0001489709173 | F118: 115 | G118: Seychelles | H118: 1430.66 | I118: 8.844278724e-05 | K118: 115 | L118: Congo, República Democrática do | M118: 5891.1252 | N118: 0.0001960304438 | O118: -1426.224
A119: 116 | B119: Irão, República Islâmica do | C119: 2015.5486 | D119: 0.0001452544391 | F119: 116 | G119: Bolívia | H119: 1415.5294 | I119: 8.750742004e-05 | K119: 116 | L119: Gabão | M119: 5802.9838 | N119: 0.0001930974901 | O119: 136.5054
A120: 117 | B120: Islândia | C120: 1885.1564 | D120: 0.0001358574711 | F120: 117 | G120: São Tomé e Príncipe | H120: 1089.0898 | I120: 6.732706406e-05 | K120: 117 | L120: Burquina Faso | M120: 5682.894 | N120: 0.0001891014357 | O120: 2489.2648
A121: 118 | B121: Togo | C121: 1879.1826 | D121: 0.0001354269575 | F121: 118 | G121: Venezuela | H121: 1080.4086 | I121: 6.6790396e-05 | K121: 118 | L121: Omã | M121: 5590.2944 | N121: 0.0001860201329 | O121: 3943.0988
A122: 119 | B122: Sudão | C122: 1868.0632 | D122: 0.0001346256163 | F122: 119 | G122: Bósnia-Herzegovina | H122: 1034.9794 | I122: 6.398198235e-05 | K122: 119 | L122: Macedónia, Antiga República jugoslava da | M122: 5497.1524 | N122: 0.0001829207814 | O122: -3341.1964
A123: 120 | B123: Nicarágua | C123: 1709.2518 | D123: 0.0001231805631 | F123: 120 | G123: Geórgia | H123: 986.3118 | I123: 6.097337221e-05 | K123: 120 | L123: Zimbabwe | M123: 5240.2714 | N123: 0.0001743729243 | O123: -5106.5526
A124: 121 | B124: Jamaica | C124: 1645.8018 | D124: 0.0001186079152 | F124: 121 | G124: Cazaquistão | H124: 977.1902 | I124: 6.040947881e-05 | K124: 121 | L124: Suriname | M124: 5124.6412 | N124: 0.0001705252655 | O124: -3797.4556
A125: 122 | B125: El Salvador | C125: 1616.0178 | D125: 0.0001164614732 | F125: 122 | G125: El Salvador | H125: 921.9616 | I125: 5.699527046e-05 | K125: 122 | L125: Nicarágua | M125: 5057.4016 | N125: 0.0001682878307 | O125: -1638.898
A126: 123 | B126: Cazaquistão | C126: 1586.0954 | D126: 0.0001143050571 | F126: 123 | G126: Omã | H126: 823.5978 | I126: 5.091446255e-05 | K126: 123 | L126: Venezuela | M126: 4994.5306 | N126: 0.0001661957635 | O126: 2833.7134
A127: 124 | B127: Sri Lanca | C127: 1555.1928 | D127: 0.000112078001 | F127: 124 | G127: Timor-Leste | H127: 773.0574 | I127: 4.779007671e-05 | K127: 124 | L127: Myanmar | M127: 4788.3204 | N127: 0.0001593340052 | O127: -4047.0964
A128: 125 | B128: Ruanda | C128: 1542.3664 | D128: 0.0001111536414 | F128: 125 | G128: Emirados Árabes Unidos | H128: 758.5788 | I128: 4.689501588e-05 | K128: 125 | L128: Benim | M128: 4403.5118 | N128: 0.0001465292866 | O128: 548.6134
A129: 126 | B129: Azerbaijão | C129: 1447.7444 | D129: 0.0001043345225 | F129: 126 | G129: Belarus | H129: 696.1704 | I129: 4.303695537e-05 | K129: 126 | L129: Papuásia-Nova Guiné | M129: 4270.9956 | N129: 0.0001421197368 | O129: -4265.2244
A130: 127 | B130: Etiópia | C130: 1408.5528 | D130: 0.0001015101035 | F130: 127 | G130: Turquemenistão | H130: 693.7048 | I130: 4.288453304e-05 | K130: 127 | L130: Madagáscar | M130: 3916.3472 | N130: 0.0001303186155 | O130: -3143.8156
A131: 128 | B131: Albânia | C131: 1395.6804 | D131: 0.0001005824289 | F131: 128 | G131: Iémen | H131: 684.2014 | I131: 4.229703693e-05 | K131: 128 | L131: Seychelles | M131: 3779.597 | N131: 0.0001257681771 | O131: 918.277
A132: 129 | B132: Bolívia | C132: 1235.6182 | D132: 8.904723441e-05 | F132: 129 | G132: Gronelândia | H132: 628.3832 | I132: 3.884637976e-05 | K132: 129 | L132: Malavi | M132: 3770.4898 | N132: 0.00012546513 | O132: -3753.459
A133: 130 | B133: Montenegro | C133: 1193.9358 | D133: 8.604331099e-05 | F133: 130 | G133: Faroé, Ilhas | H133: 595.1746 | I133: 3.679343836e-05 | K133: 130 | L133: Gâmbia | M133: 3599.2092 | N133: 0.0001197656734 | O133: -2642.8956
A134: 131 | B134: São Bartolomeu | C134: 1183.3114 | D134: 8.527764289e-05 | F134: 131 | G134: Cabo Verde | H134: 418.902 | I134: 2.589634187e-05 | K134: 131 | L134: Catar | M134: 3530.8284 | N134: 0.0001174902646 | O134: 3488.1248
A135: 132 | B135: Honduras | C135: 1175.9 | D135: 8.47435259e-05 | F135: 132 | G135: Usbequistão | H135: 380.4082 | I135: 2.351667167e-05 | K135: 132 | L135: Guiné | M135: 3487.284 | N135: 0.0001160413006 | O135: 2912.5316
A136: 133 | B136: Uganda | C136: 1159.4308 | D136: 8.35566409e-05 | F136: 133 | G136: Líbano | H136: 352.7452 | I136: 2.180655689e-05 | K136: 133 | L136: Timor-Leste | M136: 3441.8012 | N136: 0.0001145278353 | O136: 1895.6864
A137: 134 | B137: Macedónia, Antiga República jugoslava da | C137: 1077.978 | D137: 7.768658608e-05 | F137: 134 | G137: Chade | H137: 303.1764 | I137: 1.874223494e-05 | K137: 134 | L137: Arménia | M137: 2777.2048 | N137: 9.241302316e-05 | O137: 2678.2416
A138: 135 | B138: Paraguai | C138: 969.8092 | D138: 6.989119063e-05 | F138: 135 | G138: Guiné-Bissau | H138: 291.7994 | I138: 1.803891368e-05 | K138: 135 | L138: Guiné Equatorial | M138: 2721.8116 | N138: 9.056978384e-05 | O138: 2702.244
A139: 136 | B139: Bermudas | C139: 957.27 | D139: 6.898752874e-05 | F139: 136 | G139: Guiné | H139: 287.3762 | I139: 1.776547336e-05 | K139: 136 | L139: Bolívia | M139: 2651.1476 | N139: 8.821840023e-05 | O139: -179.9112
A140: 137 | B140: Aruba | C140: 940.2512 | D140: 6.776103574e-05 | F140: 137 | G140: Togo | H140: 238.6312 | I140: 1.475207838e-05 | K140: 137 | L140: Centro-Africana, República | M140: 2569.5112 | N140: 8.550190394e-05 | O140: -2362.9152
A141: 138 | B141: Barbados | C141: 924.8742 | D141: 6.665286225e-05 | F141: 138 | G141: Irão, República Islâmica do | H141: 211.8398 | I141: 1.309584553e-05 | K141: 138 | L141: Cazaquistão | M141: 2563.2856 | N141: 8.529474366e-05 | O141: 608.9052
A142: 139 | B142: Camboja | C142: 878.304 | D142: 6.329669e-05 | F142: 139 | G142: Zâmbia | H142: 183.9494 | I142: 1.137167297e-05 | K142: 139 | L142: El Salvador | M142: 2537.9794 | N142: 8.445266589e-05 | O142: 694.0562
A143: 140 | B143: Trindade e Tobago | C143: 878.2468 | D143: 6.329256777e-05 | F143: 140 | G143: Jordânia | H143: 147.7944 | I143: 9.136586383e-06 | K143: 140 | L143: Serra Leoa | M143: 2340.2336 | N143: 7.787256521e-05 | O143: -1467.2992
A144: 141 | B144: Kosovo | C144: 870.5922 | D144: 6.27409241e-05 | F144: 141 | G144: Síria, República Árabe da | H144: 146.4108 | I144: 9.051052825e-06 | K144: 141 | L144: Irão, República Islâmica do | M144: 2227.3884 | N144: 7.411757887e-05 | O144: 1803.7088
A145: 142 | B145: Namíbia | C145: 866.1176 | D145: 6.241845333e-05 | F145: 142 | G145: Maldivas | H145: 127.2588 | I145: 7.867084403e-06 | K145: 142 | L145: Togo | M145: 2117.8138 | N145: 7.047142355e-05 | O145: 1640.5514
A146: 143 | B146: Turquemenistão | C146: 749.1004 | D146: 5.398538069e-05 | F146: 143 | G146: Albânia | H146: 125.4572 | I146: 7.755710265e-06 | K146: 143 | L146: Laos, República Democrática Popular do | M146: 1935.8146 | N146: 6.441529968e-05 | O146: -1593.9394
A147: 144 | B147: Barém | C147: 728.9324 | D147: 5.253193445e-05 | F147: 144 | G147: Azerbaijão | H147: 124.9342 | I147: 7.723378629e-06 | K147: 144 | L147: Sudão | M147: 1883.1514 | N147: 6.266290262e-05 | O147: 1852.975
A148: 145 | B148: Iémen | C148: 704.0114 | D148: 5.0735954e-05 | F148: 145 | G148: Kosovo | H148: 80.0466 | I148: 4.94844646e-06 | K148: 145 | L148: Jamaica | M148: 1660.4886 | N148: 5.525367501e-05 | O148: 1631.115
A149: 146 | B149: Suriname | C149: 663.5928 | D149: 4.78231088e-05 | F149: 146 | G149: Tajiquistão | H149: 74.7168 | I149: 4.618960512e-06 | K149: 146 | L149: Azerbaijão | M149: 1572.6786 | N149: 5.233174877e-05 | O149: 1322.8102
A150: 147 | B150: Niger | C150: 619.0434 | D150: 4.461256944e-05 | F150: 147 | G150: Andorra | H150: 62.7874 | I150: 3.881490123e-06 | K150: 147 | L150: Bósnia-Herzegovina | M150: 1571.857 | N150: 5.230440958e-05 | O150: -498.1018
A151: 148 | B151: São Martinho (parte holandesa) | C151: 606.1984 | D151: 4.368686947e-05 | F151: 148 | G151: Libéria | H151: 54.4472 | I151: 3.365902538e-06 | K151: 148 | L151: Ruanda | M151: 1569.669 | N151: 5.223160267e-05 | O151: 1515.0638
A152: 149 | B152: Bósnia-Herzegovina | C152: 536.8776 | D152: 3.869113088e-05 | F152: 149 | G152: Arábia Saudita | H152: 51.2828 | I152: 3.170280688e-06 | K152: 149 | L152: Albânia | M152: 1521.1376 | N152: 5.061669354e-05 | O152: 1270.2232
A153: 150 | B153: Curaçau | C153: 534.0534 | D153: 3.84875994e-05 | F153: 150 | G153: Fiji, Ilhas | H153: 50.1218 | I153: 3.098508166e-06 | K153: 150 | L153: Turquemenistão | M153: 1442.8052 | N153: 4.801013968e-05 | O153: 55.3956
A154: 151 | B154: Burundi | C154: 485.0592 | D154: 3.495673687e-05 | F154: 151 | G154: Arménia | H154: 49.4816 | I154: 3.058931277e-06 | K154: 151 | L154: Iémen | M154: 1388.2128 | N154: 4.619354742e-05 | O154: 19.81
A155: 152 | B155: Gâmbia | C155: 478.1568 | D155: 3.445930195e-05 | F155: 152 | G155: Falkland Ilhas (Malvinas) | H155: 46.09 | I155: 2.849264021e-06 | K155: 152 | L155: Montenegro | M155: 1194.2042 | N155: 3.973780414e-05 | O155: 1193.6674
A156: 153 | B156: Antígua e Barbuda | C156: 468.1724 | D156: 3.37397567e-05 | F156: 153 | G156: Aruba | H156: 45.6344 | I156: 2.821099024e-06 | K156: 153 | L156: São Bartolomeu | M156: 1185.2626 | N156: 3.944026746e-05 | O156: 1181.3602
A157: 154 | B157: Serra Leoa | C157: 436.4672 | D157: 3.145485966e-05 | F157: 154 | G157: Gibraltar | H157: 42.6724 | I157: 2.637989455e-06 | K157: 154 | L157: Aruba | M157: 985.8856 | N157: 3.28058877e-05 | O157: 894.6168
A158: 155 | B158: Tanzânia, República Unida da | C158: 409.5442 | D158: 2.951460117e-05 | F158: 155 | G158: Líbia, Jamahira Árabe da | H158: 41.1404 | I158: 2.543281873e-06 | K158: 155 | L158: Bermudas | M158: 958.1048 | N158: 3.188146624e-05 | O158: 956.4352
A159: 156 | B159: Nova Caledónia | C159: 388.6078 | D159: 2.800577869e-05 | F159: 156 | G159: Curaçau | H159: 39.2148 | I159: 2.424242107e-06 | K159: 156 | L159: Kosovo | M159: 950.6388 | N159: 3.163303097e-05 | O159: 790.5456
A160: 157 | B160: Madagáscar | C160: 386.2658 | D160: 2.78369979e-05 | F160: 157 | G160: Botswana | H160: 30.037 | I160: 1.85687445e-06 | K160: 157 | L160: Barbados | M160: 935.22 | N160: 3.111996188e-05 | O160: 914.5284
A161: 158 | B161: Myanmar | C161: 370.612 | D161: 2.670887628e-05 | F161: 158 | G161: São Pedro e Miquelon | H161: 28.9156 | I161: 1.787549983e-06 | K161: 158 | L161: Trindade e Tobago | M161: 878.6292 | N161: 2.923687177e-05 | O161: 877.8644
A162: 159 | B162: Comores | C162: 333.8038 | D162: 2.405622159e-05 | F162: 159 | G162: Ruanda | H162: 27.3026 | I162: 1.687835015e-06 | K162: 159 | L162: Barém | M162: 733.5568 | N162: 2.440950756e-05 | O162: 724.308
A163: 160 | B163: Haiti | C163: 328.0528 | D163: 2.364176457e-05 | F163: 160 | G163: São Marino | H163: 25.3104 | I163: 1.564678066e-06 | K163: 160 | L163: Usbequistão | M163: 665.2294 | N163: 2.213587559e-05 | O163: -95.587
A164: 161 | B164: Polinésia Francesa | C164: 317.6242 | D164: 2.289020718e-05 | F164: 161 | G164: Catar | H164: 21.3518 | I164: 1.319959113e-06 | K164: 161 | L164: Gronelândia | M164: 629.1046 | N164: 2.093380293e-05 | O164: -627.6618
A165: 162 | B165: Bahamas | C165: 305.389 | D165: 2.200845364e-05 | F165: 162 | G165: Macau | H165: 20.763 | I165: 1.28355975e-06 | K165: 162 | L165: Niger | M165: 622.3102 | N165: 2.070771552e-05 | O165: 615.7766
A166: 163 | B166: Libéria | C166: 303.6128 | D166: 2.188044832e-05 | F166: 163 | G166: Marshall, Ilhas | H166: 18.3784 | I166: 1.136144801e-06 | K166: 163 | L166: São Martinho (parte holandesa) | M166: 606.2012 | N166: 2.017167965e-05 | O166: 606.1956
A167: 164 | B167: Somália | C167: 293.0252 | D167: 2.111743229e-05 | F167: 164 | G167: Quirguizistão | H167: 17.5046 | I167: 1.08212686e-06 | K167: 164 | L167: Faroé, Ilhas | M167: 600.7416 | N167: 1.999000844e-05 | O167: -589.6076
A168: 165 | B168: Usbequistão | C168: 284.8212 | D168: 2.052619503e-05 | F168: 165 | G168: Salomão, Ilhas | H168: 16.0532 | I168: 9.924019348e-07 | K168: 165 | L168: Curaçau | M168: 573.2682 | N168: 1.907581589e-05 | O168: 494.8386
A169: 166 | B169: São Marino | C169: 251.4926 | D169: 1.81243045e-05 | F169: 166 | G169: Sudão | H169: 15.0882 | I169: 9.32746049e-07 | K169: 166 | L169: Burundi | M169: 485.2096 | N169: 1.614561735e-05 | O169: 484.9088
A170: 167 | B170: Bonaire, Santo Eustáquio e Saba | C170: 241.8602 | D170: 1.743012682e-05 | F170: 167 | G170: Jamaica | H170: 14.6868 | I170: 9.079316732e-07 | K170: 167 | L170: Antígua e Barbuda | M170: 477.853 | N170: 1.590082242e-05 | O170: 458.4918
A171: 168 | B171: Laos, República Democrática Popular do | C171: 170.9376 | D171: 1.231895138e-05 | F171: 168 | G171: Iraque | H171: 13.1736 | I171: 8.143862986e-07 | K171: 168 | L171: Nova Caledónia | M171: 390.0338 | N171: 1.297859005e-05 | O171: 387.1818
A172: 169 | B172: Zâmbia | C172: 164.8696 | D172: 1.188164914e-05 | F172: 169 | G172: São Cristovão e Nevis | H172: 12.4064 | I172: 7.669583239e-07 | K172: 169 | L172: Libéria | M172: 358.06 | N172: 1.19146442e-05 | O172: 249.1656
A173: 170 | B173: Santa Lúcia | C173: 158.8492 | D173: 1.144777727e-05 | F173: 170 | G173: Nepal | H173: 12.0278 | I173: 7.435534343e-07 | K173: 170 | L173: Zâmbia | M173: 348.819 | N173: 1.160714483e-05 | O173: -19.0798
A174: 171 | B174: Liechtenstein | C174: 144.4366 | D174: 1.040910516e-05 | F174: 171 | G174: Território Palestiniano Ocupado | H174: 11.6698 | I174: 7.21422028e-07 | K174: 171 | L174: Comores | M174: 333.8038 | N174: 1.110750576e-05 | O174: 333.8038
A175: 172 | B175: Maldivas | C175: 139.5096 | D175: 1.00540313e-05 | F175: 172 | G175: Barbados | H175: 10.3458 | I175: 6.395729161e-07 | K175: 172 | L175: Haiti | M175: 328.3394 | N175: 1.092567483e-05 | O175: 327.7662
A176: 173 | B176: Ceuta e Melilha | C176: 132.796 | D176: 9.570202624e-06 | F176: 173 | G176: Jibuti | H176: 9.885 | I176: 6.110864579e-07 | K176: 173 | L176: Polinésia Francesa | M176: 318.4566 | N176: 1.05968192e-05 | O176: 316.7918
A177: 174 | B177: Quirguizistão | C177: 130.9018 | D177: 9.433693408e-06 | F177: 174 | G177: Guiné Equatorial | H177: 9.7838 | I177: 6.048303173e-07 | K177: 174 | L177: Bahamas | M177: 305.389 | N177: 1.01619876e-05 | O177: 305.389
A178: 175 | B178: Botswana | C178: 118.8382 | D178: 8.564306557e-06 | F178: 175 | G178: Antígua e Barbuda | H178: 9.6806 | I178: 5.984505376e-07 | K178: 175 | L178: Chade | M178: 303.2232 | N178: 1.008991941e-05 | O178: -303.1296
A179: 176 | B179: Guiana | C179: 116.6432 | D179: 8.406119603e-06 | F179: 176 | G179: Santa Helena | H179: 5.0476 | I179: 3.120404658e-07 | K179: 176 | L179: Somália | M179: 293.0252 | N179: 9.750575325e-06 | O179: 293.0252
A180: 177 | B180: Nepal | C180: 114.3036 | D180: 8.237511767e-06 | F180: 177 | G180: Barém | H180: 4.6244 | I180: 2.858784235e-07 | K180: 177 | L180: São Marino | M180: 276.803 | N180: 9.210772662e-06 | O180: 226.1822
A181: 178 | B181: Afeganistão | C181: 109.4574 | D181: 7.888260917e-06 | F181: 178 | G181: Niger | H181: 3.2668 | I181: 2.019521741e-07 | K181: 178 | L181: Maldivas | M181: 266.7684 | N181: 8.876865807e-06 | O181: 12.2508
A182: 179 | B182: Virgens Britânicas, Ilhas | C182: 106.6708 | D182: 7.687439155e-06 | F182: 179 | G182: São Bartolomeu | H182: 1.9512 | I182: 1.206223467e-07 | K182: 179 | L182: Bonaire, Santo Eustáquio e Saba | M182: 241.8602 | N182: 8.048031699e-06 | O182: 241.8602
A183: 180 | B183: Centro-Africana, República | C183: 103.298 | D183: 7.444371748e-06 | F183: 180 | G183: Liechtenstein | H183: 1.8568 | I183: 1.147865792e-07 | K183: 180 | L183: Santa Lúcia | M183: 158.8768 | N183: 5.286713244e-06 | O183: 158.8216
A184: 181 | B184: Jibuti | C184: 90.5704 | D184: 6.527132442e-06 | F184: 181 | G184: Lesoto | H184: 1.7136 | I184: 1.059340166e-07 | K184: 181 | L184: Botswana | M184: 148.8752 | N184: 4.953904482e-06 | O184: 88.8012
A185: 182 | B185: Caimão, Ilhas | C185: 73.8006 | D185: 5.318584112e-06 | F185: 182 | G185: Nova Caledónia | H185: 1.426 | I185: 8.815470804e-08 | K185: 182 | L185: Quirguizistão | M185: 148.4064 | N185: 4.938304903e-06 | O185: 113.3972
A186: 183 | B186: Zimbabwe | C186: 66.8594 | D186: 4.818353003e-06 | F186: 183 | G186: Bermudas | H186: 0.8348 | I186: 5.160697775e-08 | K186: 183 | L186: Liechtenstein | M186: 146.2934 | N186: 4.867993661e-06 | O186: 142.5798
A187: 184 | B187: Turcas e Caicos, Ilhas | C187: 48.519 | D187: 3.496616322e-06 | F187: 184 | G187: Polinésia Francesa | H187: 0.8324 | I187: 5.145861078e-08 | K187: 184 | L187: Ceuta e Melilha | M187: 132.796 | N187: 4.418860224e-06 | O187: 132.796
A188: 185 | B188: Virgens dos Estados Unidos, Ilhas | C188: 27.4406 | D188: 1.977560334e-06 | F188: 185 | G188: Micronésia, Estados Federados da | H188: 0.6592 | I188: 4.075146111e-08 | K188: 185 | L188: Nepal | M188: 126.3314 | N188: 4.203747089e-06 | O188: 102.2758
A189: 186 | B189: Mongólia | C189: 26.1112 | D189: 1.881754531e-06 | F189: 186 | G189: Afeganistão | H189: 0.6156 | I189: 3.805612782e-08 | K189: 186 | L189: Afeganistão | M189: 110.073 | N189: 3.662739852e-06 | O189: 108.8418
A190: 187 | B190: Belize | C190: 19.5092 | D190: 1.405968531e-06 | F190: 187 | G190: Trindade e Tobago | H190: 0.3824 | I190: 2.363980389e-08 | K190: 187 | L190: Virgens Britânicas, Ilhas | M190: 106.6778 | N190: 3.549762697e-06 | O190: 106.6638
A191: 188 | B191: Anguila | C191: 15.482 | D191: 1.115740512e-06 | F191: 188 | G191: Haiti | H191: 0.2866 | I191: 1.771748901e-08 | K191: 188 | L191: Jibuti | M191: 100.4554 | N191: 3.342708902e-06 | O191: 80.6854
A192: 189 | B192: Brunei Darussalam | C192: 13.5634 | D192: 9.774728627e-07 | F192: 189 | G192: Montenegro | H192: 0.2684 | I192: 1.659237282e-08 | K192: 189 | L192: Tajiquistão | M192: 74.7168 | N192: 2.486242775e-06 | O192: -74.7168
A193: 190 | B193: Fiji, Ilhas | C193: 11.4598 | D193: 8.258728277e-07 | F193: 190 | G193: Burundi | H193: 0.1504 | I193: 9.297663457e-09 | K193: 190 | L193: Caimão, Ilhas | M193: 73.8014 | N193: 2.455782335e-06 | O193: 73.7998
A194: 191 | B194: Malavi | C194: 8.5154 | D194: 6.136789017e-07 | F194: 191 | G194: Oceano Indico, Território Britânico do | H194: 0.1384 | I194: 8.555828606e-09 | K194: 191 | L194: Fiji, Ilhas | M194: 61.5816 | N194: 2.049161742e-06 | O194: -38.662
A195: 192 | B195: São Vicente e Granadinas | C195: 7.5006 | D195: 5.405453613e-07 | F195: 192 | G195: Vanuatu | H195: 0.0874 | I195: 5.403030493e-09 | K195: 192 | L195: Turcas e Caicos, Ilhas | M195: 48.519 | N195: 1.614496515e-06 | O195: 48.519
A196: 193 | B196: Guam | C196: 6.4026 | D196: 4.614158508e-07 | F196: 193 | G196: Nauru | H196: 0.0694 | I196: 4.290278217e-09 | K196: 193 | L196: Falkland Ilhas (Malvinas) | M196: 46.09 | N196: 1.533670199e-06 | O196: -46.09
A197: 194 | B197: Territórios Franceses do Sul | C197: 6.3292 | D197: 4.561261367e-07 | F197: 194 | G197: Palau | H197: 0.0478 | I197: 2.954975487e-09 | K197: 194 | L197: São Pedro e Miquelon | M197: 28.9156 | N197: 9.621825558e-07 | O197: -28.9156
A198: 195 | B198: Faroé, Ilhas | C198: 5.567 | D198: 4.011967078e-07 | F198: 195 | G198: Santa Lúcia | H198: 0.0276 | I198: 1.706220156e-09 | K198: 195 | L198: Virgens dos Estados Unidos, Ilhas | M198: 27.4406 | N198: 9.131011164e-07 | O198: 27.4406
A199: 196 | B199: Sudão do Sul | C199: 3.771 | D199: 2.717644665e-07 | F199: 196 | G199: Coreia, República Popular Democrática da | H199: 0.0196 | I199: 1.211663589e-09 | K199: 196 | L199: Mongólia | M199: 26.1254 | N199: 8.693371102e-07 | O199: 26.097
A200: 197 | B200: Marianas do Norte, Ilhas | C200: 2.9244 | D200: 2.107525871e-07 | F200: 197 | G200: São Vicente e Granadinas | H200: 0.0144 | I200: 8.902018203e-10 | K200: 197 | L200: Marshall, Ilhas | M200: 18.3784 | N200: 6.115514077e-07 | O200: -18.3784
... 58 more rows

Sheet 2AA
A1: Ranking dos parceiros comerciais de Portugal por país (média 2019-2023 em milhares de euros) produtos agrícolas e agroalimentares
A2: Exportações | F2: Importações | K2: Trocas comerciais (total e saldo)
A3: P | B3: País | C3: média quinquénio | D3: % do Total | F3: P | G3: País | H3: média quinquénio | I3: % do Total | K3: P | L3: País | M3: Total (exp+imp) | N3: % do Total | O3: Saldo (exp-imp)
A4: 1 | B4: Espanha | C4: 2756093.353 | D4: 0.355769475 | F4: 1 | G4: Espanha | H4: 5218042.717 | I4: 0.4651610503 | K4: 1 | L4: Espanha | M4: 7974136.07 | N4: 0.4204755872 | O4: -2461949.364
A5: 2 | B5: França | C5: 750650.2316 | D5: 0.0968974576 | F5: 2 | G5: França | H5: 878313.0456 | I5: 0.07829698623 | K5: 2 | L5: França | M5: 1628963.277 | N5: 0.08589510946 | O5: -127662.814
A6: 3 | B6: Itália | C6: 480436.9156 | D6: 0.06201705361 | F6: 3 | G6: Alemanha | H6: 721146.7026 | I6: 0.06428643378 | K6: 3 | L6: Países Baixos | M6: 1048192.809 | N6: 0.05527112696 | O6: -310787.729
A7: 4 | B7: Brasil | C7: 405387.3582 | D7: 0.05232930424 | F7: 4 | G7: Países Baixos | H7: 679490.2692 | I7: 0.06057298194 | K7: 4 | L7: Brasil | M7: 1040823.749 | N7: 0.05488255698 | O7: -230049.033
A8: 5 | B8: Países Baixos | C8: 368702.5402 | D8: 0.04759385563 | F8: 5 | G8: Brasil | H8: 635436.3912 | I8: 0.05664581054 | K8: 5 | L8: Alemanha | M8: 1002872.88 | N8: 0.05288141054 | O8: -439420.525
A9: 6 | B9: Alemanha | C9: 281726.1776 | D9: 0.03636653823 | F9: 6 | G9: Itália | H9: 370236.6922 | I9: 0.03300465288 | K9: 6 | L9: Itália | M9: 850673.6078 | N9: 0.04485595451 | O9: 110200.2234 | P9: Nota: Nesta listagem, o Reino Unido passa a ser constituído por três componentes: Reino Unido [até 2020] ; Reino Unido (sem Irlanda do Norte) pós-2020 e Reino Unido (Irlanda do Norte) pós-2020. Estas componentes são calculadas igualmente como média do quinquénio, embora a primeira corresponda apenas a 2019-2020 e as duas últimas a 2021-2023.
A10: 7 | B10: Angola | C10: 239258.0836 | D10: 0.03088455719 | F10: 7 | G10: Bélgica | H10: 281579.9028 | I10: 0.02510136663 | K10: 7 | L10: Bélgica | M10: 455978.039 | N10: 0.02404368725 | O10: -107181.7666
A11: 8 | B11: Reino Unido (sem Irlanda do Norte) pós 2020 | C11: 237670.7152 | D11: 0.03067965222 | F11: 8 | G11: Ucrânia | H11: 218361.6698 | I11: 0.01946579382 | K11: 8 | L11: Estados Unidos | M11: 399330.4768 | N11: 0.02105666561 | O11: -4827.0664
A12: 9 | B12: Estados Unidos | C12: 197251.7052 | D12: 0.02546217657 | F12: 9 | G12: Polónia | H12: 216442.184 | I12: 0.01929468176 | K12: 9 | L12: Polónia | M12: 361797.3752 | N12: 0.01907754802 | O12: -71086.9928
A13: 10 | B13: Israel | C13: 180621.8384 | D13: 0.02331551526 | F13: 10 | G13: Estados Unidos | H13: 202078.7716 | I13: 0.01801425913 | K13: 10 | L13: Reino Unido (sem Irlanda do Norte) pós 2020 | M13: 312265.2586 | N13: 0.01646572329 | O13: 163076.1718
A14: 11 | B14: Bélgica | C14: 174398.1362 | D14: 0.02251213054 | F14: 11 | G14: Roménia | H14: 147921.5572 | I14: 0.01318642844 | K14: 11 | L14: Angola | M14: 248844.089 | N14: 0.01312152985 | O14: 229672.0782
A15: 12 | B15: Polónia | C15: 145355.1912 | D15: 0.01876313079 | F15: 12 | G15: África do Sul | H15: 122030.5704 | I15: 0.01087838321 | K15: 12 | L15: Ucrânia | M15: 226323.7844 | N15: 0.0119340359 | O15: -210399.5552
A16: 13 | B16: Reino Unido | C16: 140181.6612 | D16: 0.01809530724 | F16: 13 | G16: Canadá | H16: 114587.6202 | I16: 0.01021488337 | K16: 13 | L16: Reino Unido | M16: 218445.519 | N16: 0.01151861557 | O16: 61917.8034
A17: 14 | B17: Suíça | C17: 101113.5758 | D17: 0.01305221528 | F17: 14 | G17: Irlanda | H17: 113855.5454 | I17: 0.01014962275 | K17: 14 | L17: Canadá | M17: 187938.0432 | N17: 0.009909958695 | O17: -41237.1972
A18: 15 | B18: Cabo Verde | C18: 93276.7052 | D18: 0.01204059522 | F18: 15 | G18: Argentina | H18: 81740.7412 | I18: 0.007286756949 | K18: 15 | L18: Israel | M18: 185954.1124 | N18: 0.009805346175 | O18: 175289.5644
A19: 16 | B19: Canadá | C19: 73350.423 | D19: 0.009468417118 | F19: 16 | G19: Reino Unido | H19: 78263.8578 | I19: 0.00697681109 | K19: 16 | L19: Roménia | M19: 164671.813 | N19: 0.00868313215 | O19: -131171.3014
A20: 17 | B20: China, República Popular da | C20: 65002.3268 | D20: 0.00839080565 | F20: 17 | G20: Dinamarca | H20: 77963.4376 | I20: 0.00695003021 | K20: 17 | L20: Irlanda | M20: 144404.9996 | N20: 0.007614464624 | O20: -83306.0912
A21: 18 | B21: Japão | C21: 61056.1688 | D21: 0.007881417041 | F21: 18 | G21: Reino Unido (sem Irlanda do Norte) pós 2020 | H21: 74594.5434 | I21: 0.006649711019 | K21: 18 | L21: África do Sul | M21: 144191.7208 | N21: 0.007603218449 | O21: -99869.42
A22: 19 | B22: Suécia | C22: 55383.66 | D22: 0.007149182962 | F22: 19 | G22: Costa Rica | H22: 70756.5738 | I22: 0.006307576225 | K22: 19 | L22: Dinamarca | M22: 126433.7134 | N22: 0.006666840072 | O22: -29493.1618
A23: 20 | B23: Marrocos | C23: 49767.4468 | D23: 0.006424215784 | F23: 20 | G23: China, República Popular da | H23: 48105.6586 | I23: 0.004288366327 | K23: 20 | L23: China, República Popular da | M23: 113107.9854 | N23: 0.00596417545 | O23: 16896.6682
A24: 21 | B24: Dinamarca | C24: 48470.2758 | D24: 0.006256770858 | F24: 21 | G24: Bulgária | H24: 41846.0794 | I24: 0.00373035778 | K24: 21 | L24: Suíça | M24: 103785.6028 | N24: 0.005472606926 | O24: 98441.5488
A25: 22 | B25: Luxemburgo | C25: 48434.8998 | D25: 0.006252204358 | F25: 22 | G25: Grécia | H25: 35033.7506 | I25: 0.003123074514 | K25: 22 | L25: Cabo Verde | M25: 93421.8838 | N25: 0.004926128813 | O25: 93131.5266
A26: 23 | B26: Rússia, Federação da | C26: 47519.044 | D26: 0.00613398139 | F26: 23 | G26: Colômbia | H26: 31210.9096 | I26: 0.002782288355 | K26: 23 | L26: Argentina | M26: 82057.1494 | N26: 0.004326867234 | O26: -81424.333
A27: 24 | B27: Guiné-Bissau | C27: 33196.0112 | D27: 0.004285097043 | F27: 24 | G27: Guiana | H27: 31014.2578 | I27: 0.002764757882 | K27: 24 | L27: Japão | M27: 72872.0242 | N27: 0.003842536282 | O27: 49240.3134
A28: 25 | B28: Irlanda | C28: 30549.4542 | D28: 0.003943467035 | F28: 25 | G28: Vietname | H28: 30892.5166 | I28: 0.002753905295 | K28: 25 | L28: Costa Rica | M28: 72068.7862 | N28: 0.003800181604 | O28: -69444.3614
A29: 26 | B29: Arábia Saudita | C29: 29146.6976 | D29: 0.003762392624 | F29: 26 | G29: Cuba | H29: 28789.5394 | I29: 0.002566435944 | K29: 26 | L29: Suécia | M29: 68731.8356 | N29: 0.003624224453 | O29: 42035.4844
A30: 27 | B30: Moçambique | C30: 28593.955 | D30: 0.003691042013 | F30: 27 | G30: Áustria | H30: 27643.7092 | I30: 0.002464291211 | K30: 27 | L30: Marrocos | M30: 61090.9854 | N30: 0.003221323004 | O30: 38443.9082
A31: 28 | B31: São Tomé e Príncipe | C31: 25054.826 | D31: 0.003234194619 | F31: 28 | G31: Chile | H31: 26079.5266 | I31: 0.002324852563 | K31: 28 | L31: Grécia | M31: 59934.495 | N31: 0.003160341354 | O31: -10133.0062
A32: 29 | B32: Grécia | C32: 24900.7444 | D32: 0.003214305043 | F32: 29 | G32: Checa, República | H32: 24321.05 | I32: 0.002168093627 | K32: 29 | L32: Rússia, Federação da | M32: 59387.4766 | N32: 0.003131497115 | O32: 35650.6114
A33: 30 | B33: Finlândia | C33: 22507.9646 | D33: 0.002905433787 | F33: 30 | G33: Índia | H33: 24071.1366 | I33: 0.002145815163 | K33: 30 | L33: Luxemburgo | M33: 56679.3754 | N33: 0.002988699145 | O33: 40190.4242
A34: 31 | B34: África do Sul | C34: 22161.1504 | D34: 0.002860665382 | F34: 31 | G34: Uruguai | H34: 22728.6906 | I34: 0.002026143166 | K34: 31 | L34: Bulgária | M34: 50875.6622 | N34: 0.002682669791 | O34: -32816.4966
A35: 32 | B35: Jordânia | C35: 21893.2362 | D35: 0.002826081758 | F35: 32 | G35: Costa do Marfim | H35: 22619.1534 | I35: 0.002016378501 | K35: 32 | L35: Checa, República | M35: 43840.9252 | N35: 0.002311728645 | O35: -4801.1748
A36: 33 | B36: Argélia | C36: 20568.7852 | D36: 0.002655115402 | F36: 33 | G36: Turquia | H36: 19669.1464 | I36: 0.0017534009 | K36: 33 | L36: Áustria | M36: 42201.1454 | N36: 0.002225263181 | O36: -13086.273
A37: 34 | B37: Checa, República | C37: 19519.8752 | D37: 0.002519717173 | F37: 34 | G37: Hungria | H37: 19322.5132 | I37: 0.001722500375 | K37: 34 | L37: Moçambique | M37: 38413.517 | N37: 0.002025541824 | O37: 18774.393
A38: 35 | B38: Noruega | C38: 18383.7692 | D38: 0.002373063274 | F38: 35 | G38: Suazilândia | H38: 17908.3876 | I38: 0.001596438519 | K38: 35 | L38: Colômbia | M38: 37783.0652 | N38: 0.001992298149 | O38: -24638.754
A39: 36 | B39: Coreia, República da | C39: 16791.4172 | D39: 0.002167514999 | F39: 36 | G39: Letónia | H39: 17568.283 | I39: 0.001566119983 | K39: 36 | L39: Guiné-Bissau | M39: 33466.8492 | N39: 0.001764704408 | O39: 32925.1732
A40: 37 | B40: Roménia | C40: 16750.2558 | D40: 0.002162201692 | F40: 37 | G40: Uganda | H40: 17520.2176 | I40: 0.001561835206 | K40: 37 | L40: Austrália | M40: 33457.6176 | N40: 0.001764217626 | O40: -224.8624
A41: 38 | B41: Austrália | C41: 16616.3776 | D41: 0.002144920065 | F41: 38 | G41: Austrália | H41: 16841.24 | I41: 0.001501307925 | K41: 38 | L41: Cuba | M41: 33227.7552 | N41: 0.001752096999 | O41: -24351.3236
A42: 39 | B42: Áustria | C42: 14557.4362 | D42: 0.001879142239 | F42: 39 | G42: Lituânia | H42: 14594.912 | I42: 0.001301059605 | K42: 39 | L42: Vietname | M42: 32990.675 | N42: 0.001739595779 | O42: -28794.3582
A43: 40 | B43: Emirados Árabes Unidos | C43: 13772.665 | D43: 0.001777840287 | F43: 40 | G43: México | H43: 13942.9954 | I43: 0.00124294467 | K43: 40 | L43: Hungria | M43: 31339.561 | N43: 0.001652532663 | O43: -7305.4654
A44: 41 | B44: Iraque | C44: 13213.736 | D44: 0.001705691106 | F44: 41 | G44: Peru | H44: 13551.1124 | I44: 0.001208010363 | K44: 41 | L44: Chile | M44: 31046.9382 | N44: 0.001637102685 | O44: -21112.115
A45: 42 | B45: Nigéria | C45: 12563.3872 | D45: 0.001621741028 | F45: 42 | G45: Egito | H45: 13444.2972 | I45: 0.00119848835 | K45: 42 | L45: Guiana | M45: 31034.393 | N45: 0.001636441178 | O45: -30994.1226
A46: 43 | B46: Hungria | C46: 12017.0478 | D46: 0.001551216972 | F46: 43 | G46: Indonésia | H46: 13373.0146 | I46: 0.001192133881 | K46: 43 | L46: Finlândia | M46: 30593.483 | N46: 0.001613192027 | O46: 14422.4462
A47: 44 | B47: Macau | C47: 11451.795 | D47: 0.001478251486 | F47: 44 | G47: Suécia | H47: 13348.1756 | I47: 0.001189919615 | K47: 44 | L47: Costa do Marfim | M47: 30195.695 | N47: 0.001592216696 | O47: -15042.6118
A48: 45 | B48: Território Palestiniano Ocupado | C48: 11126.9966 | D48: 0.001436324983 | F48: 45 | G48: Paquistão | H48: 12392.2934 | I48: 0.001104707747 | K48: 45 | L48: Turquia | M48: 29730.2176 | N48: 0.001567672108 | O48: -9608.0752
A49: 46 | B49: Líbia, Jamahira Árabe da | C49: 10747.1924 | D49: 0.001387298073 | F49: 46 | G49: Moldava, República de | H49: 12169.9448 | I49: 0.001084886539 | K49: 46 | L49: Arábia Saudita | M49: 29183.7518 | N49: 0.001538857008 | O49: 29109.6434
A50: 47 | B50: Senegal | C50: 10277.8906 | D50: 0.001326718392 | F50: 47 | G50: Rússia, Federação da | H50: 11868.4326 | I50: 0.001058008313 | K50: 47 | L50: Índia | M50: 27213.734 | N50: 0.00143497812 | O50: -20928.5392
A51: 48 | B51: Turquia | C51: 10061.0712 | D51: 0.001298730326 | F51: 48 | G51: Japão | H51: 11815.8554 | I51: 0.001053321333 | K51: 48 | L51: São Tomé e Príncipe | M51: 26143.659 | N51: 0.001378553147 | O51: 23965.993
A52: 49 | B52: Kuwait | C52: 9238.6512 | D52: 0.00119256849 | F52: 49 | G52: Marrocos | H52: 11323.5386 | I52: 0.00100943388 | K52: 49 | L52: Uruguai | M52: 24804.8014 | N52: 0.001307955287 | O52: -20652.5798
A53: 50 | B53: Bulgária | C53: 9029.5828 | D53: 0.001165580959 | F53: 50 | G53: Tailândia | H53: 10221.1584 | I53: 0.0009111624865 | K53: 50 | L53: Letónia | M53: 24571.9238 | N53: 0.001295675669 | O53: -10564.6422
A54: 51 | B54: Eslováquia | C54: 8981.6584 | D54: 0.001159394652 | F54: 51 | G54: Paraguai | H54: 9863.0808 | I54: 0.0008792417527 | K54: 51 | L54: Argélia | M54: 22398.8544 | N54: 0.001181089885 | O54: 18738.716
A55: 52 | B55: Ucrânia | C55: 7962.1146 | D55: 0.00102778715 | F55: 52 | G55: Moçambique | H55: 9819.562 | I55: 0.0008753622806 | K55: 52 | L55: Jordânia | M55: 22013.8634 | N55: 0.001160789339 | O55: 21772.609
A56: 53 | B56: Costa do Marfim | C56: 7576.5416 | D56: 0.0009780155757 | F56: 53 | G56: Angola | H56: 9586.0054 | I56: 0.0008545419388 | K56: 53 | L56: México | M56: 20411.1484 | N56: 0.0010762783 | O56: -7474.8424
A57: 54 | B57: Letónia | C57: 7003.6408 | D57: 0.0009040628496 | F57: 54 | G57: Equador | H57: 9434.7056 | I57: 0.0008410543577 | K57: 54 | L57: Lituânia | M57: 20237.3848 | N57: 0.001067115758 | O57: -8952.4392
A58: 55 | B58: Gibraltar | C58: 6867.0166 | D58: 0.0008864267562 | F58: 55 | G58: Sérvia | H58: 8961.3684 | I58: 0.0007988588371 | K58: 55 | L58: Suazilândia | M58: 19974.7344 | N58: 0.001053266223 | O58: -15842.0408
A59: 56 | B59: Maurícias | C59: 6601.9064 | D59: 0.0008522050864 | F59: 56 | G59: Belize | H59: 8481.6488 | I59: 0.0007560943591 | K59: 56 | L59: Noruega | M59: 19562.9914 | N59: 0.001031555046 | O59: 17204.547
A60: 57 | B60: Colômbia | C60: 6572.1556 | D60: 0.0008483647134 | F60: 57 | G60: Luxemburgo | H60: 8244.4756 | I60: 0.0007349516164 | K60: 57 | L60: Uganda | M60: 18130.6166 | N60: 0.0009560260316 | O60: -16909.8186
A61: 58 | B61: México | C61: 6468.153 | D61: 0.0008349395693 | F61: 58 | G61: Estónia | H61: 8133.3802 | I61: 0.0007250480461 | K61: 58 | L61: Coreia, República da | M61: 18110.515 | N61: 0.0009549660757 | O61: 15472.3194
A62: 59 | B62: Andorra | C62: 5880.33 | D62: 0.0007590606155 | F62: 59 | G62: Finlândia | H62: 8085.5184 | I62: 0.0007207814184 | K62: 59 | L62: Peru | M62: 15536.0606 | N62: 0.0008192152914 | O62: -11566.1642
A63: 60 | B63: Lituânia | C63: 5642.4728 | D63: 0.0007283568909 | F63: 60 | G63: Nova Zelânda | H63: 7373.8184 | I63: 0.0006573371085 | K63: 60 | L63: Egito | M63: 15081.7762 | N63: 0.0007952609096 | O63: -11806.8182
A64: 61 | B64: Malta | C64: 5438.0306 | D64: 0.0007019665315 | F64: 61 | G64: Malásia | H64: 6878.308 | I64: 0.0006131649638 | K64: 61 | L64: Indonésia | M64: 14601.4892 | N64: 0.0007699354127 | O64: -12144.54
A65: 62 | B65: Estónia | C65: 5388.6736 | D65: 0.0006955952981 | F65: 62 | G65: Camarões | H65: 6873.6916 | I65: 0.000612753436 | K65: 62 | L65: Emirados Árabes Unidos | M65: 14301.0792 | N65: 0.0007540948163 | O65: 13244.2508
A66: 63 | B66: HongKong | C66: 4973.9084 | D66: 0.000642055458 | F66: 63 | G66: Eslovénia | H66: 5854.3628 | I66: 0.0005218856373 | K66: 63 | L66: Eslováquia | M66: 14115.3302 | N66: 0.0007443002857 | O66: 3847.9866
A67: 64 | B67: Chile | C67: 4967.4116 | D67: 0.0006412168206 | F67: 64 | G67: Israel | H67: 5332.274 | I67: 0.0004753441681 | K67: 64 | L67: Tailândia | M67: 13545.4648 | N67: 0.0007142513266 | O67: -6896.852
A68: 65 | B68: Chipre | C68: 4599.9132 | D68: 0.000593778401 | F68: 65 | G68: Honduras | H68: 5320.7232 | I68: 0.000474314475 | K68: 65 | L68: Estónia | M68: 13522.0538 | N68: 0.0007130168663 | O68: -2744.7066
A69: 66 | B69: Cuba | C69: 4438.2158 | D69: 0.0005729057412 | F69: 66 | G69: Camboja | H69: 5251.2876 | I69: 0.0004681246567 | K69: 66 | L69: Iraque | M69: 13226 | N69: 0.000697405972 | O69: 13201.472
A70: 67 | B70: Mali | C70: 4408.7876 | D70: 0.0005691070109 | F70: 67 | G70: Zimbabwe | H70: 5172.692 | I70: 0.0004611182725 | K70: 67 | L70: Paquistão | M70: 12653.1142 | N70: 0.0006671977475 | O70: -12131.4726
A71: 68 | B71: Omã | C71: 4251.3822 | D71: 0.0005487883825 | F71: 68 | G71: Eslováquia | H71: 5133.6718 | I71: 0.000457639827 | K71: 68 | L71: Nigéria | M71: 12613.3818 | N71: 0.000665102661 | O71: 12513.3926
A72: 69 | B72: Sérvia | C72: 3643.2286 | D72: 0.0004702850594 | F72: 69 | G72: Etiópia | H72: 4865.161 | I72: 0.0004337035021 | K72: 69 | L72: Sérvia | M72: 12604.597 | N72: 0.0006646394392 | O72: -5318.1398
A73: 70 | B73: Gana | C73: 3561.703 | D73: 0.0004597613521 | F73: 70 | G73: Reino Unido (Irlanda do Norte) pós-2020 | H73: 4852.6168 | I73: 0.0004325852527 | K73: 70 | L73: Moldava, República de | M73: 12435.7646 | N73: 0.0006557369196 | O73: -11904.125
A74: 71 | B74: Síria, República Árabe da | C74: 3557.076 | D74: 0.0004591640772 | F74: 71 | G74: Tanzânia, República Unida da | H74: 4645.6104 | I74: 0.0004141317214 | K74: 71 | L74: Macau | M74: 11470.0196 | N74: 0.0006048132594 | O74: 11433.5704
A75: 72 | B75: Tailândia | C75: 3324.3064 | D75: 0.0004291170839 | F75: 72 | G75: Filipinas | H75: 4316.8954 | I75: 0.0003848285089 | K75: 72 | L75: Território Palestiniano Ocupado | M75: 11138.6664 | N75: 0.0005873410304 | O75: 11115.3268
A76: 73 | B76: Singapura | C76: 3292.5498 | D76: 0.0004250177928 | F76: 73 | G76: Macedónia, Antiga República jugoslava da | H76: 4269.76 | I76: 0.000380626636 | K76: 73 | L76: Kuwait | M76: 10781.5982 | N76: 0.0005685128514 | O76: 7695.7042
A77: 74 | B77: Eslovénia | C77: 3210.1356 | D77: 0.0004143793808 | F77: 74 | G77: Myanmar | H77: 4258.6984 | I77: 0.0003796405526 | K77: 74 | L77: Senegal | M77: 10777.8706 | N77: 0.0005683162953 | O77: 9777.9106
A78: 75 | B78: Índia | C78: 3142.5974 | D78: 0.0004056612327 | F78: 75 | G78: Tunísia | H78: 4096.3914 | I78: 0.0003651717376 | K78: 75 | L78: Líbia, Jamahira Árabe da | M78: 10763.4438 | N78: 0.0005675555713 | O78: 10730.941
A79: 76 | B79: Taiwan | C79: 3027.0112 | D79: 0.0003907408232 | F79: 76 | G79: Quénia | H79: 3999.6272 | I79: 0.0003565457184 | K79: 76 | L79: Paraguai | M79: 10570.8508 | N79: 0.0005574001571 | O79: -9155.3108
A80: 77 | B80: Guiné | C80: 2745.3572 | D80: 0.0003543836019 | F80: 77 | G80: Chipre | H80: 3965.5184 | I80: 0.0003535050983 | K80: 77 | L80: Equador | M80: 10263.4314 | N80: 0.0005411899555 | O80: -8605.9798
A81: 78 | B81: Burquina Faso | C81: 2525.8832 | D81: 0.0003260528672 | F81: 78 | G81: Suriname | H81: 3877.4378 | I81: 0.0003456531763 | K81: 78 | L81: Nova Zelânda | M81: 9856.0686 | N81: 0.0005197097461 | O81: -4891.5682
A82: 79 | B82: Venezuela | C82: 2486.9168 | D82: 0.0003210229012 | F82: 79 | G82: Malavi | H82: 3756.8802 | I82: 0.0003349061007 | K82: 79 | L82: Maurícias | M82: 9426.6558 | N82: 0.0004970668419 | O82: 3777.157
A83: 80 | B83: Nova Zelânda | C83: 2482.2502 | D83: 0.0003204205146 | F83: 80 | G83: Guatemala | H83: 3336.065 | I83: 0.00029739264 | K83: 80 | L83: Eslovénia | M83: 9064.4984 | N83: 0.0004779703098 | O83: -2644.2272
A84: 81 | B84: Timor-Leste | C84: 2425.5014 | D84: 0.000313095113 | F84: 81 | G84: Sri Lanca | H84: 3081.7942 | I84: 0.0002747257362 | K84: 81 | L84: Camarões | M84: 8912.7596 | N84: 0.0004699691345 | O84: -4834.6236
A85: 82 | B85: Filipinas | C85: 2423.494 | D85: 0.0003128359883 | F85: 82 | G85: Nicarágua | H85: 3050.9764 | I85: 0.0002719784915 | K85: 82 | L85: Chipre | M85: 8565.4316 | N85: 0.0004516545555 | O85: 634.3948
A86: 83 | B86: Congo | C86: 2401.0914 | D86: 0.0003099441555 | F86: 83 | G86: Maurícias | H86: 2824.7494 | I86: 0.0002518115449 | K86: 83 | L86: Belize | M86: 8501.158 | N86: 0.0004482654135 | O86: -8462.1396
A87: 84 | B87: Dominicana, República | C87: 2366.1238 | D87: 0.0003054303735 | F87: 84 | G87: Suíça | H87: 2672.027 | I87: 0.0002381971465 | K87: 84 | L87: Malásia | M87: 8478.9536 | N87: 0.0004470945771 | O87: -5277.6624
A88: 85 | B88: Seychelles | C88: 2266.2448 | D88: 0.000292537523 | F88: 85 | G88: Taiwan | H88: 2620.8988 | I88: 0.0002336393366 | K88: 85 | L88: Mali | M88: 6882.4546 | N88: 0.0003629113065 | O88: 1935.1206
A89: 86 | B89: Belarus | C89: 2265.0334 | D89: 0.0002923811498 | F89: 86 | G89: Dominicana, República | H89: 2590.705 | I89: 0.0002309477182 | K89: 86 | L89: Gibraltar | M89: 6867.0382 | N89: 0.0003620984009 | O89: 6866.995
A90: 87 | B90: Benim | C90: 2254.9256 | D90: 0.0002910763875 | F90: 87 | G90: Mali | H90: 2473.667 | I90: 0.0002205143963 | K90: 87 | L90: Filipinas | M90: 6740.3894 | N90: 0.0003554202194 | O90: -1893.4014
A91: 88 | B91: Guiné Equatorial | C91: 2237.2378 | D91: 0.0002887931632 | F91: 88 | G91: Gana | H91: 2244.213 | I91: 0.0002000597796 | K91: 88 | L91: Reino Unido (Irlanda do Norte) pós-2020 | M91: 6619.5794 | N91: 0.0003490499173 | O91: -3085.6542
A92: 89 | B92: Líbano | C92: 2221.1552 | D92: 0.0002867171457 | F92: 89 | G92: Croácia | H92: 2137.0316 | I92: 0.0001905051218 | K92: 89 | L92: HongKong | M92: 6486.8174 | N92: 0.0003420493871 | O92: 3460.9994
A93: 90 | B93: Gabão | C93: 2209.6904 | D93: 0.0002852372154 | F93: 90 | G93: Congo, República Democrática do | H93: 1937.5966 | I93: 0.000172726541 | K93: 90 | L93: Honduras | M93: 6000.5624 | N93: 0.000316409198 | O93: -4640.884
A94: 91 | B94: Croácia | C94: 2104.1144 | D94: 0.0002716089695 | F94: 91 | G94: Benim | H94: 1901.2374 | I94: 0.0001694853097 | K94: 91 | L94: Malta | M94: 5960.075 | N94: 0.0003142743005 | O94: 4915.9862
A95: 92 | B95: Vietname | C95: 2098.1584 | D95: 0.000270840141 | F95: 92 | G95: Serra Leoa | H95: 1900.5094 | I95: 0.0001694204123 | K95: 92 | L95: Andorra | M95: 5897.0704 | N95: 0.0003109520728 | O95: 5863.5896
A96: 93 | B96: Uruguai | C96: 2076.1108 | D96: 0.0002679941333 | F96: 93 | G96: Argélia | H96: 1830.0692 | I96: 0.0001631410391 | K96: 93 | L96: Gana | M96: 5805.916 | N96: 0.0003061455082 | O96: 1317.49
A97: 94 | B97: Suazilândia | C97: 2066.3468 | D97: 0.0002667337503 | F97: 94 | G97: Laos, República Democrática Popular do | H97: 1764.7672 | I97: 0.0001573197095 | K97: 94 | L97: Camboja | M97: 5661.8046 | N97: 0.0002985465251 | O97: -4840.7706
A98: 95 | B98: Camarões | C98: 2039.068 | D98: 0.0002632124747 | F98: 95 | G98: Burquina Faso | H98: 1596.6714 | I98: 0.0001423348534 | K98: 95 | L98: Taiwan | M98: 5647.91 | N98: 0.0002978138639 | O98: 406.1124
A99: 96 | B99: Peru | C99: 1984.9482 | D99: 0.0002562264367 | F99: 96 | G99: Kuwait | H99: 1542.947 | I99: 0.0001375456059 | K99: 96 | L99: Etiópia | M99: 5274.7014 | N99: 0.0002781346028 | O99: -4455.6206
A100: 97 | B100: Catar | C100: 1923.0908 | D100: 0.000248241593 | F100: 97 | G100: HongKong | H100: 1512.909 | I100: 0.0001348678762 | K100: 97 | L100: Zimbabwe | M100: 5238.022 | N100: 0.0002762005009 | O100: -5107.362
A101: 98 | B101: Irão, República Islâmica do | C101: 1920.529 | D101: 0.0002479109038 | F101: 98 | G101: Panamá | H101: 1505.4946 | I101: 0.0001342069215 | K101: 98 | L101: Tunísia | M101: 5011.6662 | N101: 0.0002642647768 | O101: -3181.1166
A102: 99 | B102: Geórgia | C102: 1916.3824 | D102: 0.0002473756412 | F102: 99 | G102: Madagáscar | H102: 1471.794 | I102: 0.0001312026904 | K102: 99 | L102: Tanzânia, República Unida da | M102: 4986.1414 | N102: 0.000262918856 | O102: -4305.0794
A103: 100 | B103: Reino Unido (Irlanda do Norte) pós-2020 | C103: 1766.9626 | D103: 0.0002280878316 | F103: 100 | G103: Coreia, República da | H103: 1319.0978 | I103: 0.0001175906276 | K103: 100 | L103: Dominicana, República | M103: 4956.8288 | N103: 0.0002613732049 | O103: -224.5812
A104: 101 | B104: Egito | C104: 1637.479 | D104: 0.0002113734803 | F104: 101 | G104: Singapura | H104: 1313.0876 | I104: 0.0001170548499 | K104: 101 | L104: Omã | M104: 4826.1814 | N104: 0.0002544841774 | O104: 3676.583
A105: 102 | B105: Malásia | C105: 1600.6456 | D105: 0.0002066188521 | F105: 102 | G105: Noruega | H105: 1179.2222 | I105: 0.0001051214539 | K105: 102 | L105: Singapura | M105: 4605.6374 | N105: 0.0002428549091 | O105: 1979.4622
A106: 103 | B106: Bangladesh | C106: 1592.1082 | D106: 0.0002055168044 | F106: 103 | G106: São Tomé e Príncipe | H106: 1088.833 | I106: 9.706373239e-05 | K106: 103 | L106: Myanmar | M106: 4593.3818 | N106: 0.0002422086722 | O106: -3924.015
A107: 104 | B107: Congo, República Democrática do | C107: 1487.5888 | D107: 0.0001920249493 | F107: 104 | G107: Timor-Leste | H107: 773.0574 | I107: 6.891399929e-05 | K107: 104 | L107: Macedónia, Antiga República jugoslava da | M107: 4569.63 | N107: 0.0002409562416 | O107: -3969.89
A108: 105 | B108: Costa Rica | C108: 1312.2124 | D108: 0.0001693865399 | F108: 105 | G108: El Salvador | H108: 699.8376 | I108: 6.238683941e-05 | K108: 105 | L108: Quénia | M108: 4449.3114 | N108: 0.000234611851 | O108: -3549.943
A109: 106 | B109: Sudão | C109: 1307.024 | D109: 0.0001687167968 | F109: 106 | G109: Turquemenistão | H109: 693.7048 | I109: 6.184013257e-05 | K109: 106 | L109: Croácia | M109: 4241.146 | N109: 0.0002236353054 | O109: -32.9172
A110: 107 | B110: Togo | C110: 1248.9136 | D110: 0.0001612156335 | F110: 107 | G110: Cazaquistão | H110: 686.1514 | I110: 6.11667867e-05 | K110: 107 | L110: Benim | M110: 4156.163 | N110: 0.0002191541582 | O110: 353.6882
A111: 108 | B111: Indonésia | C111: 1228.4746 | D111: 0.0001585772713 | F111: 108 | G111: Omã | H111: 574.7992 | I111: 5.124032402e-05 | K111: 108 | L111: Burquina Faso | M111: 4122.5546 | N111: 0.0002173819899 | O111: 929.2118
A112: 109 | B112: Islândia | C112: 1198.9784 | D112: 0.0001547697633 | F112: 109 | G112: Geórgia | H112: 547.4606 | I112: 4.880323169e-05 | K112: 109 | L112: Suriname | M112: 4115.4388 | N112: 0.0002170067743 | O112: -3639.4368
A113: 110 | B113: Panamá | C113: 1014.5438 | D113: 0.0001309620789 | F113: 110 | G113: Emirados Árabes Unidos | H113: 528.4142 | I113: 4.710534535e-05 | K113: 110 | L113: Guatemala | M113: 3875.6304 | N113: 0.0002043616956 | O113: -2796.4996
A114: 111 | B114: Tunísia | C114: 915.2748 | D114: 0.0001181479701 | F114: 111 | G114: Malta | H114: 522.0444 | I114: 4.65375112e-05 | K114: 111 | L114: Malavi | M114: 3763.5146 | N114: 0.000198449838 | O114: -3750.2458
A115: 112 | B115: Equador | C115: 828.7258 | D115: 0.0001069758187 | F115: 112 | G115: Senegal | H115: 499.98 | I115: 4.457058605e-05 | K115: 112 | L115: Síria, República Árabe da | M115: 3703.4868 | N115: 0.0001952845767 | O115: 3410.6652
A116: 113 | B116: Bermudas | C116: 818.2718 | D116: 0.0001056263673 | F116: 113 | G116: Usbequistão | H116: 380.3558 | I116: 3.390671809e-05 | K116: 113 | L116: Sri Lanca | M116: 3487.0654 | N116: 0.0001838726928 | O116: -2676.523
A117: 114 | B117: Kosovo | C117: 799.843 | D117: 0.0001032474912 | F117: 114 | G117: Líbano | H117: 342.8862 | I117: 3.056650042e-05 | K117: 114 | L117: Nicarágua | M117: 3449.8386 | N117: 0.0001819097265 | O117: -2652.1142
A118: 115 | B118: Paraguai | C118: 707.77 | D118: 9.13622759e-05 | F118: 115 | G118: Chade | H118: 303.1764 | I118: 2.702658071e-05 | K118: 115 | L118: Congo, República Democrática do | M118: 3425.1854 | N118: 0.0001806097651 | O118: -450.0078
A119: 116 | B119: Honduras | C119: 679.8392 | D119: 8.775683705e-05 | F119: 116 | G119: Bangladesh | H119: 298.8156 | I119: 2.663783834e-05 | K119: 116 | L119: Timor-Leste | M119: 3198.5588 | N119: 0.0001686597618 | O119: 1652.444
A120: 117 | B120: Aruba | C120: 651.3298 | D120: 8.407670979e-05 | F120: 117 | G120: Bolívia | H120: 296.509 | I120: 2.643221709e-05 | K120: 117 | L120: Guiné | M120: 3020.6542 | N120: 0.0001592788658 | O120: 2470.0602
A121: 118 | B121: Mauritânia | C121: 615.705 | D121: 7.947809328e-05 | F121: 118 | G121: Venezuela | H121: 285.0498 | I121: 2.541068971e-05 | K121: 118 | L121: Venezuela | M121: 2771.9666 | N121: 0.0001461655876 | O121: 2201.867
A122: 119 | B122: Uganda | C122: 610.399 | D122: 7.879316988e-05 | F122: 119 | G122: Guiné | H122: 275.297 | I122: 2.454127891e-05 | K122: 119 | L122: Congo | M122: 2655.1662 | N122: 0.0001400067114 | O122: 2147.0166
A123: 120 | B123: Namíbia | C123: 600.2532 | D123: 7.748350236e-05 | F123: 120 | G123: Guiné-Bissau | H123: 270.838 | I123: 2.414378252e-05 | K123: 120 | L123: Líbano | M123: 2564.0414 | N123: 0.0001352017076 | O123: 1878.269
A124: 121 | B124: Cazaquistão | C124: 584.6762 | D124: 7.547275004e-05 | F124: 121 | G124: Congo | H124: 254.0748 | I124: 2.264943145e-05 | K124: 121 | L124: Panamá | M124: 2520.0384 | N124: 0.0001328814328 | O124: -490.9508
A125: 122 | B125: Albânia | C125: 582.0574 | D125: 7.513470304e-05 | F125: 122 | G125: Belarus | H125: 241.8304 | I125: 2.155790762e-05 | K125: 122 | L125: Belarus | M125: 2506.8638 | N125: 0.0001321867371 | O125: 2023.203
A126: 123 | B126: Ruanda | C126: 580.43 | D126: 7.49246306e-05 | F126: 123 | G126: Togo | H126: 238.6312 | I126: 2.127271578e-05 | K126: 123 | L126: Geórgia | M126: 2463.843 | N126: 0.0001299182536 | O126: 1368.9218
A127: 124 | B127: Azerbaijão | C127: 564.159 | D127: 7.28242935e-05 | F127: 124 | G127: Irão, República Islâmica do | H127: 186.7426 | I127: 1.664712013e-05 | K127: 124 | L127: Serra Leoa | M127: 2326.8524 | N127: 0.0001226947497 | O127: -1474.1664
A128: 125 | B128: São Bartolomeu | C128: 548.5216 | D128: 7.080574446e-05 | F128: 125 | G128: Zâmbia | H128: 183.9494 | I128: 1.639812105e-05 | K128: 125 | L128: Seychelles | M128: 2267.3882 | N128: 0.000119559207 | O128: 2265.1014
A129: 126 | B129: Guatemala | C129: 539.5654 | D129: 6.96496361e-05 | F129: 126 | G129: Islândia | H129: 183.9414 | I129: 1.639740789e-05 | K129: 126 | L129: Guiné Equatorial | M129: 2237.2378 | N129: 0.0001179693787 | O129: 2237.2378
A130: 127 | B130: Arménia | C130: 525.5354 | D130: 6.78385778e-05 | F130: 127 | G130: Síria, República Árabe da | H130: 146.4108 | I130: 1.305175239e-05 | K130: 127 | L130: Gabão | M130: 2210.0274 | N130: 0.0001165345764 | O130: 2209.3534
A131: 128 | B131: Barém | C131: 502.4658 | D131: 6.486064548e-05 | F131: 128 | G131: Cabo Verde | H131: 145.1786 | I131: 1.294190824e-05 | K131: 128 | L131: Irão, República Islâmica do | M131: 2107.2716 | N131: 0.0001111162709 | O131: 1733.7864
A132: 129 | B132: Bolívia | C132: 494.4554 | D132: 6.382662542e-05 | F132: 129 | G132: Azerbaijão | H132: 124.8964 | I132: 1.113385684e-05 | K132: 129 | L132: Catar | M132: 1939.3412 | N132: 0.0001022613137 | O132: 1906.8404
A133: 130 | B133: Burundi | C133: 484.978 | D133: 6.260323811e-05 | F133: 130 | G133: Jordânia | H133: 120.6272 | I133: 1.075328013e-05 | K133: 130 | L133: Bangladesh | M133: 1890.9238 | N133: 9.970826787e-05 | O133: 1293.2926
A134: 131 | B134: Quénia | C134: 449.6842 | D134: 5.804734864e-05 | F134: 131 | G134: Albânia | H134: 120.2784 | I134: 1.072218644e-05 | K134: 131 | L134: Laos, República Democrática Popular do | M134: 1777.8864 | N134: 9.374781438e-05 | O134: -1751.648
A135: 132 | B135: Gâmbia | C135: 434.028 | D135: 5.602637281e-05 | F135: 132 | G135: Iémen | H135: 84.6154 | I135: 7.543017654e-06 | K135: 132 | L135: Madagáscar | M135: 1602.4536 | N135: 8.44972562e-05 | O135: -1341.1344
A136: 133 | B136: Serra Leoa | C136: 426.343 | D136: 5.503435691e-05 | F136: 133 | G136: Kosovo | H136: 79.8322 | I136: 7.116620544e-06 | K136: 133 | L136: Togo | M136: 1487.5448 | N136: 7.843812394e-05 | O136: 1010.2824
A137: 134 | B137: Camboja | C137: 410.517 | D137: 5.29914625e-05 | F137: 134 | G137: Tajiquistão | H137: 74.7168 | I137: 6.660609552e-06 | K137: 134 | L137: Islândia | M137: 1382.9198 | N137: 7.292125566e-05 | O137: 1015.037
A138: 135 | B138: Etiópia | C138: 409.5404 | D138: 5.286539839e-05 | F138: 135 | G138: Namíbia | H138: 64.9894 | I138: 5.793463028e-06 | K138: 135 | L138: Sudão | M138: 1318.1622 | N138: 6.950659235e-05 | O138: 1295.8858
A139: 136 | B139: Sri Lanca | C139: 405.2712 | D139: 5.231431e-05 | F139: 136 | G139: Libéria | H139: 54.4472 | I139: 4.853681373e-06 | K139: 136 | L139: Cazaquistão | M139: 1270.8276 | N139: 6.70106425e-05 | O139: -101.4752
A140: 137 | B140: Antígua e Barbuda | C140: 403.3246 | D140: 5.206303373e-05 | F140: 137 | G140: Nigéria | H140: 49.9946 | I140: 4.456755513e-06 | K140: 137 | L140: El Salvador | M140: 1081.0474 | N140: 5.700354701e-05 | O140: -318.6278
A141: 138 | B141: Nicarágua | C141: 398.8622 | D141: 5.148700618e-05 | F141: 138 | G141: Aruba | H141: 45.6144 | I141: 4.066283732e-06 | K141: 138 | L141: Kosovo | M141: 879.6752 | N141: 4.638520626e-05 | O141: 720.0108
A142: 139 | B142: El Salvador | C142: 381.2098 | D142: 4.920835147e-05 | F142: 139 | G142: Bósnia-Herzegovina | H142: 42.5574 | I142: 3.793768268e-06 | K142: 139 | L142: Bermudas | M142: 818.9736 | N142: 4.318441551e-05 | O142: 817.57
A143: 140 | B143: São Martinho (parte holandesa) | C143: 373.2376 | D143: 4.817926245e-05 | F143: 140 | G143: Curaçau | H143: 39.2148 | I143: 3.495793067e-06 | K143: 140 | L143: Bolívia | M143: 790.9644 | N143: 4.170749253e-05 | O143: 197.9464
A144: 141 | B144: Iémen | C144: 360.3172 | D144: 4.651143654e-05 | F144: 141 | G144: Arménia | H144: 37.5752 | I144: 3.349631355e-06 | K144: 141 | L144: Albânia | M144: 702.3358 | N144: 3.703411321e-05 | O144: 461.779
A145: 142 | B145: Tanzânia, República Unida da | C145: 340.531 | D145: 4.395734091e-05 | F145: 142 | G145: Arábia Saudita | H145: 37.0542 | I145: 3.303186947e-06 | K145: 142 | L145: Turquemenistão | M145: 700.9924 | N145: 3.696327583e-05 | O145: -686.4172
A146: 143 | B146: Myanmar | C146: 334.6834 | D146: 4.320250523e-05 | F146: 143 | G146: Botswana | H146: 30.037 | I146: 2.677640492e-06 | K146: 143 | L146: Aruba | M146: 696.9442 | N146: 3.674981455e-05 | O146: 605.7154
A147: 144 | B147: Comores | C147: 333.8038 | D147: 4.308896233e-05 | F147: 144 | G147: Ruanda | H147: 26.8278 | I147: 2.391557199e-06 | K147: 144 | L147: Azerbaijão | M147: 689.0554 | N147: 3.633383873e-05 | O147: 439.2626
A148: 145 | B148: Argentina | C148: 316.4082 | D148: 4.084345658e-05 | F148: 145 | G148: São Marino | H148: 25.2246 | I148: 2.248640355e-06 | K148: 145 | L148: Namíbia | M148: 665.2426 | N148: 3.50781916e-05 | O148: 535.2638
A149: 146 | B149: Jamaica | C149: 302.5728 | D149: 3.905751817e-05 | F149: 146 | G149: Macau | H149: 18.2246 | I149: 1.62462719e-06 | K149: 146 | L149: Mauritânia | M149: 617.715 | N149: 3.257206487e-05 | O149: 613.695
A150: 147 | B150: Libéria | C150: 301.9358 | D150: 3.897529121e-05 | F150: 147 | G150: Quirguizistão | H150: 17.5046 | I150: 1.560442979e-06 | K150: 147 | L150: Ruanda | M150: 607.2578 | N150: 3.202065751e-05 | O150: 553.6022
A151: 148 | B151: Macedónia, Antiga República jugoslava da | C151: 299.87 | D151: 3.870862805e-05 | F151: 148 | G151: Andorra | H151: 16.7404 | I151: 1.49231857e-06 | K151: 148 | L151: Arménia | M151: 563.1106 | N151: 2.969277902e-05 | O151: 487.9602
A152: 149 | B152: Somália | C152: 292.8384 | D152: 3.780095609e-05 | F152: 149 | G152: Líbia, Jamahira Árabe da | H152: 16.2514 | I152: 1.448726793e-06 | K152: 149 | L152: São Bartolomeu | M152: 548.8046 | N152: 2.893842473e-05 | O152: 548.2386
A153: 150 | B153: Moldava, República de | C153: 265.8198 | D153: 3.43132683e-05 | F153: 150 | G153: Catar | H153: 16.2504 | I153: 1.448637649e-06 | K153: 150 | L153: Barém | M153: 506.7884 | N153: 2.672291371e-05 | O153: 498.1432
A154: 151 | B154: Paquistão | C154: 260.8208 | D154: 3.36679739e-05 | F154: 151 | G154: Jamaica | H154: 14.6512 | I154: 1.306077384e-06 | K154: 151 | L154: Burundi | M154: 485.092 | N154: 2.557886419e-05 | O154: 484.864
A155: 152 | B155: Curaçau | C155: 251.4226 | D155: 3.245481011e-05 | F155: 152 | G155: São Cristovão e Nevis | H155: 12.4064 | I155: 1.105965276e-06 | K155: 152 | L155: Iémen | M155: 444.9326 | N155: 2.346126209e-05 | O155: 275.7018
A156: 153 | B156: Suriname | C156: 238.001 | D156: 3.072228694e-05 | F156: 153 | G156: Iraque | H156: 12.264 | I156: 1.093271065e-06 | K156: 153 | L156: Gâmbia | M156: 434.067 | N156: 2.288831983e-05 | O156: 433.989
A157: 154 | B157: Nova Caledónia | C157: 206.2626 | D157: 2.662534519e-05 | F157: 154 | G157: Território Palestiniano Ocupado | H157: 11.6698 | I157: 1.040301262e-06 | K157: 154 | L157: Usbequistão | M157: 421.6984 | N157: 2.223612449e-05 | O157: -339.0132
A158: 155 | B158: Trindade e Tobago | C158: 189.8074 | D158: 2.450123069e-05 | F158: 155 | G158: Sudão | H158: 11.1382 | I158: 9.929119195e-07 | K158: 155 | L158: Antígua e Barbuda | M158: 403.7924 | N158: 2.129194248e-05 | O158: 402.8568
A159: 156 | B159: Haiti | C159: 187.225 | D159: 2.416788237e-05 | F159: 156 | G159: Barém | H159: 4.3226 | I159: 3.85337044e-07 | K159: 156 | L159: São Martinho (parte holandesa) | M159: 373.2376 | N159: 1.96807902e-05 | O159: 373.2376
A160: 157 | B160: Zâmbia | C160: 152.2624 | D160: 1.965474575e-05 | F160: 157 | G160: Nepal | H160: 2.6584 | I160: 2.369823712e-07 | K160: 157 | L160: Libéria | M160: 356.383 | N160: 1.879204843e-05 | O160: 247.4886
A161: 158 | B161: Maldivas | C161: 137.7162 | D161: 1.777705393e-05 | F161: 158 | G161: Fiji, Ilhas | H161: 2.251 | I161: 2.00664805e-07 | K161: 158 | L161: Zâmbia | M161: 336.2118 | N161: 1.772842259e-05 | O161: -31.687
A162: 159 | B162: Liechtenstein | C162: 135.8048 | D162: 1.753032144e-05 | F162: 159 | G162: Mauritânia | H162: 2.01 | I162: 1.791809232e-07 | K162: 159 | L162: Comores | M162: 333.8038 | N162: 1.760144893e-05 | O162: 333.8038
A163: 160 | B163: Polinésia Francesa | C163: 133.9344 | D163: 1.728888142e-05 | F163: 160 | G163: Liechtenstein | H163: 1.7982 | I163: 1.603000677e-07 | K163: 160 | L163: Jamaica | M163: 317.224 | N163: 1.672719734e-05 | O163: 287.9216
A164: 161 | B164: Madagáscar | C164: 130.6596 | D164: 1.686615486e-05 | F164: 161 | G164: Lesoto | H164: 1.7136 | I164: 1.527584228e-07 | K164: 161 | L164: Chade | M164: 303.1804 | N164: 1.598667939e-05 | O164: -303.1724
A165: 162 | B165: Niger | C165: 126.732 | D165: 1.63591618e-05 | F165: 162 | G165: Seychelles | H165: 1.1434 | I165: 1.019280933e-07 | K165: 162 | L165: Somália | M165: 292.8384 | N165: 1.544134651e-05 | O165: 292.8384
A166: 163 | B166: Bósnia-Herzegovina | C166: 90.5322 | D166: 1.168632159e-05 | F166: 163 | G166: Bermudas | H166: 0.7018 | I166: 6.256177705e-08 | K166: 163 | L166: Curaçau | M166: 290.6374 | N166: 1.532528795e-05 | O166: 212.2078
A167: 164 | B167: Centro-Africana, República | C167: 89.9082 | D167: 1.160577274e-05 | F167: 164 | G167: Afeganistão | H167: 0.5848 | I167: 5.213184272e-08 | K167: 164 | L167: Nova Caledónia | M167: 206.2906 | N167: 1.087768762e-05 | O167: 206.2346
A168: 165 | B168: Nepal | C168: 87.8934 | D168: 1.13456929e-05 | F168: 165 | G168: Antígua e Barbuda | H168: 0.4678 | I168: 4.170190838e-08 | K168: 165 | L168: Trindade e Tobago | M168: 189.8764 | N168: 1.00121681e-05 | O168: 189.7384
A169: 166 | B169: Jibuti | C169: 70.7204 | D169: 9.128921396e-06 | F169: 166 | G169: Gabão | H169: 0.337 | I169: 3.004177667e-08 | K169: 166 | L169: Haiti | M169: 187.2274 | N169: 9.872486533e-06 | O169: 187.2226
A170: 167 | B170: Zimbabwe | C170: 65.33 | D170: 8.433103246e-06 | F170: 167 | G170: São Bartolomeu | H170: 0.283 | I170: 2.522796082e-08 | K170: 167 | L170: Maldivas | M170: 137.7198 | N170: 7.261954558e-06 | O170: 137.7126
A171: 168 | B171: Montenegro | C171: 54.6326 | D171: 7.05223261e-06 | F171: 168 | G171: Barbados | H171: 0.1636 | I171: 1.458407912e-08 | K171: 168 | L171: Liechtenstein | M171: 137.603 | N171: 7.255795703e-06 | O171: 134.0066
A172: 169 | B172: Caimão, Ilhas | C172: 53.1296 | D172: 6.85821831e-06 | F172: 169 | G172: Oceano Indico, Território Britânico do | H172: 0.1384 | I172: 1.233763172e-08 | K172: 169 | L172: Polinésia Francesa | M172: 133.9626 | N172: 7.063837689e-06 | O172: 133.9062
A173: 170 | B173: Ceuta e Melilha | C173: 51.6648 | D173: 6.669135046e-06 | F173: 170 | G173: Niger | H173: 0.1252 | I173: 1.116092118e-08 | K173: 170 | L173: Bósnia-Herzegovina | M173: 133.0896 | N173: 7.017804465e-06 | O173: 47.9748
A174: 171 | B174: Bahamas | C174: 43.9552 | D174: 5.673943668e-06 | F174: 171 | G174: Burundi | H174: 0.114 | I174: 1.016250012e-08 | K174: 171 | L174: Niger | M174: 126.8572 | N174: 6.689170488e-06 | O174: 126.6068
A175: 172 | B175: Usbequistão | C175: 41.3426 | D175: 5.336696988e-06 | F175: 172 | G175: Trindade e Tobago | H175: 0.069 | I175: 6.150986914e-09 | K175: 172 | L175: Nepal | M175: 90.5518 | N175: 4.774789513e-06 | O175: 85.235
A176: 173 | B176: Virgens dos Estados Unidos, Ilhas | C176: 26.0742 | D176: 3.365780203e-06 | F176: 173 | G176: Gâmbia | H176: 0.039 | I176: 3.476644778e-09 | K176: 173 | L176: Centro-Africana, República | M176: 89.9082 | N176: 4.740852534e-06 | O176: 89.9082
A177: 174 | B177: Turcas e Caicos, Ilhas | C177: 25.0024 | D177: 3.227427225e-06 | F177: 174 | G177: Polinésia Francesa | H177: 0.0282 | I177: 2.513881608e-09 | K177: 174 | L177: Tajiquistão | M177: 74.7168 | N177: 3.93981117e-06 | O177: -74.7168
A178: 175 | B178: Quirguizistão | C178: 23.7908 | D178: 3.071028206e-06 | F178: 175 | G178: Nova Caledónia | H178: 0.028 | I178: 2.496052661e-09 | K178: 175 | L178: Jibuti | M178: 70.7204 | N178: 3.729081302e-06 | O178: 70.7204
A179: 176 | B179: Guiana | C179: 20.1352 | D179: 2.599146188e-06 | F179: 176 | G179: Papuásia-Nova Guiné | H179: 0.0222 | I179: 1.979013181e-09 | K179: 176 | L179: Montenegro | M179: 54.634 | N179: 2.880846656e-06 | O179: 54.6312
A180: 177 | B180: Belize | C180: 19.5092 | D180: 2.518339168e-06 | F180: 177 | G180: Gibraltar | H180: 0.0216 | I180: 1.925526338e-09 | K180: 177 | L180: Caimão, Ilhas | M180: 53.1304 | N180: 2.801561943e-06 | O180: 53.1288
A181: 178 | B181: Mongólia | C181: 19.1206 | D181: 2.468176855e-06 | F181: 178 | G181: São Vicente e Granadinas | H181: 0.0144 | I181: 1.283684226e-09 | K181: 178 | L181: Ceuta e Melilha | M181: 51.6648 | N181: 2.724280967e-06 | O181: 51.6648
A182: 179 | B182: Afeganistão | C182: 18.9718 | D182: 2.448969052e-06 | F182: 179 | G182: Mongólia | H182: 0.0112 | I182: 9.984210643e-10 | K182: 179 | L182: Bahamas | M182: 43.9552 | N182: 2.317754346e-06 | O182: 43.9552
A183: 180 | B183: Barbados | C183: 15.4724 | D183: 1.997250064e-06 | F183: 180 | G183: Santa Lúcia | H183: 0.009 | I183: 8.02302641e-10 | K183: 180 | L183: Quirguizistão | M183: 41.2954 | N183: 2.177503295e-06 | O183: 6.2862
A184: 181 | B184: Virgens Britânicas, Ilhas | C184: 13.47 | D184: 1.738770867e-06 | F184: 181 | G184: Virgens Britânicas, Ilhas | H184: 0.007 | I184: 6.240131652e-10 | K184: 181 | L184: Botswana | M184: 30.0886 | N184: 1.586569585e-06 | O184: -29.9854
A185: 182 | B185: Laos, República Democrática Popular do | C185: 13.1192 | D185: 1.693487955e-06 | F185: 182 | G185: Maldivas | H185: 0.0036 | I185: 3.209210564e-10 | K185: 182 | L185: Virgens dos Estados Unidos, Ilhas | M185: 26.0742 | N185: 1.374890579e-06 | O185: 26.0742
A186: 183 | B186: Brunei Darussalam | C186: 12.819 | D186: 1.654736729e-06 | F186: 183 | G186: Faroé, Ilhas | H186: 0.0026 | I186: 2.317763185e-10 | K186: 183 | L186: São Marino | M186: 25.2486 | N186: 1.331356754e-06 | O186: -25.2006
A187: 184 | B187: Fiji, Ilhas | C187: 11.4226 | D187: 1.474482858e-06 | F187: 184 | G187: Haiti | H187: 0.0024 | I187: 2.139473709e-10 | K187: 184 | L187: Turcas e Caicos, Ilhas | M187: 25.0024 | N187: 1.318374647e-06 | O187: 25.0024
A188: 185 | B188: Turquemenistão | C188: 7.2876 | D188: 9.407176369e-07 | F188: 185 | G188: Montenegro | H188: 0.0014 | I188: 1.24802633e-10 | K188: 185 | L188: Afeganistão | M188: 19.5566 | N188: 1.031218028e-06 | O188: 18.387
A189: 186 | B189: Santa Lúcia | C189: 7.138 | D189: 9.214065662e-07 | F189: 186 | G189: Caimão, Ilhas | H189: 0.0008 | I189: 7.131579031e-11 | K189: 186 | L189: Mongólia | M189: 19.1318 | N189: 1.008818356e-06 | O189: 19.1094
A190: 187 | B190: Malavi | C190: 6.6344 | D190: 8.563995129e-07 | F190: 187 | G190: Anguila | H190: 0 | I190: 0 | K190: 187 | L190: Barbados | M190: 15.636 | N190: 8.244850884e-07 | O190: 15.3088
A191: 188 | B191: Bonaire, Santo Eustáquio e Saba | C191: 6.6316 | D191: 8.560380757e-07 | F191: 188 | G191: Antárctica | H191: 0 | I191: 0 | K191: 188 | L191: Fiji, Ilhas | M191: 13.6736 | N191: 7.210078859e-07 | O191: 9.1716
A192: 189 | B192: Guam | C192: 6.3336 | D192: 8.17570836e-07 | F192: 189 | G192: Antilhas Holandesas | H192: 0 | I192: 0 | K192: 189 | L192: Virgens Britânicas, Ilhas | M192: 13.477 | N192: 7.106411829e-07 | O192: 13.463
A193: 190 | B193: São Vicente e Granadinas | C193: 4.3128 | D193: 5.567164806e-07 | F193: 190 | G193: Bahamas | H193: 0 | I193: 0 | K193: 190 | L193: São Cristovão e Nevis | M193: 13.1558 | N193: 6.937043314e-07 | O193: -11.657
A194: 191 | B194: Sudão do Sul | C194: 3.771 | D194: 4.867783919e-07 | F194: 191 | G194: Bonaire, Santo Eustáquio e Saba | H194: 0 | I194: 0 | K194: 191 | L194: Brunei Darussalam | M194: 12.819 | N194: 6.759448931e-07 | O194: 12.819
A195: 192 | B195: Marianas do Norte, Ilhas | C195: 2.9244 | D195: 3.774952875e-07 | F195: 192 | G195: Bouvet, Ilha | H195: 0 | I195: 0 | K195: 192 | L195: Santa Lúcia | M195: 7.147 | N195: 3.768607653e-07 | O195: 7.129
A196: 193 | B196: Papuásia-Nova Guiné | C196: 2.8856 | D196: 3.724868013e-07 | F196: 193 | G196: Brunei Darussalam | H196: 0 | I196: 0 | K196: 193 | L196: Bonaire, Santo Eustáquio e Saba | M196: 6.6316 | N196: 3.496837626e-07 | O196: 6.6316
A197: 194 | B197: Anguila | C197: 2.7816 | D197: 3.590619928e-07 | F197: 194 | G197: Butão | H197: 0 | I197: 0 | K197: 194 | L197: Guam | M197: 6.3336 | N197: 3.339702453e-07 | O197: 6.3336
A198: 195 | B198: Domínica | C198: 1.4248 | D198: 1.839198761e-07 | F198: 195 | G198: Centro-Africana, República | H198: 0 | I198: 0 | K198: 195 | L198: São Vicente e Granadinas | M198: 4.3272 | N198: 2.281729262e-07 | O198: 4.2984
A199: 196 | B199: São Cristovão e Nevis | C199: 0.7494 | D199: 9.673607183e-08 | F199: 196 | G199: Ceuta | H199: 0 | I199: 0 | K199: 196 | L199: Sudão do Sul | M199: 3.771 | N199: 1.988445426e-07 | O199: 3.771
A200: 197 | B200: Granada | C200: 0.6942 | D200: 8.961059656e-08 | F200: 197 | G200: Ceuta e Melilha | H200: 0 | I200: 0 | K200: 197 | L200: Marianas do Norte, Ilhas | M200: 2.9244 | N200: 1.542033891e-07 | O200: 2.9244
... 58 more rows

Sheet 2A
A1: Parceiros comerciais de Portugal - União Europeia vs. Países Terceiros (média 2019-2023 em milhões de euros) produtos agrícolas e agroalimentares, do mar e da floresta
A2: Exportações | F2: Importações | K2: Trocas comerciais (total e saldo)
A3: P | B3: Grupo de Países | C3: média quinquénio | D3: % do Total | F3: P | G3: Grupo de Países | H3: média quinquénio | I3: % do Total | K3: P | L3: Grupo de Países | M3: média quinquénio | N3: % do Total | O3: Saldo (exp-imp)
A4: 1 | B4: União Europeia | C4: 9407.139979 | D4: 0.6779438817 | F4: 1 | G4: União Europeia | H4: 12705.30685 | I4: 0.7854366173 | K4: 1 | L4: União Europeia | M4: 22112.44683 | N4: 0.7358038778 | O4: -3298.166875
A5: 2 | B5: Países Terceiros | C5: 4469.1217 | D5: 0.3220759678 | F5: 2 | G5: Países Terceiros | H5: 3470.800262 | I5: 0.2145633827 | K5: 2 | L5: Países Terceiros | M5: 7939.921962 | N5: 0.2642052873 | O5: 998.3214384
B6: Outros | C6: -0.2754318 | D6: -1.984952962e-05 | G6: Outros | H6: 0 | I6: 0 | L6: Outros | M6: -0.2754318 | N6: -9.165145225e-06 | O6: -0.2754318
B7: Total | C7: 13875.98625 | D7: 1 | G7: Total | H7: 16176.10712 | I7: 1 | L7: Total | M7: 30052.09336 | N7: 1 | O7: -2300.120868
F27: valores em milhões de euros
A28: Nota: Outros = Países não determinados, abastecimentos de bordo, etc.
A29: Fonte: GPP a partir de dados INE/Comércio Internacional (2022 provisórios) | M29: 2024-03-04

Sheet 3
A1: Principais produtos agrícolas e agroalimentares, do mar e da floresta transacionados entre Portugal e Países Baixos em 2019-2023 (NC a 2 e 4 dígitos) em milhões de euros
AC4: P | AE4: Cód.NC | AF4: Descritivo | AG4: Média export quinquénio | AH4: % do total | AI4: % acumulada | AN4: P | AO4: NC | AP4: Exportações | AQ4: 2019 | AR4: 2020 | AS4: 2021 | AT4: 2022 | AU4: 2023 | AV4: média quinquénio
AC5: 1 | AD5: º | AE5: 48 | AF5: Papel e cartão | AG5: 105.143465 | AH5: 0.1659665255 | AN5: 1º | AO5: 48 | AP5: Papel e cartão | AQ5: 93.835422 | AR5: 87.414806 | AS5: 94.683297 | AT5: 143.239571 | AU5: 106.544229 | AV5: 105.143465
AC6: 2 | AD6: º | AE6: 47 | AF6: Pastas de madeira | AG6: 85.5601482 | AH6: 0.1350547132 | AN6: 2º | AO6: 47 | AP6: Pastas de madeira | AQ6: 69.777072 | AR6: 45.01802 | AS6: 104.577909 | AT6: 123.939051 | AU6: 84.488689 | AV6: 85.5601482
AC7: 3 | AD7: º | AE7: 08 | AF7: Frutas | AG7: 83.0372046 | AH7: 0.1310723052 | AI7: 0.4320935439 | AN7: 3º | AO7: 08 | AP7: Frutas | AQ7: 70.449207 | AR7: 87.559308 | AS7: 83.610091 | AT7: 82.593054 | AU7: 90.974363 | AV7: 83.0372046
AC8: 4 | AD8: º | AE8: 06 | AF8: Plantas vivas e produtos de floricultura | AG8: 60.2029642 | AH8: 0.09502898531 | AO8: - | AP8: Outros | AQ8: 280.48896 | AR8: 305.824464 | AS8: 388.258124 | AT8: 393.213396 | AU8: 431.121565 | AV8: 359.7813018
AC9: 5 | AD9: º | AE9: 22 | AF9: Bebidas, líquidos alcoólicos e vinagres | AG9: 55.9934002 | AH9: 0.08838428599 | AP9: Total | AQ9: 514.550661 | AR9: 525.816598 | AS9: 671.129421 | AT9: 742.985072 | AU9: 713.128846 | AV9: 633.5221196
AC10: 6 | AD10: º | AE10: 04 | AF10: Leite e laticínios; ovos; mel, etc. | AG10: 44.7224194 | AH10: 0.07059330372
AC11: 7 | AD11: º | AE11: 44 | AF11: Madeira e suas obras | AG11: 38.0518212 | AH11: 0.06006391888
AC12: 8 | AD12: º | AE12: 07 | AF12: Produtos hortícolas | AG12: 27.703972 | AH12: 0.04373007847
AC13: 9 | AD13: º | AE13: 20 | AF13: Preparações de produtos vegetais | AG13: 20.3846174 | AH13: 0.03217664667
AC14: 10 | AD14: º | AE14: 19a | AF14: Preparações à base de cereais (exc. NC 19022010) (a) | AG14: 15.7467082 | AH14: 0.02485581436 | AI14: 0.8469265773
AE15: - | AF15: Outros | AG15: 96.9753992 | AH15: 0.1530734227
AE16: Total | AG16: 633.5221196 | AH16: 1
AC38: P | AE38: Cód.NC | AF38: Descritivo | AG38: Média import quinquénio | AH38: % do total | AI38: % acumulada | AN38: P | AO38: NC | AP38: Importações | AQ38: 2019 | AR38: 2020 | AS38: 2021 | AT38: 2022 | AU38: 2023 | AV38: média quinquénio
AC39: 1 | AD39: º | AE39: 03 | AF39: Peixes e crustáceos | AG39: 208.7752668 | AH39: 0.2203832797 | AN39: 1º | AO39: 03 | AP39: Peixes e crustáceos | AQ39: 160.655416 | AR39: 155.181736 | AS39: 136.62322 | AT39: 270.291658 | AU39: 321.124304 | AV39: 208.7752668
AC40: 2 | AD40: º | AE40: 02 | AF40: Carnes e miudezas | AG40: 153.3019004 | AH40: 0.1618255654 | AN40: 2º | AO40: 02 | AP40: Carnes e miudezas | AQ40: 127.092024 | AR40: 113.877246 | AS40: 131.6526 | AT40: 188.568642 | AU40: 205.31899 | AV40: 153.3019004
AC41: 3 | AD41: º | AE41: 06 | AF41: Plantas vivas e produtos de floricultura | AG41: 69.418377 | AH41: 0.07327807471 | AI41: 0.4554869199 | AN41: 3º | AO41: 06 | AP41: Plantas vivas e produtos de floricultura | AQ41: 59.374157 | AR41: 53.544528 | AS41: 72.454929 | AT41: 78.326201 | AU41: 83.39207 | AV41: 69.418377
AC42: 4 | AD42: º | AE42: 15 | AF42: Gorduras e óleos animais ou vegetais | AG42: 56.1556498 | AH42: 0.05927793301 | AO42: - | AP42: Outros | AQ42: 418.394765 | AR42: 427.877453 | AS42: 453.129919 | AT42: 609.598081 | AU42: 670.162405 | AV42: 515.8325246
AC43: 5 | AD43: º | AE43: 04 | AF43: Leite e laticínios; ovos; mel, etc. | AG43: 51.0200312 | AH43: 0.05385677136 | AP43: Total | AQ43: 765.516362 | AR43: 750.480963 | AS43: 793.860668 | AT43: 1146.784582 | AU43: 1279.997769 | AV43: 947.3280688
AC44: 6 | AD44: º | AE44: 08 | AF44: Frutas | AG44: 39.0242772 | AH44: 0.04119404722
AC45: 7 | AD45: º | AE45: 24 | AF45: Tabaco | AG45: 38.4842942 | AH45: 0.04062404089
AC46: 8 | AD46: º | AE46: 21 | AF46: Preparações alimentícias diversas | AG46: 36.893212 | AH46: 0.03894449369
AC47: 9 | AD47: º | AE47: 07 | AF47: Produtos hortícolas | AG47: 33.8013316 | AH47: 0.03568070314
AC48: 10 | AD48: º | AE48: 48 | AF48: Papel e cartão | AG48: 31.2459454 | AH48: 0.03298323614 | AI48: 0.7580481454
AE49: - | AF49: Outros | AG49: 229.2077832 | AH49: 0.2419518546
AE50: Total | AG50: 947.3280688 | AH50: 1
AC62: DESAGREGAÇÃO A 4 DÍGITOS | AN62: DESAGREGAÇÃO A 4 DÍGITOS
AC64: P | AE64: Cód.NC | AF64: Descritivo | AG64: Média export quinquénio | AH64: % do total | AI64: % acumulada | AN64: P | AO64: NC | AP64: Exportações | AQ64: 2019 | AR64: 2020 | AS64: 2021 | AT64: 2022 | AU64: 2023 | AV64: média quinquénio
AC65: 1 | AD65: º | AE65: 4703 | AF65: Pastas químicas de madeira, à soda ou ao sulfato | AG65: 82.8741782 | AH65: 0.1308149718 | AN65: 1º | AO65: 4703 | AP65: Pastas químicas de madeira, à soda ou ao sulfato | AQ65: 67.451347 | AR65: 43.12438 | AS65: 101.870068 | AT65: 119.696651 | AU65: 82.228445 | AV65: 82.8741782
AC66: 2 | AD66: º | AE66: 0810 | AF66: Outras frutas frescas | AG66: 74.7805116 | AH66: 0.1180393064 | AN66: 2º | AO66: 0810 | AP66: Outras frutas frescas | AQ66: 62.964273 | AR66: 79.762652 | AS66: 75.912217 | AT66: 73.974459 | AU66: 81.288957 | AV66: 74.7805116
AC67: 3 | AD67: º | AE67: 2204 | AF67: Vinhos de uvas frescas | AG67: 49.5502116 | AH67: 0.07821386194 | AI67: 0.3270681401 | AN67: 3º | AO67: 2204 | AP67: Vinhos de uvas frescas | AQ67: 45.768206 | AR67: 47.708128 | AS67: 51.665054 | AT67: 49.035485 | AU67: 53.574185 | AV67: 49.5502116
AC68: 4 | AD68: º | AE68: 4804 | AF68: Papel e cartão "kraft", não revestidos | AG68: 48.2464266 | AH68: 0.0761558675 | AN68: - | AO68: - | AP68: Outros | AQ68: 338.366835 | AR68: 355.221438 | AS68: 441.682082 | AT68: 500.278477 | AU68: 496.037259 | AV68: 426.3172182
AC69: 5 | AD69: º | AE69: 4802 | AF69: Papel e cartão p/ escrita, etc. | AG69: 39.5225282 | AH69: 0.06238539583 | AP69: Total | AQ69: 514.550661 | AR69: 525.816598 | AS69: 671.129421 | AT69: 742.985072 | AU69: 713.128846 | AV69: 633.5221196
AC70: 6 | AD70: º | AE70: 0602 | AF70: Plantas vivas | AG70: 36.7044166 | AH70: 0.05793707191
AC71: 7 | AD71: º | AE71: 0402 | AF71: Leite e nata, concentrados | AG71: 24.0761678 | AH71: 0.03800367352
AC72: 8 | AD72: º | AE72: 2002 | AF72: Tomates preparados | AG72: 16.4152958 | AH72: 0.02591116441
AC73: 9 | AD73: º | AE73: 0405 | AF73: Manteiga | AG73: 15.6913978 | AH73: 0.02476850818
AC74: 10 | AD74: º | AE74: 0604 | AF74: Folhagem, folhas, ramos e outras partes de plantas | AG74: 14.0404076 | AH74: 0.02216245837 | AI74: 0.6343922799
AE75: - | AF75: Outros | AG75: 231.6205778 | AH75: 0.3656077201
AE76: Total | AG76: 633.5221196 | AH76: 1
AC89: DESAGREGAÇÃO A 4 DÍGITOS | AN89: DESAGREGAÇÃO A 4 DÍGITOS
G91: média 2019-2023 em milhões de euros | I91: Cód. NC | J91: Descritivo | K91: Export | L91: Import | M91: Saldo | AC91: P | AE91: Cód.NC | AF91: Descritivo | AG91: Média import quinquénio | AH91: % do total | AI91: % acumulada | AN91: P | AO91: NC | AP91: Importações | AQ91: 2019 | AR91: 2020 | AS91: 2021 | AT91: 2022 | AU91: 2023 | AV91: média quinquénio
I92: 4703 | J92: Pastas químicas de madeira, à soda ou ao sulfato | K92: 82.8741782 | L92: 0.0024722 | M92: 82.871706 | AC92: 1 | AD92: º | AE92: 0305 | AF92: Peixes secos, salgados ou fumados | AG92: 112.4651666 | AH92: 0.1187182881 | AN92: 1º | AO92: 0305 | AP92: Peixes secos, salgados ou fumados | AQ92: 81.701698 | AR92: 64.12237 | AS92: 60.875764 | AT92: 157.576475 | AU92: 198.049526 | AV92: 112.4651666
I93: 0810 | J93: Outras frutas frescas | K93: 74.7805116 | L93: 6.3584962 | M93: 68.4220154 | AC93: 2 | AD93: º | AE93: 0201 | AF93: Carnes de bovino, frescas ou refrigeradas | AG93: 106.2711826 | AH93: 0.1121799154 | AN93: 2º | AO93: 0201 | AP93: Carnes de bovino, frescas ou refrigeradas | AQ93: 97.089788 | AR93: 89.032053 | AS93: 93.206152 | AT93: 124.683466 | AU93: 127.344454 | AV93: 106.2711826
I94: 2204 | J94: Vinhos de uvas frescas | K94: 49.5502116 | L94: 0.7328096 | M94: 48.817402 | AC94: 3 | AD94: º | AE94: 0302 | AF94: Peixes frescos ou refrigerados | AG94: 44.4631548 | AH94: 0.04693532923 | AI94: 0.2778335327 | AN94: 3º | AO94: 0302 | AP94: Peixes frescos ou refrigerados | AQ94: 35.666661 | AR94: 45.050054 | AS94: 28.643378 | AT94: 60.124419 | AU94: 52.831262 | AV94: 44.4631548
I95: 4804 | J95: Papel e cartão "kraft", não revestidos | K95: 48.2464266 | L95: 4.2933032 | M95: 43.9531234 | AC95: 4 | AD95: º | AE95: 0602 | AF95: Plantas vivas | AG95: 38.5534742 | AH95: 0.04069706733 | AN95: - | AO95: - | AP95: Outros | AQ95: 551.058215 | AR95: 552.276486 | AS95: 611.135374 | AT95: 804.400222 | AU95: 901.772527 | AV95: 684.1285648
I96: 4802 | J96: Papel e cartão p/ escrita, etc. | K96: 39.5225282 | L96: 1.0699576 | M96: 38.4525706 | AC96: 5 | AD96: º | AE96: 0303 | AF96: Peixes congelados | AG96: 36.6235274 | AH96: 0.03865981449 | AP96: Total | AQ96: 765.516362 | AR96: 750.480963 | AS96: 793.860668 | AT96: 1146.784582 | AU96: 1279.997769 | AV96: 947.3280688
I97: 2002 | J97: Tomates preparados | K97: 16.4152958 | L97: 0.0611162 | M97: 16.3541796 | AC97: 6 | AD97: º | AE97: 0406 | AF97: Queijos e requeijão | AG97: 31.3232372 | AH97: 0.03306482541
I98: 0402 | J98: Leite e nata, concentrados | K98: 24.0761678 | L98: 9.6882726 | M98: 14.3878952 | AC98: 7 | AD98: º | AE98: 1518 | AF98: Gorduras e óleos, animais ou vegetais, processados de outras formas | AG98: 30.326477 | AH98: 0.03201264483
I99: 0405 | J99: Manteiga | K99: 15.6913978 | L99: 1.5070634 | M99: 14.1843344 | AC99: 8 | AD99: º | AE99: 2403 | AF99: Outros produtos de tabaco | AG99: 29.0413214 | AH99: 0.03065603391
I100: 4411 | J100: Outros painéis de fibras de madeira | K100: 12.7551718 | L100: 0.1710612 | M100: 12.5841106 | AC100: 9 | AD100: º | AE100: 2208 | AF100: Álcool etílico <80%; aguardentes, etc. | AG100: 19.3403288 | AH100: 0.0204156611
I101: 3806 | J101: Colofónias e derivados | K101: 13.4131018 | L101: 1.0595828 | M101: 12.353519 | AC101: 10 | AD101: º | AE101: 2106 | AF101: Outras preparações alimentícias | AG101: 18.7888174 | AH101: 0.01983348538 | AI101: 0.4931730652
I102: - | J102: Outros | K102: 236.2558476 | L102: 475.8008646 | M102: -239.545017 | AE102: - | AF102: Outros | AG102: 480.1313814 | AH102: 0.5068269348
I103: 2208 | J103: Álcool etílico <80%; aguardentes, etc. | K103: 2.1612088 | L103: 19.3403288 | M103: -17.17912 | AE103: Total | AG103: 947.3280688 | AH103: 1
I104: 0207 | J104: Carnes e miudezas de aves de capoeira | K104: 0.4690536 | L104: 17.939856 | M104: -17.4708024
I105: 2106 | J105: Outras preparações alimentícias | K105: 0.8022598 | L105: 18.7888174 | M105: -17.9865576
I106: 1518 | J106: Gorduras e óleos, animais ou vegetais, processados de outras formas | K106: 3.8537814 | L106: 30.326477 | M106: -26.4726956
I107: 2403 | J107: Outros produtos de tabaco | K107: 0.0059816 | L107: 29.0413214 | M107: -29.0353398
I108: 0406 | J108: Queijos e requeijão | K108: 0.9863046 | L108: 31.3232372 | M108: -30.3369326
I109: 0303 | J109: Peixes congelados | K109: 0.708439 | L109: 36.6235274 | M109: -35.9150884
I110: 0302 | J110: Peixes frescos ou refrigerados | K110: 1.230803 | L110: 44.4631548 | M110: -43.2323518
I111: 0201 | J111: Carnes de bovino, frescas ou refrigeradas | K111: 8.815592 | L111: 106.2711826 | M111: -97.4555906
I112: 0305 | J112: Peixes secos, salgados ou fumados | K112: 0.907857 | L112: 112.4651666 | M112: -111.5573096
I113: Total | K113: 633.5221196 | L113: 947.3280688 | M113: -313.8059492
A116: Fonte: GPP a partir de dados INE/Comércio Internacional (2022 definitivos) | Y116: 2024-05-10T17:34:55.090

Sheet 3A
A1: Principais produtos agrícolas e agroalimentares transacionados entre Portugal e Países Baixos em 2019-2023 (NC a 2 e 4 dígitos) em milhões de euros
AC4: P | AE4: Cód.NC | AF4: Descritivo | AG4: Média export quinquénio | AH4: % do total | AI4: % acumulada | AN4: P | AO4: NC | AP4: Exportações | AQ4: 2019 | AR4: 2020 | AS4: 2021 | AT4: 2022 | AU4: 2023 | AV4: média quinquénio
AC5: 1 | AD5: º | AE5: 08 | AF5: Frutas | AG5: 83.0372046 | AH5: 0.2252146257 | AN5: 1º | AO5: 08 | AP5: Frutas | AQ5: 70.449207 | AR5: 87.559308 | AS5: 83.610091 | AT5: 82.593054 | AU5: 90.974363 | AV5: 83.0372046
AC6: 2 | AD6: º | AE6: 06 | AF6: Plantas vivas e produtos de floricultura | AG6: 60.2029642 | AH6: 0.1632832911 | AN6: 2º | AO6: 06 | AP6: Plantas vivas e produtos de floricultura | AQ6: 47.22246 | AR6: 47.968236 | AS6: 64.169221 | AT6: 72.133703 | AU6: 69.521201 | AV6: 60.2029642
AC7: 3 | AD7: º | AE7: 22 | AF7: Bebidas, líquidos alcoólicos e vinagres | AG7: 55.9934002 | AH7: 0.1518660549 | AI7: 0.5403639717 | AN7: 3º | AO7: 22 | AP7: Bebidas, líquidos alcoólicos e vinagres | AQ7: 49.9336 | AR7: 53.102487 | AS7: 61.271399 | AT7: 54.944401 | AU7: 60.715114 | AV7: 55.9934002
AC8: 4 | AD8: º | AE8: 04 | AF8: Leite e laticínios; ovos; mel, etc. | AG8: 44.7224194 | AH8: 0.1212967488 | AO8: - | AP8: Outros | AQ8: 127.436439 | AR8: 139.593009 | AS8: 181.00123 | AT8: 177.267059 | AU8: 222.047119 | AV8: 169.4689712
AC9: 5 | AD9: º | AE9: 07 | AF9: Produtos hortícolas | AG9: 27.703972 | AH9: 0.07513908633 | AP9: Total | AQ9: 295.041706 | AR9: 328.22304 | AS9: 390.051941 | AT9: 386.938217 | AU9: 443.257797 | AV9: 368.7025402
AC10: 6 | AD10: º | AE10: 20 | AF10: Preparações de produtos vegetais | AG10: 20.3846174 | AH10: 0.05528743412
AC11: 7 | AD11: º | AE11: 19a | AF11: Preparações à base de cereais (exc. NC 19022010) (a) | AG11: 15.7467082 | AH11: 0.04270843426
AC12: 8 | AD12: º | AE12: 21 | AF12: Preparações alimentícias diversas | AG12: 12.6628876 | AH12: 0.03434445446
AC13: 9 | AD13: º | AE13: 15 | AF13: Gorduras e óleos animais ou vegetais | AG13: 11.351307 | AH13: 0.03078716787
AC14: 10 | AD14: º | AE14: 02 | AF14: Carnes e miudezas | AG14: 10.7694634 | AH14: 0.02920908382 | AI14: 0.9291363814
AE15: - | AF15: Outros | AG15: 26.1275962 | AH15: 0.07086361864
AE16: Total | AG16: 368.7025402 | AH16: 1
AC38: P | AE38: Cód.NC | AF38: Descritivo | AG38: Média import quinquénio | AH38: % do total | AI38: % acumulada | AN38: P | AO38: NC | AP38: Importações | AQ38: 2019 | AR38: 2020 | AS38: 2021 | AT38: 2022 | AU38: 2023 | AV38: média quinquénio
AC39: 1 | AD39: º | AE39: 02 | AF39: Carnes e miudezas | AG39: 153.3019004 | AH39: 0.2256130917 | AN39: 1º | AO39: 02 | AP39: Carnes e miudezas | AQ39: 127.092024 | AR39: 113.877246 | AS39: 131.6526 | AT39: 188.568642 | AU39: 205.31899 | AV39: 153.3019004
AC40: 2 | AD40: º | AE40: 06 | AF40: Plantas vivas e produtos de floricultura | AG40: 69.418377 | AH40: 0.1021624299 | AN40: 2º | AO40: 06 | AP40: Plantas vivas e produtos de floricultura | AQ40: 59.374157 | AR40: 53.544528 | AS40: 72.454929 | AT40: 78.326201 | AU40: 83.39207 | AV40: 69.418377
AC41: 3 | AD41: º | AE41: 15 | AF41: Gorduras e óleos animais ou vegetais | AG41: 56.1556498 | AH41: 0.08264378807 | AI41: 0.4104193097 | AN41: 3º | AO41: 15 | AP41: Gorduras e óleos animais ou vegetais | AQ41: 33.208036 | AR41: 50.524711 | AS41: 51.189012 | AT41: 60.843182 | AU41: 85.013308 | AV41: 56.1556498
AC42: 4 | AD42: º | AE42: 04 | AF42: Leite e laticínios; ovos; mel, etc. | AG42: 51.0200312 | AH42: 0.07508574223 | AO42: - | AP42: Outros | AQ42: 324.296737 | AR42: 321.830328 | AS42: 347.919294 | AT42: 480.086515 | AU42: 528.938836 | AV42: 400.614342
AC43: 5 | AD43: º | AE43: 08 | AF43: Frutas | AG43: 39.0242772 | AH43: 0.05743169398 | AP43: Total | AQ43: 543.970954 | AR43: 539.776813 | AS43: 603.215835 | AT43: 807.82454 | AU43: 902.663204 | AV43: 679.4902692
AC44: 6 | AD44: º | AE44: 24 | AF44: Tabaco | AG44: 38.4842942 | AH44: 0.05663700563
AC45: 7 | AD45: º | AE45: 21 | AF45: Preparações alimentícias diversas | AG45: 36.893212 | AH45: 0.0542954236
AC46: 8 | AD46: º | AE46: 07 | AF46: Produtos hortícolas | AG46: 33.8013316 | AH46: 0.04974512974
AC47: 9 | AD47: º | AE47: 22 | AF47: Bebidas, líquidos alcoólicos e vinagres | AG47: 27.514468 | AH47: 0.04049280652
AC48: 10 | AD48: º | AE48: 20 | AF48: Preparações de produtos vegetais | AG48: 26.9597946 | AH48: 0.03967649843 | AI48: 0.7837836098
AE49: - | AF49: Outros | AG49: 146.9169332 | AH49: 0.2162163902
AE50: Total | AG50: 679.4902692 | AH50: 1
AC62: DESAGREGAÇÃO A 4 DÍGITOS | AN62: DESAGREGAÇÃO A 4 DÍGITOS
AC64: P | AE64: Cód.NC | AF64: Descritivo | AG64: Média export quinquénio | AH64: % do total | AI64: % acumulada | AN64: P | AO64: NC | AP64: Exportações | AQ64: 2019 | AR64: 2020 | AS64: 2021 | AT64: 2022 | AU64: 2023 | AV64: média quinquénio
AC65: 1 | AD65: º | AE65: 0810 | AF65: Outras frutas frescas | AG65: 74.7805116 | AH65: 0.2028207117 | AN65: 1º | AO65: 0810 | AP65: Outras frutas frescas | AQ65: 62.964273 | AR65: 79.762652 | AS65: 75.912217 | AT65: 73.974459 | AU65: 81.288957 | AV65: 74.7805116
AC66: 2 | AD66: º | AE66: 2204 | AF66: Vinhos de uvas frescas | AG66: 49.5502116 | AH66: 0.1343907519 | AN66: 2º | AO66: 2204 | AP66: Vinhos de uvas frescas | AQ66: 45.768206 | AR66: 47.708128 | AS66: 51.665054 | AT66: 49.035485 | AU66: 53.574185 | AV66: 49.5502116
AC67: 3 | AD67: º | AE67: 0602 | AF67: Plantas vivas | AG67: 36.7044166 | AH67: 0.09955021351 | AI67: 0.4367616771 | AN67: 3º | AO67: 0602 | AP67: Plantas vivas | AQ67: 30.046195 | AR67: 29.559213 | AS67: 37.879363 | AT67: 44.923142 | AU67: 41.11417 | AV67: 36.7044166
AC68: 4 | AD68: º | AE68: 0402 | AF68: Leite e nata, concentrados | AG68: 24.0761678 | AH68: 0.06529970688 | AN68: - | AO68: - | AP68: Outros | AQ68: 156.263032 | AR68: 171.193047 | AS68: 224.595307 | AT68: 219.005131 | AU68: 267.280485 | AV68: 207.6674004
AC69: 5 | AD69: º | AE69: 2002 | AF69: Tomates preparados | AG69: 16.4152958 | AH69: 0.04452178656 | AP69: Total | AQ69: 295.041706 | AR69: 328.22304 | AS69: 390.051941 | AT69: 386.938217 | AU69: 443.257797 | AV69: 368.7025402
AC70: 6 | AD70: º | AE70: 0405 | AF70: Manteiga | AG70: 15.6913978 | AH70: 0.04255842065
AC71: 7 | AD71: º | AE71: 0604 | AF71: Folhagem, folhas, ramos e outras partes de plantas | AG71: 14.0404076 | AH71: 0.03808058277
AC72: 8 | AD72: º | AE72: 1905 | AF72: Produtos de padaria, pastelaria, etc. | AG72: 9.6890598 | AH72: 0.02627879861
AC73: 9 | AD73: º | AE73: 2103 | AF73: Preparações para molhos e molhos preparados | AG73: 8.8787284 | AH73: 0.02408100686
AC74: 10 | AD74: º | AE74: 0201 | AF74: Carnes de bovino, frescas ou refrigeradas | AG74: 8.815592 | AH74: 0.02390976747 | AI74: 0.7014917469
AE75: - | AF75: Outros | AG75: 110.0607512 | AH75: 0.2985082531
AE76: Total | AG76: 368.7025402 | AH76: 1
AC89: DESAGREGAÇÃO A 4 DÍGITOS | AN89: DESAGREGAÇÃO A 4 DÍGITOS
G91: média 2019-2023 em milhões de euros | I91: Cód. NC | J91: Descritivo | K91: Export | L91: Import | M91: Saldo | AC91: P | AE91: Cód.NC | AF91: Descritivo | AG91: Média import quinquénio | AH91: % do total | AI91: % acumulada | AN91: P | AO91: NC | AP91: Importações | AQ91: 2019 | AR91: 2020 | AS91: 2021 | AT91: 2022 | AU91: 2023 | AV91: média quinquénio
I92: 0810 | J92: Outras frutas frescas | K92: 74.7805116 | L92: 6.3584962 | M92: 68.4220154 | AC92: 1 | AD92: º | AE92: 0201 | AF92: Carnes de bovino, frescas ou refrigeradas | AG92: 106.2711826 | AH92: 0.1563983878 | AN92: 1º | AO92: 0201 | AP92: Carnes de bovino, frescas ou refrigeradas | AQ92: 97.089788 | AR92: 89.032053 | AS92: 93.206152 | AT92: 124.683466 | AU92: 127.344454 | AV92: 106.2711826
I93: 2204 | J93: Vinhos de uvas frescas | K93: 49.5502116 | L93: 0.7328096 | M93: 48.817402 | AC93: 2 | AD93: º | AE93: 0602 | AF93: Plantas vivas | AG93: 38.5534742 | AH93: 0.05673881724 | AN93: 2º | AO93: 0602 | AP93: Plantas vivas | AQ93: 33.538387 | AR93: 29.922436 | AS93: 42.492147 | AT93: 42.508596 | AU93: 44.305805 | AV93: 38.5534742
I94: 2002 | J94: Tomates preparados | K94: 16.4152958 | L94: 0.0611162 | M94: 16.3541796 | AC94: 3 | AD94: º | AE94: 0406 | AF94: Queijos e requeijão | AG94: 31.3232372 | AH94: 0.04609813947 | AI94: 0.2592353445 | AN94: 3º | AO94: 0406 | AP94: Queijos e requeijão | AQ94: 19.589153 | AR94: 24.422634 | AS94: 27.414838 | AT94: 43.064036 | AU94: 42.125525 | AV94: 31.3232372
I95: 0402 | J95: Leite e nata, concentrados | K95: 24.0761678 | L95: 9.6882726 | M95: 14.3878952 | AC95: 4 | AD95: º | AE95: 1518 | AF95: Gorduras e óleos, animais ou vegetais, processados de outras formas | AG95: 30.326477 | AH95: 0.04463121604 | AN95: - | AO95: - | AP95: Outros | AQ95: 393.753626 | AR95: 396.39969 | AS95: 440.102698 | AT95: 597.568442 | AU95: 688.88742 | AV95: 503.3423752
I96: 0405 | J96: Manteiga | K96: 15.6913978 | L96: 1.5070634 | M96: 14.1843344 | AC96: 5 | AD96: º | AE96: 2403 | AF96: Outros produtos de tabaco | AG96: 29.0413214 | AH96: 0.04273986357 | AP96: Total | AQ96: 543.970954 | AR96: 539.776813 | AS96: 603.215835 | AT96: 807.82454 | AU96: 902.663204 | AV96: 679.4902692
I97: 0604 | J97: Folhagem, folhas, ramos e outras partes de plantas | K97: 14.0404076 | L97: 2.2059938 | M97: 11.8344138 | AC97: 6 | AD97: º | AE97: 2208 | AF97: Álcool etílico <80%; aguardentes, etc. | AG97: 19.3403288 | AH97: 0.02846299598
I98: 2103 | J98: Preparações para molhos e molhos preparados | K98: 8.8787284 | L98: 4.0668632 | M98: 4.8118652 | AC98: 7 | AD98: º | AE98: 2106 | AF98: Outras preparações alimentícias | AG98: 18.7888174 | AH98: 0.02765134138
I99: 0704 | J99: Couves, frescas ou refrigeradas | K99: 5.0449232 | L99: 0.7215904 | M99: 4.3233328 | AC99: 8 | AD99: º | AE99: 0603 | AF99: Flores e seus botões | AG99: 18.2843212 | AH99: 0.02690887865
I100: 0714 | J100: Raízes de mandioca, de araruta, batata-doce, etc. | K100: 3.8513538 | L100: 0.3390196 | M100: 3.5123342 | AC100: 9 | AD100: º | AE100: 0207 | AF100: Carnes e miudezas de aves de capoeira | AG100: 17.939856 | AH100: 0.02640193217
I101: 0702 | J101: Tomates, frescos ou refrigerados | K101: 7.2479864 | L101: 4.3009666 | M101: 2.9470198 | AC101: 10 | AD101: º | AE101: 0202 | AF101: Carnes de bovino, congeladas | AG101: 17.089304 | AH101: 0.02515018209 | AI101: 0.4811817544
I102: - | J102: Outros | K102: 128.4769692 | L102: 349.3344856 | M102: -220.8575164 | AE102: - | AF102: Outros | AG102: 352.5319494 | AH102: 0.5188182456
I103: 0701 | J103: Batatas, frescas ou refrigeradas | K103: 1.7018308 | L103: 14.9701312 | M103: -13.2683004 | AE103: Total | AG103: 679.4902692 | AH103: 1
I104: 0504 | J104: Tripas de animais (excepto peixes) | K104: 1.131018 | L104: 15.0829364 | M104: -13.9519184
I105: 0202 | J105: Carnes de bovino, congeladas | K105: 0.7215564 | L105: 17.089304 | M105: -16.3677476
I106: 2208 | J106: Álcool etílico <80%; aguardentes, etc. | K106: 2.1612088 | L106: 19.3403288 | M106: -17.17912
I107: 0207 | J107: Carnes e miudezas de aves de capoeira | K107: 0.4690536 | L107: 17.939856 | M107: -17.4708024
I108: 2106 | J108: Outras preparações alimentícias | K108: 0.8022598 | L108: 18.7888174 | M108: -17.9865576
I109: 1518 | J109: Gorduras e óleos, animais ou vegetais, processados de outras formas | K109: 3.8537814 | L109: 30.326477 | M109: -26.4726956
I110: 2403 | J110: Outros produtos de tabaco | K110: 0.0059816 | L110: 29.0413214 | M110: -29.0353398
I111: 0406 | J111: Queijos e requeijão | K111: 0.9863046 | L111: 31.3232372 | M111: -30.3369326
I112: 0201 | J112: Carnes de bovino, frescas ou refrigeradas | K112: 8.815592 | L112: 106.2711826 | M112: -97.4555906
I113: Total | K113: 368.7025402 | L113: 679.4902692 | M113: -310.787729
A116: Fonte: GPP a partir de dados INE/Comércio Internacional (2022 definitivos) | Y116: 2024-05-10T17:34:55.090

Sheet 4A
A1: Evolução da balança comercial Portugal-Países Baixos 2019-2023 por produto em euros (NC 2 dígitos)
A3: =+aux!A31 -> Evolução da balança comercial Portugal-Países Baixos para Frutas
A5: Selecione o produto:
Q7: Para obter uma maior desagregação deste produto, clique no botão respetivo:
A20: =+aux!A43 -> Evolução da balança comercial Portugal-Países Baixos para Peixes e crustáceos
A22: Selecione o produto:
A38: Fonte: GPP a partir de dados INE/Comércio Internacional (2022 definitivos) | N38: 2024-05-10T17:34:55.090

Sheet 5.2
A1: Trocas comerciais Portugal-Países Baixos 2019-2023 em milhares de euros (NC 2 dígitos) | C1: Produtos agrícolas e agroalimentares, do mar e da floresta
A2: Cód. NC | B2: Descritivo | C2: Importações | K2: Exportações | S2: Saldo quinquénio (exp-imp) | T2: Evolução das importações | U2: =+"Variação das Importações " & INDEX(K3:N3,1,aux!AL1) & "-"& '5.2'!O3 &"" -> Variação das Importações 2019-2023 | Z2: Evolução das exportações | AA2: ="Variação das Exportações " & INDEX(K3:N3,1,aux!AL1) & "-"& '5.2'!O3 &"" -> Variação das Exportações 2019-2023
C3: 2019 | D3: 2020 | E3: 2021 | F3: 2022 | G3: 2023 | H3: média quinquénio | I3: % Subtot | J3: % Total | K3: 2019 | L3: 2020 | M3: 2021 | N3: 2022 | O3: 2023 | P3: média quinquénio | Q3: % Subtot | R3: % Total | U3: variação total em valor | V3: % no subtotal de variação | W3: % no total de variação | X3: taxa de variação média anual | Y3: taxa de variação total | AA3: variação total em valor | AB3: % no subtotal de variação | AC3: % no total de variação | AD3: taxa de variação média anual | AE3: taxa de variação total
A4: 01 | B4: Animais vivos | C4: 1565.498 | D4: 2882.463 | E4: 2824.972 | F4: 3552.126 | G4: 1010.197 | H4: 2367.0512 | I4: 0.003483568945 | J4: 0.002498660472 | K4: 645.689 | L4: 422.777 | M4: 232.435 | N4: 334.861 | O4: 1830.794 | P4: 693.3112 | Q4: 0.001880407983 | R4: 0.001094375679 | S4: -1673.74 | U4: =G4-INDEX($C4:$G4,1,aux!$AL$1) -> -555.301 | V4: =IF($U$37<>0,U4/$U$37, "n.d.") -> -0.001548126563 | W4: =IF($U$53<>0,U4/$U$53, "n.d.") -> -0.00107934124 | X4: =+IF(INDEX($C4:$G4,1,aux!$AL$1)>0,(G4/INDEX($C4:$G4,1,aux!$AL$1))^(1/($G$3-INDEX($C$3:$G$3,1,aux!$AL$1)))-1,"n.d.") -> -0.1037309712 | Y4: =IF(INDEX($C4:$G4,1,aux!$AL$1)>0,(G4-INDEX($C4:$G4,1,aux!$AL$1))/INDEX($C4:$G4,1,aux!$AL$1),"n.d.") -> -0.3547120469 | AA4: =O4-INDEX($K4:$O4,1,aux!$AL$1) -> 1185.105 | AB4: =IF($AA$37<>0,AA4/$AA$37, "n.d.") -> 0.007995791766 | AC4: =IF($AA$53<>0,AA4/$AA$53, "n.d.") -> 0.005967951616 | AD4: =+IF(INDEX($K4:$O4,1,aux!$AL$1)>0,(O4/INDEX($K4:$O4,1,aux!$AL$1))^(1/($O$3-INDEX($K$3:$O$3,1,aux!$AL$1)))-1,"n.d.") -> 0.2976393991 | AE4: =IF(INDEX($K4:$O4,1,aux!$AL$1)>0,(O4-INDEX($K4:$O4,1,aux!$AL$1))/INDEX($K4:$O4,1,aux!$AL$1),"n.d.") -> 1.835411475
A5: 02 | B5: Carnes e miudezas | C5: 127092.024 | D5: 113877.246 | E5: 131652.6 | F5: 188568.642 | G5: 205318.99 | H5: 153301.9004 | I5: 0.2256130917 | J5: 0.1618255654 | K5: 10552.069 | L5: 6164.646 | M5: 7503.774 | N5: 13517.532 | O5: 16109.296 | P5: 10769.4634 | Q5: 0.02920908382 | R5: 0.01699934867 | S5: -142532.437 | U5: =G5-INDEX($C5:$G5,1,aux!$AL$1) -> 78226.966 | V5: 0.2180893677 | W5: 0.1520501323 | X5: =+IF(INDEX($C5:$G5,1,aux!$AL$1)>0,(G5/INDEX($C5:$G5,1,aux!$AL$1))^(1/($G$3-INDEX($C$3:$G$3,1,aux!$AL$1)))-1,"n.d.") -> 0.1273991571 | Y5: =IF(INDEX($C5:$G5,1,aux!$AL$1)>0,(G5-INDEX($C5:$G5,1,aux!$AL$1))/INDEX($C5:$G5,1,aux!$AL$1),"n.d.") -> 0.6155143615 | AA5: =O5-INDEX($K5:$O5,1,aux!$AL$1) -> 5557.227 | AB5: 0.03749408693 | AC5: 0.02798508305 | AD5: =+IF(INDEX($K5:$O5,1,aux!$AL$1)>0,(O5/INDEX($K5:$O5,1,aux!$AL$1))^(1/($O$3-INDEX($K$3:$O$3,1,aux!$AL$1)))-1,"n.d.") -> 0.1115646702 | AE5: =IF(INDEX($K5:$O5,1,aux!$AL$1)>0,(O5-INDEX($K5:$O5,1,aux!$AL$1))/INDEX($K5:$O5,1,aux!$AL$1),"n.d.") -> 0.5266480915
A6: 04 | B6: Leite e laticínios; ovos; mel, etc. | C6: 28990.674 | D6: 35893.729 | E6: 45400.553 | F6: 75794.658 | G6: 69020.542 | H6: 51020.0312 | I6: 0.07508574223 | J6: 0.05385677136 | K6: 38425.33 | L6: 38317.836 | M6: 55989.222 | N6: 34551.738 | O6: 56327.971 | P6: 44722.4194 | Q6: 0.1212967488 | R6: 0.07059330372 | S6: -6297.6118 | U6: =G6-INDEX($C6:$G6,1,aux!$AL$1) -> 40029.868 | V6: 0.1115994784 | W6: 0.07780624811 | X6: =+IF(INDEX($C6:$G6,1,aux!$AL$1)>0,(G6/INDEX($C6:$G6,1,aux!$AL$1))^(1/($G$3-INDEX($C$3:$G$3,1,aux!$AL$1)))-1,"n.d.") -> 0.242167074 | Y6: =IF(INDEX($C6:$G6,1,aux!$AL$1)>0,(G6-INDEX($C6:$G6,1,aux!$AL$1))/INDEX($C6:$G6,1,aux!$AL$1),"n.d.") -> 1.380784317 | AA6: =O6-INDEX($K6:$O6,1,aux!$AL$1) -> 17902.641 | AB6: 0.1207874319 | AC6: 0.09015411738 | AD6: =+IF(INDEX($K6:$O6,1,aux!$AL$1)>0,(O6/INDEX($K6:$O6,1,aux!$AL$1))^(1/($O$3-INDEX($K$3:$O$3,1,aux!$AL$1)))-1,"n.d.") -> 0.1003393021 | AE6: =IF(INDEX($K6:$O6,1,aux!$AL$1)>0,(O6-INDEX($K6:$O6,1,aux!$AL$1))/INDEX($K6:$O6,1,aux!$AL$1),"n.d.") -> 0.4659072804
A7: 05a | B7: Outros produtos de origem animal (exc. NC 0508, 051191) (a) | C7: 19724.087 | D7: 20394.139 | E7: 20246.567 | F7: 6997.276 | G7: 12218.332 | H7: 15916.0802 | I7: 0.02342355869 | J7: 0.0168010225 | K7: 1015.561 | L7: 1860.474 | M7: 940.165 | N7: 1401.394 | O7: 850.322 | P7: 1213.5832 | Q7: 0.003291496715 | R7: 0.001915612987 | S7: -14702.497 | U7: =G7-INDEX($C7:$G7,1,aux!$AL$1) -> -7505.755 | V7: -0.02092533363 | W7: -0.01458897231 | X7: =+IF(INDEX($C7:$G7,1,aux!$AL$1)>0,(G7/INDEX($C7:$G7,1,aux!$AL$1))^(1/($G$3-INDEX($C$3:$G$3,1,aux!$AL$1)))-1,"n.d.") -> -0.1128363213 | Y7: =IF(INDEX($C7:$G7,1,aux!$AL$1)>0,(G7-INDEX($C7:$G7,1,aux!$AL$1))/INDEX($C7:$G7,1,aux!$AL$1),"n.d.") -> -0.3805375123 | AA7: =O7-INDEX($K7:$O7,1,aux!$AL$1) -> -165.239 | AB7: -0.001114851963 | AC7: -0.0008321105362 | AD7: =+IF(INDEX($K7:$O7,1,aux!$AL$1)>0,(O7/INDEX($K7:$O7,1,aux!$AL$1))^(1/($O$3-INDEX($K$3:$O$3,1,aux!$AL$1)))-1,"n.d.") -> -0.04342428679 | AE7: =IF(INDEX($K7:$O7,1,aux!$AL$1)>0,(O7-INDEX($K7:$O7,1,aux!$AL$1))/INDEX($K7:$O7,1,aux!$AL$1),"n.d.") -> -0.1627071146
A8: 06 | B8: Plantas vivas e produtos de floricultura | C8: 59374.157 | D8: 53544.528 | E8: 72454.929 | F8: 78326.201 | G8: 83392.07 | H8: 69418.377 | I8: 0.1021624299 | J8: 0.07327807471 | K8: 47222.46 | L8: 47968.236 | M8: 64169.221 | N8: 72133.703 | O8: 69521.201 | P8: 60202.9642 | Q8: 0.1632832911 | R8: 0.09502898531 | S8: -9215.4128 | U8: =G8-INDEX($C8:$G8,1,aux!$AL$1) -> 24017.913 | V8: 0.06695966528 | W8: 0.0466837337 | X8: =+IF(INDEX($C8:$G8,1,aux!$AL$1)>0,(G8/INDEX($C8:$G8,1,aux!$AL$1))^(1/($G$3-INDEX($C$3:$G$3,1,aux!$AL$1)))-1,"n.d.") -> 0.08863382564 | Y8: =IF(INDEX($C8:$G8,1,aux!$AL$1)>0,(G8-INDEX($C8:$G8,1,aux!$AL$1))/INDEX($C8:$G8,1,aux!$AL$1),"n.d.") -> 0.4045179623 | AA8: =O8-INDEX($K8:$O8,1,aux!$AL$1) -> 22298.741 | AB8: 0.1504475044 | AC8: 0.1122919972 | AD8: =+IF(INDEX($K8:$O8,1,aux!$AL$1)>0,(O8/INDEX($K8:$O8,1,aux!$AL$1))^(1/($O$3-INDEX($K$3:$O$3,1,aux!$AL$1)))-1,"n.d.") -> 0.1015194363 | AE8: =IF(INDEX($K8:$O8,1,aux!$AL$1)>0,(O8-INDEX($K8:$O8,1,aux!$AL$1))/INDEX($K8:$O8,1,aux!$AL$1),"n.d.") -> 0.4722062552
A9: 07 | B9: Produtos hortícolas | C9: 29946.2 | D9: 22608.01 | E9: 27165.025 | F9: 34621.355 | G9: 54666.068 | H9: 33801.3316 | I9: 0.04974512974 | J9: 0.03568070314 | K9: 23804.006 | L9: 26998.025 | M9: 30109.095 | N9: 24454.532 | O9: 33154.202 | P9: 27703.972 | Q9: 0.07513908633 | R9: 0.04373007847 | S9: -6097.3596 | U9: =G9-INDEX($C9:$G9,1,aux!$AL$1) -> 24719.868 | V9: 0.0689166493 | W9: 0.04804812703 | X9: =+IF(INDEX($C9:$G9,1,aux!$AL$1)>0,(G9/INDEX($C9:$G9,1,aux!$AL$1))^(1/($G$3-INDEX($C$3:$G$3,1,aux!$AL$1)))-1,"n.d.") -> 0.1623690272 | Y9: =IF(INDEX($C9:$G9,1,aux!$AL$1)>0,(G9-INDEX($C9:$G9,1,aux!$AL$1))/INDEX($C9:$G9,1,aux!$AL$1),"n.d.") -> 0.8254759535 | AA9: =O9-INDEX($K9:$O9,1,aux!$AL$1) -> 9350.196 | AB9: 0.06308489137 | AC9: 0.04708571589 | AD9: =+IF(INDEX($K9:$O9,1,aux!$AL$1)>0,(O9/INDEX($K9:$O9,1,aux!$AL$1))^(1/($O$3-INDEX($K$3:$O$3,1,aux!$AL$1)))-1,"n.d.") -> 0.0863559117 | AE9: =IF(INDEX($K9:$O9,1,aux!$AL$1)>0,(O9-INDEX($K9:$O9,1,aux!$AL$1))/INDEX($K9:$O9,1,aux!$AL$1),"n.d.") -> 0.3927992624
A10: 08 | B10: Frutas | C10: 28403.66 | D10: 33420.483 | E10: 41218.021 | F10: 42088.473 | G10: 49990.749 | H10: 39024.2772 | I10: 0.05743169398 | J10: 0.04119404722 | K10: 70449.207 | L10: 87559.308 | M10: 83610.091 | N10: 82593.054 | O10: 90974.363 | P10: 83037.2046 | Q10: 0.2252146257 | R10: 0.1310723052 | S10: 44012.9274 | U10: =G10-INDEX($C10:$G10,1,aux!$AL$1) -> 21587.089 | V10: 0.06018275834 | W10: 0.04195892933 | X10: =+IF(INDEX($C10:$G10,1,aux!$AL$1)>0,(G10/INDEX($C10:$G10,1,aux!$AL$1))^(1/($G$3-INDEX($C$3:$G$3,1,aux!$AL$1)))-1,"n.d.") -> 0.1518046688 | Y10: =IF(INDEX($C10:$G10,1,aux!$AL$1)>0,(G10-INDEX($C10:$G10,1,aux!$AL$1))/INDEX($C10:$G10,1,aux!$AL$1),"n.d.") -> 0.7600108225 | AA10: =O10-INDEX($K10:$O10,1,aux!$AL$1) -> 20525.156 | AB10: 0.1384812935 | AC10: 0.1033605781 | AD10: =+IF(INDEX($K10:$O10,1,aux!$AL$1)>0,(O10/INDEX($K10:$O10,1,aux!$AL$1))^(1/($O$3-INDEX($K$3:$O$3,1,aux!$AL$1)))-1,"n.d.") -> 0.06600864969 | AE10: =IF(INDEX($K10:$O10,1,aux!$AL$1)>0,(O10-INDEX($K10:$O10,1,aux!$AL$1))/INDEX($K10:$O10,1,aux!$AL$1),"n.d.") -> 0.2913468707
A11: 09 | B11: Café, chá, mate e especiarias | C11: 8118.624 | D11: 12269.074 | E11: 12007.806 | F11: 10860.659 | G11: 11228.33 | H11: 10896.8986 | I11: 0.01603687219 | J11: 0.01150277181 | K11: 1236.612 | L11: 3159.199 | M11: 4725.984 | N11: 5981.754 | O11: 3814.261 | P11: 3783.562 | Q11: 0.01026182786 | R11: 0.005972265029 | S11: -7113.3366 | U11: =G11-INDEX($C11:$G11,1,aux!$AL$1) -> 3109.706 | V11: 0.008669565623 | W11: 0.006044350598 | X11: =+IF(INDEX($C11:$G11,1,aux!$AL$1)>0,(G11/INDEX($C11:$G11,1,aux!$AL$1))^(1/($G$3-INDEX($C$3:$G$3,1,aux!$AL$1)))-1,"n.d.") -> 0.08444663362 | Y11: =IF(INDEX($C11:$G11,1,aux!$AL$1)>0,(G11-INDEX($C11:$G11,1,aux!$AL$1))/INDEX($C11:$G11,1,aux!$AL$1),"n.d.") -> 0.3830336274 | AA11: =O11-INDEX($K11:$O11,1,aux!$AL$1) -> 2577.649 | AB11: 0.01739115492 | AC11: 0.01298052452 | AD11: =+IF(INDEX($K11:$O11,1,aux!$AL$1)>0,(O11/INDEX($K11:$O11,1,aux!$AL$1))^(1/($O$3-INDEX($K$3:$O$3,1,aux!$AL$1)))-1,"n.d.") -> 0.3252390903 | AE11: =IF(INDEX($K11:$O11,1,aux!$AL$1)>0,(O11-INDEX($K11:$O11,1,aux!$AL$1))/INDEX($K11:$O11,1,aux!$AL$1),"n.d.") -> 2.084444434
A12: 10 | B12: Cereais | C12: 1961.927 | D12: 1241.105 | E12: 1272.237 | F12: 1225.015 | G12: 1596.02 | H12: 1459.2608 | I12: 0.002147581601 | J12: 0.001540396456 | K12: 2086.795 | L12: 3185.363 | M12: 2734.774 | N12: 3212.882 | O12: 4365.048 | P12: 3116.9724 | Q12: 0.008453894563 | R12: 0.004920068777 | S12: 1657.7116 | U12: =G12-INDEX($C12:$G12,1,aux!$AL$1) -> -365.907 | V12: -0.001020114039 | W12: -0.0007112152063 | X12: =+IF(INDEX($C12:$G12,1,aux!$AL$1)>0,(G12/INDEX($C12:$G12,1,aux!$AL$1))^(1/($G$3-INDEX($C$3:$G$3,1,aux!$AL$1)))-1,"n.d.") -> -0.05029467889 | Y12: =IF(INDEX($C12:$G12,1,aux!$AL$1)>0,(G12-INDEX($C12:$G12,1,aux!$AL$1))/INDEX($C12:$G12,1,aux!$AL$1),"n.d.") -> -0.1865038811 | AA12: =O12-INDEX($K12:$O12,1,aux!$AL$1) -> 2278.253 | AB12: 0.01537115832 | AC12: 0.01147282618 | AD12: =+IF(INDEX($K12:$O12,1,aux!$AL$1)>0,(O12/INDEX($K12:$O12,1,aux!$AL$1))^(1/($O$3-INDEX($K$3:$O$3,1,aux!$AL$1)))-1,"n.d.") -> 0.202616918 | AE12: =IF(INDEX($K12:$O12,1,aux!$AL$1)>0,(O12-INDEX($K12:$O12,1,aux!$AL$1))/INDEX($K12:$O12,1,aux!$AL$1),"n.d.") -> 1.091747393
A13: 11 | B13: Produtos da indústria de moagem e outros | C13: 4227.574 | D13: 4983.536 | E13: 4217.208 | F13: 9456.406 | G13: 11767.723 | H13: 6930.4894 | I13: 0.01019954179 | J13: 0.0073158282 | K13: 703.403 | L13: 1276.112 | M13: 1118.87 | N13: 1200.617 | O13: 1603.469 | P13: 1180.4942 | Q13: 0.003201752283 | R13: 0.001863382767 | S13: -5749.9952 | U13: =G13-INDEX($C13:$G13,1,aux!$AL$1) -> 7540.149 | V13: 0.02102122084 | W13: 0.01465582409 | X13: =+IF(INDEX($C13:$G13,1,aux!$AL$1)>0,(G13/INDEX($C13:$G13,1,aux!$AL$1))^(1/($G$3-INDEX($C$3:$G$3,1,aux!$AL$1)))-1,"n.d.") -> 0.2916662281 | Y13: =IF(INDEX($C13:$G13,1,aux!$AL$1)>0,(G13-INDEX($C13:$G13,1,aux!$AL$1))/INDEX($C13:$G13,1,aux!$AL$1),"n.d.") -> 1.783564049 | AA13: =O13-INDEX($K13:$O13,1,aux!$AL$1) -> 900.066 | AB13: 0.006072660491 | AC13: 0.004532552254 | AD13: =+IF(INDEX($K13:$O13,1,aux!$AL$1)>0,(O13/INDEX($K13:$O13,1,aux!$AL$1))^(1/($O$3-INDEX($K$3:$O$3,1,aux!$AL$1)))-1,"n.d.") -> 0.2287515763 | AE13: =IF(INDEX($K13:$O13,1,aux!$AL$1)>0,(O13-INDEX($K13:$O13,1,aux!$AL$1))/INDEX($K13:$O13,1,aux!$AL$1),"n.d.") -> 1.279587946
A14: 12 | B14: Sementes e frutos oleaginosos | C14: 8218.111 | D14: 14370.559 | E14: 8667.886 | F14: 21166.297 | G14: 20953.053 | H14: 14675.1812 | I14: 0.02159733828 | J14: 0.01549112887 | K14: 1093.389 | L14: 1101.114 | M14: 815.037 | N14: 1002.609 | O14: 1298.503 | P14: 1062.1304 | Q14: 0.002880724389 | R14: 0.001676548248 | S14: -13613.0508 | U14: =G14-INDEX($C14:$G14,1,aux!$AL$1) -> 12734.942 | V14: 0.03550381141 | W14: 0.02475296838 | X14: =+IF(INDEX($C14:$G14,1,aux!$AL$1)>0,(G14/INDEX($C14:$G14,1,aux!$AL$1))^(1/($G$3-INDEX($C$3:$G$3,1,aux!$AL$1)))-1,"n.d.") -> 0.263626797 | Y14: =IF(INDEX($C14:$G14,1,aux!$AL$1)>0,(G14-INDEX($C14:$G14,1,aux!$AL$1))/INDEX($C14:$G14,1,aux!$AL$1),"n.d.") -> 1.549619128 | AA14: =O14-INDEX($K14:$O14,1,aux!$AL$1) -> 205.114 | AB14: 0.001383884831 | AC14: 0.001032913056 | AD14: =+IF(INDEX($K14:$O14,1,aux!$AL$1)>0,(O14/INDEX($K14:$O14,1,aux!$AL$1))^(1/($O$3-INDEX($K$3:$O$3,1,aux!$AL$1)))-1,"n.d.") -> 0.04391963012 | AE14: =IF(INDEX($K14:$O14,1,aux!$AL$1)>0,(O14-INDEX($K14:$O14,1,aux!$AL$1))/INDEX($K14:$O14,1,aux!$AL$1),"n.d.") -> 0.187594717
A15: 13a | B15: Sucos e extratos vegetais (exc. NC 1301) (a) | C15: 724.768 | D15: 646.43 | E15: 399.507 | F15: 2022.218 | G15: 1500.786 | H15: 1058.7418 | I15: 0.001558141224 | J15: 0.001117608392 | K15: 1.607 | L15: 0 | M15: 0 | N15: 0 | O15: 0 | P15: 0.3214 | Q15: 8.717054128e-07 | R15: 5.073224597e-07 | S15: -1058.4204 | U15: =G15-INDEX($C15:$G15,1,aux!$AL$1) -> 776.018 | V15: 0.002163464641 | W15: 0.001508349941 | X15: =+IF(INDEX($C15:$G15,1,aux!$AL$1)>0,(G15/INDEX($C15:$G15,1,aux!$AL$1))^(1/($G$3-INDEX($C$3:$G$3,1,aux!$AL$1)))-1,"n.d.") -> 0.1995819985 | Y15: =IF(INDEX($C15:$G15,1,aux!$AL$1)>0,(G15-INDEX($C15:$G15,1,aux!$AL$1))/INDEX($C15:$G15,1,aux!$AL$1),"n.d.") -> 1.070712283 | AA15: =O15-INDEX($K15:$O15,1,aux!$AL$1) -> -1.607 | AB15: -1.084227758e-05 | AC15: -8.092530406e-06 | AD15: =+IF(INDEX($K15:$O15,1,aux!$AL$1)>0,(O15/INDEX($K15:$O15,1,aux!$AL$1))^(1/($O$3-INDEX($K$3:$O$3,1,aux!$AL$1)))-1,"n.d.") -> -1 | AE15: =IF(INDEX($K15:$O15,1,aux!$AL$1)>0,(O15-INDEX($K15:$O15,1,aux!$AL$1))/INDEX($K15:$O15,1,aux!$AL$1),"n.d.") -> -1
A16: 14 | B16: Matérias para entrançar e outros | C16: 339.709 | D16: 513.394 | E16: 462.121 | F16: 917.867 | G16: 585.148 | H16: 563.6478 | I16: 0.0008295156319 | J16: 0.0005949869096 | K16: 0 | L16: 212.527 | M16: 357.288 | N16: 414.469 | O16: 142.419 | P16: 225.3406 | Q16: 0.0006111718131 | R16: 0.0003556949206 | S16: -338.3072 | U16: =G16-INDEX($C16:$G16,1,aux!$AL$1) -> 245.439 | V16: 0.0006842606719 | W16: 0.0004770609718 | X16: =+IF(INDEX($C16:$G16,1,aux!$AL$1)>0,(G16/INDEX($C16:$G16,1,aux!$AL$1))^(1/($G$3-INDEX($C$3:$G$3,1,aux!$AL$1)))-1,"n.d.") -> 0.1456175762 | Y16: =IF(INDEX($C16:$G16,1,aux!$AL$1)>0,(G16-INDEX($C16:$G16,1,aux!$AL$1))/INDEX($C16:$G16,1,aux!$AL$1),"n.d.") -> 0.7224977849 | AA16: =O16-INDEX($K16:$O16,1,aux!$AL$1) -> 142.419 | AB16: 0.0009608875733 | AC16: 0.000717193583 | AD16: =+IF(INDEX($K16:$O16,1,aux!$AL$1)>0,(O16/INDEX($K16:$O16,1,aux!$AL$1))^(1/($O$3-INDEX($K$3:$O$3,1,aux!$AL$1)))-1,"n.d.") -> n.d. | AE16: =IF(INDEX($K16:$O16,1,aux!$AL$1)>0,(O16-INDEX($K16:$O16,1,aux!$AL$1))/INDEX($K16:$O16,1,aux!$AL$1),"n.d.") -> n.d.
A17: 15 | B17: Gorduras e óleos animais ou vegetais | C17: 33208.036 | D17: 50524.711 | E17: 51189.012 | F17: 60843.182 | G17: 85013.308 | H17: 56155.6498 | I17: 0.08264378807 | J17: 0.05927793301 | K17: 2703.141 | L17: 5368.638 | M17: 8869.193 | N17: 17049.558 | O17: 22766.005 | P17: 11351.307 | Q17: 0.03078716787 | R17: 0.01791777532 | S17: -44804.3428 | U17: =G17-INDEX($C17:$G17,1,aux!$AL$1) -> 51805.272 | V17: 0.1444281888 | W17: 0.1006941578 | X17: =+IF(INDEX($C17:$G17,1,aux!$AL$1)>0,(G17/INDEX($C17:$G17,1,aux!$AL$1))^(1/($G$3-INDEX($C$3:$G$3,1,aux!$AL$1)))-1,"n.d.") -> 0.2649138012 | Y17: =IF(INDEX($C17:$G17,1,aux!$AL$1)>0,(G17-INDEX($C17:$G17,1,aux!$AL$1))/INDEX($C17:$G17,1,aux!$AL$1),"n.d.") -> 1.560022158 | AA17: =O17-INDEX($K17:$O17,1,aux!$AL$1) -> 20062.864 | AB17: 0.1353622529 | AC17: 0.1010325681 | AD17: =+IF(INDEX($K17:$O17,1,aux!$AL$1)>0,(O17/INDEX($K17:$O17,1,aux!$AL$1))^(1/($O$3-INDEX($K$3:$O$3,1,aux!$AL$1)))-1,"n.d.") -> 0.7035486151 | AE17: =IF(INDEX($K17:$O17,1,aux!$AL$1)>0,(O17-INDEX($K17:$O17,1,aux!$AL$1))/INDEX($K17:$O17,1,aux!$AL$1),"n.d.") -> 7.422056045
A18: 16a | B18: Preparações de carnes (exc. NC 1604-05) (a) | C18: 1873.73 | D18: 1890.23 | E18: 6257.582 | F18: 7698.868 | G18: 8866.254 | H18: 5317.3328 | I18: 0.007825473066 | J18: 0.005612979257 | K18: 239.084 | L18: 528.716 | M18: 356.467 | N18: 350.804 | O18: 446.117 | P18: 384.2376 | Q18: 0.001042134399 | R18: 0.0006065101567 | S18: -4933.0952 | U18: =G18-INDEX($C18:$G18,1,aux!$AL$1) -> 6992.524 | V18: 0.01949449424 | W18: 0.01359140273 | X18: =+IF(INDEX($C18:$G18,1,aux!$AL$1)>0,(G18/INDEX($C18:$G18,1,aux!$AL$1))^(1/($G$3-INDEX($C$3:$G$3,1,aux!$AL$1)))-1,"n.d.") -> 0.4748854445 | Y18: =IF(INDEX($C18:$G18,1,aux!$AL$1)>0,(G18-INDEX($C18:$G18,1,aux!$AL$1))/INDEX($C18:$G18,1,aux!$AL$1),"n.d.") -> 3.731873856 | AA18: =O18-INDEX($K18:$O18,1,aux!$AL$1) -> 207.033 | AB18: 0.001396832143 | AC18: 0.001042576756 | AD18: =+IF(INDEX($K18:$O18,1,aux!$AL$1)>0,(O18/INDEX($K18:$O18,1,aux!$AL$1))^(1/($O$3-INDEX($K$3:$O$3,1,aux!$AL$1)))-1,"n.d.") -> 0.1687579149 | AE18: =IF(INDEX($K18:$O18,1,aux!$AL$1)>0,(O18-INDEX($K18:$O18,1,aux!$AL$1))/INDEX($K18:$O18,1,aux!$AL$1),"n.d.") -> 0.8659425139
A19: 17 | B19: Açúcares e produtos de confeitaria | C19: 5834.269 | D19: 4545.81 | E19: 6152.615 | F19: 9045.307 | G19: 14557.431 | H19: 8027.0864 | I19: 0.01181339419 | J19: 0.008473396561 | K19: 56.408 | L19: 27.496 | M19: 963.247 | N19: 799.521 | O19: 2907.431 | P19: 950.8206 | Q19: 0.002578828449 | R19: 0.001500848306 | S19: -7076.2658 | U19: =G19-INDEX($C19:$G19,1,aux!$AL$1) -> 8723.162 | V19: 0.02431934897 | W19: 0.01695525218 | X19: =+IF(INDEX($C19:$G19,1,aux!$AL$1)>0,(G19/INDEX($C19:$G19,1,aux!$AL$1))^(1/($G$3-INDEX($C$3:$G$3,1,aux!$AL$1)))-1,"n.d.") -> 0.256824311 | Y19: =IF(INDEX($C19:$G19,1,aux!$AL$1)>0,(G19-INDEX($C19:$G19,1,aux!$AL$1))/INDEX($C19:$G19,1,aux!$AL$1),"n.d.") -> 1.495159376 | AA19: =O19-INDEX($K19:$O19,1,aux!$AL$1) -> 2851.023 | AB19: 0.01923558354 | AC19: 0.01435718128 | AD19: =+IF(INDEX($K19:$O19,1,aux!$AL$1)>0,(O19/INDEX($K19:$O19,1,aux!$AL$1))^(1/($O$3-INDEX($K$3:$O$3,1,aux!$AL$1)))-1,"n.d.") -> 1.679428539 | AE19: =IF(INDEX($K19:$O19,1,aux!$AL$1)>0,(O19-INDEX($K19:$O19,1,aux!$AL$1))/INDEX($K19:$O19,1,aux!$AL$1),"n.d.") -> 50.54288399
A20: 18 | B20: Cacau e suas preparações | C20: 15985.089 | D20: 14635.936 | E20: 14149.243 | F20: 15905.892 | G20: 19741.124 | H20: 16083.4568 | I20: 0.0236698854 | J20: 0.01697770533 | K20: 1011.39 | L20: 104.924 | M20: 736.042 | N20: 718.526 | O20: 433.481 | P20: 600.8726 | Q20: 0.001629694766 | R20: 0.0009484634891 | S20: -15482.5842 | U20: =G20-INDEX($C20:$G20,1,aux!$AL$1) -> 3756.035 | V20: 0.01047146962 | W20: 0.007300623402 | X20: =+IF(INDEX($C20:$G20,1,aux!$AL$1)>0,(G20/INDEX($C20:$G20,1,aux!$AL$1))^(1/($G$3-INDEX($C$3:$G$3,1,aux!$AL$1)))-1,"n.d.") -> 0.05417862121 | Y20: =IF(INDEX($C20:$G20,1,aux!$AL$1)>0,(G20-INDEX($C20:$G20,1,aux!$AL$1))/INDEX($C20:$G20,1,aux!$AL$1),"n.d.") -> 0.2349711659 | AA20: =O20-INDEX($K20:$O20,1,aux!$AL$1) -> -577.909 | AB20: -0.003899097568 | AC20: -0.002910234072 | AD20: =+IF(INDEX($K20:$O20,1,aux!$AL$1)>0,(O20/INDEX($K20:$O20,1,aux!$AL$1))^(1/($O$3-INDEX($K$3:$O$3,1,aux!$AL$1)))-1,"n.d.") -> -0.1908801555 | AE20: =IF(INDEX($K20:$O20,1,aux!$AL$1)>0,(O20-INDEX($K20:$O20,1,aux!$AL$1))/INDEX($K20:$O20,1,aux!$AL$1),"n.d.") -> -0.5714007455
A21: 19a | B21: Preparações à base de cereais (exc. NC 19022010) (a) | C21: 14821.833 | D21: 14252.711 | E21: 17209.534 | F21: 23745.535 | G21: 30922.879 | H21: 20190.4984 | I21: 0.02971418329 | J21: 0.02131310057 | K21: 15405.434 | L21: 14508.038 | M21: 19021.738 | N21: 16189.157 | O21: 13609.174 | P21: 15746.7082 | Q21: 0.04270843426 | R21: 0.02485581436 | S21: -4443.7902 | U21: =G21-INDEX($C21:$G21,1,aux!$AL$1) -> 16101.046 | V21: 0.04488819036 | W21: 0.03129568101 | X21: =+IF(INDEX($C21:$G21,1,aux!$AL$1)>0,(G21/INDEX($C21:$G21,1,aux!$AL$1))^(1/($G$3-INDEX($C$3:$G$3,1,aux!$AL$1)))-1,"n.d.") -> 0.2018340422 | Y21: =IF(INDEX($C21:$G21,1,aux!$AL$1)>0,(G21-INDEX($C21:$G21,1,aux!$AL$1))/INDEX($C21:$G21,1,aux!$AL$1),"n.d.") -> 1.086305992 | AA21: =O21-INDEX($K21:$O21,1,aux!$AL$1) -> -1796.26 | AB21: -0.01211919696 | AC21: -0.009045605891 | AD21: =+IF(INDEX($K21:$O21,1,aux!$AL$1)>0,(O21/INDEX($K21:$O21,1,aux!$AL$1))^(1/($O$3-INDEX($K$3:$O$3,1,aux!$AL$1)))-1,"n.d.") -> -0.03051865372 | AE21: =IF(INDEX($K21:$O21,1,aux!$AL$1)>0,(O21-INDEX($K21:$O21,1,aux!$AL$1))/INDEX($K21:$O21,1,aux!$AL$1),"n.d.") -> -0.1165991169
A22: 20 | B22: Preparações de produtos vegetais | C22: 22830.174 | D22: 18758.169 | E22: 22120.024 | F22: 33289.087 | G22: 37801.519 | H22: 26959.7946 | I22: 0.03967649843 | J22: 0.02845877314 | K22: 8601.842 | L22: 11267.718 | M22: 24342.999 | N22: 27008.107 | O22: 30702.421 | P22: 20384.6174 | Q22: 0.05528743412 | R22: 0.03217664667 | S22: -6575.1772 | U22: =G22-INDEX($C22:$G22,1,aux!$AL$1) -> 14971.345 | V22: 0.04173869104 | W22: 0.02909987571 | X22: =+IF(INDEX($C22:$G22,1,aux!$AL$1)>0,(G22/INDEX($C22:$G22,1,aux!$AL$1))^(1/($G$3-INDEX($C$3:$G$3,1,aux!$AL$1)))-1,"n.d.") -> 0.1343576587 | Y22: =IF(INDEX($C22:$G22,1,aux!$AL$1)>0,(G22-INDEX($C22:$G22,1,aux!$AL$1))/INDEX($C22:$G22,1,aux!$AL$1),"n.d.") -> 0.6557700787 | AA22: =O22-INDEX($K22:$O22,1,aux!$AL$1) -> 22100.579 | AB22: 0.149110524 | AC22: 0.1112940931 | AD22: =+IF(INDEX($K22:$O22,1,aux!$AL$1)>0,(O22/INDEX($K22:$O22,1,aux!$AL$1))^(1/($O$3-INDEX($K$3:$O$3,1,aux!$AL$1)))-1,"n.d.") -> 0.3745017286 | AE22: =IF(INDEX($K22:$O22,1,aux!$AL$1)>0,(O22-INDEX($K22:$O22,1,aux!$AL$1))/INDEX($K22:$O22,1,aux!$AL$1),"n.d.") -> 2.569284463
A23: 21 | B23: Preparações alimentícias diversas | C23: 26695.275 | D23: 23610.174 | E23: 36298.037 | F23: 46892.5 | G23: 50970.074 | H23: 36893.212 | I23: 0.0542954236 | J23: 0.03894449369 | K23: 7166.688 | L23: 7275.391 | M23: 8996.598 | N23: 17369.185 | O23: 22506.576 | P23: 12662.8876 | Q23: 0.03434445446 | R23: 0.01998807494 | S23: -24230.3244 | U23: =G23-INDEX($C23:$G23,1,aux!$AL$1) -> 24274.799 | V23: 0.06767583911 | W23: 0.04718304426 | X23: =+IF(INDEX($C23:$G23,1,aux!$AL$1)>0,(G23/INDEX($C23:$G23,1,aux!$AL$1))^(1/($G$3-INDEX($C$3:$G$3,1,aux!$AL$1)))-1,"n.d.") -> 0.1754934574 | Y23: =IF(INDEX($C23:$G23,1,aux!$AL$1)>0,(G23-INDEX($C23:$G23,1,aux!$AL$1))/INDEX($C23:$G23,1,aux!$AL$1),"n.d.") -> 0.9093294225 | AA23: =O23-INDEX($K23:$O23,1,aux!$AL$1) -> 15339.888 | AB23: 0.1034967789 | AC23: 0.07724860613 | AD23: =+IF(INDEX($K23:$O23,1,aux!$AL$1)>0,(O23/INDEX($K23:$O23,1,aux!$AL$1))^(1/($O$3-INDEX($K$3:$O$3,1,aux!$AL$1)))-1,"n.d.") -> 0.3312135602 | AE23: =IF(INDEX($K23:$O23,1,aux!$AL$1)>0,(O23-INDEX($K23:$O23,1,aux!$AL$1))/INDEX($K23:$O23,1,aux!$AL$1),"n.d.") -> 2.140443117
A24: 22 | B24: Bebidas, líquidos alcoólicos e vinagres | C24: 41532.217 | D24: 24756.734 | E24: 14201.603 | F24: 30110.673 | G24: 26971.113 | H24: 27514.468 | I24: 0.04049280652 | J24: 0.02904428667 | K24: 49933.6 | L24: 53102.487 | M24: 61271.399 | N24: 54944.401 | O24: 60715.114 | P24: 55993.4002 | Q24: 0.1518660549 | R24: 0.08838428599 | S24: 28478.9322 | U24: =G24-INDEX($C24:$G24,1,aux!$AL$1) -> -14561.104 | V24: -0.04059497801 | W24: -0.0283024883 | X24: =+IF(INDEX($C24:$G24,1,aux!$AL$1)>0,(G24/INDEX($C24:$G24,1,aux!$AL$1))^(1/($G$3-INDEX($C$3:$G$3,1,aux!$AL$1)))-1,"n.d.") -> -0.1023057601 | Y24: =IF(INDEX($C24:$G24,1,aux!$AL$1)>0,(G24-INDEX($C24:$G24,1,aux!$AL$1))/INDEX($C24:$G24,1,aux!$AL$1),"n.d.") -> -0.3505978022 | AA24: =O24-INDEX($K24:$O24,1,aux!$AL$1) -> 10781.514 | AB24: 0.07274185905 | AC24: 0.0542935469 | AD24: =+IF(INDEX($K24:$O24,1,aux!$AL$1)>0,(O24/INDEX($K24:$O24,1,aux!$AL$1))^(1/($O$3-INDEX($K$3:$O$3,1,aux!$AL$1)))-1,"n.d.") -> 0.05008869793 | AE24: =IF(INDEX($K24:$O24,1,aux!$AL$1)>0,(O24-INDEX($K24:$O24,1,aux!$AL$1))/INDEX($K24:$O24,1,aux!$AL$1),"n.d.") -> 0.2159170178
A25: 23a | B25: Resíduos indústrias alimentares; alimentos p/ animais (exc. NC 230120) (a) | C25: 10891.207 | D25: 11004.039 | E25: 9028.512 | F25: 28220.643 | G25: 34185.903 | H25: 18666.0608 | I25: 0.02747068155 | J25: 0.01970390345 | K25: 538.643 | L25: 1100.439 | M25: 199.042 | N25: 6560.473 | O25: 4876.388 | P25: 2654.997 | Q25: 0.007200918655 | R25: 0.004190851302 | S25: -16011.0638 | U25: =G25-INDEX($C25:$G25,1,aux!$AL$1) -> 23294.696 | V25: 0.06494340483 | W25: 0.04527801332 | X25: =+IF(INDEX($C25:$G25,1,aux!$AL$1)>0,(G25/INDEX($C25:$G25,1,aux!$AL$1))^(1/($G$3-INDEX($C$3:$G$3,1,aux!$AL$1)))-1,"n.d.") -> 0.3310450691 | Y25: =IF(INDEX($C25:$G25,1,aux!$AL$1)>0,(G25-INDEX($C25:$G25,1,aux!$AL$1))/INDEX($C25:$G25,1,aux!$AL$1),"n.d.") -> 2.138853481 | AA25: =O25-INDEX($K25:$O25,1,aux!$AL$1) -> 4337.745 | AB25: 0.02926635678 | AC25: 0.02184401575 | AD25: =+IF(INDEX($K25:$O25,1,aux!$AL$1)>0,(O25/INDEX($K25:$O25,1,aux!$AL$1))^(1/($O$3-INDEX($K$3:$O$3,1,aux!$AL$1)))-1,"n.d.") -> 0.7345998656 | AE25: =IF(INDEX($K25:$O25,1,aux!$AL$1)>0,(O25-INDEX($K25:$O25,1,aux!$AL$1))/INDEX($K25:$O25,1,aux!$AL$1),"n.d.") -> 8.053098249
A26: 24 | B26: Tabaco | C26: 34657.311 | D26: 41137.553 | E26: 32684.233 | F26: 44544.161 | G26: 39398.213 | H26: 38484.2942 | I26: 0.05663700563 | J26: 0.04062404089 | K26: 2389.432 | L26: 14267.568 | M26: 11234.045 | N26: 4069.409 | O26: 1170.856 | P26: 6626.262 | Q26: 0.01797183712 | R26: 0.01045940117 | S26: -31858.0322 | U26: =G26-INDEX($C26:$G26,1,aux!$AL$1) -> 4740.902 | V26: 0.01321718548 | W26: 0.009214914155 | X26: =+IF(INDEX($C26:$G26,1,aux!$AL$1)>0,(G26/INDEX($C26:$G26,1,aux!$AL$1))^(1/($G$3-INDEX($C$3:$G$3,1,aux!$AL$1)))-1,"n.d.") -> 0.03257216846 | Y26: =IF(INDEX($C26:$G26,1,aux!$AL$1)>0,(G26-INDEX($C26:$G26,1,aux!$AL$1))/INDEX($C26:$G26,1,aux!$AL$1),"n.d.") -> 0.1367937057 | AA26: =O26-INDEX($K26:$O26,1,aux!$AL$1) -> -1218.576 | AB26: -0.008221617449 | AC26: -0.006136504873 | AD26: =+IF(INDEX($K26:$O26,1,aux!$AL$1)>0,(O26/INDEX($K26:$O26,1,aux!$AL$1))^(1/($O$3-INDEX($K$3:$O$3,1,aux!$AL$1)))-1,"n.d.") -> -0.1633338423 | AE26: =IF(INDEX($K26:$O26,1,aux!$AL$1)>0,(O26-INDEX($K26:$O26,1,aux!$AL$1))/INDEX($K26:$O26,1,aux!$AL$1),"n.d.") -> -0.5099856368
A27: 29 | B27: Manitol e sorbitol (NC 290543; 290544) | C27: 525.291 | D27: 387.938 | E27: 485.968 | F27: 252.086 | G27: 1622.403 | H27: 654.7372 | I27: 0.0009635711204 | J27: 0.0006911409274 | K27: 0.031 | L27: 0 | M27: 0 | N27: 0 | O27: 0 | P27: 0.0062 | Q27: 1.681572358e-08 | R27: 9.786556472e-09 | S27: -654.731 | U27: =G27-INDEX($C27:$G27,1,aux!$AL$1) -> 1097.112 | V27: 0.003058644284 | W27: 0.002132461903 | X27: =+IF(INDEX($C27:$G27,1,aux!$AL$1)>0,(G27/INDEX($C27:$G27,1,aux!$AL$1))^(1/($G$3-INDEX($C$3:$G$3,1,aux!$AL$1)))-1,"n.d.") -> 0.3256830247 | Y27: =IF(INDEX($C27:$G27,1,aux!$AL$1)>0,(G27-INDEX($C27:$G27,1,aux!$AL$1))/INDEX($C27:$G27,1,aux!$AL$1),"n.d.") -> 2.088579473 | AA27: =O27-INDEX($K27:$O27,1,aux!$AL$1) -> -0.031 | AB27: -2.09154079e-07 | AC27: -1.561097962e-07 | AD27: =+IF(INDEX($K27:$O27,1,aux!$AL$1)>0,(O27/INDEX($K27:$O27,1,aux!$AL$1))^(1/($O$3-INDEX($K$3:$O$3,1,aux!$AL$1)))-1,"n.d.") -> -1 | AE27: =IF(INDEX($K27:$O27,1,aux!$AL$1)>0,(O27-INDEX($K27:$O27,1,aux!$AL$1))/INDEX($K27:$O27,1,aux!$AL$1),"n.d.") -> -1
A28: 33 | B28: Óleos essenciais e resinóides (NC 3301) | C28: 4412.901 | D28: 5517.864 | E28: 4224.258 | F28: 6658.964 | G28: 5325.568 | H28: 5227.911 | I28: 0.00769387177 | J28: 0.005518585559 | K28: 0.052 | L28: 0 | M28: 1.594 | N28: 454.14 | O28: 119.734 | P28: 115.104 | Q28: 0.0003121866205 | R28: 0.0001816889994 | S28: -5112.807 | U28: =G28-INDEX($C28:$G28,1,aux!$AL$1) -> 912.667 | V28: 0.002544429103 | W28: 0.001773955264 | X28: =+IF(INDEX($C28:$G28,1,aux!$AL$1)>0,(G28/INDEX($C28:$G28,1,aux!$AL$1))^(1/($G$3-INDEX($C$3:$G$3,1,aux!$AL$1)))-1,"n.d.") -> 0.04811862267 | Y28: =IF(INDEX($C28:$G28,1,aux!$AL$1)>0,(G28-INDEX($C28:$G28,1,aux!$AL$1))/INDEX($C28:$G28,1,aux!$AL$1),"n.d.") -> 0.2068179186 | AA28: =O28-INDEX($K28:$O28,1,aux!$AL$1) -> 119.682 | AB28: 0.0008074831767 | AC28: 0.0006026946011 | AD28: =+IF(INDEX($K28:$O28,1,aux!$AL$1)>0,(O28/INDEX($K28:$O28,1,aux!$AL$1))^(1/($O$3-INDEX($K$3:$O$3,1,aux!$AL$1)))-1,"n.d.") -> 5.927133173 | AE28: =IF(INDEX($K28:$O28,1,aux!$AL$1)>0,(O28-INDEX($K28:$O28,1,aux!$AL$1))/INDEX($K28:$O28,1,aux!$AL$1),"n.d.") -> 2301.576923
A29: 35 | B29: Caseínas, albuminas, gelatinas, peptonas, dextrinas (NC 3501 a 3505) | C29: 6010.371 | D29: 5111.484 | E29: 6390.292 | F29: 7445.695 | G29: 9469.494 | H29: 6885.4672 | I29: 0.01013328301 | J29: 0.007268302742 | K29: 1794.617 | L29: 737.957 | M29: 1753.328 | N29: 587.602 | O29: 2969.377 | P29: 1568.5762 | Q29: 0.004254313516 | R29: 0.00247596122 | S29: -5316.891 | U29: =G29-INDEX($C29:$G29,1,aux!$AL$1) -> 3459.123 | V29: 0.009643707105 | W29: 0.006723514111 | X29: =+IF(INDEX($C29:$G29,1,aux!$AL$1)>0,(G29/INDEX($C29:$G29,1,aux!$AL$1))^(1/($G$3-INDEX($C$3:$G$3,1,aux!$AL$1)))-1,"n.d.") -> 0.1203568484 | Y29: =IF(INDEX($C29:$G29,1,aux!$AL$1)>0,(G29-INDEX($C29:$G29,1,aux!$AL$1))/INDEX($C29:$G29,1,aux!$AL$1),"n.d.") -> 0.5755257038 | AA29: =O29-INDEX($K29:$O29,1,aux!$AL$1) -> 1174.76 | AB29: 0.007925995026 | AC29: 0.005915856266 | AD29: =+IF(INDEX($K29:$O29,1,aux!$AL$1)>0,(O29/INDEX($K29:$O29,1,aux!$AL$1))^(1/($O$3-INDEX($K$3:$O$3,1,aux!$AL$1)))-1,"n.d.") -> 0.1341575566 | AE29: =IF(INDEX($K29:$O29,1,aux!$AL$1)>0,(O29-INDEX($K29:$O29,1,aux!$AL$1))/INDEX($K29:$O29,1,aux!$AL$1),"n.d.") -> 0.6546020683
A30: 38a | B30: Agentes de acabamento, ácidos gordos, sorbitol (NC 380910, 382311-12-13-19-70, 382460) (a) | C30: 3590.963 | D30: 3630.383 | E30: 2970.679 | F30: 12844.039 | G30: 7925.068 | H30: 6192.2264 | I30: 0.009113046471 | J30: 0.006536517394 | K30: 7788.38 | L30: 1676.383 | M30: 0 | N30: 0 | O30: 0 | P30: 1892.9526 | Q30: 0.005134091561 | R30: 0.002987981858 | S30: -4299.2738 | U30: =G30-INDEX($C30:$G30,1,aux!$AL$1) -> 4334.105 | V30: 0.012083074 | W30: 0.008424220858 | X30: =+IF(INDEX($C30:$G30,1,aux!$AL$1)>0,(G30/INDEX($C30:$G30,1,aux!$AL$1))^(1/($G$3-INDEX($C$3:$G$3,1,aux!$AL$1)))-1,"n.d.") -> 0.2188436996 | Y30: =IF(INDEX($C30:$G30,1,aux!$AL$1)>0,(G30-INDEX($C30:$G30,1,aux!$AL$1))/INDEX($C30:$G30,1,aux!$AL$1),"n.d.") -> 1.20694783 | AA30: =O30-INDEX($K30:$O30,1,aux!$AL$1) -> -7788.38 | AB30: -0.05254746598 | AC30: -0.03922072306 | AD30: =+IF(INDEX($K30:$O30,1,aux!$AL$1)>0,(O30/INDEX($K30:$O30,1,aux!$AL$1))^(1/($O$3-INDEX($K$3:$O$3,1,aux!$AL$1)))-1,"n.d.") -> -1 | AE30: =IF(INDEX($K30:$O30,1,aux!$AL$1)>0,(O30-INDEX($K30:$O30,1,aux!$AL$1))/INDEX($K30:$O30,1,aux!$AL$1),"n.d.") -> -1
A31: 41 | B31: Couro e peles em bruto (NC 4101 a 4103) | C31: 2364.431 | D31: 3360.987 | E31: 11185.996 | F31: 4719.671 | G31: 5093.056 | H31: 5344.8282 | I31: 0.00786593781 | J31: 0.005642003416 | K31: 170.614 | L31: 18.375 | M31: 0 | N31: 0 | O31: 0.949 | P31: 37.9876 | Q31: 0.0001030304808 | R31: 5.99625472e-05 | S31: -5306.8406 | U31: =G31-INDEX($C31:$G31,1,aux!$AL$1) -> 2728.625 | V31: 0.00760714791 | W31: 0.005303641614 | X31: =+IF(INDEX($C31:$G31,1,aux!$AL$1)>0,(G31/INDEX($C31:$G31,1,aux!$AL$1))^(1/($G$3-INDEX($C$3:$G$3,1,aux!$AL$1)))-1,"n.d.") -> 0.2114708024 | Y31: =IF(INDEX($C31:$G31,1,aux!$AL$1)>0,(G31-INDEX($C31:$G31,1,aux!$AL$1))/INDEX($C31:$G31,1,aux!$AL$1),"n.d.") -> 1.154030293 | AA31: =O31-INDEX($K31:$O31,1,aux!$AL$1) -> -169.665 | AB31: -0.001144713768 | AC31: -0.0008543989865 | AD31: =+IF(INDEX($K31:$O31,1,aux!$AL$1)>0,(O31/INDEX($K31:$O31,1,aux!$AL$1))^(1/($O$3-INDEX($K$3:$O$3,1,aux!$AL$1)))-1,"n.d.") -> -0.7269055421 | AE31: =IF(INDEX($K31:$O31,1,aux!$AL$1)>0,(O31-INDEX($K31:$O31,1,aux!$AL$1))/INDEX($K31:$O31,1,aux!$AL$1),"n.d.") -> -0.9944377366
A32: 43 | B32: Peles com pelo em bruto (NC 4301) | C32: 0.572 | D32: 0 | E32: 0 | F32: 0 | G32: 2.569 | H32: 0.6282 | I32: 9.245165508e-07 | J32: 6.631282453e-07 | K32: 0 | L32: 0 | M32: 0 | N32: 0 | O32: 0 | P32: 0 | Q32: 0 | R32: 0 | S32: -0.6282 | U32: =G32-INDEX($C32:$G32,1,aux!$AL$1) -> 1.997 | V32: 5.567446746e-06 | W32: 3.881578562e-06 | X32: =+IF(INDEX($C32:$G32,1,aux!$AL$1)>0,(G32/INDEX($C32:$G32,1,aux!$AL$1))^(1/($G$3-INDEX($C$3:$G$3,1,aux!$AL$1)))-1,"n.d.") -> 0.4557674978 | Y32: =IF(INDEX($C32:$G32,1,aux!$AL$1)>0,(G32-INDEX($C32:$G32,1,aux!$AL$1))/INDEX($C32:$G32,1,aux!$AL$1),"n.d.") -> 3.491258741 | AA32: =O32-INDEX($K32:$O32,1,aux!$AL$1) -> 0 | AB32: 0 | AC32: 0 | AD32: =+IF(INDEX($K32:$O32,1,aux!$AL$1)>0,(O32/INDEX($K32:$O32,1,aux!$AL$1))^(1/($O$3-INDEX($K$3:$O$3,1,aux!$AL$1)))-1,"n.d.") -> n.d. | AE32: =IF(INDEX($K32:$O32,1,aux!$AL$1)>0,(O32-INDEX($K32:$O32,1,aux!$AL$1))/INDEX($K32:$O32,1,aux!$AL$1),"n.d.") -> n.d.
A33: 50 | B33: Seda crua (NC 5001-5003) | C33: 0 | D33: 0 | E33: 0 | F33: 0 | G33: 0 | H33: 0 | I33: 0 | J33: 0 | K33: 0 | L33: 0 | M33: 0 | N33: 0 | O33: 0 | P33: 0 | Q33: 0 | R33: 0 | S33: 0 | U33: =G33-INDEX($C33:$G33,1,aux!$AL$1) -> 0 | V33: 0 | W33: 0 | X33: =+IF(INDEX($C33:$G33,1,aux!$AL$1)>0,(G33/INDEX($C33:$G33,1,aux!$AL$1))^(1/($G$3-INDEX($C$3:$G$3,1,aux!$AL$1)))-1,"n.d.") -> n.d. | Y33: =IF(INDEX($C33:$G33,1,aux!$AL$1)>0,(G33-INDEX($C33:$G33,1,aux!$AL$1))/INDEX($C33:$G33,1,aux!$AL$1),"n.d.") -> n.d. | AA33: =O33-INDEX($K33:$O33,1,aux!$AL$1) -> 0 | AB33: 0 | AC33: 0 | AD33: =+IF(INDEX($K33:$O33,1,aux!$AL$1)>0,(O33/INDEX($K33:$O33,1,aux!$AL$1))^(1/($O$3-INDEX($K$3:$O$3,1,aux!$AL$1)))-1,"n.d.") -> n.d. | AE33: =IF(INDEX($K33:$O33,1,aux!$AL$1)>0,(O33-INDEX($K33:$O33,1,aux!$AL$1))/INDEX($K33:$O33,1,aux!$AL$1),"n.d.") -> n.d.
A34: 51 | B34: Lã não cardada (NC 5101-5103) | C34: 0.024 | D34: 0 | E34: 0 | F34: 0 | G34: 0 | H34: 0.0048 | I34: 7.064118822e-09 | J34: 5.066882486e-09 | K34: 0 | L34: 0 | M34: 0 | N34: 0 | O34: 0 | P34: 0 | Q34: 0 | R34: 0 | S34: -0.0048 | U34: =G34-INDEX($C34:$G34,1,aux!$AL$1) -> -0.024 | V34: -6.690972554e-08 | W34: -4.664891612e-08 | X34: =+IF(INDEX($C34:$G34,1,aux!$AL$1)>0,(G34/INDEX($C34:$G34,1,aux!$AL$1))^(1/($G$3-INDEX($C$3:$G$3,1,aux!$AL$1)))-1,"n.d.") -> -1 | Y34: =IF(INDEX($C34:$G34,1,aux!$AL$1)>0,(G34-INDEX($C34:$G34,1,aux!$AL$1))/INDEX($C34:$G34,1,aux!$AL$1),"n.d.") -> -1 | AA34: =O34-INDEX($K34:$O34,1,aux!$AL$1) -> 0 | AB34: 0 | AC34: 0 | AD34: =+IF(INDEX($K34:$O34,1,aux!$AL$1)>0,(O34/INDEX($K34:$O34,1,aux!$AL$1))^(1/($O$3-INDEX($K$3:$O$3,1,aux!$AL$1)))-1,"n.d.") -> n.d. | AE34: =IF(INDEX($K34:$O34,1,aux!$AL$1)>0,(O34-INDEX($K34:$O34,1,aux!$AL$1))/INDEX($K34:$O34,1,aux!$AL$1),"n.d.") -> n.d.
A35: 52 | B35: Algodão (NC 5201-5203) | C35: 50.247 | D35: 7.394 | E35: 678.761 | F35: 10.903 | G35: 1549.22 | H35: 459.305 | I35: 0.0006759552282 | J35: 0.0004848425959 | K35: 6.222 | L35: 13.293 | M35: 0.293 | N35: 38.189 | O35: 42.325 | P35: 20.0644 | Q35: 5.441893617e-05 | R35: 3.167119092e-05 | S35: -439.2406 | U35: =G35-INDEX($C35:$G35,1,aux!$AL$1) -> 1498.973 | V35: 0.004178994667 | W35: 0.002913561073 | X35: =+IF(INDEX($C35:$G35,1,aux!$AL$1)>0,(G35/INDEX($C35:$G35,1,aux!$AL$1))^(1/($G$3-INDEX($C$3:$G$3,1,aux!$AL$1)))-1,"n.d.") -> 1.356409361 | Y35: =IF(INDEX($C35:$G35,1,aux!$AL$1)>0,(G35-INDEX($C35:$G35,1,aux!$AL$1))/INDEX($C35:$G35,1,aux!$AL$1),"n.d.") -> 29.83208948 | AA35: =O35-INDEX($K35:$O35,1,aux!$AL$1) -> 36.103 | AB35: 0.0002435835391 | AC35: 0.000181807483 | AD35: =+IF(INDEX($K35:$O35,1,aux!$AL$1)>0,(O35/INDEX($K35:$O35,1,aux!$AL$1))^(1/($O$3-INDEX($K$3:$O$3,1,aux!$AL$1)))-1,"n.d.") -> 0.6149784814 | AE35: =IF(INDEX($K35:$O35,1,aux!$AL$1)>0,(O35-INDEX($K35:$O35,1,aux!$AL$1))/INDEX($K35:$O35,1,aux!$AL$1),"n.d.") -> 5.802475088
A36: 53 | B36: Linho e cânhamo em bruto (NC 5301-5302) | C36: 0 | D36: 0 | E36: 0.054 | F36: 0.141 | G36: 0 | H36: 0.039 | I36: 5.739596543e-08 | J36: 4.11684202e-08 | K36: 0 | L36: 0 | M36: 0 | N36: 0 | O36: 0 | P36: 0 | Q36: 0 | R36: 0 | S36: -0.039 | U36: =G36-INDEX($C36:$G36,1,aux!$AL$1) -> 0 | V36: 0 | W36: =IF($U$53<>0,U36/$U$53, "n.d.") -> 0 | X36: =+IF(INDEX($C36:$G36,1,aux!$AL$1)>0,(G36/INDEX($C36:$G36,1,aux!$AL$1))^(1/($G$3-INDEX($C$3:$G$3,1,aux!$AL$1)))-1,"n.d.") -> n.d. | Y36: =IF(INDEX($C36:$G36,1,aux!$AL$1)>0,(G36-INDEX($C36:$G36,1,aux!$AL$1))/INDEX($C36:$G36,1,aux!$AL$1),"n.d.") -> n.d. | AA36: =O36-INDEX($K36:$O36,1,aux!$AL$1) -> 0 | AB36: 0 | AC36: =IF($AA$53<>0,AA36/$AA$53, "n.d.") -> 0 | AD36: =+IF(INDEX($K36:$O36,1,aux!$AL$1)>0,(O36/INDEX($K36:$O36,1,aux!$AL$1))^(1/($O$3-INDEX($K$3:$O$3,1,aux!$AL$1)))-1,"n.d.") -> n.d. | AE36: =IF(INDEX($K36:$O36,1,aux!$AL$1)>0,(O36-INDEX($K36:$O36,1,aux!$AL$1))/INDEX($K36:$O36,1,aux!$AL$1),"n.d.") -> n.d.
A37: Subtotal Agrícola e Agroalimentar | C37: 543970.954 | D37: 539776.813 | E37: 603215.835 | F37: 807824.54 | G37: 902663.204 | H37: 679490.2692 | I37: 1 | J37: 0.71727028 | K37: 295041.706 | L37: 328223.04 | M37: 390051.941 | N37: 386938.217 | O37: 443257.797 | P37: 368702.5402 | Q37: 1 | R37: 0.5819884244 | S37: -310787.729 | U37: =G37-INDEX($C37:$G37,1,aux!$AL$1) -> 358692.25 | V37: 1 | W37: 0.6971918618 | X37: =+IF(INDEX($C37:$G37,1,aux!$AL$1)>0,(G37/INDEX($C37:$G37,1,aux!$AL$1))^(1/($G$3-INDEX($C$3:$G$3,1,aux!$AL$1)))-1,"n.d.") -> 0.1349781667 | Y37: =IF(INDEX($C37:$G37,1,aux!$AL$1)>0,(G37-INDEX($C37:$G37,1,aux!$AL$1))/INDEX($C37:$G37,1,aux!$AL$1),"n.d.") -> 0.6593959611 | AA37: =O37-INDEX($K37:$O37,1,aux!$AL$1) -> 148216.091 | AB37: 1 | AC37: 0.7463865731 | AD37: =+IF(INDEX($K37:$O37,1,aux!$AL$1)>0,(O37/INDEX($K37:$O37,1,aux!$AL$1))^(1/($O$3-INDEX($K$3:$O$3,1,aux!$AL$1)))-1,"n.d.") -> 0.1071162958 | AE37: =IF(INDEX($K37:$O37,1,aux!$AL$1)>0,(O37-INDEX($K37:$O37,1,aux!$AL$1))/INDEX($K37:$O37,1,aux!$AL$1),"n.d.") -> 0.5023564058
A38: 03 | B38: Peixes e crustáceos | C38: 160655.416 | D38: 155181.736 | E38: 136623.22 | F38: 270291.658 | G38: 321124.304 | H38: 208775.2668 | I38: 0.9448659187 | J38: 0.2203832797 | K38: 1893.943 | L38: 2543.977 | M38: 2566.439 | N38: 6613.595 | O38: 10385.646 | P38: 4800.72 | Q38: 0.4468288537 | R38: 0.007577825385 | S38: -203974.5468 | U38: =G38-INDEX($C38:$G38,1,aux!$AL$1) -> 160468.888 | V38: =IF($U$44<>0,U38/$U$44, "n.d.") -> 1.044281289 | W38: 0.311904154 | X38: =+IF(INDEX($C38:$G38,1,aux!$AL$1)>0,(G38/INDEX($C38:$G38,1,aux!$AL$1))^(1/($G$3-INDEX($C$3:$G$3,1,aux!$AL$1)))-1,"n.d.") -> 0.1890344872 | Y38: =IF(INDEX($C38:$G38,1,aux!$AL$1)>0,(G38-INDEX($C38:$G38,1,aux!$AL$1))/INDEX($C38:$G38,1,aux!$AL$1),"n.d.") -> 0.998838956 | AA38: =O38-INDEX($K38:$O38,1,aux!$AL$1) -> 8491.703 | AB38: =IF($AA$44<>0,AA38/$AA$44, "n.d.") -> 0.8504806355 | AC38: 0.04276251694 | AD38: =+IF(INDEX($K38:$O38,1,aux!$AL$1)>0,(O38/INDEX($K38:$O38,1,aux!$AL$1))^(1/($O$3-INDEX($K$3:$O$3,1,aux!$AL$1)))-1,"n.d.") -> 0.5302650265 | AE38: =IF(INDEX($K38:$O38,1,aux!$AL$1)>0,(O38-INDEX($K38:$O38,1,aux!$AL$1))/INDEX($K38:$O38,1,aux!$AL$1),"n.d.") -> 4.483610647
A39: 05p | B39: Outros produtos de pescado (NC 0508, 051191) (p) | C39: 105.874 | D39: 86.569 | E39: 105.295 | F39: 113.08 | G39: 71.581 | H39: 96.4798 | I39: 0.0004366440348 | J39: 0.0001018441268 | K39: 0 | L39: 0 | M39: 0.012 | N39: 0.069 | O39: 0 | P39: 0.0162 | Q39: 1.507821208e-06 | R39: 2.557132498e-08 | S39: -96.4636 | U39: =G39-INDEX($C39:$G39,1,aux!$AL$1) -> -34.293 | V39: -0.0002231681087 | W39: -6.665547002e-05 | X39: =+IF(INDEX($C39:$G39,1,aux!$AL$1)>0,(G39/INDEX($C39:$G39,1,aux!$AL$1))^(1/($G$3-INDEX($C$3:$G$3,1,aux!$AL$1)))-1,"n.d.") -> -0.09321962992 | Y39: =IF(INDEX($C39:$G39,1,aux!$AL$1)>0,(G39-INDEX($C39:$G39,1,aux!$AL$1))/INDEX($C39:$G39,1,aux!$AL$1),"n.d.") -> -0.3239038858 | AA39: =O39-INDEX($K39:$O39,1,aux!$AL$1) -> 0 | AB39: 0 | AC39: 0 | AD39: =+IF(INDEX($K39:$O39,1,aux!$AL$1)>0,(O39/INDEX($K39:$O39,1,aux!$AL$1))^(1/($O$3-INDEX($K$3:$O$3,1,aux!$AL$1)))-1,"n.d.") -> n.d. | AE39: =IF(INDEX($K39:$O39,1,aux!$AL$1)>0,(O39-INDEX($K39:$O39,1,aux!$AL$1))/INDEX($K39:$O39,1,aux!$AL$1),"n.d.") -> n.d.
A40: 16p | B40: Preparações e conservas de peixes ou crustáceos (NC 1604-05) (p) | C40: 6910.022 | D40: 9338.739 | E40: 9304.175 | F40: 9482.725 | G40: 6955.788 | H40: 8398.2898 | I40: 0.03800861055 | J40: 0.008865239062 | K40: 3423.615 | L40: 4757.089 | M40: 8298.396 | N40: 7100.049 | O40: 4837.237 | P40: 5683.2772 | Q40: 0.5289732034 | R40: 0.008970921495 | S40: -2715.0126 | U40: =G40-INDEX($C40:$G40,1,aux!$AL$1) -> 45.766 | V40: 0.0002978308012 | W40: 8.895559563e-05 | X40: =+IF(INDEX($C40:$G40,1,aux!$AL$1)>0,(G40/INDEX($C40:$G40,1,aux!$AL$1))^(1/($G$3-INDEX($C$3:$G$3,1,aux!$AL$1)))-1,"n.d.") -> 0.001651686828 | Y40: =IF(INDEX($C40:$G40,1,aux!$AL$1)>0,(G40-INDEX($C40:$G40,1,aux!$AL$1))/INDEX($C40:$G40,1,aux!$AL$1),"n.d.") -> 0.006623133761 | AA40: =O40-INDEX($K40:$O40,1,aux!$AL$1) -> 1413.622 | AB40: 0.1415803328 | AC40: 0.007118717497 | AD40: =+IF(INDEX($K40:$O40,1,aux!$AL$1)>0,(O40/INDEX($K40:$O40,1,aux!$AL$1))^(1/($O$3-INDEX($K$3:$O$3,1,aux!$AL$1)))-1,"n.d.") -> 0.09025506112 | AE40: =IF(INDEX($K40:$O40,1,aux!$AL$1)>0,(O40-INDEX($K40:$O40,1,aux!$AL$1))/INDEX($K40:$O40,1,aux!$AL$1),"n.d.") -> 0.41290332
A41: 19p | B41: Massas recheadas com pescado (NC 19022010) (p) | C41: 165.527 | D41: 132.624 | E41: 143.125 | F41: 147.273 | G41: 238.889 | H41: 165.4876 | I41: 0.0007489565005 | J41: 0.0001746887963 | K41: 0.186 | L41: 0.189 | M41: 0.416 | N41: 0.261 | O41: 0.318 | P41: 0.274 | Q41: 2.5502655e-05 | R41: 4.32502657e-07 | S41: -165.2136 | U41: =G41-INDEX($C41:$G41,1,aux!$AL$1) -> 73.362 | V41: 0.0004774169304 | W41: 0.0001425940743 | X41: =+IF(INDEX($C41:$G41,1,aux!$AL$1)>0,(G41/INDEX($C41:$G41,1,aux!$AL$1))^(1/($G$3-INDEX($C$3:$G$3,1,aux!$AL$1)))-1,"n.d.") -> 0.09605368649 | Y41: =IF(INDEX($C41:$G41,1,aux!$AL$1)>0,(G41-INDEX($C41:$G41,1,aux!$AL$1))/INDEX($C41:$G41,1,aux!$AL$1),"n.d.") -> 0.4432026195 | AA41: =O41-INDEX($K41:$O41,1,aux!$AL$1) -> 0.132 | AB41: 1.322036862e-05 | AC41: 6.64725584e-07 | AD41: =+IF(INDEX($K41:$O41,1,aux!$AL$1)>0,(O41/INDEX($K41:$O41,1,aux!$AL$1))^(1/($O$3-INDEX($K$3:$O$3,1,aux!$AL$1)))-1,"n.d.") -> 0.1434799235 | AE41: =IF(INDEX($K41:$O41,1,aux!$AL$1)>0,(O41-INDEX($K41:$O41,1,aux!$AL$1))/INDEX($K41:$O41,1,aux!$AL$1),"n.d.") -> 0.7096774194
A42: 23p | B42: Farinhas de pescado (NC 230120) (p) | C42: 0.505 | D42: 1.473 | E42: 2.565 | F42: 2.184 | G42: 7.48 | H42: 2.8414 | I42: 1.285948313e-05 | J42: 2.999383311e-06 | K42: 46.489 | L42: 87.089 | M42: 0 | N42: 32.238 | O42: 0 | P42: 33.1632 | Q42: 0.003086677549 | R42: 5.234734348e-05 | S42: 30.3218 | U42: =G42-INDEX($C42:$G42,1,aux!$AL$1) -> 6.975 | V42: 4.539111651e-05 | W42: 1.355734125e-05 | X42: =+IF(INDEX($C42:$G42,1,aux!$AL$1)>0,(G42/INDEX($C42:$G42,1,aux!$AL$1))^(1/($G$3-INDEX($C$3:$G$3,1,aux!$AL$1)))-1,"n.d.") -> 0.9617901739 | Y42: =IF(INDEX($C42:$G42,1,aux!$AL$1)>0,(G42-INDEX($C42:$G42,1,aux!$AL$1))/INDEX($C42:$G42,1,aux!$AL$1),"n.d.") -> 13.81188119 | AA42: =O42-INDEX($K42:$O42,1,aux!$AL$1) -> -46.489 | AB42: -0.004656073613 | AC42: -0.0002341093006 | AD42: =+IF(INDEX($K42:$O42,1,aux!$AL$1)>0,(O42/INDEX($K42:$O42,1,aux!$AL$1))^(1/($O$3-INDEX($K$3:$O$3,1,aux!$AL$1)))-1,"n.d.") -> -1 | AE42: =IF(INDEX($K42:$O42,1,aux!$AL$1)>0,(O42-INDEX($K42:$O42,1,aux!$AL$1))/INDEX($K42:$O42,1,aux!$AL$1),"n.d.") -> -1
A43: 25 | B43: Sal e cloreto de sódio puro; água do mar (NC 2501) | C43: 8974.059 | D43: 3170.013 | E43: 1339.073 | F43: 2035.032 | G43: 2077.79 | H43: 3519.1934 | I43: 0.01592701069 | J43: 0.003714862375 | K43: 146.974 | L43: 311.411 | M43: 215.588 | N43: 186.072 | O43: 272.599 | P43: 226.5288 | Q43: 0.02108425487 | R43: 0.0003575704667 | S43: -3292.6646 | U43: =G43-INDEX($C43:$G43,1,aux!$AL$1) -> -6896.269 | V43: -0.04487875981 | W43: -0.01340431142 | X43: =+IF(INDEX($C43:$G43,1,aux!$AL$1)>0,(G43/INDEX($C43:$G43,1,aux!$AL$1))^(1/($G$3-INDEX($C$3:$G$3,1,aux!$AL$1)))-1,"n.d.") -> -0.3063295681 | Y43: =IF(INDEX($C43:$G43,1,aux!$AL$1)>0,(G43-INDEX($C43:$G43,1,aux!$AL$1))/INDEX($C43:$G43,1,aux!$AL$1),"n.d.") -> -0.7684670894 | AA43: =O43-INDEX($K43:$O43,1,aux!$AL$1) -> 125.625 | AB43: 0.01258188491 | AC43: 0.0006326223598 | AD43: =+IF(INDEX($K43:$O43,1,aux!$AL$1)>0,(O43/INDEX($K43:$O43,1,aux!$AL$1))^(1/($O$3-INDEX($K$3:$O$3,1,aux!$AL$1)))-1,"n.d.") -> 0.1670002151 | AE43: =IF(INDEX($K43:$O43,1,aux!$AL$1)>0,(O43-INDEX($K43:$O43,1,aux!$AL$1))/INDEX($K43:$O43,1,aux!$AL$1),"n.d.") -> 0.8547430158
A44: Subtotal Mar | C44: 176811.403 | D44: 167911.154 | E44: 147517.453 | F44: 282071.952 | G44: 330475.832 | H44: 220957.5588 | I44: 1 | J44: 0.2332429135 | K44: 5511.207 | L44: 7699.755 | M44: 11080.851 | N44: 13932.284 | O44: 15495.8 | P44: 10743.9794 | Q44: 1 | R44: 0.01695912276 | S44: -210213.5794 | U44: =G44-INDEX($C44:$G44,1,aux!$AL$1) -> 153664.429 | V44: 1 | W44: 0.2986782941 | X44: =+IF(INDEX($C44:$G44,1,aux!$AL$1)>0,(G44/INDEX($C44:$G44,1,aux!$AL$1))^(1/($G$3-INDEX($C$3:$G$3,1,aux!$AL$1)))-1,"n.d.") -> 0.1692499462 | Y44: =IF(INDEX($C44:$G44,1,aux!$AL$1)>0,(G44-INDEX($C44:$G44,1,aux!$AL$1))/INDEX($C44:$G44,1,aux!$AL$1),"n.d.") -> 0.8690866448 | AA44: =O44-INDEX($K44:$O44,1,aux!$AL$1) -> 9984.593 | AB44: 1 | AC44: 0.05028041222 | AD44: =+IF(INDEX($K44:$O44,1,aux!$AL$1)>0,(O44/INDEX($K44:$O44,1,aux!$AL$1))^(1/($O$3-INDEX($K$3:$O$3,1,aux!$AL$1)))-1,"n.d.") -> 0.2949166641 | AE44: =IF(INDEX($K44:$O44,1,aux!$AL$1)>0,(O44-INDEX($K44:$O44,1,aux!$AL$1))/INDEX($K44:$O44,1,aux!$AL$1),"n.d.") -> 1.811688982
A45: 13f | B45: Gomas e resinas (NC 1301) (f) | C45: 49.193 | D45: 58.042 | E45: 71.992 | F45: 65.998 | G45: 33.629 | H45: 55.7708 | I45: 0.00118964406 | J45: 5.887168536e-05 | K45: 0.025 | L45: 0.013 | M45: 0 | N45: 8.318 | O45: 9.026 | P45: 3.4764 | Q45: 1.368254173e-05 | R45: 5.487416923e-06 | S45: -52.2944 | U45: =G45-INDEX($C45:$G45,1,aux!$AL$1) -> -15.564 | V45: =IF($U$52<>0,U45/$U$52, "n.d.") -> -0.007325172916 | W45: -3.02518221e-05 | X45: =+IF(INDEX($C45:$G45,1,aux!$AL$1)>0,(G45/INDEX($C45:$G45,1,aux!$AL$1))^(1/($G$3-INDEX($C$3:$G$3,1,aux!$AL$1)))-1,"n.d.") -> -0.0907094844 | Y45: =IF(INDEX($C45:$G45,1,aux!$AL$1)>0,(G45-INDEX($C45:$G45,1,aux!$AL$1))/INDEX($C45:$G45,1,aux!$AL$1),"n.d.") -> -0.3163864778 | AA45: =O45-INDEX($K45:$O45,1,aux!$AL$1) -> 9.001 | AB45: =IF($AA$52<>0,AA45/$AA$52, "n.d.") -> 0.0002229211758 | AC45: 4.532723471e-05 | AD45: =+IF(INDEX($K45:$O45,1,aux!$AL$1)>0,(O45/INDEX($K45:$O45,1,aux!$AL$1))^(1/($O$3-INDEX($K$3:$O$3,1,aux!$AL$1)))-1,"n.d.") -> 3.359019684 | AE45: =IF(INDEX($K45:$O45,1,aux!$AL$1)>0,(O45-INDEX($K45:$O45,1,aux!$AL$1))/INDEX($K45:$O45,1,aux!$AL$1),"n.d.") -> 360.04
A46: 38f | B46: Tall oil, essências e colofónias (NC 3803,3805,3806) (f) | C46: 2444.044 | D46: 1187.82 | E46: 862.047 | F46: 451.587 | G46: 361.897 | H46: 1061.479 | I46: 0.02264235383 | J46: 0.001120497782 | K46: 6877.577 | L46: 10083.694 | M46: 18614.207 | N46: 17329.788 | O46: 14652.954 | P46: 13511.644 | Q46: 0.05317962055 | R46: 0.02132781726 | S46: 12450.165 | U46: =G46-INDEX($C46:$G46,1,aux!$AL$1) -> -2082.147 | V46: -0.9799593171 | W46: -0.004047079198 | X46: =+IF(INDEX($C46:$G46,1,aux!$AL$1)>0,(G46/INDEX($C46:$G46,1,aux!$AL$1))^(1/($G$3-INDEX($C$3:$G$3,1,aux!$AL$1)))-1,"n.d.") -> -0.3796754193 | Y46: =IF(INDEX($C46:$G46,1,aux!$AL$1)>0,(G46-INDEX($C46:$G46,1,aux!$AL$1))/INDEX($C46:$G46,1,aux!$AL$1),"n.d.") -> -0.8519269702 | AA46: =O46-INDEX($K46:$O46,1,aux!$AL$1) -> 7775.377 | AB46: 0.1925670685 | AC46: 0.03915524256 | AD46: =+IF(INDEX($K46:$O46,1,aux!$AL$1)>0,(O46/INDEX($K46:$O46,1,aux!$AL$1))^(1/($O$3-INDEX($K$3:$O$3,1,aux!$AL$1)))-1,"n.d.") -> 0.2081543758 | AE46: =IF(INDEX($K46:$O46,1,aux!$AL$1)>0,(O46-INDEX($K46:$O46,1,aux!$AL$1))/INDEX($K46:$O46,1,aux!$AL$1),"n.d.") -> 1.13054016
A47: 44 | B47: Madeira e suas obras | C47: 10649.33 | D47: 11625.802 | E47: 13547.627 | F47: 15445.055 | G47: 16103.39 | H47: 13474.2408 | I47: 0.287418336 | J47: 0.01422341557 | K47: 33218.697 | L47: 37142.72 | M47: 40414.021 | N47: 44207.63 | O47: 35276.038 | P47: 38051.8212 | Q47: 0.1497657437 | R47: 0.06006391888 | S47: 24577.5804 | U47: =G47-INDEX($C47:$G47,1,aux!$AL$1) -> 5454.06 | V47: 2.56694504 | W47: 0.01060108281 | X47: =+IF(INDEX($C47:$G47,1,aux!$AL$1)>0,(G47/INDEX($C47:$G47,1,aux!$AL$1))^(1/($G$3-INDEX($C$3:$G$3,1,aux!$AL$1)))-1,"n.d.") -> 0.1089162725 | Y47: =IF(INDEX($C47:$G47,1,aux!$AL$1)>0,(G47-INDEX($C47:$G47,1,aux!$AL$1))/INDEX($C47:$G47,1,aux!$AL$1),"n.d.") -> 0.5121505297 | AA47: =O47-INDEX($K47:$O47,1,aux!$AL$1) -> 2057.341 | AB47: 0.05095265802 | AC47: 0.01036035756 | AD47: =+IF(INDEX($K47:$O47,1,aux!$AL$1)>0,(O47/INDEX($K47:$O47,1,aux!$AL$1))^(1/($O$3-INDEX($K$3:$O$3,1,aux!$AL$1)))-1,"n.d.") -> 0.01513616966 | AE47: =IF(INDEX($K47:$O47,1,aux!$AL$1)>0,(O47-INDEX($K47:$O47,1,aux!$AL$1))/INDEX($K47:$O47,1,aux!$AL$1),"n.d.") -> 0.06193322393
A48: 45 | B48: Cortiça e suas obras | C48: 255.216 | D48: 160.155 | E48: 82.506 | F48: 253.195 | G48: 106.06 | H48: 171.4264 | I48: 0.003656687702 | J48: 0.0001809577966 | K48: 10286.591 | L48: 10234.205 | M48: 11707.124 | N48: 13390.186 | O48: 13403.938 | P48: 11804.4088 | Q48: 0.04646022208 | R48: 0.01863298602 | S48: 11632.9824 | U48: =G48-INDEX($C48:$G48,1,aux!$AL$1) -> -149.156 | V48: -0.07020004443 | W48: -0.0002899152389 | X48: =+IF(INDEX($C48:$G48,1,aux!$AL$1)>0,(G48/INDEX($C48:$G48,1,aux!$AL$1))^(1/($G$3-INDEX($C$3:$G$3,1,aux!$AL$1)))-1,"n.d.") -> -0.1971009736 | Y48: =IF(INDEX($C48:$G48,1,aux!$AL$1)>0,(G48-INDEX($C48:$G48,1,aux!$AL$1))/INDEX($C48:$G48,1,aux!$AL$1),"n.d.") -> -0.5844304432 | AA48: =O48-INDEX($K48:$O48,1,aux!$AL$1) -> 3117.347 | AB48: 0.07720505041 | AC48: 0.01569833565 | AD48: =+IF(INDEX($K48:$O48,1,aux!$AL$1)>0,(O48/INDEX($K48:$O48,1,aux!$AL$1))^(1/($O$3-INDEX($K$3:$O$3,1,aux!$AL$1)))-1,"n.d.") -> 0.06841563426 | AE48: =IF(INDEX($K48:$O48,1,aux!$AL$1)>0,(O48-INDEX($K48:$O48,1,aux!$AL$1))/INDEX($K48:$O48,1,aux!$AL$1),"n.d.") -> 0.303049572
A49: 46 | B49: Obras de espartaria ou de cestaria | C49: 383.485 | D49: 629.135 | E49: 686.57 | F49: 1168.933 | G49: 744.776 | H49: 722.5798 | I49: 0.01541331247 | J49: 0.0007627556111 | K49: 2.364 | L49: 0.345 | M49: 0.071 | N49: 0.027 | O49: 0.375 | P49: 0.6364 | Q49: 2.504766298e-06 | R49: 1.004542668e-06 | S49: -721.9434 | U49: =G49-INDEX($C49:$G49,1,aux!$AL$1) -> 361.291 | V49: 0.1700410594 | W49: 0.0007022430647 | X49: =+IF(INDEX($C49:$G49,1,aux!$AL$1)>0,(G49/INDEX($C49:$G49,1,aux!$AL$1))^(1/($G$3-INDEX($C$3:$G$3,1,aux!$AL$1)))-1,"n.d.") -> 0.180509056 | Y49: =IF(INDEX($C49:$G49,1,aux!$AL$1)>0,(G49-INDEX($C49:$G49,1,aux!$AL$1))/INDEX($C49:$G49,1,aux!$AL$1),"n.d.") -> 0.9421255069 | AA49: =O49-INDEX($K49:$O49,1,aux!$AL$1) -> -1.989 | AB49: -4.926010651e-05 | AC49: -1.001620596e-05 | AD49: =+IF(INDEX($K49:$O49,1,aux!$AL$1)>0,(O49/INDEX($K49:$O49,1,aux!$AL$1))^(1/($O$3-INDEX($K$3:$O$3,1,aux!$AL$1)))-1,"n.d.") -> -0.3689032424 | AE49: =IF(INDEX($K49:$O49,1,aux!$AL$1)>0,(O49-INDEX($K49:$O49,1,aux!$AL$1))/INDEX($K49:$O49,1,aux!$AL$1),"n.d.") -> -0.8413705584
A50: 47 | B50: Pastas de madeira | C50: 104.314 | D50: 127.907 | E50: 151.267 | F50: 238.442 | G50: 122.063 | H50: 148.7986 | I50: 0.003174015267 | J50: 0.0001570718792 | K50: 69777.072 | L50: 45018.02 | M50: 104577.909 | N50: 123939.051 | O50: 84488.689 | P50: 85560.1482 | Q50: 0.3367507474 | R50: 0.1350547132 | S50: 85411.3496 | U50: =G50-INDEX($C50:$G50,1,aux!$AL$1) -> 17.749 | V50: 0.008353539841 | W50: 3.449881717e-05 | X50: =+IF(INDEX($C50:$G50,1,aux!$AL$1)>0,(G50/INDEX($C50:$G50,1,aux!$AL$1))^(1/($G$3-INDEX($C$3:$G$3,1,aux!$AL$1)))-1,"n.d.") -> 0.0400647085 | Y50: =IF(INDEX($C50:$G50,1,aux!$AL$1)>0,(G50-INDEX($C50:$G50,1,aux!$AL$1))/INDEX($C50:$G50,1,aux!$AL$1),"n.d.") -> 0.1701497402 | AA50: =O50-INDEX($K50:$O50,1,aux!$AL$1) -> 14711.617 | AB50: 0.3643518454 | AC50: 0.07408475911 | AD50: =+IF(INDEX($K50:$O50,1,aux!$AL$1)>0,(O50/INDEX($K50:$O50,1,aux!$AL$1))^(1/($O$3-INDEX($K$3:$O$3,1,aux!$AL$1)))-1,"n.d.") -> 0.0489902641 | AE50: =IF(INDEX($K50:$O50,1,aux!$AL$1)>0,(O50-INDEX($K50:$O50,1,aux!$AL$1))/INDEX($K50:$O50,1,aux!$AL$1),"n.d.") -> 0.210837408
A51: 48 | B51: Papel e cartão | C51: 30848.423 | D51: 29004.135 | E51: 27725.371 | F51: 39264.88 | G51: 29386.918 | H51: 31245.9454 | I51: 0.6665056507 | J51: 0.03298323614 | K51: 93835.422 | L51: 87414.806 | M51: 94683.297 | N51: 143239.571 | O51: 106544.229 | P51: 105143.465 | Q51: 0.4138274789 | R51: 0.1659665255 | S51: 73897.5196 | U51: =G51-INDEX($C51:$G51,1,aux!$AL$1) -> -1461.505 | V51: -0.6878551043 | W51: -0.00284073434 | X51: =+IF(INDEX($C51:$G51,1,aux!$AL$1)>0,(G51/INDEX($C51:$G51,1,aux!$AL$1))^(1/($G$3-INDEX($C$3:$G$3,1,aux!$AL$1)))-1,"n.d.") -> -0.01206068516 | Y51: =IF(INDEX($C51:$G51,1,aux!$AL$1)>0,(G51-INDEX($C51:$G51,1,aux!$AL$1))/INDEX($C51:$G51,1,aux!$AL$1),"n.d.") -> -0.04737697613 | AA51: =O51-INDEX($K51:$O51,1,aux!$AL$1) -> 12708.807 | AB51: 0.3147497167 | AC51: 0.06399900875 | AD51: =+IF(INDEX($K51:$O51,1,aux!$AL$1)>0,(O51/INDEX($K51:$O51,1,aux!$AL$1))^(1/($O$3-INDEX($K$3:$O$3,1,aux!$AL$1)))-1,"n.d.") -> 0.03226399575 | AE51: =IF(INDEX($K51:$O51,1,aux!$AL$1)>0,(O51-INDEX($K51:$O51,1,aux!$AL$1))/INDEX($K51:$O51,1,aux!$AL$1),"n.d.") -> 0.135437202
A52: Subtotal Florestas | C52: 44734.005 | D52: 42792.996 | E52: 43127.38 | F52: 56888.09 | G52: 46858.733 | H52: 46880.2408 | I52: 1 | J52: 0.04948680647 | K52: 213997.748 | L52: 189893.803 | M52: 269996.629 | N52: 342114.571 | O52: 254375.249 | P52: 254075.6 | Q52: 1 | R52: 0.4010524528 | S52: 207195.3592 | U52: =G52-INDEX($C52:$G52,1,aux!$AL$1) -> 2124.728 | V52: 1 | W52: 0.004129844094 | X52: =+IF(INDEX($C52:$G52,1,aux!$AL$1)>0,(G52/INDEX($C52:$G52,1,aux!$AL$1))^(1/($G$3-INDEX($C$3:$G$3,1,aux!$AL$1)))-1,"n.d.") -> 0.01166841197 | Y52: =IF(INDEX($C52:$G52,1,aux!$AL$1)>0,(G52-INDEX($C52:$G52,1,aux!$AL$1))/INDEX($C52:$G52,1,aux!$AL$1),"n.d.") -> 0.04749693214 | AA52: =O52-INDEX($K52:$O52,1,aux!$AL$1) -> 40377.501 | AB52: 1 | AC52: 0.2033330147 | AD52: =+IF(INDEX($K52:$O52,1,aux!$AL$1)>0,(O52/INDEX($K52:$O52,1,aux!$AL$1))^(1/($O$3-INDEX($K$3:$O$3,1,aux!$AL$1)))-1,"n.d.") -> 0.04415846137 | AE52: =IF(INDEX($K52:$O52,1,aux!$AL$1)>0,(O52-INDEX($K52:$O52,1,aux!$AL$1))/INDEX($K52:$O52,1,aux!$AL$1),"n.d.") -> 0.1886818968
B53: TOTAL | C53: 765516.362 | D53: 750480.963 | E53: 793860.668 | F53: 1146784.582 | G53: 1279997.769 | H53: 947328.0688 | J53: 1 | K53: 514550.661 | L53: 525816.598 | M53: 671129.421 | N53: 742985.072 | O53: 713128.846 | P53: 633522.1196 | R53: 1 | S53: -313805.9492 | U53: =G53-INDEX($C53:$G53,1,aux!$AL$1) -> 514481.407 | W53: 1 | X53: =+IF(INDEX($C53:$G53,1,aux!$AL$1)>0,(G53/INDEX($C53:$G53,1,aux!$AL$1))^(1/($G$3-INDEX($C$3:$G$3,1,aux!$AL$1)))-1,"n.d.") -> 0.1371393381 | Y53: =IF(INDEX($C53:$G53,1,aux!$AL$1)>0,(G53-INDEX($C53:$G53,1,aux!$AL$1))/INDEX($C53:$G53,1,aux!$AL$1),"n.d.") -> 0.6720710785 | AA53: =O53-INDEX($K53:$O53,1,aux!$AL$1) -> 198578.185 | AC53: 1 | AD53: =+IF(INDEX($K53:$O53,1,aux!$AL$1)>0,(O53/INDEX($K53:$O53,1,aux!$AL$1))^(1/($O$3-INDEX($K$3:$O$3,1,aux!$AL$1)))-1,"n.d.") -> 0.08501306047 | AE53: =IF(INDEX($K53:$O53,1,aux!$AL$1)>0,(O53-INDEX($K53:$O53,1,aux!$AL$1))/INDEX($K53:$O53,1,aux!$AL$1),"n.d.") -> 0.3859254298
B54: a - agrícola e agroalimentar; p - pescas; f - florestas
A55: Fonte: GPP a partir de dados INE/Comércio Internacional (2022 definitivos) | S55: 2024-05-10T17:34:55.090

Sheet 5.2_var
A1: ="Principais contributos por produto para a variação das trocas comerciais PT-Países Baixos_x000D_ no período " & INDEX('5.2'!K3:N3,1,aux!AL1) & "-2023 (NC 2 dígitos - milhares de euros) Produtos agrícolas e agroalimentares, do mar e da floresta" -> Principais contributos por produto para a variação das trocas comerciais PT-Países Baixos no período 2019-2023 (NC 2 dígitos - milhares de euros) Produtos agrícolas e agroalimentares, do mar e da floresta
E5: aumento das importações | J5: aumento das exportações
E17: redução das importações | J17: redução das exportações
A28: Fonte: GPP a partir de dados INE/Comércio Internacional (2022 definitivos) | F28: a - agrícola e agroalimentar; p - mar; f - florestas | H28: ='3'!Y116 -> 2024-05-10T17:34:55.090
A29: Cód. NC | B29: Descritivo | C29: ="Variação das Importações " & INDEX('5.2'!K3:N3,1,aux!AL1) & "-"& '5.2'!O3 &"" -> Variação das Importações 2019-2023 | F29: Cód. NC | G29: Descritivo | H29: ="Variação das Exportações " & INDEX('5.2'!K3:N3,1,aux!AL1) & "-"& '5.2'!O3 &"" -> Variação das Exportações 2019-2023
C30: variação total em valor | D30: % do aumento/ redução total | H30: variação total em valor | I30: % do aumento/ redução total
A31: =IF(C31>0,aux!AU6,"") -> 03 | B31: =IF(C31>0,aux!AV6,"") -> Peixes e crustáceos | C31: =IF(aux!AW6>0,aux!AW6,0) -> 160468.888 | D31: =IF(SUM($C$31:$C$41)<>0,C31/SUM($C$31:$C$41),0) -> 0.2927685083 | F31: =IF(H31>0,aux!AZ6,"") -> 06 | G31: =IF(H31>0,aux!BA6,"") -> Plantas vivas e produtos de floricultura | H31: =IF(aux!BB6>0,aux!BB6,0) -> 22298.741 | I31: =IF(SUM($H$31:$H$41)<>0,H31/SUM($H$31:$H$41),0) -> 0.1060106588
A32: =IF(C32>0,aux!AU7,"") -> 02 | B32: =IF(C32>0,aux!AV7,"") -> Carnes e miudezas | C32: =IF(aux!AW7>0,aux!AW7,0) -> 78226.966 | D32: =IF(SUM($C$31:$C$41)<>0,C32/SUM($C$31:$C$41),0) -> 0.1427216978 | F32: =IF(H32>0,aux!AZ7,"") -> 20 | G32: =IF(H32>0,aux!BA7,"") -> Preparações de produtos vegetais | H32: =IF(aux!BB7>0,aux!BB7,0) -> 22100.579 | I32: =IF(SUM($H$31:$H$41)<>0,H32/SUM($H$31:$H$41),0) -> 0.1050685749
A33: =IF(C33>0,aux!AU8,"") -> 15 | B33: =IF(C33>0,aux!AV8,"") -> Gorduras e óleos animais ou vegetais | C33: =IF(aux!AW8>0,aux!AW8,0) -> 51805.272 | D33: 0.09451646604 | F33: =IF(H33>0,aux!AZ8,"") -> 08 | G33: =IF(H33>0,aux!BA8,"") -> Frutas | H33: =IF(aux!BB8>0,aux!BB8,0) -> 20525.156 | I33: 0.09757884132
A34: =IF(C34>0,aux!AU9,"") -> 04 | B34: =IF(C34>0,aux!AV9,"") -> Leite e laticínios; ovos; mel, etc. | C34: =IF(aux!AW9>0,aux!AW9,0) -> 40029.868 | D34: 0.07303275349 | F34: =IF(H34>0,aux!AZ9,"") -> 15 | G34: =IF(H34>0,aux!BA9,"") -> Gorduras e óleos animais ou vegetais | H34: =IF(aux!BB9>0,aux!BB9,0) -> 20062.864 | I34: 0.09538105448
A35: =IF(C35>0,aux!AU10,"") -> 07 | B35: =IF(C35>0,aux!AV10,"") -> Produtos hortícolas | C35: =IF(aux!AW10>0,aux!AW10,0) -> 24719.868 | D35: 0.04510032424 | F35: =IF(H35>0,aux!AZ10,"") -> 04 | G35: =IF(H35>0,aux!BA10,"") -> Leite e laticínios; ovos; mel, etc. | H35: =IF(aux!BB10>0,aux!BB10,0) -> 17902.641 | I35: 0.08511111757
A36: =IF(C36>0,aux!AU11,"") -> 21 | B36: =IF(C36>0,aux!AV11,"") -> Preparações alimentícias diversas | C36: =IF(aux!AW11>0,aux!AW11,0) -> 24274.799 | D36: 0.0442883152 | F36: =IF(H36>0,aux!AZ11,"") -> 21 | G36: =IF(H36>0,aux!BA11,"") -> Preparações alimentícias diversas | H36: =IF(aux!BB11>0,aux!BB11,0) -> 15339.888 | I36: 0.07292750891
A37: =IF(C37>0,aux!AU12,"") -> 06 | B37: =IF(C37>0,aux!AV12,"") -> Plantas vivas e produtos de floricultura | C37: =IF(aux!AW12>0,aux!AW12,0) -> 24017.913 | D37: 0.04381963786 | F37: =IF(H37>0,aux!AZ12,"") -> 47 | G37: =IF(H37>0,aux!BA12,"") -> Pastas de madeira | H37: =IF(aux!BB12>0,aux!BB12,0) -> 14711.617 | I37: 0.06994063971
A38: =IF(C38>0,aux!AU13,"") -> 23a | B38: =IF(C38>0,aux!AV13,"") -> Resíduos indústrias alimentares; alimentos p/ animais (exc. NC 230120) (a) | C38: =IF(aux!AW13>0,aux!AW13,0) -> 23294.696 | D38: 0.0425001599 | F38: =IF(H38>0,aux!AZ13,"") -> 48 | G38: =IF(H38>0,aux!BA13,"") -> Papel e cartão | H38: =IF(aux!BB13>0,aux!BB13,0) -> 12708.807 | I38: 0.06041906145
A39: =IF(C39>0,aux!AU14,"") -> 08 | B39: =IF(C39>0,aux!AV14,"") -> Frutas | C39: =IF(aux!AW14>0,aux!AW14,0) -> 21587.089 | D39: 0.03938470518 | F39: =IF(H39>0,aux!AZ14,"") -> 22 | G39: =IF(H39>0,aux!BA14,"") -> Bebidas, líquidos alcoólicos e vinagres | H39: =IF(aux!BB14>0,aux!BB14,0) -> 10781.514 | I39: 0.05125649928
A40: =IF(C40>0,aux!AU15,"") -> 19a | B40: =IF(C40>0,aux!AV15,"") -> Preparações à base de cereais (exc. NC 19022010) (a) | C40: =IF(aux!AW15>0,aux!AW15,0) -> 16101.046 | D40: 0.02937565828 | F40: =IF(H40>0,aux!AZ15,"") -> 07 | G40: =IF(H40>0,aux!BA15,"") -> Produtos hortícolas | H40: =IF(aux!BB15>0,aux!BB15,0) -> 9350.196 | I40: 0.04445185663
B41: Outros contributos para o aumento das importações | C41: =SUMIF(aux!AW16:AW51,">0") -> 83582.027 | D41: 0.1524917737 | G41: Outros contributos para o aumento das exportações | H41: =SUMIF(aux!BB16:BB51,">0") -> 44562.327 | I41: 0.2118541869
B42: Outros contributos para a redução das importações | C42: =SUMIF(aux!AW6:AW41,"<0") -> -0.024 | D42: =IF(SUM($C$42:$C$52)<>0,C42/SUM($C$42:$C$52),0) -> 7.137116649e-07 | G42: Outros contributos para a redução das exportações | H42: =SUMIF(aux!BB6:BB41,"<0") -> 0 | I42: =IF(SUM($H$42:$H$52)<>0,H42/SUM($H$42:$H$52),0) -> 0
A43: =IF(C43<>0,aux!AU42,"") -> 13f | B43: =IF(C43<0,aux!AV42,"") -> Gomas e resinas (NC 1301) (f) | C43: =IF(aux!AW42<0,aux!AW42,0) -> -15.564 | D43: =IF(SUM($C$42:$C$52)<>0,C43/SUM($C$42:$C$52),0) -> 0.0004628420147 | F43: =IF(H43<>0,aux!AZ42,"") -> 29 | G43: =IF(H43<>0,aux!BA42,"") -> Manitol e sorbitol (NC 290543; 290544) | H43: =IF(aux!BB42<0,aux!BB42,0) -> -0.031 | I43: =IF(SUM($H$42:$H$52)<>0,H43/SUM($H$42:$H$52),0) -> 2.634677713e-06
A44: =IF(C44<>0,aux!AU43,"") -> 05p | B44: =IF(C44<0,aux!AV43,"") -> Outros produtos de pescado (NC 0508, 051191) (p) | C44: =IF(aux!AW43<0,aux!AW43,0) -> -34.293 | D44: 0.001019804755 | F44: =IF(H44<>0,aux!AZ43,"") -> 13a | G44: =IF(H44<>0,aux!BA43,"") -> Sucos e extratos vegetais (exc. NC 1301) (a) | H44: =IF(aux!BB43<0,aux!BB43,0) -> -1.607 | I44: 0.0001365782931
A45: =IF(C45<>0,aux!AU44,"") -> 45 | B45: =IF(C45<0,aux!AV44,"") -> Cortiça e suas obras | C45: =IF(aux!AW44<0,aux!AW44,0) -> -149.156 | D45: 0.004435599046 | F45: =IF(H45<>0,aux!AZ44,"") -> 46 | G45: =IF(H45<>0,aux!BA44,"") -> Obras de espartaria ou de cestaria | H45: =IF(aux!BB44<0,aux!BB44,0) -> -1.989 | I45: 0.0001690443217
A46: =IF(C46<>0,aux!AU45,"") -> 10 | B46: =IF(C46<0,aux!AV45,"") -> Cereais | C46: =IF(aux!AW45<0,aux!AW45,0) -> -365.907 | D46: 0.01088133726 | F46: =IF(H46<>0,aux!AZ45,"") -> 23p | G46: =IF(H46<>0,aux!BA45,"") -> Farinhas de pescado (NC 230120) (p) | H46: =IF(aux!BB45<0,aux!BB45,0) -> -46.489 | I46: 0.003951081684
A47: =IF(C47<>0,aux!AU46,"") -> 01 | B47: =IF(C47<0,aux!AV46,"") -> Animais vivos | C47: =IF(aux!AW46<0,aux!AW46,0) -> -555.301 | D47: 0.01651353339 | F47: =IF(H47<>0,aux!AZ46,"") -> 05a | G47: =IF(H47<>0,aux!BA46,"") -> Outros produtos de origem animal (exc. NC 0508, 051191) (a) | H47: =IF(aux!BB46<0,aux!BB46,0) -> -165.239 | I47: 0.01404359712
A48: =IF(C48<>0,aux!AU47,"") -> 48 | B48: =IF(C48<0,aux!AV47,"") -> Papel e cartão | C48: =IF(aux!AW47<0,aux!AW47,0) -> -1461.505 | D48: 0.04346221529 | F48: =IF(H48<>0,aux!AZ47,"") -> 41 | G48: =IF(H48<>0,aux!BA47,"") -> Couro e peles em bruto (NC 4101 a 4103) | H48: =IF(aux!BB47<0,aux!BB47,0) -> -169.665 | I48: 0.0144197611
A49: =IF(C49<>0,aux!AU48,"") -> 38f | B49: =IF(C49<0,aux!AV48,"") -> Tall oil, essências e colofónias (NC 3803,3805,3806) (f) | C49: =IF(aux!AW48<0,aux!AW48,0) -> -2082.147 | D49: 0.06191885842 | F49: =IF(H49<>0,aux!AZ48,"") -> 18 | G49: =IF(H49<>0,aux!BA48,"") -> Cacau e suas preparações | H49: =IF(aux!BB48<0,aux!BB48,0) -> -577.909 | I49: 0.04911625685
A50: =IF(C50<>0,aux!AU49,"") -> 25 | B50: =IF(C50<0,aux!AV49,"") -> Sal e cloreto de sódio puro; água do mar (NC 2501) | C50: =IF(aux!AW49<0,aux!AW49,0) -> -6896.269 | D50: 0.2050811512 | F50: =IF(H50<>0,aux!AZ49,"") -> 24 | G50: =IF(H50<>0,aux!BA49,"") -> Tabaco | H50: =IF(aux!BB49<0,aux!BB49,0) -> -1218.576 | I50: 0.1035662913
A51: =IF(C51<>0,aux!AU50,"") -> 05a | B51: =IF(C51<0,aux!AV50,"") -> Outros produtos de origem animal (exc. NC 0508, 051191) (a) | C51: =IF(aux!AW50<0,aux!AW50,0) -> -7505.755 | D51: 0.2232060374 | F51: =IF(H51<>0,aux!AZ50,"") -> 19a | G51: =IF(H51<>0,aux!BA50,"") -> Preparações à base de cereais (exc. NC 19022010) (a) | H51: =IF(aux!BB50<0,aux!BB50,0) -> -1796.26 | I51: 0.1526634254
A52: =IF(C52<>0,aux!AU51,"") -> 22 | B52: =IF(C52<0,aux!AV51,"") -> Bebidas, líquidos alcoólicos e vinagres | C52: =IF(aux!AW51<0,aux!AW51,0) -> -14561.104 | D52: 0.4330179075 | F52: =IF(H52<>0,aux!AZ51,"") -> 38a | G52: =IF(H52<>0,aux!BA51,"") -> Agentes de acabamento, ácidos gordos, sorbitol (NC 380910, 382311-12-13-19-70, 382460) (a) | H52: =IF(aux!BB51<0,aux!BB51,0) -> -7788.38 | I52: 0.6619313293
A53: TOTAL | C53: =SUM(C31:C52) -> 514481.407 | F53: TOTAL | H53: =SUM(H31:H52) -> 198578.185

Sheet 5.2A
A1: Trocas comerciais Portugal-Países Baixos 2019-2023 em milhares de euros (NC 4 dígitos) | G1: Produtos agrícolas e agroalimentares, do mar e da floresta
A2: Cód. NC | B2: Descritivo | C2: Importações | K2: Exportações | S2: Saldo quinquénio (exp-imp) | T2: Evolução das importações | U2: =+"Variação das Importações " & INDEX(K3:N3,1,aux!AL1) & "-"& '5.2'!O3 &"" -> Variação das Importações 2019-2023 | Z2: Evolução das exportações | AA2: ="Variação das Exportações " & INDEX(K3:N3,1,aux!AL1) & "-"& '5.2'!O3 &"" -> Variação das Exportações 2019-2023
C3: 2019 | D3: 2020 | E3: 2021 | F3: 2022 | G3: 2023 | H3: média quinquénio | I3: % Subtot | J3: % Total | K3: 2019 | L3: 2020 | M3: 2021 | N3: 2022 | O3: 2023 | P3: média quinquénio | Q3: % Subtot | R3: % Total | U3: variação total em valor | V3: % no subtotal de variação | W3: % no total de variação | X3: taxa de variação média anual | Y3: taxa de variação total | AA3: variação total em valor | AB3: % no subtotal de variação | AC3: % no total de variação | AD3: taxa de variação média anual | AE3: taxa de variação total | AX3: filtro
A4: 0101 | B4: Equídeos vivos | C4: 59.086 | D4: 1015.212 | E4: 280.56 | F4: 1701.396 | G4: 359.718 | H4: 683.1944 | I4: 0.001005451338 | J4: 0.0007211803624 | K4: 437.591 | L4: 371.331 | M4: 0 | N4: 25.074 | O4: 1420.52 | P4: 450.9032 | Q4: 0.001222945738 | R4: 0.000711740263 | S4: -232.2912 | U4: =G4-INDEX($C4:$G4,1,aux!$AL$1) -> 300.632 | V4: =IF($U$237<>0,U4/$U$237, "n.d.") -> 0.0008381335253 | W4: =IF($U$322<>0,U4/$U$322, "n.d.") -> 0.0005843398729 | X4: =+IF(INDEX($C4:$G4,1,aux!$AL$1)>0,(G4/INDEX($C4:$G4,1,aux!$AL$1))^(1/($G$3-INDEX($C$3:$G$3,1,aux!$AL$1)))-1,"n.d.") -> 0.5707945833 | Y4: =IF(INDEX($C4:$G4,1,aux!$AL$1)>0,(G4-INDEX($C4:$G4,1,aux!$AL$1))/INDEX($C4:$G4,1,aux!$AL$1),"n.d.") -> 5.08804116 | AA4: =O4-INDEX($K4:$O4,1,aux!$AL$1) -> 982.929 | AB4: =IF($AA$237<>0,AA4/$AA$237, "n.d.") -> 0.006631729344 | AC4: =IF($AA$322<>0,AA4/$AA$322, "n.d.") -> 0.004949833739 | AD4: =+IF(INDEX($K4:$O4,1,aux!$AL$1)>0,(O4/INDEX($K4:$O4,1,aux!$AL$1))^(1/($O$3-INDEX($K$3:$O$3,1,aux!$AL$1)))-1,"n.d.") -> 0.3422850182 | AE4: =IF(INDEX($K4:$O4,1,aux!$AL$1)>0,(O4-INDEX($K4:$O4,1,aux!$AL$1))/INDEX($K4:$O4,1,aux!$AL$1),"n.d.") -> 2.246227642 | AX4: =+LEFT(A4,2) -> 01
A5: 0102 | B5: Bovinos vivos | C5: 306.819 | D5: 267.043 | E5: 85.609 | F5: 396.216 | G5: 331.326 | H5: 277.4026 | I5: 0.0004082510267 | J5: 0.0002928263282 | K5: 66.104 | L5: 0 | M5: 0 | N5: 0 | O5: 0 | P5: 13.2208 | Q5: 3.585763199e-05 | R5: 2.086872674e-05 | S5: -264.1818 | U5: =G5-INDEX($C5:$G5,1,aux!$AL$1) -> 24.507 | V5: 6.832319349e-05 | W5: 4.763437447e-05 | X5: =+IF(INDEX($C5:$G5,1,aux!$AL$1)>0,(G5/INDEX($C5:$G5,1,aux!$AL$1))^(1/($G$3-INDEX($C$3:$G$3,1,aux!$AL$1)))-1,"n.d.") -> 0.0193969194 | Y5: =IF(INDEX($C5:$G5,1,aux!$AL$1)>0,(G5-INDEX($C5:$G5,1,aux!$AL$1))/INDEX($C5:$G5,1,aux!$AL$1),"n.d.") -> 0.07987445367 | AA5: =O5-INDEX($K5:$O5,1,aux!$AL$1) -> -66.104 | AB5: -0.0004459974592 | AC5: -0.0003328865152 | AD5: =+IF(INDEX($K5:$O5,1,aux!$AL$1)>0,(O5/INDEX($K5:$O5,1,aux!$AL$1))^(1/($O$3-INDEX($K$3:$O$3,1,aux!$AL$1)))-1,"n.d.") -> -1 | AE5: =IF(INDEX($K5:$O5,1,aux!$AL$1)>0,(O5-INDEX($K5:$O5,1,aux!$AL$1))/INDEX($K5:$O5,1,aux!$AL$1),"n.d.") -> -1 | AX5: 01
A6: 0103 | B6: Suínos vivos | C6: 268.223 | D6: 937.177 | E6: 861.42 | F6: 505.604 | G6: 0 | H6: 514.4848 | I6: 0.0007571628665 | J6: 0.0005430904213 | K6: 0 | L6: 0 | M6: 0 | N6: 206.199 | O6: 0 | P6: 41.2398 | Q6: 0.0001118511415 | R6: 6.509606961e-05 | S6: -473.245 | U6: =G6-INDEX($C6:$G6,1,aux!$AL$1) -> -268.223 | V6: -0.0007477803047 | W6: -0.0005213463428 | X6: =+IF(INDEX($C6:$G6,1,aux!$AL$1)>0,(G6/INDEX($C6:$G6,1,aux!$AL$1))^(1/($G$3-INDEX($C$3:$G$3,1,aux!$AL$1)))-1,"n.d.") -> -1 | Y6: =IF(INDEX($C6:$G6,1,aux!$AL$1)>0,(G6-INDEX($C6:$G6,1,aux!$AL$1))/INDEX($C6:$G6,1,aux!$AL$1),"n.d.") -> -1 | AA6: =O6-INDEX($K6:$O6,1,aux!$AL$1) -> 0 | AB6: 0 | AC6: 0 | AD6: =+IF(INDEX($K6:$O6,1,aux!$AL$1)>0,(O6/INDEX($K6:$O6,1,aux!$AL$1))^(1/($O$3-INDEX($K$3:$O$3,1,aux!$AL$1)))-1,"n.d.") -> n.d. | AE6: =IF(INDEX($K6:$O6,1,aux!$AL$1)>0,(O6-INDEX($K6:$O6,1,aux!$AL$1))/INDEX($K6:$O6,1,aux!$AL$1),"n.d.") -> n.d. | AX6: 01
A7: 0104 | B7: Ovinos ou caprinos vivos | C7: 34.635 | D7: 32.555 | E7: 14.993 | F7: 0 | G7: 23.981 | H7: 21.2328 | I7: 3.124812961e-05 | J7: 2.241335468e-05 | K7: 0 | L7: 0 | M7: 0 | N7: 0 | O7: 0 | P7: 0 | Q7: 0 | R7: 0 | S7: -21.2328 | U7: =G7-INDEX($C7:$G7,1,aux!$AL$1) -> -10.654 | V7: -2.970234233e-05 | W7: -2.070823135e-05 | X7: =+IF(INDEX($C7:$G7,1,aux!$AL$1)>0,(G7/INDEX($C7:$G7,1,aux!$AL$1))^(1/($G$3-INDEX($C$3:$G$3,1,aux!$AL$1)))-1,"n.d.") -> -0.08780429246 | Y7: =IF(INDEX($C7:$G7,1,aux!$AL$1)>0,(G7-INDEX($C7:$G7,1,aux!$AL$1))/INDEX($C7:$G7,1,aux!$AL$1),"n.d.") -> -0.3076079111 | AA7: =O7-INDEX($K7:$O7,1,aux!$AL$1) -> 0 | AB7: 0 | AC7: 0 | AD7: =+IF(INDEX($K7:$O7,1,aux!$AL$1)>0,(O7/INDEX($K7:$O7,1,aux!$AL$1))^(1/($O$3-INDEX($K$3:$O$3,1,aux!$AL$1)))-1,"n.d.") -> n.d. | AE7: =IF(INDEX($K7:$O7,1,aux!$AL$1)>0,(O7-INDEX($K7:$O7,1,aux!$AL$1))/INDEX($K7:$O7,1,aux!$AL$1),"n.d.") -> n.d. | AX7: 01
A8: 0105 | B8: Aves de capoeira vivas | C8: 122.749 | D8: 168.872 | E8: 969.139 | F8: 0 | G8: 0 | H8: 252.152 | I8: 0.0003710899352 | J8: 0.0002661717818 | K8: 0 | L8: 0 | M8: 0 | N8: 0 | O8: 0 | P8: 0 | Q8: 0 | R8: 0 | S8: -252.152 | U8: =G8-INDEX($C8:$G8,1,aux!$AL$1) -> -122.749 | V8: -0.0003422125792 | W8: -0.0002385878252 | X8: =+IF(INDEX($C8:$G8,1,aux!$AL$1)>0,(G8/INDEX($C8:$G8,1,aux!$AL$1))^(1/($G$3-INDEX($C$3:$G$3,1,aux!$AL$1)))-1,"n.d.") -> -1 | Y8: =IF(INDEX($C8:$G8,1,aux!$AL$1)>0,(G8-INDEX($C8:$G8,1,aux!$AL$1))/INDEX($C8:$G8,1,aux!$AL$1),"n.d.") -> -1 | AA8: =O8-INDEX($K8:$O8,1,aux!$AL$1) -> 0 | AB8: 0 | AC8: 0 | AD8: =+IF(INDEX($K8:$O8,1,aux!$AL$1)>0,(O8/INDEX($K8:$O8,1,aux!$AL$1))^(1/($O$3-INDEX($K$3:$O$3,1,aux!$AL$1)))-1,"n.d.") -> n.d. | AE8: =IF(INDEX($K8:$O8,1,aux!$AL$1)>0,(O8-INDEX($K8:$O8,1,aux!$AL$1))/INDEX($K8:$O8,1,aux!$AL$1),"n.d.") -> n.d. | AX8: 01
A9: 0106 | B9: Outros animais vivos | C9: 773.986 | D9: 461.604 | E9: 613.251 | F9: 948.91 | G9: 295.172 | H9: 618.5846 | I9: 0.0009103656491 | J9: 0.0006529782241 | K9: 141.994 | L9: 51.446 | M9: 232.435 | N9: 103.588 | O9: 410.274 | P9: 187.9474 | Q9: 0.000509753472 | R9: 0.00029667062 | S9: -430.6372 | U9: =G9-INDEX($C9:$G9,1,aux!$AL$1) -> -478.814 | V9: -0.001334888055 | W9: -0.0009306730884 | X9: =+IF(INDEX($C9:$G9,1,aux!$AL$1)>0,(G9/INDEX($C9:$G9,1,aux!$AL$1))^(1/($G$3-INDEX($C$3:$G$3,1,aux!$AL$1)))-1,"n.d.") -> -0.214157499 | Y9: =IF(INDEX($C9:$G9,1,aux!$AL$1)>0,(G9-INDEX($C9:$G9,1,aux!$AL$1))/INDEX($C9:$G9,1,aux!$AL$1),"n.d.") -> -0.6186339288 | AA9: =O9-INDEX($K9:$O9,1,aux!$AL$1) -> 268.28 | AB9: 0.001810059881 | AC9: 0.001351004392 | AD9: =+IF(INDEX($K9:$O9,1,aux!$AL$1)>0,(O9/INDEX($K9:$O9,1,aux!$AL$1))^(1/($O$3-INDEX($K$3:$O$3,1,aux!$AL$1)))-1,"n.d.") -> 0.3037700507 | AE9: =IF(INDEX($K9:$O9,1,aux!$AL$1)>0,(O9-INDEX($K9:$O9,1,aux!$AL$1))/INDEX($K9:$O9,1,aux!$AL$1),"n.d.") -> 1.889375607 | AX9: 01
A10: 01SS | B10: Animais vivos | C10: 0 | D10: 0 | E10: 0 | F10: 0 | G10: 0 | H10: 0 | I10: 0 | J10: 0 | K10: 0 | L10: 0 | M10: 0 | N10: 0 | O10: 0 | P10: 0 | Q10: 0 | R10: 0 | S10: 0 | U10: =G10-INDEX($C10:$G10,1,aux!$AL$1) -> 0 | V10: 0 | W10: 0 | X10: =+IF(INDEX($C10:$G10,1,aux!$AL$1)>0,(G10/INDEX($C10:$G10,1,aux!$AL$1))^(1/($G$3-INDEX($C$3:$G$3,1,aux!$AL$1)))-1,"n.d.") -> n.d. | Y10: =IF(INDEX($C10:$G10,1,aux!$AL$1)>0,(G10-INDEX($C10:$G10,1,aux!$AL$1))/INDEX($C10:$G10,1,aux!$AL$1),"n.d.") -> n.d. | AA10: =O10-INDEX($K10:$O10,1,aux!$AL$1) -> 0 | AB10: 0 | AC10: 0 | AD10: =+IF(INDEX($K10:$O10,1,aux!$AL$1)>0,(O10/INDEX($K10:$O10,1,aux!$AL$1))^(1/($O$3-INDEX($K$3:$O$3,1,aux!$AL$1)))-1,"n.d.") -> n.d. | AE10: =IF(INDEX($K10:$O10,1,aux!$AL$1)>0,(O10-INDEX($K10:$O10,1,aux!$AL$1))/INDEX($K10:$O10,1,aux!$AL$1),"n.d.") -> n.d. | AX10: 01
A11: 0201 | B11: Carnes de bovino, frescas ou refrigeradas | C11: 97089.788 | D11: 89032.053 | E11: 93206.152 | F11: 124683.466 | G11: 127344.454 | H11: 106271.1826 | I11: 0.1563983878 | J11: 0.1121799154 | K11: 10096.058 | L11: 5157.421 | M11: 6147.39 | N11: 11451.412 | O11: 11225.679 | P11: 8815.592 | Q11: 0.02390976747 | R11: 0.01391520789 | S11: -97455.5906 | U11: =G11-INDEX($C11:$G11,1,aux!$AL$1) -> 30254.666 | V11: 0.0843471416 | W11: 0.05880614069 | X11: =+IF(INDEX($C11:$G11,1,aux!$AL$1)>0,(G11/INDEX($C11:$G11,1,aux!$AL$1))^(1/($G$3-INDEX($C$3:$G$3,1,aux!$AL$1)))-1,"n.d.") -> 0.07016716243 | Y11: =IF(INDEX($C11:$G11,1,aux!$AL$1)>0,(G11-INDEX($C11:$G11,1,aux!$AL$1))/INDEX($C11:$G11,1,aux!$AL$1),"n.d.") -> 0.3116153266 | AA11: =O11-INDEX($K11:$O11,1,aux!$AL$1) -> 1129.621 | AB11: 0.007621446446 | AC11: 0.005688545295 | AD11: =+IF(INDEX($K11:$O11,1,aux!$AL$1)>0,(O11/INDEX($K11:$O11,1,aux!$AL$1))^(1/($O$3-INDEX($K$3:$O$3,1,aux!$AL$1)))-1,"n.d.") -> 0.02686936039 | AE11: =IF(INDEX($K11:$O11,1,aux!$AL$1)>0,(O11-INDEX($K11:$O11,1,aux!$AL$1))/INDEX($K11:$O11,1,aux!$AL$1),"n.d.") -> 0.1118873327 | AX11: 02
A12: 0202 | B12: Carnes de bovino, congeladas | C12: 11018.692 | D12: 8115.52 | E12: 16853.368 | F12: 26106.361 | G12: 23352.579 | H12: 17089.304 | I12: 0.02515018209 | J12: 0.01803947815 | K12: 8.848 | L12: 429.73 | M12: 175.796 | N12: 270.966 | O12: 2722.442 | P12: 721.5564 | Q12: 0.001957014995 | R12: 0.001138960074 | S12: -16367.7476 | U12: =G12-INDEX($C12:$G12,1,aux!$AL$1) -> 12333.887 | V12: 0.03438570808 | W12: 0.02397343584 | X12: =+IF(INDEX($C12:$G12,1,aux!$AL$1)>0,(G12/INDEX($C12:$G12,1,aux!$AL$1))^(1/($G$3-INDEX($C$3:$G$3,1,aux!$AL$1)))-1,"n.d.") -> 0.2065663292 | Y12: =IF(INDEX($C12:$G12,1,aux!$AL$1)>0,(G12-INDEX($C12:$G12,1,aux!$AL$1))/INDEX($C12:$G12,1,aux!$AL$1),"n.d.") -> 1.119360356 | AA12: =O12-INDEX($K12:$O12,1,aux!$AL$1) -> 2713.594 | AB12: 0.01830836302 | AC12: 0.01366511634 | AD12: =+IF(INDEX($K12:$O12,1,aux!$AL$1)>0,(O12/INDEX($K12:$O12,1,aux!$AL$1))^(1/($O$3-INDEX($K$3:$O$3,1,aux!$AL$1)))-1,"n.d.") -> 3.188209336 | AE12: =IF(INDEX($K12:$O12,1,aux!$AL$1)>0,(O12-INDEX($K12:$O12,1,aux!$AL$1))/INDEX($K12:$O12,1,aux!$AL$1),"n.d.") -> 306.6900995 | AX12: 02
A13: 0203 | B13: Carnes de suíno | C13: 2255.116 | D13: 2994.115 | E13: 1699.637 | F13: 2957.84 | G13: 8667.944 | H13: 3714.9304 | I13: 0.0054672312 | J13: 0.003921482454 | K13: 267.178 | L13: 121.97 | M13: 333.701 | N13: 668.577 | O13: 508.802 | P13: 380.0456 | Q13: 0.0010307648 | R13: 0.0005998931817 | S13: -3334.8848 | U13: =G13-INDEX($C13:$G13,1,aux!$AL$1) -> 6412.828 | V13: 0.01787835673 | W13: 0.01246464481 | X13: =+IF(INDEX($C13:$G13,1,aux!$AL$1)>0,(G13/INDEX($C13:$G13,1,aux!$AL$1))^(1/($G$3-INDEX($C$3:$G$3,1,aux!$AL$1)))-1,"n.d.") -> 0.4001894551 | Y13: =IF(INDEX($C13:$G13,1,aux!$AL$1)>0,(G13-INDEX($C13:$G13,1,aux!$AL$1))/INDEX($C13:$G13,1,aux!$AL$1),"n.d.") -> 2.843679882 | AA13: =O13-INDEX($K13:$O13,1,aux!$AL$1) -> 241.624 | AB13: 0.00163021436 | AC13: 0.00121677011 | AD13: =+IF(INDEX($K13:$O13,1,aux!$AL$1)>0,(O13/INDEX($K13:$O13,1,aux!$AL$1))^(1/($O$3-INDEX($K$3:$O$3,1,aux!$AL$1)))-1,"n.d.") -> 0.1747272112 | AE13: =IF(INDEX($K13:$O13,1,aux!$AL$1)>0,(O13-INDEX($K13:$O13,1,aux!$AL$1))/INDEX($K13:$O13,1,aux!$AL$1),"n.d.") -> 0.9043558976 | AX13: 02
A14: 0204 | B14: Carnes de ovino ou caprino | C14: 4297.559 | D14: 1792.7 | E14: 3791.994 | F14: 7139.667 | G14: 6211.547 | H14: 4646.6934 | I14: 0.006838498814 | J14: 0.004905051959 | K14: 0.171 | L14: 0.328 | M14: 389.278 | N14: 458.164 | O14: 2.107 | P14: 170.0096 | Q14: 0.000461102329 | R14: 0.0002683562179 | S14: -4476.6838 | U14: =G14-INDEX($C14:$G14,1,aux!$AL$1) -> 1913.988 | V14: 0.005336017157 | W14: 0.003720227736 | X14: =+IF(INDEX($C14:$G14,1,aux!$AL$1)>0,(G14/INDEX($C14:$G14,1,aux!$AL$1))^(1/($G$3-INDEX($C$3:$G$3,1,aux!$AL$1)))-1,"n.d.") -> 0.09646426473 | Y14: =IF(INDEX($C14:$G14,1,aux!$AL$1)>0,(G14-INDEX($C14:$G14,1,aux!$AL$1))/INDEX($C14:$G14,1,aux!$AL$1),"n.d.") -> 0.4453663114 | AA14: =O14-INDEX($K14:$O14,1,aux!$AL$1) -> 1.936 | AB14: 1.306200958e-05 | AC14: 9.749308566e-06 | AD14: =+IF(INDEX($K14:$O14,1,aux!$AL$1)>0,(O14/INDEX($K14:$O14,1,aux!$AL$1))^(1/($O$3-INDEX($K$3:$O$3,1,aux!$AL$1)))-1,"n.d.") -> 0.8735578453 | AE14: =IF(INDEX($K14:$O14,1,aux!$AL$1)>0,(O14-INDEX($K14:$O14,1,aux!$AL$1))/INDEX($K14:$O14,1,aux!$AL$1),"n.d.") -> 11.32163743 | AX14: 02
A15: 0205 | B15: Carnes de equídeo | C15: 0 | D15: 0 | E15: 0 | F15: 13.129 | G15: 18.851 | H15: 6.396 | I15: 9.41293833e-06 | J15: 6.751620912e-06 | K15: 0 | L15: 0 | M15: 0 | N15: 0 | O15: 0 | P15: 0 | Q15: 0 | R15: 0 | S15: -6.396 | U15: =G15-INDEX($C15:$G15,1,aux!$AL$1) -> 18.851 | V15: 5.25548015e-05 | W15: 3.664077991e-05 | X15: =+IF(INDEX($C15:$G15,1,aux!$AL$1)>0,(G15/INDEX($C15:$G15,1,aux!$AL$1))^(1/($G$3-INDEX($C$3:$G$3,1,aux!$AL$1)))-1,"n.d.") -> n.d. | Y15: =IF(INDEX($C15:$G15,1,aux!$AL$1)>0,(G15-INDEX($C15:$G15,1,aux!$AL$1))/INDEX($C15:$G15,1,aux!$AL$1),"n.d.") -> n.d. | AA15: =O15-INDEX($K15:$O15,1,aux!$AL$1) -> 0 | AB15: 0 | AC15: 0 | AD15: =+IF(INDEX($K15:$O15,1,aux!$AL$1)>0,(O15/INDEX($K15:$O15,1,aux!$AL$1))^(1/($O$3-INDEX($K$3:$O$3,1,aux!$AL$1)))-1,"n.d.") -> n.d. | AE15: =IF(INDEX($K15:$O15,1,aux!$AL$1)>0,(O15-INDEX($K15:$O15,1,aux!$AL$1))/INDEX($K15:$O15,1,aux!$AL$1),"n.d.") -> n.d. | AX15: 02
A16: 0206 | B16: Miudezas de bovino, suíno, ovino, caprino,equídeo | C16: 1148.757 | D16: 821.868 | E16: 834.378 | F16: 1263.656 | G16: 1574.645 | H16: 1128.6608 | I16: 0.001661040417 | J16: 0.001191414925 | K16: 54.189 | L16: 37.902 | M16: 50.958 | N16: 208.78 | O16: 341.543 | P16: 138.6744 | Q16: 0.0003761145771 | R16: 0.0002188943301 | S16: -989.9864 | U16: =G16-INDEX($C16:$G16,1,aux!$AL$1) -> 425.888 | V16: 0.001187335383 | W16: 0.0008278005662 | X16: =+IF(INDEX($C16:$G16,1,aux!$AL$1)>0,(G16/INDEX($C16:$G16,1,aux!$AL$1))^(1/($G$3-INDEX($C$3:$G$3,1,aux!$AL$1)))-1,"n.d.") -> 0.08202830552 | Y16: =IF(INDEX($C16:$G16,1,aux!$AL$1)>0,(G16-INDEX($C16:$G16,1,aux!$AL$1))/INDEX($C16:$G16,1,aux!$AL$1),"n.d.") -> 0.3707381108 | AA16: =O16-INDEX($K16:$O16,1,aux!$AL$1) -> 287.354 | AB16: 0.001938750361 | AC16: 0.001447057238 | AD16: =+IF(INDEX($K16:$O16,1,aux!$AL$1)>0,(O16/INDEX($K16:$O16,1,aux!$AL$1))^(1/($O$3-INDEX($K$3:$O$3,1,aux!$AL$1)))-1,"n.d.") -> 0.58446833 | AE16: =IF(INDEX($K16:$O16,1,aux!$AL$1)>0,(O16-INDEX($K16:$O16,1,aux!$AL$1))/INDEX($K16:$O16,1,aux!$AL$1),"n.d.") -> 5.302810534 | AX16: 02
A17: 0207 | B17: Carnes e miudezas de aves de capoeira | C17: 9929.931 | D17: 9461.945 | E17: 12239.867 | F17: 24437.709 | G17: 33629.828 | H17: 17939.856 | I17: 0.02640193217 | J17: 0.01893732128 | K17: 51.699 | L17: 293.238 | M17: 368.421 | N17: 380.693 | O17: 1251.217 | P17: 469.0536 | Q17: 0.001272173497 | R17: 0.0007403902492 | S17: -17470.8024 | U17: =G17-INDEX($C17:$G17,1,aux!$AL$1) -> 23699.897 | V17: 0.06607306681 | W17: 0.04606560447 | X17: =+IF(INDEX($C17:$G17,1,aux!$AL$1)>0,(G17/INDEX($C17:$G17,1,aux!$AL$1))^(1/($G$3-INDEX($C$3:$G$3,1,aux!$AL$1)))-1,"n.d.") -> 0.3565774819 | Y17: =IF(INDEX($C17:$G17,1,aux!$AL$1)>0,(G17-INDEX($C17:$G17,1,aux!$AL$1))/INDEX($C17:$G17,1,aux!$AL$1),"n.d.") -> 2.38671316 | AA17: =O17-INDEX($K17:$O17,1,aux!$AL$1) -> 1199.518 | AB17: 0.008093034919 | AC17: 0.006040532599 | AD17: =+IF(INDEX($K17:$O17,1,aux!$AL$1)>0,(O17/INDEX($K17:$O17,1,aux!$AL$1))^(1/($O$3-INDEX($K$3:$O$3,1,aux!$AL$1)))-1,"n.d.") -> 1.218005524 | AE17: =IF(INDEX($K17:$O17,1,aux!$AL$1)>0,(O17-INDEX($K17:$O17,1,aux!$AL$1))/INDEX($K17:$O17,1,aux!$AL$1),"n.d.") -> 23.20195748 | AX17: 02
A18: 0208 | B18: Outras carnes e miudezas | C18: 7.585 | D18: 242.49 | E18: 983.484 | F18: 609.835 | G18: 730.583 | H18: 514.7954 | I18: 0.0007576199739 | J18: 0.0005434182908 | K18: 1.826 | L18: 1.176 | M18: 1.255 | N18: 1.939 | O18: 1.645 | P18: 1.5682 | Q18: 4.253293181e-06 | R18: 2.475367397e-06 | S18: -513.2272 | U18: =G18-INDEX($C18:$G18,1,aux!$AL$1) -> 722.998 | V18: 0.002015649906 | W18: 0.001405294711 | X18: =+IF(INDEX($C18:$G18,1,aux!$AL$1)>0,(G18/INDEX($C18:$G18,1,aux!$AL$1))^(1/($G$3-INDEX($C$3:$G$3,1,aux!$AL$1)))-1,"n.d.") -> 2.132769878 | Y18: =IF(INDEX($C18:$G18,1,aux!$AL$1)>0,(G18-INDEX($C18:$G18,1,aux!$AL$1))/INDEX($C18:$G18,1,aux!$AL$1),"n.d.") -> 95.31944628 | AA18: =O18-INDEX($K18:$O18,1,aux!$AL$1) -> -0.181 | AB18: -1.221189945e-06 | AC18: -9.114797781e-07 | AD18: =+IF(INDEX($K18:$O18,1,aux!$AL$1)>0,(O18/INDEX($K18:$O18,1,aux!$AL$1))^(1/($O$3-INDEX($K$3:$O$3,1,aux!$AL$1)))-1,"n.d.") -> -0.02575926968 | AE18: =IF(INDEX($K18:$O18,1,aux!$AL$1)>0,(O18-INDEX($K18:$O18,1,aux!$AL$1))/INDEX($K18:$O18,1,aux!$AL$1),"n.d.") -> -0.0991237678 | AX18: 02
A19: 0209 | B19: Toucinho, gorduras de porco e de aves | C19: 284.147 | D19: 77.776 | E19: 84.878 | F19: 70.952 | G19: 224.88 | H19: 148.5266 | I19: 0.000218585323 | J19: 0.0001567847559 | K19: 25.079 | L19: 0.608 | M19: 0.339 | N19: 0.061 | O19: 0.275 | P19: 5.2724 | Q19: 1.429987436e-05 | R19: 8.322361346e-06 | S19: -143.2542 | U19: =G19-INDEX($C19:$G19,1,aux!$AL$1) -> -59.267 | V19: -0.0001652307793 | W19: -0.0001151975547 | X19: =+IF(INDEX($C19:$G19,1,aux!$AL$1)>0,(G19/INDEX($C19:$G19,1,aux!$AL$1))^(1/($G$3-INDEX($C$3:$G$3,1,aux!$AL$1)))-1,"n.d.") -> -0.05680402374 | Y19: =IF(INDEX($C19:$G19,1,aux!$AL$1)>0,(G19-INDEX($C19:$G19,1,aux!$AL$1))/INDEX($C19:$G19,1,aux!$AL$1),"n.d.") -> -0.2085786582 | AA19: =O19-INDEX($K19:$O19,1,aux!$AL$1) -> -24.804 | AB19: -0.0001673502508 | AC19: -0.0001249079802 | AD19: =+IF(INDEX($K19:$O19,1,aux!$AL$1)>0,(O19/INDEX($K19:$O19,1,aux!$AL$1))^(1/($O$3-INDEX($K$3:$O$3,1,aux!$AL$1)))-1,"n.d.") -> -0.6764021559 | AE19: =IF(INDEX($K19:$O19,1,aux!$AL$1)>0,(O19-INDEX($K19:$O19,1,aux!$AL$1))/INDEX($K19:$O19,1,aux!$AL$1),"n.d.") -> -0.9890346505 | AX19: 02
A20: 0210 | B20: Carnes e miudezas processadas; farinhas de carnes | C20: 1060.449 | D20: 1338.779 | E20: 1958.842 | F20: 1286.027 | G20: 3563.679 | H20: 1841.5552 | I20: 0.00271020099 | J20: 0.001943946623 | K20: 47.021 | L20: 122.273 | M20: 36.636 | N20: 76.94 | O20: 55.586 | P20: 67.6912 | Q20: 0.0001835929852 | R20: 0.0001068489922 | S20: -1773.864 | U20: =G20-INDEX($C20:$G20,1,aux!$AL$1) -> 2503.23 | V20: 0.006978768011 | W20: 0.004865540262 | X20: =+IF(INDEX($C20:$G20,1,aux!$AL$1)>0,(G20/INDEX($C20:$G20,1,aux!$AL$1))^(1/($G$3-INDEX($C$3:$G$3,1,aux!$AL$1)))-1,"n.d.") -> 0.353948663 | Y20: =IF(INDEX($C20:$G20,1,aux!$AL$1)>0,(G20-INDEX($C20:$G20,1,aux!$AL$1))/INDEX($C20:$G20,1,aux!$AL$1),"n.d.") -> 2.360537848 | AA20: =O20-INDEX($K20:$O20,1,aux!$AL$1) -> 8.565 | AB20: 5.778724794e-05 | AC20: 4.313162596e-05 | AD20: =+IF(INDEX($K20:$O20,1,aux!$AL$1)>0,(O20/INDEX($K20:$O20,1,aux!$AL$1))^(1/($O$3-INDEX($K$3:$O$3,1,aux!$AL$1)))-1,"n.d.") -> 0.0427216491 | AE20: =IF(INDEX($K20:$O20,1,aux!$AL$1)>0,(O20-INDEX($K20:$O20,1,aux!$AL$1))/INDEX($K20:$O20,1,aux!$AL$1),"n.d.") -> 0.1821526552 | AX20: 02
A21: 02SS | B21: Carnes e miudezas, comestíveis | C21: 0 | D21: 0 | E21: 0 | F21: 0 | G21: 0 | H21: 0 | I21: 0 | J21: 0 | K21: 0 | L21: 0 | M21: 0 | N21: 0 | O21: 0 | P21: 0 | Q21: 0 | R21: 0 | S21: 0 | U21: =G21-INDEX($C21:$G21,1,aux!$AL$1) -> 0 | V21: 0 | W21: 0 | X21: =+IF(INDEX($C21:$G21,1,aux!$AL$1)>0,(G21/INDEX($C21:$G21,1,aux!$AL$1))^(1/($G$3-INDEX($C$3:$G$3,1,aux!$AL$1)))-1,"n.d.") -> n.d. | Y21: =IF(INDEX($C21:$G21,1,aux!$AL$1)>0,(G21-INDEX($C21:$G21,1,aux!$AL$1))/INDEX($C21:$G21,1,aux!$AL$1),"n.d.") -> n.d. | AA21: =O21-INDEX($K21:$O21,1,aux!$AL$1) -> 0 | AB21: 0 | AC21: 0 | AD21: =+IF(INDEX($K21:$O21,1,aux!$AL$1)>0,(O21/INDEX($K21:$O21,1,aux!$AL$1))^(1/($O$3-INDEX($K$3:$O$3,1,aux!$AL$1)))-1,"n.d.") -> n.d. | AE21: =IF(INDEX($K21:$O21,1,aux!$AL$1)>0,(O21-INDEX($K21:$O21,1,aux!$AL$1))/INDEX($K21:$O21,1,aux!$AL$1),"n.d.") -> n.d. | AX21: 02
A22: 0401 | B22: Leite e nata, não concentrados | C22: 10.55 | D22: 2.511 | E22: 202.65 | F22: 507.808 | G22: 1260.277 | H22: 396.7592 | I22: 0.0005839071109 | J22: 0.000418819217 | K22: 8.932 | L22: 4.425 | M22: 6.593 | N22: 117.692 | O22: 3084.48 | P22: 644.4244 | Q22: 0.001747816545 | R22: 0.001017208997 | S22: 247.6652 | U22: =G22-INDEX($C22:$G22,1,aux!$AL$1) -> 1249.727 | V22: 0.00348412044 | W22: 0.002429100416 | X22: =+IF(INDEX($C22:$G22,1,aux!$AL$1)>0,(G22/INDEX($C22:$G22,1,aux!$AL$1))^(1/($G$3-INDEX($C$3:$G$3,1,aux!$AL$1)))-1,"n.d.") -> 2.306004099 | Y22: =IF(INDEX($C22:$G22,1,aux!$AL$1)>0,(G22-INDEX($C22:$G22,1,aux!$AL$1))/INDEX($C22:$G22,1,aux!$AL$1),"n.d.") -> 118.4575355 | AA22: =O22-INDEX($K22:$O22,1,aux!$AL$1) -> 3075.548 | AB22: 0.02075043256 | AC22: 0.01548784425 | AD22: =+IF(INDEX($K22:$O22,1,aux!$AL$1)>0,(O22/INDEX($K22:$O22,1,aux!$AL$1))^(1/($O$3-INDEX($K$3:$O$3,1,aux!$AL$1)))-1,"n.d.") -> 3.310804336 | AE22: =IF(INDEX($K22:$O22,1,aux!$AL$1)>0,(O22-INDEX($K22:$O22,1,aux!$AL$1))/INDEX($K22:$O22,1,aux!$AL$1),"n.d.") -> 344.3291536 | AX22: 04
A23: 0402 | B23: Leite e nata, concentrados | C23: 4332.737 | D23: 5219.832 | E23: 7038.834 | F23: 17760.195 | G23: 14089.765 | H23: 9688.2726 | I23: 0.01425814767 | J23: 0.01022694557 | K23: 18245.259 | L23: 22398.423 | M23: 32672.739 | N23: 19328.597 | O23: 27735.821 | P23: 24076.1678 | Q23: 0.06529970688 | R23: 0.03800367352 | S23: 14387.8952 | U23: =G23-INDEX($C23:$G23,1,aux!$AL$1) -> 9757.028 | V23: 0.0272016694 | W23: 0.01896478253 | X23: =+IF(INDEX($C23:$G23,1,aux!$AL$1)>0,(G23/INDEX($C23:$G23,1,aux!$AL$1))^(1/($G$3-INDEX($C$3:$G$3,1,aux!$AL$1)))-1,"n.d.") -> 0.3428742786 | Y23: =IF(INDEX($C23:$G23,1,aux!$AL$1)>0,(G23-INDEX($C23:$G23,1,aux!$AL$1))/INDEX($C23:$G23,1,aux!$AL$1),"n.d.") -> 2.251931747 | AA23: =O23-INDEX($K23:$O23,1,aux!$AL$1) -> 9490.562 | AB23: 0.06403192755 | AC23: 0.04779257097 | AD23: =+IF(INDEX($K23:$O23,1,aux!$AL$1)>0,(O23/INDEX($K23:$O23,1,aux!$AL$1))^(1/($O$3-INDEX($K$3:$O$3,1,aux!$AL$1)))-1,"n.d.") -> 0.1103828573 | AE23: =IF(INDEX($K23:$O23,1,aux!$AL$1)>0,(O23-INDEX($K23:$O23,1,aux!$AL$1))/INDEX($K23:$O23,1,aux!$AL$1),"n.d.") -> 0.5201659237 | AX23: 04
A24: 0403 | B24: Leitelho, leite coalhado, iogurte, etc. | C24: 24.896 | D24: 1603.682 | E24: 3266.087 | F24: 2683.801 | G24: 2613.42 | H24: 2038.3772 | I24: 0.002999862238 | J24: 0.002151712028 | K24: 221.858 | L24: 159.301 | M24: 736.359 | N24: 1405.531 | O24: 1336.241 | P24: 771.858 | Q24: 0.002093443673 | R24: 0.001218359985 | S24: -1266.5192 | U24: =G24-INDEX($C24:$G24,1,aux!$AL$1) -> 2588.524 | V24: 0.007216559599 | W24: 0.005031326623 | X24: =+IF(INDEX($C24:$G24,1,aux!$AL$1)>0,(G24/INDEX($C24:$G24,1,aux!$AL$1))^(1/($G$3-INDEX($C$3:$G$3,1,aux!$AL$1)))-1,"n.d.") -> 2.200883802 | Y24: =IF(INDEX($C24:$G24,1,aux!$AL$1)>0,(G24-INDEX($C24:$G24,1,aux!$AL$1))/INDEX($C24:$G24,1,aux!$AL$1),"n.d.") -> 103.9734897 | AA24: =O24-INDEX($K24:$O24,1,aux!$AL$1) -> 1114.383 | AB24: 0.007518637096 | AC24: 0.005611809777 | AD24: =+IF(INDEX($K24:$O24,1,aux!$AL$1)>0,(O24/INDEX($K24:$O24,1,aux!$AL$1))^(1/($O$3-INDEX($K$3:$O$3,1,aux!$AL$1)))-1,"n.d.") -> 0.5665794486 | AE24: =IF(INDEX($K24:$O24,1,aux!$AL$1)>0,(O24-INDEX($K24:$O24,1,aux!$AL$1))/INDEX($K24:$O24,1,aux!$AL$1),"n.d.") -> 5.022956125 | AX24: 04
A25: 0404 | B25: Soro de leite e outros produtos do leite | C25: 2080.747 | D25: 2580.895 | E25: 5603.613 | F25: 8078.837 | G25: 5529.789 | H25: 4774.7762 | I25: 0.007026997172 | J25: 0.005040256229 | K25: 1290.375 | L25: 1783.978 | M25: 1639.241 | N25: 2123.018 | O25: 2566.592 | P25: 1880.6408 | Q25: 0.005100699331 | R25: 0.002968547967 | S25: -2894.1354 | U25: =G25-INDEX($C25:$G25,1,aux!$AL$1) -> 3449.042 | V25: 0.009615602233 | W25: 0.006703919623 | X25: =+IF(INDEX($C25:$G25,1,aux!$AL$1)>0,(G25/INDEX($C25:$G25,1,aux!$AL$1))^(1/($G$3-INDEX($C$3:$G$3,1,aux!$AL$1)))-1,"n.d.") -> 0.2767983735 | Y25: =IF(INDEX($C25:$G25,1,aux!$AL$1)>0,(G25-INDEX($C25:$G25,1,aux!$AL$1))/INDEX($C25:$G25,1,aux!$AL$1),"n.d.") -> 1.657597968 | AA25: =O25-INDEX($K25:$O25,1,aux!$AL$1) -> 1276.217 | AB25: 0.008610515845 | AC25: 0.006426773414 | AD25: =+IF(INDEX($K25:$O25,1,aux!$AL$1)>0,(O25/INDEX($K25:$O25,1,aux!$AL$1))^(1/($O$3-INDEX($K$3:$O$3,1,aux!$AL$1)))-1,"n.d.") -> 0.1875727507 | AE25: =IF(INDEX($K25:$O25,1,aux!$AL$1)>0,(O25-INDEX($K25:$O25,1,aux!$AL$1))/INDEX($K25:$O25,1,aux!$AL$1),"n.d.") -> 0.9890279957 | AX25: 04
A26: 0405 | B26: Manteiga | C26: 1863.174 | D26: 1304.571 | E26: 718.865 | F26: 2041.187 | G26: 1607.52 | H26: 1507.0634 | I26: 0.002217932277 | J26: 0.001590856905 | K26: 17991.06 | L26: 12273.409 | M26: 18997.144 | N26: 9167.863 | O26: 20027.513 | P26: 15691.3978 | Q26: 0.04255842065 | R26: 0.02476850818 | S26: 14184.3344 | U26: =G26-INDEX($C26:$G26,1,aux!$AL$1) -> -255.654 | V26: -0.0007127391239 | W26: -0.0004969159167 | X26: =+IF(INDEX($C26:$G26,1,aux!$AL$1)>0,(G26/INDEX($C26:$G26,1,aux!$AL$1))^(1/($G$3-INDEX($C$3:$G$3,1,aux!$AL$1)))-1,"n.d.") -> -0.03622480962 | Y26: =IF(INDEX($C26:$G26,1,aux!$AL$1)>0,(G26-INDEX($C26:$G26,1,aux!$AL$1))/INDEX($C26:$G26,1,aux!$AL$1),"n.d.") -> -0.1372142376 | AA26: =O26-INDEX($K26:$O26,1,aux!$AL$1) -> 2036.453 | AB26: 0.0137397565 | AC26: 0.01025516977 | AD26: =+IF(INDEX($K26:$O26,1,aux!$AL$1)>0,(O26/INDEX($K26:$O26,1,aux!$AL$1))^(1/($O$3-INDEX($K$3:$O$3,1,aux!$AL$1)))-1,"n.d.") -> 0.02717056974 | AE26: =IF(INDEX($K26:$O26,1,aux!$AL$1)>0,(O26-INDEX($K26:$O26,1,aux!$AL$1))/INDEX($K26:$O26,1,aux!$AL$1),"n.d.") -> 0.1131924967 | AX26: 04
A27: 0406 | B27: Queijos e requeijão | C27: 19589.153 | D27: 24422.634 | E27: 27414.838 | F27: 43064.036 | G27: 42125.525 | H27: 31323.2372 | I27: 0.04609813947 | J27: 0.03306482541 | K27: 447.161 | L27: 650.03 | M27: 958.393 | N27: 1999.228 | O27: 876.711 | P27: 986.3046 | Q27: 0.002675068632 | R27: 0.001556858979 | S27: -30336.9326 | U27: =G27-INDEX($C27:$G27,1,aux!$AL$1) -> 22536.372 | V27: 0.06282926938 | W27: 0.04380405529 | X27: =+IF(INDEX($C27:$G27,1,aux!$AL$1)>0,(G27/INDEX($C27:$G27,1,aux!$AL$1))^(1/($G$3-INDEX($C$3:$G$3,1,aux!$AL$1)))-1,"n.d.") -> 0.210967303 | Y27: =IF(INDEX($C27:$G27,1,aux!$AL$1)>0,(G27-INDEX($C27:$G27,1,aux!$AL$1))/INDEX($C27:$G27,1,aux!$AL$1),"n.d.") -> 1.150451579 | AA27: =O27-INDEX($K27:$O27,1,aux!$AL$1) -> 429.55 | AB27: 0.002898133375 | AC27: 0.002163127838 | AD27: =+IF(INDEX($K27:$O27,1,aux!$AL$1)>0,(O27/INDEX($K27:$O27,1,aux!$AL$1))^(1/($O$3-INDEX($K$3:$O$3,1,aux!$AL$1)))-1,"n.d.") -> 0.1833089089 | AE27: =IF(INDEX($K27:$O27,1,aux!$AL$1)>0,(O27-INDEX($K27:$O27,1,aux!$AL$1))/INDEX($K27:$O27,1,aux!$AL$1),"n.d.") -> 0.960615975 | AX27: 04
A28: 0407 | B28: Ovos de aves, com cascas | C28: 57.107 | D28: 65.033 | E28: 58.592 | F28: 32.302 | G28: 1.279 | H28: 42.8626 | I28: 6.308052071e-05 | J28: 4.524578276e-05 | K28: 217.921 | L28: 1045.77 | M28: 700.453 | N28: 395.224 | O28: 657.534 | P28: 603.3804 | Q28: 0.001636496455 | R28: 0.0009524219934 | S28: 560.5178 | U28: =G28-INDEX($C28:$G28,1,aux!$AL$1) -> -55.828 | V28: -0.0001556431732 | W28: -0.0001085131537 | X28: =+IF(INDEX($C28:$G28,1,aux!$AL$1)>0,(G28/INDEX($C28:$G28,1,aux!$AL$1))^(1/($G$3-INDEX($C$3:$G$3,1,aux!$AL$1)))-1,"n.d.") -> -0.6131475964 | Y28: =IF(INDEX($C28:$G28,1,aux!$AL$1)>0,(G28-INDEX($C28:$G28,1,aux!$AL$1))/INDEX($C28:$G28,1,aux!$AL$1),"n.d.") -> -0.9776034462 | AA28: =O28-INDEX($K28:$O28,1,aux!$AL$1) -> 439.613 | AB28: 0.002966027488 | AC28: 0.002213803092 | AD28: =+IF(INDEX($K28:$O28,1,aux!$AL$1)>0,(O28/INDEX($K28:$O28,1,aux!$AL$1))^(1/($O$3-INDEX($K$3:$O$3,1,aux!$AL$1)))-1,"n.d.") -> 0.3179677482 | AE28: =IF(INDEX($K28:$O28,1,aux!$AL$1)>0,(O28-INDEX($K28:$O28,1,aux!$AL$1))/INDEX($K28:$O28,1,aux!$AL$1),"n.d.") -> 2.017304436 | AX28: 04
A29: 0408 | B29: Ovos de aves, sem casca | C29: 1000.312 | D29: 687.931 | E29: 1078.005 | F29: 1594.123 | G29: 1771.101 | H29: 1226.2944 | I29: 0.001804726948 | J29: 0.001294477004 | K29: 0 | L29: 0.105 | M29: 0.169 | N29: 0.042 | O29: 0 | P29: 0.0632 | Q29: 1.71411892e-07 | R29: 9.975973694e-08 | S29: -1226.2312 | U29: =G29-INDEX($C29:$G29,1,aux!$AL$1) -> 770.789 | V29: 0.002148886685 | W29: 0.001498186309 | X29: =+IF(INDEX($C29:$G29,1,aux!$AL$1)>0,(G29/INDEX($C29:$G29,1,aux!$AL$1))^(1/($G$3-INDEX($C$3:$G$3,1,aux!$AL$1)))-1,"n.d.") -> 0.1535248701 | Y29: =IF(INDEX($C29:$G29,1,aux!$AL$1)>0,(G29-INDEX($C29:$G29,1,aux!$AL$1))/INDEX($C29:$G29,1,aux!$AL$1),"n.d.") -> 0.7705485888 | AA29: =O29-INDEX($K29:$O29,1,aux!$AL$1) -> 0 | AB29: 0 | AC29: 0 | AD29: =+IF(INDEX($K29:$O29,1,aux!$AL$1)>0,(O29/INDEX($K29:$O29,1,aux!$AL$1))^(1/($O$3-INDEX($K$3:$O$3,1,aux!$AL$1)))-1,"n.d.") -> n.d. | AE29: =IF(INDEX($K29:$O29,1,aux!$AL$1)>0,(O29-INDEX($K29:$O29,1,aux!$AL$1))/INDEX($K29:$O29,1,aux!$AL$1),"n.d.") -> n.d. | AX29: 04
A30: 0409 | B30: Mel natural | C30: 31.982 | D30: 6.631 | E30: 18.853 | F30: 32.369 | G30: 19.97 | H30: 21.961 | I30: 3.23198153e-05 | J30: 2.318204297e-05 | K30: 2.764 | L30: 2.395 | M30: 278.131 | N30: 14.543 | O30: 43.079 | P30: 68.1824 | Q30: 0.0001849252244 | R30: 0.00010762434 | S30: 46.2214 | U30: =G30-INDEX($C30:$G30,1,aux!$AL$1) -> -12.012 | V30: -3.348831763e-05 | W30: -2.334778252e-05 | X30: =+IF(INDEX($C30:$G30,1,aux!$AL$1)>0,(G30/INDEX($C30:$G30,1,aux!$AL$1))^(1/($G$3-INDEX($C$3:$G$3,1,aux!$AL$1)))-1,"n.d.") -> -0.1110688778 | Y30: =IF(INDEX($C30:$G30,1,aux!$AL$1)>0,(G30-INDEX($C30:$G30,1,aux!$AL$1))/INDEX($C30:$G30,1,aux!$AL$1),"n.d.") -> -0.3755862673 | AA30: =O30-INDEX($K30:$O30,1,aux!$AL$1) -> 40.315 | AB30: 0.0002720015062 | AC30: 0.0002030182721 | AD30: =+IF(INDEX($K30:$O30,1,aux!$AL$1)>0,(O30/INDEX($K30:$O30,1,aux!$AL$1))^(1/($O$3-INDEX($K$3:$O$3,1,aux!$AL$1)))-1,"n.d.") -> 0.9869269191 | AE30: =IF(INDEX($K30:$O30,1,aux!$AL$1)>0,(O30-INDEX($K30:$O30,1,aux!$AL$1))/INDEX($K30:$O30,1,aux!$AL$1),"n.d.") -> 14.5857453 | AX30: 04
A31: 0410 | B31: Outros produtos comestíveis de origem animal | C31: 0.016 | D31: 0.009 | E31: 0.216 | F31: 0 | G31: 1.896 | H31: 0.4274 | I31: 6.290009134e-07 | J31: 4.511636613e-07 | K31: 0 | L31: 0 | M31: 0 | N31: 0 | O31: 0 | P31: 0 | Q31: 0 | R31: 0 | S31: -0.4274 | U31: =G31-INDEX($C31:$G31,1,aux!$AL$1) -> 1.88 | V31: 5.241261834e-06 | W31: 3.654165096e-06 | X31: =+IF(INDEX($C31:$G31,1,aux!$AL$1)>0,(G31/INDEX($C31:$G31,1,aux!$AL$1))^(1/($G$3-INDEX($C$3:$G$3,1,aux!$AL$1)))-1,"n.d.") -> 2.299359109 | Y31: =IF(INDEX($C31:$G31,1,aux!$AL$1)>0,(G31-INDEX($C31:$G31,1,aux!$AL$1))/INDEX($C31:$G31,1,aux!$AL$1),"n.d.") -> 117.5 | AA31: =O31-INDEX($K31:$O31,1,aux!$AL$1) -> 0 | AB31: 0 | AC31: 0 | AD31: =+IF(INDEX($K31:$O31,1,aux!$AL$1)>0,(O31/INDEX($K31:$O31,1,aux!$AL$1))^(1/($O$3-INDEX($K$3:$O$3,1,aux!$AL$1)))-1,"n.d.") -> n.d. | AE31: =IF(INDEX($K31:$O31,1,aux!$AL$1)>0,(O31-INDEX($K31:$O31,1,aux!$AL$1))/INDEX($K31:$O31,1,aux!$AL$1),"n.d.") -> n.d. | AX31: 04
A32: 04SS | B32: Leite e lacticínios; ovos de aves; mel natural; etc. | C32: 0 | D32: 0 | E32: 0 | F32: 0 | G32: 0 | H32: 0 | I32: 0 | J32: 0 | K32: 0 | L32: 0 | M32: 0 | N32: 0 | O32: 0 | P32: 0 | Q32: 0 | R32: 0 | S32: 0 | U32: =G32-INDEX($C32:$G32,1,aux!$AL$1) -> 0 | V32: 0 | W32: 0 | X32: =+IF(INDEX($C32:$G32,1,aux!$AL$1)>0,(G32/INDEX($C32:$G32,1,aux!$AL$1))^(1/($G$3-INDEX($C$3:$G$3,1,aux!$AL$1)))-1,"n.d.") -> n.d. | Y32: =IF(INDEX($C32:$G32,1,aux!$AL$1)>0,(G32-INDEX($C32:$G32,1,aux!$AL$1))/INDEX($C32:$G32,1,aux!$AL$1),"n.d.") -> n.d. | AA32: =O32-INDEX($K32:$O32,1,aux!$AL$1) -> 0 | AB32: 0 | AC32: 0 | AD32: =+IF(INDEX($K32:$O32,1,aux!$AL$1)>0,(O32/INDEX($K32:$O32,1,aux!$AL$1))^(1/($O$3-INDEX($K$3:$O$3,1,aux!$AL$1)))-1,"n.d.") -> n.d. | AE32: =IF(INDEX($K32:$O32,1,aux!$AL$1)>0,(O32-INDEX($K32:$O32,1,aux!$AL$1))/INDEX($K32:$O32,1,aux!$AL$1),"n.d.") -> n.d. | AX32: 04
A33: 0501 | B33: Cabelos em bruto | C33: 0 | D33: 0 | E33: 0 | F33: 0 | G33: 0 | H33: 0 | I33: 0 | J33: 0 | K33: 0 | L33: 0 | M33: 0 | N33: 0 | O33: 0 | P33: 0 | Q33: 0 | R33: 0 | S33: 0 | U33: =G33-INDEX($C33:$G33,1,aux!$AL$1) -> 0 | V33: 0 | W33: 0 | X33: =+IF(INDEX($C33:$G33,1,aux!$AL$1)>0,(G33/INDEX($C33:$G33,1,aux!$AL$1))^(1/($G$3-INDEX($C$3:$G$3,1,aux!$AL$1)))-1,"n.d.") -> n.d. | Y33: =IF(INDEX($C33:$G33,1,aux!$AL$1)>0,(G33-INDEX($C33:$G33,1,aux!$AL$1))/INDEX($C33:$G33,1,aux!$AL$1),"n.d.") -> n.d. | AA33: =O33-INDEX($K33:$O33,1,aux!$AL$1) -> 0 | AB33: 0 | AC33: 0 | AD33: =+IF(INDEX($K33:$O33,1,aux!$AL$1)>0,(O33/INDEX($K33:$O33,1,aux!$AL$1))^(1/($O$3-INDEX($K$3:$O$3,1,aux!$AL$1)))-1,"n.d.") -> n.d. | AE33: =IF(INDEX($K33:$O33,1,aux!$AL$1)>0,(O33-INDEX($K33:$O33,1,aux!$AL$1))/INDEX($K33:$O33,1,aux!$AL$1),"n.d.") -> n.d. | AX33: 05
A34: 0502 | B34: Cerdas de porco ou de javali, etc. | C34: 220.207 | D34: 0 | E34: 0 | F34: 464.805 | G34: 3055.957 | H34: 748.1938 | I34: 0.001101110397 | J34: 0.0007897937627 | K34: 0 | L34: 0 | M34: 0 | N34: 0 | O34: 0 | P34: 0 | Q34: 0 | R34: 0 | S34: -748.1938 | U34: =G34-INDEX($C34:$G34,1,aux!$AL$1) -> 2835.75 | V34: 0.007905802258 | W34: 0.005511860995 | X34: =+IF(INDEX($C34:$G34,1,aux!$AL$1)>0,(G34/INDEX($C34:$G34,1,aux!$AL$1))^(1/($G$3-INDEX($C$3:$G$3,1,aux!$AL$1)))-1,"n.d.") -> 0.9300965288 | Y34: =IF(INDEX($C34:$G34,1,aux!$AL$1)>0,(G34-INDEX($C34:$G34,1,aux!$AL$1))/INDEX($C34:$G34,1,aux!$AL$1),"n.d.") -> 12.87765602 | AA34: =O34-INDEX($K34:$O34,1,aux!$AL$1) -> 0 | AB34: 0 | AC34: 0 | AD34: =+IF(INDEX($K34:$O34,1,aux!$AL$1)>0,(O34/INDEX($K34:$O34,1,aux!$AL$1))^(1/($O$3-INDEX($K$3:$O$3,1,aux!$AL$1)))-1,"n.d.") -> n.d. | AE34: =IF(INDEX($K34:$O34,1,aux!$AL$1)>0,(O34-INDEX($K34:$O34,1,aux!$AL$1))/INDEX($K34:$O34,1,aux!$AL$1),"n.d.") -> n.d. | AX34: 05
A35: 0504 | B35: Tripas de animais (excepto peixes) | C35: 19399.474 | D35: 20337.263 | E35: 20148.348 | F35: 6513.205 | G35: 9016.392 | H35: 15082.9364 | I35: 0.02219742811 | J35: 0.01592155547 | K35: 1005.13 | L35: 1845.02 | M35: 797.06 | N35: 1286.274 | O35: 721.606 | P35: 1131.018 | Q35: 0.003067562267 | R35: 0.00178528573 | S35: -13951.9184 | U35: =G35-INDEX($C35:$G35,1,aux!$AL$1) -> -10383.082 | V35: -0.02894704862 | W35: -0.02018164672 | X35: =+IF(INDEX($C35:$G35,1,aux!$AL$1)>0,(G35/INDEX($C35:$G35,1,aux!$AL$1))^(1/($G$3-INDEX($C$3:$G$3,1,aux!$AL$1)))-1,"n.d.") -> -0.1743220104 | Y35: =IF(INDEX($C35:$G35,1,aux!$AL$1)>0,(G35-INDEX($C35:$G35,1,aux!$AL$1))/INDEX($C35:$G35,1,aux!$AL$1),"n.d.") -> -0.5352249241 | AA35: =O35-INDEX($K35:$O35,1,aux!$AL$1) -> -283.524 | AB35: -0.001912909712 | AC35: -0.001427770125 | AD35: =+IF(INDEX($K35:$O35,1,aux!$AL$1)>0,(O35/INDEX($K35:$O35,1,aux!$AL$1))^(1/($O$3-INDEX($K$3:$O$3,1,aux!$AL$1)))-1,"n.d.") -> -0.07950915169 | AE35: =IF(INDEX($K35:$O35,1,aux!$AL$1)>0,(O35-INDEX($K35:$O35,1,aux!$AL$1))/INDEX($K35:$O35,1,aux!$AL$1),"n.d.") -> -0.2820769453 | AX35: 05
A36: 0505 | B36: Peles e outras partes de aves | C36: 0.626 | D36: 0.3 | E36: 41.38 | F36: 0.77 | G36: 0.611 | H36: 8.7374 | I36: 1.285875662e-05 | J36: 9.223203965e-06 | K36: 0 | L36: 0 | M36: 11.65 | N36: 12.603 | O36: 0 | P36: 4.8506 | Q36: 1.315586271e-05 | R36: 7.656559811e-06 | S36: -3.8868 | U36: =G36-INDEX($C36:$G36,1,aux!$AL$1) -> -0.015 | V36: -4.181857846e-08 | W36: -2.915557257e-08 | X36: =+IF(INDEX($C36:$G36,1,aux!$AL$1)>0,(G36/INDEX($C36:$G36,1,aux!$AL$1))^(1/($G$3-INDEX($C$3:$G$3,1,aux!$AL$1)))-1,"n.d.") -> -0.006045007954 | Y36: =IF(INDEX($C36:$G36,1,aux!$AL$1)>0,(G36-INDEX($C36:$G36,1,aux!$AL$1))/INDEX($C36:$G36,1,aux!$AL$1),"n.d.") -> -0.02396166134 | AA36: =O36-INDEX($K36:$O36,1,aux!$AL$1) -> 0 | AB36: 0 | AC36: 0 | AD36: =+IF(INDEX($K36:$O36,1,aux!$AL$1)>0,(O36/INDEX($K36:$O36,1,aux!$AL$1))^(1/($O$3-INDEX($K$3:$O$3,1,aux!$AL$1)))-1,"n.d.") -> n.d. | AE36: =IF(INDEX($K36:$O36,1,aux!$AL$1)>0,(O36-INDEX($K36:$O36,1,aux!$AL$1))/INDEX($K36:$O36,1,aux!$AL$1),"n.d.") -> n.d. | AX36: 05
A37: 0506 | B37: Ossos e núcleos córneos, em bruto | C37: 1.645 | D37: 2.641 | E37: 7.412 | F37: 16.268 | G37: 5.133 | H37: 6.6198 | I37: 9.74230287e-06 | J37: 6.987864308e-06 | K37: 10.431 | L37: 15.454 | M37: 47.75 | N37: 0 | O37: 0 | P37: 14.727 | Q37: 3.994276793e-05 | R37: 2.324622858e-05 | S37: 8.1072 | U37: =G37-INDEX($C37:$G37,1,aux!$AL$1) -> 3.488 | V37: 9.724213445e-06 | W37: 6.779642476e-06 | X37: =+IF(INDEX($C37:$G37,1,aux!$AL$1)>0,(G37/INDEX($C37:$G37,1,aux!$AL$1))^(1/($G$3-INDEX($C$3:$G$3,1,aux!$AL$1)))-1,"n.d.") -> 0.3290806662 | Y37: =IF(INDEX($C37:$G37,1,aux!$AL$1)>0,(G37-INDEX($C37:$G37,1,aux!$AL$1))/INDEX($C37:$G37,1,aux!$AL$1),"n.d.") -> 2.120364742 | AA37: =O37-INDEX($K37:$O37,1,aux!$AL$1) -> -10.431 | AB37: -7.037697412e-05 | AC37: -5.252842854e-05 | AD37: =+IF(INDEX($K37:$O37,1,aux!$AL$1)>0,(O37/INDEX($K37:$O37,1,aux!$AL$1))^(1/($O$3-INDEX($K$3:$O$3,1,aux!$AL$1)))-1,"n.d.") -> -1 | AE37: =IF(INDEX($K37:$O37,1,aux!$AL$1)>0,(O37-INDEX($K37:$O37,1,aux!$AL$1))/INDEX($K37:$O37,1,aux!$AL$1),"n.d.") -> -1 | AX37: 05
A38: 0507 | B38: Marfim, carapaças de tartaruga, etc. | C38: 0 | D38: 0 | E38: 0 | F38: 0 | G38: 0 | H38: 0 | I38: 0 | J38: 0 | K38: 0 | L38: 0 | M38: 0 | N38: 0 | O38: 0 | P38: 0 | Q38: 0 | R38: 0 | S38: 0 | U38: =G38-INDEX($C38:$G38,1,aux!$AL$1) -> 0 | V38: 0 | W38: 0 | X38: =+IF(INDEX($C38:$G38,1,aux!$AL$1)>0,(G38/INDEX($C38:$G38,1,aux!$AL$1))^(1/($G$3-INDEX($C$3:$G$3,1,aux!$AL$1)))-1,"n.d.") -> n.d. | Y38: =IF(INDEX($C38:$G38,1,aux!$AL$1)>0,(G38-INDEX($C38:$G38,1,aux!$AL$1))/INDEX($C38:$G38,1,aux!$AL$1),"n.d.") -> n.d. | AA38: =O38-INDEX($K38:$O38,1,aux!$AL$1) -> 0 | AB38: 0 | AC38: 0 | AD38: =+IF(INDEX($K38:$O38,1,aux!$AL$1)>0,(O38/INDEX($K38:$O38,1,aux!$AL$1))^(1/($O$3-INDEX($K$3:$O$3,1,aux!$AL$1)))-1,"n.d.") -> n.d. | AE38: =IF(INDEX($K38:$O38,1,aux!$AL$1)>0,(O38-INDEX($K38:$O38,1,aux!$AL$1))/INDEX($K38:$O38,1,aux!$AL$1),"n.d.") -> n.d. | AX38: 05
A39: 0510 | B39: Âmbar-cinzento, castóreo, algália e almíscar, etc. | C39: 0 | D39: 0 | E39: 0 | F39: 0 | G39: 0 | H39: 0 | I39: 0 | J39: 0 | K39: 0 | L39: 0 | M39: 0 | N39: 0 | O39: 0 | P39: 0 | Q39: 0 | R39: 0 | S39: 0 | U39: =G39-INDEX($C39:$G39,1,aux!$AL$1) -> 0 | V39: 0 | W39: 0 | X39: =+IF(INDEX($C39:$G39,1,aux!$AL$1)>0,(G39/INDEX($C39:$G39,1,aux!$AL$1))^(1/($G$3-INDEX($C$3:$G$3,1,aux!$AL$1)))-1,"n.d.") -> n.d. | Y39: =IF(INDEX($C39:$G39,1,aux!$AL$1)>0,(G39-INDEX($C39:$G39,1,aux!$AL$1))/INDEX($C39:$G39,1,aux!$AL$1),"n.d.") -> n.d. | AA39: =O39-INDEX($K39:$O39,1,aux!$AL$1) -> 0 | AB39: 0 | AC39: 0 | AD39: =+IF(INDEX($K39:$O39,1,aux!$AL$1)>0,(O39/INDEX($K39:$O39,1,aux!$AL$1))^(1/($O$3-INDEX($K$3:$O$3,1,aux!$AL$1)))-1,"n.d.") -> n.d. | AE39: =IF(INDEX($K39:$O39,1,aux!$AL$1)>0,(O39-INDEX($K39:$O39,1,aux!$AL$1))/INDEX($K39:$O39,1,aux!$AL$1),"n.d.") -> n.d. | AX39: 05
A40: 0511 | B40: Outros produtos de origem animal (exc. NC 0511 91) (a) | C40: 102.135 | D40: 53.935 | E40: 49.427 | F40: 2.228 | G40: 140.239 | H40: 69.5928 | I40: 0.0001024191267 | J40: 7.346219572e-05 | K40: 0 | L40: 0 | M40: 83.705 | N40: 102.517 | O40: 128.716 | P40: 62.9876 | Q40: 0.0001708358179 | R40: 9.942446846e-05 | S40: -6.6052 | U40: =G40-INDEX($C40:$G40,1,aux!$AL$1) -> 38.104 | V40: 0.0001062303409 | W40: 7.406292916e-05 | X40: =+IF(INDEX($C40:$G40,1,aux!$AL$1)>0,(G40/INDEX($C40:$G40,1,aux!$AL$1))^(1/($G$3-INDEX($C$3:$G$3,1,aux!$AL$1)))-1,"n.d.") -> 0.08248915307 | Y40: =IF(INDEX($C40:$G40,1,aux!$AL$1)>0,(G40-INDEX($C40:$G40,1,aux!$AL$1))/INDEX($C40:$G40,1,aux!$AL$1),"n.d.") -> 0.3730748519 | AA40: =O40-INDEX($K40:$O40,1,aux!$AL$1) -> 128.716 | AB40: 0.0008684347235 | AC40: 0.0006481880172 | AD40: =+IF(INDEX($K40:$O40,1,aux!$AL$1)>0,(O40/INDEX($K40:$O40,1,aux!$AL$1))^(1/($O$3-INDEX($K$3:$O$3,1,aux!$AL$1)))-1,"n.d.") -> n.d. | AE40: =IF(INDEX($K40:$O40,1,aux!$AL$1)>0,(O40-INDEX($K40:$O40,1,aux!$AL$1))/INDEX($K40:$O40,1,aux!$AL$1),"n.d.") -> n.d. | AX40: 05
A41: 05SS | B41: Outros produtos de origem animal | C41: 0 | D41: 0 | E41: 0 | F41: 0 | G41: 0 | H41: 0 | I41: 0 | J41: 0 | K41: 0 | L41: 0 | M41: 0 | N41: 0 | O41: 0 | P41: 0 | Q41: 0 | R41: 0 | S41: 0 | U41: =G41-INDEX($C41:$G41,1,aux!$AL$1) -> 0 | V41: 0 | W41: 0 | X41: =+IF(INDEX($C41:$G41,1,aux!$AL$1)>0,(G41/INDEX($C41:$G41,1,aux!$AL$1))^(1/($G$3-INDEX($C$3:$G$3,1,aux!$AL$1)))-1,"n.d.") -> n.d. | Y41: =IF(INDEX($C41:$G41,1,aux!$AL$1)>0,(G41-INDEX($C41:$G41,1,aux!$AL$1))/INDEX($C41:$G41,1,aux!$AL$1),"n.d.") -> n.d. | AA41: =O41-INDEX($K41:$O41,1,aux!$AL$1) -> 0 | AB41: 0 | AC41: 0 | AD41: =+IF(INDEX($K41:$O41,1,aux!$AL$1)>0,(O41/INDEX($K41:$O41,1,aux!$AL$1))^(1/($O$3-INDEX($K$3:$O$3,1,aux!$AL$1)))-1,"n.d.") -> n.d. | AE41: =IF(INDEX($K41:$O41,1,aux!$AL$1)>0,(O41-INDEX($K41:$O41,1,aux!$AL$1))/INDEX($K41:$O41,1,aux!$AL$1),"n.d.") -> n.d. | AX41: 05
A42: 0601 | B42: Bolbos, tubérculos, raízes, etc. | C42: 9568.629 | D42: 11609.989 | E42: 8609.358 | F42: 10737.122 | G42: 11347.841 | H42: 10374.5878 | I42: 0.01526819186 | J42: 0.01095142025 | K42: 1278.571 | L42: 555.452 | M42: 1434.927 | N42: 1477.568 | O42: 1735.908 | P42: 1296.4852 | Q42: 0.003516344637 | R42: 0.002046471875 | S42: -9078.1026 | U42: =G42-INDEX($C42:$G42,1,aux!$AL$1) -> 1779.212 | V42: 0.004960274441 | W42: 0.003458262973 | X42: =+IF(INDEX($C42:$G42,1,aux!$AL$1)>0,(G42/INDEX($C42:$G42,1,aux!$AL$1))^(1/($G$3-INDEX($C$3:$G$3,1,aux!$AL$1)))-1,"n.d.") -> 0.04355629323 | Y42: =IF(INDEX($C42:$G42,1,aux!$AL$1)>0,(G42-INDEX($C42:$G42,1,aux!$AL$1))/INDEX($C42:$G42,1,aux!$AL$1),"n.d.") -> 0.1859422076 | AA42: =O42-INDEX($K42:$O42,1,aux!$AL$1) -> 457.337 | AB42: 0.003085609645 | AC42: 0.002303057609 | AD42: =+IF(INDEX($K42:$O42,1,aux!$AL$1)>0,(O42/INDEX($K42:$O42,1,aux!$AL$1))^(1/($O$3-INDEX($K$3:$O$3,1,aux!$AL$1)))-1,"n.d.") -> 0.07944486258 | AE42: =IF(INDEX($K42:$O42,1,aux!$AL$1)>0,(O42-INDEX($K42:$O42,1,aux!$AL$1))/INDEX($K42:$O42,1,aux!$AL$1),"n.d.") -> 0.3576938629 | AX42: 06
A43: 0602 | B43: Plantas vivas | C43: 33538.387 | D43: 29922.436 | E43: 42492.147 | F43: 42508.596 | G43: 44305.805 | H43: 38553.4742 | I43: 0.05673881724 | J43: 0.04069706733 | K43: 30046.195 | L43: 29559.213 | M43: 37879.363 | N43: 44923.142 | O43: 41114.17 | P43: 36704.4166 | Q43: 0.09955021351 | R43: 0.05793707191 | S43: -1849.0576 | U43: =G43-INDEX($C43:$G43,1,aux!$AL$1) -> 10767.418 | V43: 0.03001854096 | W43: 0.02092868246 | X43: =+IF(INDEX($C43:$G43,1,aux!$AL$1)>0,(G43/INDEX($C43:$G43,1,aux!$AL$1))^(1/($G$3-INDEX($C$3:$G$3,1,aux!$AL$1)))-1,"n.d.") -> 0.07208597593 | Y43: =IF(INDEX($C43:$G43,1,aux!$AL$1)>0,(G43-INDEX($C43:$G43,1,aux!$AL$1))/INDEX($C43:$G43,1,aux!$AL$1),"n.d.") -> 0.3210475805 | AA43: =O43-INDEX($K43:$O43,1,aux!$AL$1) -> 11067.975 | AB43: 0.07467458442 | AC43: 0.05573610717 | AD43: =+IF(INDEX($K43:$O43,1,aux!$AL$1)>0,(O43/INDEX($K43:$O43,1,aux!$AL$1))^(1/($O$3-INDEX($K$3:$O$3,1,aux!$AL$1)))-1,"n.d.") -> 0.08155973685 | AE43: =IF(INDEX($K43:$O43,1,aux!$AL$1)>0,(O43-INDEX($K43:$O43,1,aux!$AL$1))/INDEX($K43:$O43,1,aux!$AL$1),"n.d.") -> 0.3683652789 | AX43: 06
A44: 0603 | B44: Flores e seus botões | C44: 13987.62 | D44: 10353.53 | E44: 19191.517 | F44: 22399.304 | G44: 25489.635 | H44: 18284.3212 | I44: 0.02690887865 | J44: 0.01930093893 | K44: 7588.52 | L44: 7140.285 | M44: 9496.601 | N44: 8186.955 | O44: 8395.913 | P44: 8161.6548 | Q44: 0.02213615018 | R44: 0.01288298316 | S44: -10122.6664 | U44: =G44-INDEX($C44:$G44,1,aux!$AL$1) -> 11502.015 | V44: 0.03206652778 | W44: 0.02235652221 | X44: =+IF(INDEX($C44:$G44,1,aux!$AL$1)>0,(G44/INDEX($C44:$G44,1,aux!$AL$1))^(1/($G$3-INDEX($C$3:$G$3,1,aux!$AL$1)))-1,"n.d.") -> 0.16186307 | Y44: =IF(INDEX($C44:$G44,1,aux!$AL$1)>0,(G44-INDEX($C44:$G44,1,aux!$AL$1))/INDEX($C44:$G44,1,aux!$AL$1),"n.d.") -> 0.8222996478 | AA44: =O44-INDEX($K44:$O44,1,aux!$AL$1) -> 807.393 | AB44: 0.005447404493 | AC44: 0.004065869572 | AD44: =+IF(INDEX($K44:$O44,1,aux!$AL$1)>0,(O44/INDEX($K44:$O44,1,aux!$AL$1))^(1/($O$3-INDEX($K$3:$O$3,1,aux!$AL$1)))-1,"n.d.") -> 0.02559929031 | AE44: =IF(INDEX($K44:$O44,1,aux!$AL$1)>0,(O44-INDEX($K44:$O44,1,aux!$AL$1))/INDEX($K44:$O44,1,aux!$AL$1),"n.d.") -> 0.106396636 | AX44: 06
A45: 0604 | B45: Folhagem, folhas, ramos e outras partes de plantas | C45: 2279.521 | D45: 1658.573 | E45: 2161.907 | F45: 2681.179 | G45: 2248.789 | H45: 2205.9938 | I45: 0.003246542151 | J45: 0.002328648198 | K45: 8309.174 | L45: 10713.286 | M45: 15358.33 | N45: 17546.038 | O45: 18275.21 | P45: 14040.4076 | Q45: 0.03808058277 | R45: 0.02216245837 | S45: 11834.4138 | U45: =G45-INDEX($C45:$G45,1,aux!$AL$1) -> -30.732 | V45: -8.567790355e-05 | W45: -5.973393709e-05 | X45: =+IF(INDEX($C45:$G45,1,aux!$AL$1)>0,(G45/INDEX($C45:$G45,1,aux!$AL$1))^(1/($G$3-INDEX($C$3:$G$3,1,aux!$AL$1)))-1,"n.d.") -> -0.003387620042 | Y45: =IF(INDEX($C45:$G45,1,aux!$AL$1)>0,(G45-INDEX($C45:$G45,1,aux!$AL$1))/INDEX($C45:$G45,1,aux!$AL$1),"n.d.") -> -0.01348177972 | AA45: =O45-INDEX($K45:$O45,1,aux!$AL$1) -> 9966.036 | AB45: 0.06723990582 | AC45: 0.05018696288 | AD45: =+IF(INDEX($K45:$O45,1,aux!$AL$1)>0,(O45/INDEX($K45:$O45,1,aux!$AL$1))^(1/($O$3-INDEX($K$3:$O$3,1,aux!$AL$1)))-1,"n.d.") -> 0.2178004513 | AE45: =IF(INDEX($K45:$O45,1,aux!$AL$1)>0,(O45-INDEX($K45:$O45,1,aux!$AL$1))/INDEX($K45:$O45,1,aux!$AL$1),"n.d.") -> 1.199401529 | AX45: 06
A46: 06SS | B46: Plantas vivas e produtos de floricultura | C46: 0 | D46: 0 | E46: 0 | F46: 0 | G46: 0 | H46: 0 | I46: 0 | J46: 0 | K46: 0 | L46: 0 | M46: 0 | N46: 0 | O46: 0 | P46: 0 | Q46: 0 | R46: 0 | S46: 0 | U46: =G46-INDEX($C46:$G46,1,aux!$AL$1) -> 0 | V46: 0 | W46: 0 | X46: =+IF(INDEX($C46:$G46,1,aux!$AL$1)>0,(G46/INDEX($C46:$G46,1,aux!$AL$1))^(1/($G$3-INDEX($C$3:$G$3,1,aux!$AL$1)))-1,"n.d.") -> n.d. | Y46: =IF(INDEX($C46:$G46,1,aux!$AL$1)>0,(G46-INDEX($C46:$G46,1,aux!$AL$1))/INDEX($C46:$G46,1,aux!$AL$1),"n.d.") -> n.d. | AA46: =O46-INDEX($K46:$O46,1,aux!$AL$1) -> 0 | AB46: 0 | AC46: 0 | AD46: =+IF(INDEX($K46:$O46,1,aux!$AL$1)>0,(O46/INDEX($K46:$O46,1,aux!$AL$1))^(1/($O$3-INDEX($K$3:$O$3,1,aux!$AL$1)))-1,"n.d.") -> n.d. | AE46: =IF(INDEX($K46:$O46,1,aux!$AL$1)>0,(O46-INDEX($K46:$O46,1,aux!$AL$1))/INDEX($K46:$O46,1,aux!$AL$1),"n.d.") -> n.d. | AX46: 06
A47: 0701 | B47: Batatas, frescas ou refrigeradas | C47: 15704.576 | D47: 11435.772 | E47: 12644.223 | F47: 14310.047 | G47: 20756.038 | H47: 14970.1312 | I47: 0.02203141366 | J47: 0.01580247825 | K47: 1769.079 | L47: 1296.597 | M47: 1838.334 | N47: 616.683 | O47: 2988.461 | P47: 1701.8308 | Q47: 0.004615728438 | R47: 0.002686300521 | S47: -13268.3004 | U47: =G47-INDEX($C47:$G47,1,aux!$AL$1) -> 5051.462 | V47: 0.01408299733 | W47: 0.00981855113 | X47: =+IF(INDEX($C47:$G47,1,aux!$AL$1)>0,(G47/INDEX($C47:$G47,1,aux!$AL$1))^(1/($G$3-INDEX($C$3:$G$3,1,aux!$AL$1)))-1,"n.d.") -> 0.07220927666 | Y47: =IF(INDEX($C47:$G47,1,aux!$AL$1)>0,(G47-INDEX($C47:$G47,1,aux!$AL$1))/INDEX($C47:$G47,1,aux!$AL$1),"n.d.") -> 0.3216554207 | AA47: =O47-INDEX($K47:$O47,1,aux!$AL$1) -> 1219.382 | AB47: 0.008227055455 | AC47: 0.006140563728 | AD47: =+IF(INDEX($K47:$O47,1,aux!$AL$1)>0,(O47/INDEX($K47:$O47,1,aux!$AL$1))^(1/($O$3-INDEX($K$3:$O$3,1,aux!$AL$1)))-1,"n.d.") -> 0.1400531302 | AE47: =IF(INDEX($K47:$O47,1,aux!$AL$1)>0,(O47-INDEX($K47:$O47,1,aux!$AL$1))/INDEX($K47:$O47,1,aux!$AL$1),"n.d.") -> 0.6892750409 | AX47: 07
A48: 0702 | B48: Tomates, frescos ou refrigerados | C48: 3777.55 | D48: 2820.919 | E48: 3318.664 | F48: 4118.959 | G48: 7468.741 | H48: 4300.9666 | I48: 0.006329695648 | J48: 0.00454010257 | K48: 8491.271 | L48: 9782.448 | M48: 10003.495 | N48: 3584.888 | O48: 4377.83 | P48: 7247.9864 | Q48: 0.01965808642 | R48: 0.01144077874 | S48: 2947.0198 | U48: =G48-INDEX($C48:$G48,1,aux!$AL$1) -> 3691.191 | V48: 0.0102906907 | W48: 0.007174585806 | X48: =+IF(INDEX($C48:$G48,1,aux!$AL$1)>0,(G48/INDEX($C48:$G48,1,aux!$AL$1))^(1/($G$3-INDEX($C$3:$G$3,1,aux!$AL$1)))-1,"n.d.") -> 0.1857941254 | Y48: =IF(INDEX($C48:$G48,1,aux!$AL$1)>0,(G48-INDEX($C48:$G48,1,aux!$AL$1))/INDEX($C48:$G48,1,aux!$AL$1),"n.d.") -> 0.9771388863 | AA48: =O48-INDEX($K48:$O48,1,aux!$AL$1) -> -4113.441 | AB48: -0.02775299883 | AC48: -0.02071446569 | AD48: =+IF(INDEX($K48:$O48,1,aux!$AL$1)>0,(O48/INDEX($K48:$O48,1,aux!$AL$1))^(1/($O$3-INDEX($K$3:$O$3,1,aux!$AL$1)))-1,"n.d.") -> -0.1526329979 | AE48: =IF(INDEX($K48:$O48,1,aux!$AL$1)>0,(O48-INDEX($K48:$O48,1,aux!$AL$1))/INDEX($K48:$O48,1,aux!$AL$1),"n.d.") -> -0.4844317182 | AX48: 07
A49: 0703 | B49: Cebolas, alhos, etc., frescos ou refrigerados | C49: 1256.273 | D49: 1391.433 | E49: 1171.601 | F49: 1947.586 | G49: 7093.976 | H49: 2572.1738 | I49: 0.003785446115 | J49: 0.002715187995 | K49: 385.537 | L49: 222.293 | M49: 187.282 | N49: 354.846 | O49: 68.252 | P49: 243.642 | Q49: 0.0006608091169 | R49: 0.0003845832568 | S49: -2328.5318 | U49: =G49-INDEX($C49:$G49,1,aux!$AL$1) -> 5837.703 | V49: 0.01627496273 | W49: 0.01134677157 | X49: =+IF(INDEX($C49:$G49,1,aux!$AL$1)>0,(G49/INDEX($C49:$G49,1,aux!$AL$1))^(1/($G$3-INDEX($C$3:$G$3,1,aux!$AL$1)))-1,"n.d.") -> 0.5415280165 | Y49: =IF(INDEX($C49:$G49,1,aux!$AL$1)>0,(G49-INDEX($C49:$G49,1,aux!$AL$1))/INDEX($C49:$G49,1,aux!$AL$1),"n.d.") -> 4.646842685 | AA49: =O49-INDEX($K49:$O49,1,aux!$AL$1) -> -317.285 | AB49: -0.002140691998 | AC49: -0.001597783765 | AD49: =+IF(INDEX($K49:$O49,1,aux!$AL$1)>0,(O49/INDEX($K49:$O49,1,aux!$AL$1))^(1/($O$3-INDEX($K$3:$O$3,1,aux!$AL$1)))-1,"n.d.") -> -0.3513471515 | AE49: =IF(INDEX($K49:$O49,1,aux!$AL$1)>0,(O49-INDEX($K49:$O49,1,aux!$AL$1))/INDEX($K49:$O49,1,aux!$AL$1),"n.d.") -> -0.8229690017 | AX49: 07
A50: 0704 | B50: Couves, frescas ou refrigeradas | C50: 520.829 | D50: 323.144 | E50: 478.65 | F50: 1103.922 | G50: 1181.407 | H50: 721.5904 | I50: 0.001061958401 | J50: 0.0007617111999 | K50: 3772.855 | L50: 4547.401 | M50: 5168.744 | N50: 5214.777 | O50: 6520.839 | P50: 5044.9232 | Q50: 0.01368290871 | R50: 0.007963294483 | S50: 4323.3328 | U50: =G50-INDEX($C50:$G50,1,aux!$AL$1) -> 660.578 | V50: 0.001841628862 | W50: 0.001283968655 | X50: =+IF(INDEX($C50:$G50,1,aux!$AL$1)>0,(G50/INDEX($C50:$G50,1,aux!$AL$1))^(1/($G$3-INDEX($C$3:$G$3,1,aux!$AL$1)))-1,"n.d.") -> 0.2272303738 | Y50: =IF(INDEX($C50:$G50,1,aux!$AL$1)>0,(G50-INDEX($C50:$G50,1,aux!$AL$1))/INDEX($C50:$G50,1,aux!$AL$1),"n.d.") -> 1.268320312 | AA50: =O50-INDEX($K50:$O50,1,aux!$AL$1) -> 2747.984 | AB50: 0.01854038911 | AC50: 0.01383829749 | AD50: =+IF(INDEX($K50:$O50,1,aux!$AL$1)>0,(O50/INDEX($K50:$O50,1,aux!$AL$1))^(1/($O$3-INDEX($K$3:$O$3,1,aux!$AL$1)))-1,"n.d.") -> 0.1465905043 | AE50: =IF(INDEX($K50:$O50,1,aux!$AL$1)>0,(O50-INDEX($K50:$O50,1,aux!$AL$1))/INDEX($K50:$O50,1,aux!$AL$1),"n.d.") -> 0.7283566424 | AX50: 07
A51: 0705 | B51: Alfaces, frescas ou refrigeradas | C51: 118.388 | D51: 76.978 | E51: 114.645 | F51: 127.558 | G51: 259.886 | H51: 139.491 | I51: 0.000205287708 | J51: 0.0001472467718 | K51: 23.203 | L51: 1.086 | M51: 25.428 | N51: 126.212 | O51: 28.927 | P51: 40.9712 | Q51: 0.000111122641 | R51: 6.467209073e-05 | S51: -98.5198 | U51: =G51-INDEX($C51:$G51,1,aux!$AL$1) -> 141.498 | V51: 0.0003944830143 | W51: 0.0002750303472 | X51: =+IF(INDEX($C51:$G51,1,aux!$AL$1)>0,(G51/INDEX($C51:$G51,1,aux!$AL$1))^(1/($G$3-INDEX($C$3:$G$3,1,aux!$AL$1)))-1,"n.d.") -> 0.2172192171 | Y51: =IF(INDEX($C51:$G51,1,aux!$AL$1)>0,(G51-INDEX($C51:$G51,1,aux!$AL$1))/INDEX($C51:$G51,1,aux!$AL$1),"n.d.") -> 1.195205595 | AA51: =O51-INDEX($K51:$O51,1,aux!$AL$1) -> 5.724 | AB51: 3.861928864e-05 | AC51: 2.882491851e-05 | AD51: =+IF(INDEX($K51:$O51,1,aux!$AL$1)>0,(O51/INDEX($K51:$O51,1,aux!$AL$1))^(1/($O$3-INDEX($K$3:$O$3,1,aux!$AL$1)))-1,"n.d.") -> 0.05667106175 | AE51: =IF(INDEX($K51:$O51,1,aux!$AL$1)>0,(O51-INDEX($K51:$O51,1,aux!$AL$1))/INDEX($K51:$O51,1,aux!$AL$1),"n.d.") -> 0.2466922381 | AX51: 07
A52: 0706 | B52: Cenouras, nabos, beterrabas, etc., frescos ou refrigerados | C52: 587.678 | D52: 706.291 | E52: 658.974 | F52: 1064.874 | G52: 2003.863 | H52: 1004.336 | I52: 0.001478072675 | J52: 0.001060177602 | K52: 232.537 | L52: 352.172 | M52: 71.524 | N52: 747.188 | O52: 1234.38 | P52: 527.5602 | Q52: 0.001430855886 | R52: 0.0008327415629 | S52: -476.7758 | U52: =G52-INDEX($C52:$G52,1,aux!$AL$1) -> 1416.185 | V52: 0.003948189569 | W52: 0.002752645636 | X52: =+IF(INDEX($C52:$G52,1,aux!$AL$1)>0,(G52/INDEX($C52:$G52,1,aux!$AL$1))^(1/($G$3-INDEX($C$3:$G$3,1,aux!$AL$1)))-1,"n.d.") -> 0.3588832591 | Y52: =IF(INDEX($C52:$G52,1,aux!$AL$1)>0,(G52-INDEX($C52:$G52,1,aux!$AL$1))/INDEX($C52:$G52,1,aux!$AL$1),"n.d.") -> 2.409797542 | AA52: =O52-INDEX($K52:$O52,1,aux!$AL$1) -> 1001.843 | AB52: 0.00675934032 | AC52: 0.005045080858 | AD52: =+IF(INDEX($K52:$O52,1,aux!$AL$1)>0,(O52/INDEX($K52:$O52,1,aux!$AL$1))^(1/($O$3-INDEX($K$3:$O$3,1,aux!$AL$1)))-1,"n.d.") -> 0.5178861659 | AE52: =IF(INDEX($K52:$O52,1,aux!$AL$1)>0,(O52-INDEX($K52:$O52,1,aux!$AL$1))/INDEX($K52:$O52,1,aux!$AL$1),"n.d.") -> 4.308316526 | AX52: 07
A53: 0707 | B53: Pepinos e pepininhos, frescos ou refrigerados | C53: 3.488 | D53: 0.089 | E53: 4.511 | F53: 102.001 | G53: 105.23 | H53: 43.0638 | I53: 6.337662503e-05 | J53: 4.545816958e-05 | K53: 62.786 | L53: 70.257 | M53: 56.468 | N53: 45.828 | O53: 47.253 | P53: 56.5184 | Q53: 0.0001532899664 | R53: 8.921298602e-05 | S53: 13.4546 | U53: =G53-INDEX($C53:$G53,1,aux!$AL$1) -> 101.742 | V53: 0.000283647054 | W53: 0.0001977564177 | X53: =+IF(INDEX($C53:$G53,1,aux!$AL$1)>0,(G53/INDEX($C53:$G53,1,aux!$AL$1))^(1/($G$3-INDEX($C$3:$G$3,1,aux!$AL$1)))-1,"n.d.") -> 1.343639308 | Y53: =IF(INDEX($C53:$G53,1,aux!$AL$1)>0,(G53-INDEX($C53:$G53,1,aux!$AL$1))/INDEX($C53:$G53,1,aux!$AL$1),"n.d.") -> 29.16915138 | AA53: =O53-INDEX($K53:$O53,1,aux!$AL$1) -> -15.533 | AB53: -0.0001047996874 | AC53: -7.822107952e-05 | AD53: =+IF(INDEX($K53:$O53,1,aux!$AL$1)>0,(O53/INDEX($K53:$O53,1,aux!$AL$1))^(1/($O$3-INDEX($K$3:$O$3,1,aux!$AL$1)))-1,"n.d.") -> -0.06858839956 | AE53: =IF(INDEX($K53:$O53,1,aux!$AL$1)>0,(O53-INDEX($K53:$O53,1,aux!$AL$1))/INDEX($K53:$O53,1,aux!$AL$1),"n.d.") -> -0.2473959163 | AX53: 07
A54: 0708 | B54: Tomates preparados ou conservados | C54: 51.857 | D54: 41.807 | E54: 42.466 | F54: 78.535 | G54: 77.809 | H54: 58.4948 | I54: 8.608629535e-05 | J54: 6.174714117e-05 | K54: 0.339 | L54: 6.346 | M54: 1.067 | N54: 0.295 | O54: 0.088 | P54: 1.627 | Q54: 4.412771334e-06 | R54: 2.568181836e-06 | S54: -56.8678 | U54: =G54-INDEX($C54:$G54,1,aux!$AL$1) -> 25.952 | V54: 7.235171655e-05 | W54: 5.044302796e-05 | X54: =+IF(INDEX($C54:$G54,1,aux!$AL$1)>0,(G54/INDEX($C54:$G54,1,aux!$AL$1))^(1/($G$3-INDEX($C$3:$G$3,1,aux!$AL$1)))-1,"n.d.") -> 0.1067654959 | Y54: =IF(INDEX($C54:$G54,1,aux!$AL$1)>0,(G54-INDEX($C54:$G54,1,aux!$AL$1))/INDEX($C54:$G54,1,aux!$AL$1),"n.d.") -> 0.5004531693 | AA54: =O54-INDEX($K54:$O54,1,aux!$AL$1) -> -0.251 | AB54: -1.693473349e-06 | AC54: -1.26398577e-06 | AD54: =+IF(INDEX($K54:$O54,1,aux!$AL$1)>0,(O54/INDEX($K54:$O54,1,aux!$AL$1))^(1/($O$3-INDEX($K$3:$O$3,1,aux!$AL$1)))-1,"n.d.") -> -0.2862095329 | AE54: =IF(INDEX($K54:$O54,1,aux!$AL$1)>0,(O54-INDEX($K54:$O54,1,aux!$AL$1))/INDEX($K54:$O54,1,aux!$AL$1),"n.d.") -> -0.7404129794 | AX54: 07
A55: 0709 | B55: Outros produtos hortícolas, frescos ou refrigerados | C55: 2853.165 | D55: 2239.667 | E55: 2758.725 | F55: 4807.62 | G55: 8284.172 | H55: 4188.6698 | I55: 0.006164429411 | J55: 0.00442156201 | K55: 5422.278 | L55: 5384.237 | M55: 6716.893 | N55: 5956.143 | O55: 7797.452 | P55: 6255.4006 | Q55: 0.01696598184 | R55: 0.009874005037 | S55: 2066.7308 | U55: =G55-INDEX($C55:$G55,1,aux!$AL$1) -> 5431.007 | V55: 0.01514113282 | W55: 0.01055627458 | X55: =+IF(INDEX($C55:$G55,1,aux!$AL$1)>0,(G55/INDEX($C55:$G55,1,aux!$AL$1))^(1/($G$3-INDEX($C$3:$G$3,1,aux!$AL$1)))-1,"n.d.") -> 0.3053607645 | Y55: =IF(INDEX($C55:$G55,1,aux!$AL$1)>0,(G55-INDEX($C55:$G55,1,aux!$AL$1))/INDEX($C55:$G55,1,aux!$AL$1),"n.d.") -> 1.903502601 | AA55: =O55-INDEX($K55:$O55,1,aux!$AL$1) -> 2375.174 | AB55: 0.01602507517 | AC55: 0.01196090094 | AD55: =+IF(INDEX($K55:$O55,1,aux!$AL$1)>0,(O55/INDEX($K55:$O55,1,aux!$AL$1))^(1/($O$3-INDEX($K$3:$O$3,1,aux!$AL$1)))-1,"n.d.") -> 0.09507214597 | AE55: =IF(INDEX($K55:$O55,1,aux!$AL$1)>0,(O55-INDEX($K55:$O55,1,aux!$AL$1))/INDEX($K55:$O55,1,aux!$AL$1),"n.d.") -> 0.4380398792 | AX55: 07
A56: 0710 | B56: Produtos hortícolas congelados | C56: 3947.115 | D56: 2188.305 | E56: 4588.005 | F56: 5537.19 | G56: 6113.619 | H56: 4474.8468 | I56: 0.006585593647 | J56: 0.004723650599 | K56: 1201.364 | L56: 1872.459 | M56: 1313.765 | N56: 2201.486 | O56: 2299.206 | P56: 1777.656 | Q56: 0.004821382568 | R56: 0.002805988844 | S56: -2697.1908 | U56: =G56-INDEX($C56:$G56,1,aux!$AL$1) -> 2166.504 | V56: 0.006040007834 | W56: 0.004211044307 | X56: =+IF(INDEX($C56:$G56,1,aux!$AL$1)>0,(G56/INDEX($C56:$G56,1,aux!$AL$1))^(1/($G$3-INDEX($C$3:$G$3,1,aux!$AL$1)))-1,"n.d.") -> 0.1155900896 | Y56: =IF(INDEX($C56:$G56,1,aux!$AL$1)>0,(G56-INDEX($C56:$G56,1,aux!$AL$1))/INDEX($C56:$G56,1,aux!$AL$1),"n.d.") -> 0.5488829183 | AA56: =O56-INDEX($K56:$O56,1,aux!$AL$1) -> 1097.842 | AB56: 0.007407036527 | AC56: 0.005528512611 | AD56: =+IF(INDEX($K56:$O56,1,aux!$AL$1)>0,(O56/INDEX($K56:$O56,1,aux!$AL$1))^(1/($O$3-INDEX($K$3:$O$3,1,aux!$AL$1)))-1,"n.d.") -> 0.1761854904 | AE56: =IF(INDEX($K56:$O56,1,aux!$AL$1)>0,(O56-INDEX($K56:$O56,1,aux!$AL$1))/INDEX($K56:$O56,1,aux!$AL$1),"n.d.") -> 0.9138296137 | AX56: 07
A57: 0711 | B57: Produtos hortícolas conservados transitoriamente | C57: 19.715 | D57: 69.918 | E57: 24.857 | F57: 35.719 | G57: 44.352 | H57: 38.9122 | I57: 5.726675092e-05 | J57: 4.107573847e-05 | K57: 1.675 | L57: 0.045 | M57: 0.585 | N57: 0.329 | O57: 0.119 | P57: 0.5506 | Q57: 1.493344743e-06 | R57: 8.691093538e-07 | S57: -38.3616 | U57: =G57-INDEX($C57:$G57,1,aux!$AL$1) -> 24.637 | V57: 6.868562117e-05 | W57: 4.78870561e-05 | X57: =+IF(INDEX($C57:$G57,1,aux!$AL$1)>0,(G57/INDEX($C57:$G57,1,aux!$AL$1))^(1/($G$3-INDEX($C$3:$G$3,1,aux!$AL$1)))-1,"n.d.") -> 0.2246982769 | Y57: =IF(INDEX($C57:$G57,1,aux!$AL$1)>0,(G57-INDEX($C57:$G57,1,aux!$AL$1))/INDEX($C57:$G57,1,aux!$AL$1),"n.d.") -> 1.249657621 | AA57: =O57-INDEX($K57:$O57,1,aux!$AL$1) -> -1.556 | AB57: -1.049818538e-05 | AC57: -7.835704612e-06 | AD57: =+IF(INDEX($K57:$O57,1,aux!$AL$1)>0,(O57/INDEX($K57:$O57,1,aux!$AL$1))^(1/($O$3-INDEX($K$3:$O$3,1,aux!$AL$1)))-1,"n.d.") -> -0.4837226912 | AE57: =IF(INDEX($K57:$O57,1,aux!$AL$1)>0,(O57-INDEX($K57:$O57,1,aux!$AL$1))/INDEX($K57:$O57,1,aux!$AL$1),"n.d.") -> -0.9289552239 | AX57: 07
A58: 0712 | B58: Produtos hortícolas secos | C58: 488.342 | D58: 609.19 | E58: 550.483 | F58: 598.847 | G58: 300.929 | H58: 509.5582 | I58: 0.0007499124316 | J58: 0.0005378898998 | K58: 808.055 | L58: 570.839 | M58: 752.816 | N58: 809.512 | O58: 856.239 | P58: 759.4922 | Q58: 0.002059904984 | R58: 0.001198840856 | S58: 249.934 | U58: =G58-INDEX($C58:$G58,1,aux!$AL$1) -> -187.413 | V58: -0.000522489683 | W58: -0.0003642755549 | X58: =+IF(INDEX($C58:$G58,1,aux!$AL$1)>0,(G58/INDEX($C58:$G58,1,aux!$AL$1))^(1/($G$3-INDEX($C$3:$G$3,1,aux!$AL$1)))-1,"n.d.") -> -0.1139974107 | Y58: =IF(INDEX($C58:$G58,1,aux!$AL$1)>0,(G58-INDEX($C58:$G58,1,aux!$AL$1))/INDEX($C58:$G58,1,aux!$AL$1),"n.d.") -> -0.3837740764 | AA58: =O58-INDEX($K58:$O58,1,aux!$AL$1) -> 48.184 | AB58: 0.0003250929078 | AC58: 0.0002426449814 | AD58: =+IF(INDEX($K58:$O58,1,aux!$AL$1)>0,(O58/INDEX($K58:$O58,1,aux!$AL$1))^(1/($O$3-INDEX($K$3:$O$3,1,aux!$AL$1)))-1,"n.d.") -> 0.01458519523 | AE58: =IF(INDEX($K58:$O58,1,aux!$AL$1)>0,(O58-INDEX($K58:$O58,1,aux!$AL$1))/INDEX($K58:$O58,1,aux!$AL$1),"n.d.") -> 0.05962960442 | AX58: 07
A59: 0713 | B59: Legumes de vagem, secos, em grão | C59: 327.893 | D59: 422.726 | E59: 449.254 | F59: 486.131 | G59: 514.383 | H59: 440.0774 | I59: 0.0006476581343 | J59: 0.0004645459313 | K59: 77.311 | L59: 413.122 | M59: 74.189 | N59: 115.27 | O59: 292.406 | P59: 194.4596 | Q59: 0.0005274159486 | R59: 0.0003069499769 | S59: -245.6178 | U59: =G59-INDEX($C59:$G59,1,aux!$AL$1) -> 186.49 | V59: 0.0005199164465 | W59: 0.0003624815153 | X59: =+IF(INDEX($C59:$G59,1,aux!$AL$1)>0,(G59/INDEX($C59:$G59,1,aux!$AL$1))^(1/($G$3-INDEX($C$3:$G$3,1,aux!$AL$1)))-1,"n.d.") -> 0.1191508153 | Y59: =IF(INDEX($C59:$G59,1,aux!$AL$1)>0,(G59-INDEX($C59:$G59,1,aux!$AL$1))/INDEX($C59:$G59,1,aux!$AL$1),"n.d.") -> 0.5687526114 | AA59: =O59-INDEX($K59:$O59,1,aux!$AL$1) -> 215.095 | AB59: 0.001451225697 | AC59: 0.001083175375 | AD59: =+IF(INDEX($K59:$O59,1,aux!$AL$1)>0,(O59/INDEX($K59:$O59,1,aux!$AL$1))^(1/($O$3-INDEX($K$3:$O$3,1,aux!$AL$1)))-1,"n.d.") -> 0.3945569271 | AE59: =IF(INDEX($K59:$O59,1,aux!$AL$1)>0,(O59-INDEX($K59:$O59,1,aux!$AL$1))/INDEX($K59:$O59,1,aux!$AL$1),"n.d.") -> 2.782204343 | AX59: 07
A60: 0714 | B60: Raízes de mandioca, de araruta, batata-doce, etc. | C60: 289.331 | D60: 281.771 | E60: 359.967 | F60: 302.366 | G60: 461.663 | H60: 339.0196 | I60: 0.000498932237 | J60: 0.0003578692653 | K60: 1555.716 | L60: 2478.723 | M60: 3898.505 | N60: 4681.075 | O60: 6642.75 | P60: 3851.3538 | Q60: 0.0104456937 | R60: 0.006079272816 | S60: 3512.3342 | U60: =G60-INDEX($C60:$G60,1,aux!$AL$1) -> 172.332 | V60: 0.0004804452842 | W60: 0.0003349625422 | X60: =+IF(INDEX($C60:$G60,1,aux!$AL$1)>0,(G60/INDEX($C60:$G60,1,aux!$AL$1))^(1/($G$3-INDEX($C$3:$G$3,1,aux!$AL$1)))-1,"n.d.") -> 0.1239125619 | Y60: =IF(INDEX($C60:$G60,1,aux!$AL$1)>0,(G60-INDEX($C60:$G60,1,aux!$AL$1))/INDEX($C60:$G60,1,aux!$AL$1),"n.d.") -> 0.5956223149 | AA60: =O60-INDEX($K60:$O60,1,aux!$AL$1) -> 5087.034 | AB60: 0.03432173906 | AC60: 0.0256172852 | AD60: =+IF(INDEX($K60:$O60,1,aux!$AL$1)>0,(O60/INDEX($K60:$O60,1,aux!$AL$1))^(1/($O$3-INDEX($K$3:$O$3,1,aux!$AL$1)))-1,"n.d.") -> 0.4374885611 | AE60: =IF(INDEX($K60:$O60,1,aux!$AL$1)>0,(O60-INDEX($K60:$O60,1,aux!$AL$1))/INDEX($K60:$O60,1,aux!$AL$1),"n.d.") -> 3.269898876 | AX60: 07
A61: 07SS | B61: Produtos hortícolas, plantas, raízes e tubérculos, comestíveis | C61: 0 | D61: 0 | E61: 0 | F61: 0 | G61: 0 | H61: 0 | I61: 0 | J61: 0 | K61: 0 | L61: 0 | M61: 0 | N61: 0 | O61: 0 | P61: 0 | Q61: 0 | R61: 0 | S61: 0 | U61: =G61-INDEX($C61:$G61,1,aux!$AL$1) -> 0 | V61: 0 | W61: 0 | X61: =+IF(INDEX($C61:$G61,1,aux!$AL$1)>0,(G61/INDEX($C61:$G61,1,aux!$AL$1))^(1/($G$3-INDEX($C$3:$G$3,1,aux!$AL$1)))-1,"n.d.") -> n.d. | Y61: =IF(INDEX($C61:$G61,1,aux!$AL$1)>0,(G61-INDEX($C61:$G61,1,aux!$AL$1))/INDEX($C61:$G61,1,aux!$AL$1),"n.d.") -> n.d. | AA61: =O61-INDEX($K61:$O61,1,aux!$AL$1) -> 0 | AB61: 0 | AC61: 0 | AD61: =+IF(INDEX($K61:$O61,1,aux!$AL$1)>0,(O61/INDEX($K61:$O61,1,aux!$AL$1))^(1/($O$3-INDEX($K$3:$O$3,1,aux!$AL$1)))-1,"n.d.") -> n.d. | AE61: =IF(INDEX($K61:$O61,1,aux!$AL$1)>0,(O61-INDEX($K61:$O61,1,aux!$AL$1))/INDEX($K61:$O61,1,aux!$AL$1),"n.d.") -> n.d. | AX61: 07
A62: 0801 | B62: Cocos, castanhas do brasil e castanha de cajú | C62: 1129.278 | D62: 1439.697 | E62: 2130.413 | F62: 1662.271 | G62: 2787.932 | H62: 1829.9182 | I62: 0.002693074917 | J62: 0.0019316626 | K62: 3.24 | L62: 2.494 | M62: 1.238 | N62: 4.809 | O62: 0.244 | P62: 2.405 | Q62: 6.522873422e-06 | R62: 3.796236825e-06 | S62: -1827.5132 | U62: =G62-INDEX($C62:$G62,1,aux!$AL$1) -> 1658.654 | V62: 0.004624170163 | W62: 0.003223933805 | X62: =+IF(INDEX($C62:$G62,1,aux!$AL$1)>0,(G62/INDEX($C62:$G62,1,aux!$AL$1))^(1/($G$3-INDEX($C$3:$G$3,1,aux!$AL$1)))-1,"n.d.") -> 0.2534884232 | Y62: =IF(INDEX($C62:$G62,1,aux!$AL$1)>0,(G62-INDEX($C62:$G62,1,aux!$AL$1))/INDEX($C62:$G62,1,aux!$AL$1),"n.d.") -> 1.468773854 | AA62: =O62-INDEX($K62:$O62,1,aux!$AL$1) -> -2.996 | AB62: -2.02137297e-05 | AC62: -1.508725644e-05 | AD62: =+IF(INDEX($K62:$O62,1,aux!$AL$1)>0,(O62/INDEX($K62:$O62,1,aux!$AL$1))^(1/($O$3-INDEX($K$3:$O$3,1,aux!$AL$1)))-1,"n.d.") -> -0.4761448666 | AE62: =IF(INDEX($K62:$O62,1,aux!$AL$1)>0,(O62-INDEX($K62:$O62,1,aux!$AL$1))/INDEX($K62:$O62,1,aux!$AL$1),"n.d.") -> -0.924691358 | AX62: 08
A63: 0802 | B63: Frutas de casca rija | C63: 2082.368 | D63: 1121.245 | E63: 3699.216 | F63: 3701.775 | G63: 3982.756 | H63: 2917.472 | I63: 0.004293618514 | J63: 0.003079684954 | K63: 461.411 | L63: 981.338 | M63: 131.346 | N63: 521.927 | O63: 487.772 | P63: 516.7588 | Q63: 0.001401560184 | R63: 0.000815691803 | S63: -2400.7132 | U63: =G63-INDEX($C63:$G63,1,aux!$AL$1) -> 1900.388 | V63: 0.005298101646 | W63: 0.00369379335 | X63: =+IF(INDEX($C63:$G63,1,aux!$AL$1)>0,(G63/INDEX($C63:$G63,1,aux!$AL$1))^(1/($G$3-INDEX($C$3:$G$3,1,aux!$AL$1)))-1,"n.d.") -> 0.1759979233 | Y63: =IF(INDEX($C63:$G63,1,aux!$AL$1)>0,(G63-INDEX($C63:$G63,1,aux!$AL$1))/INDEX($C63:$G63,1,aux!$AL$1),"n.d.") -> 0.9126091066 | AA63: =O63-INDEX($K63:$O63,1,aux!$AL$1) -> 26.361 | AB63: 0.0001778551831 | AC63: 0.0001327487206 | AD63: =+IF(INDEX($K63:$O63,1,aux!$AL$1)>0,(O63/INDEX($K63:$O63,1,aux!$AL$1))^(1/($O$3-INDEX($K$3:$O$3,1,aux!$AL$1)))-1,"n.d.") -> 0.01398663479 | AE63: =IF(INDEX($K63:$O63,1,aux!$AL$1)>0,(O63-INDEX($K63:$O63,1,aux!$AL$1))/INDEX($K63:$O63,1,aux!$AL$1),"n.d.") -> 0.05713127775 | AX63: 08
A64: 0803 | B64: Bananas, frescas ou secas | C64: 730.475 | D64: 238.888 | E64: 64.148 | F64: 606.316 | G64: 305.065 | H64: 388.9784 | I64: 0.0005724561743 | J64: 0.0004106058005 | K64: 0.028 | L64: 0.013 | M64: 0.215 | N64: 0.193 | O64: 0.303 | P64: 0.1504 | Q64: 4.079169075e-07 | R64: 2.374029183e-07 | S64: -388.828 | U64: =G64-INDEX($C64:$G64,1,aux!$AL$1) -> -425.41 | V64: -0.001186002764 | W64: -0.0008268714753 | X64: =+IF(INDEX($C64:$G64,1,aux!$AL$1)>0,(G64/INDEX($C64:$G64,1,aux!$AL$1))^(1/($G$3-INDEX($C$3:$G$3,1,aux!$AL$1)))-1,"n.d.") -> -0.1961097585 | Y64: =IF(INDEX($C64:$G64,1,aux!$AL$1)>0,(G64-INDEX($C64:$G64,1,aux!$AL$1))/INDEX($C64:$G64,1,aux!$AL$1),"n.d.") -> -0.5823744824 | AA64: =O64-INDEX($K64:$O64,1,aux!$AL$1) -> 0.275 | AB64: 1.855399088e-06 | AC64: 1.384844967e-06 | AD64: =+IF(INDEX($K64:$O64,1,aux!$AL$1)>0,(O64/INDEX($K64:$O64,1,aux!$AL$1))^(1/($O$3-INDEX($K$3:$O$3,1,aux!$AL$1)))-1,"n.d.") -> 0.813723789 | AE64: =IF(INDEX($K64:$O64,1,aux!$AL$1)>0,(O64-INDEX($K64:$O64,1,aux!$AL$1))/INDEX($K64:$O64,1,aux!$AL$1),"n.d.") -> 9.821428571 | AX64: 08
A65: 0804 | B65: Tâmaras, figos, ananases, abacates, goiabas, mangas | C65: 10771.791 | D65: 14684.858 | E65: 10336.807 | F65: 9078.734 | G65: 9041.603 | H65: 10782.7586 | I65: 0.01586889333 | J65: 0.01138228556 | K65: 3842.747 | L65: 4038.745 | M65: 4619.401 | N65: 5169.493 | O65: 4649.752 | P65: 4464.0276 | Q65: 0.01210739584 | R65: 0.007046364226 | S65: -6318.731 | U65: =G65-INDEX($C65:$G65,1,aux!$AL$1) -> -1730.188 | V65: -0.004823600175 | W65: -0.003362974787 | X65: =+IF(INDEX($C65:$G65,1,aux!$AL$1)>0,(G65/INDEX($C65:$G65,1,aux!$AL$1))^(1/($G$3-INDEX($C$3:$G$3,1,aux!$AL$1)))-1,"n.d.") -> -0.04282933752 | Y65: =IF(INDEX($C65:$G65,1,aux!$AL$1)>0,(G65-INDEX($C65:$G65,1,aux!$AL$1))/INDEX($C65:$G65,1,aux!$AL$1),"n.d.") -> -0.1606221287 | AA65: =O65-INDEX($K65:$O65,1,aux!$AL$1) -> 807.005 | AB65: 0.005444786693 | AC65: 0.004063915681 | AD65: =+IF(INDEX($K65:$O65,1,aux!$AL$1)>0,(O65/INDEX($K65:$O65,1,aux!$AL$1))^(1/($O$3-INDEX($K$3:$O$3,1,aux!$AL$1)))-1,"n.d.") -> 0.04881043444 | AE65: =IF(INDEX($K65:$O65,1,aux!$AL$1)>0,(O65-INDEX($K65:$O65,1,aux!$AL$1))/INDEX($K65:$O65,1,aux!$AL$1),"n.d.") -> 0.2100073203 | AX65: 08
A66: 0805 | B66: Citrinos, frescos ou secos | C66: 3650.511 | D66: 5789.781 | E66: 5521.536 | F66: 5699.005 | G66: 8970.56 | H66: 5926.2786 | I66: 0.008721653376 | J66: 0.006255782759 | K66: 565.46 | L66: 1358.494 | M66: 994.064 | N66: 659.337 | O66: 1420.369 | P66: 999.5448 | Q66: 0.002710978881 | R66: 0.001577758328 | S66: -4926.7338 | U66: =G66-INDEX($C66:$G66,1,aux!$AL$1) -> 5320.049 | V66: 0.01483179243 | W66: 0.01034060498 | X66: =+IF(INDEX($C66:$G66,1,aux!$AL$1)>0,(G66/INDEX($C66:$G66,1,aux!$AL$1))^(1/($G$3-INDEX($C$3:$G$3,1,aux!$AL$1)))-1,"n.d.") -> 0.2520350114 | Y66: =IF(INDEX($C66:$G66,1,aux!$AL$1)>0,(G66-INDEX($C66:$G66,1,aux!$AL$1))/INDEX($C66:$G66,1,aux!$AL$1),"n.d.") -> 1.457343643 | AA66: =O66-INDEX($K66:$O66,1,aux!$AL$1) -> 854.909 | AB66: 0.005767990467 | AC66: 0.004305150639 | AD66: =+IF(INDEX($K66:$O66,1,aux!$AL$1)>0,(O66/INDEX($K66:$O66,1,aux!$AL$1))^(1/($O$3-INDEX($K$3:$O$3,1,aux!$AL$1)))-1,"n.d.") -> 0.2589249018 | AE66: =IF(INDEX($K66:$O66,1,aux!$AL$1)>0,(O66-INDEX($K66:$O66,1,aux!$AL$1))/INDEX($K66:$O66,1,aux!$AL$1),"n.d.") -> 1.511882361 | AX66: 08
A67: 0806 | B67: Uvas, frescas ou secas | C67: 1982.764 | D67: 1796.426 | E67: 2959.215 | F67: 6133.222 | G67: 4642.197 | H67: 3502.7648 | I67: 0.005154988907 | J67: 0.003697520337 | K67: 1053.35 | L67: 465.517 | M67: 637.68 | N67: 500.813 | O67: 1914.252 | P67: 914.3224 | Q67: 0.002479837539 | R67: 0.001443236742 | S67: -2588.4424 | U67: =G67-INDEX($C67:$G67,1,aux!$AL$1) -> 2659.433 | V67: 0.007414247171 | W67: 0.005169152789 | X67: =+IF(INDEX($C67:$G67,1,aux!$AL$1)>0,(G67/INDEX($C67:$G67,1,aux!$AL$1))^(1/($G$3-INDEX($C$3:$G$3,1,aux!$AL$1)))-1,"n.d.") -> 0.2369813032 | Y67: =IF(INDEX($C67:$G67,1,aux!$AL$1)>0,(G67-INDEX($C67:$G67,1,aux!$AL$1))/INDEX($C67:$G67,1,aux!$AL$1),"n.d.") -> 1.341275613 | AA67: =O67-INDEX($K67:$O67,1,aux!$AL$1) -> 860.902 | AB67: 0.005808424674 | AC67: 0.004335330187 | AD67: =+IF(INDEX($K67:$O67,1,aux!$AL$1)>0,(O67/INDEX($K67:$O67,1,aux!$AL$1))^(1/($O$3-INDEX($K$3:$O$3,1,aux!$AL$1)))-1,"n.d.") -> 0.1610651842 | AE67: =IF(INDEX($K67:$O67,1,aux!$AL$1)>0,(O67-INDEX($K67:$O67,1,aux!$AL$1))/INDEX($K67:$O67,1,aux!$AL$1),"n.d.") -> 0.8172990934 | AX67: 08
A68: 0807 | B68: Melões, melancias e papaia, frescos | C68: 560.004 | D68: 1432.38 | E68: 1137.792 | F68: 1484.345 | G68: 1191.415 | H68: 1161.1872 | I68: 0.001708909241 | J68: 0.00122574981 | K68: 79.886 | L68: 57.712 | M68: 13.976 | N68: 134.857 | O68: 66.484 | P68: 70.583 | Q68: 0.0001914361641 | R68: 0.0001114136315 | S68: -1090.6042 | U68: =G68-INDEX($C68:$G68,1,aux!$AL$1) -> 631.411 | V68: =IF($U$237<>0,U68/$U$237, "n.d.") -> 0.00176031403 | W68: =IF($U$322<>0,U68/$U$322, "n.d.") -> 0.001227276616 | X68: =+IF(INDEX($C68:$G68,1,aux!$AL$1)>0,(G68/INDEX($C68:$G68,1,aux!$AL$1))^(1/($G$3-INDEX($C$3:$G$3,1,aux!$AL$1)))-1,"n.d.") -> 0.2077247978 | Y68: =IF(INDEX($C68:$G68,1,aux!$AL$1)>0,(G68-INDEX($C68:$G68,1,aux!$AL$1))/INDEX($C68:$G68,1,aux!$AL$1),"n.d.") -> 1.127511589 | AA68: =O68-INDEX($K68:$O68,1,aux!$AL$1) -> -13.402 | AB68: =IF($AA$237<>0,AA68/$AA$237, "n.d.") -> -9.042203117e-05 | AC68: =IF($AA$322<>0,AA68/$AA$322, "n.d.") -> -6.748978998e-05 | AD68: =+IF(INDEX($K68:$O68,1,aux!$AL$1)>0,(O68/INDEX($K68:$O68,1,aux!$AL$1))^(1/($O$3-INDEX($K$3:$O$3,1,aux!$AL$1)))-1,"n.d.") -> -0.0448719133 | AE68: =IF(INDEX($K68:$O68,1,aux!$AL$1)>0,(O68-INDEX($K68:$O68,1,aux!$AL$1))/INDEX($K68:$O68,1,aux!$AL$1),"n.d.") -> -0.1677640638 | AX68: 08
A69: 0808 | B69: Maçãs, peras e marmelos, frescos | C69: 1538.089 | D69: 891.565 | E69: 7327.887 | F69: 3871.008 | G69: 7927.233 | H69: 4311.1564 | I69: 0.00634469189 | J69: 0.004550858928 | K69: 1117.024 | L69: 861.007 | M69: 1020.274 | N69: 825.349 | O69: 803.952 | P69: 925.5212 | Q69: 0.002510211076 | R69: 0.001460913789 | S69: -3385.6352 | U69: =G69-INDEX($C69:$G69,1,aux!$AL$1) -> 6389.144 | V69: 0.01781232798 | W69: 0.01241861011 | X69: =+IF(INDEX($C69:$G69,1,aux!$AL$1)>0,(G69/INDEX($C69:$G69,1,aux!$AL$1))^(1/($G$3-INDEX($C$3:$G$3,1,aux!$AL$1)))-1,"n.d.") -> 0.5067286255 | Y69: =IF(INDEX($C69:$G69,1,aux!$AL$1)>0,(G69-INDEX($C69:$G69,1,aux!$AL$1))/INDEX($C69:$G69,1,aux!$AL$1),"n.d.") -> 4.153949479 | AA69: =O69-INDEX($K69:$O69,1,aux!$AL$1) -> -313.072 | AB69: -0.002112267284 | AC69: -0.00157656794 | AD69: =+IF(INDEX($K69:$O69,1,aux!$AL$1)>0,(O69/INDEX($K69:$O69,1,aux!$AL$1))^(1/($O$3-INDEX($K$3:$O$3,1,aux!$AL$1)))-1,"n.d.") -> -0.07893155522 | AE69: =IF(INDEX($K69:$O69,1,aux!$AL$1)>0,(O69-INDEX($K69:$O69,1,aux!$AL$1))/INDEX($K69:$O69,1,aux!$AL$1),"n.d.") -> -0.2802732976 | AX69: 08
A70: 0809 | B70: Damascos, cerejas, pêssegos, etc., frescos | C70: 228.581 | D70: 173.739 | E70: 261.101 | F70: 694.141 | G70: 237.816 | H70: 319.0756 | I70: 0.0004695808232 | J70: 0.0003368163686 | K70: 1.166 | L70: 10.048 | M70: 126.836 | N70: 73.473 | O70: 21.902 | P70: 46.685 | Q70: 0.0001266196864 | R70: 7.369119176e-05 | S70: -272.3906 | U70: =G70-INDEX($C70:$G70,1,aux!$AL$1) -> 9.235 | V70: 2.574630481e-05 | W70: 1.795011418e-05 | X70: =+IF(INDEX($C70:$G70,1,aux!$AL$1)>0,(G70/INDEX($C70:$G70,1,aux!$AL$1))^(1/($G$3-INDEX($C$3:$G$3,1,aux!$AL$1)))-1,"n.d.") -> 0.009950841647 | Y70: =IF(INDEX($C70:$G70,1,aux!$AL$1)>0,(G70-INDEX($C70:$G70,1,aux!$AL$1))/INDEX($C70:$G70,1,aux!$AL$1),"n.d.") -> 0.04040143319 | AA70: =O70-INDEX($K70:$O70,1,aux!$AL$1) -> 20.736 | AB70: 0.0001399038381 | AC70: 0.0001044223463 | AD70: =+IF(INDEX($K70:$O70,1,aux!$AL$1)>0,(O70/INDEX($K70:$O70,1,aux!$AL$1))^(1/($O$3-INDEX($K$3:$O$3,1,aux!$AL$1)))-1,"n.d.") -> 1.081835002 | AE70: =IF(INDEX($K70:$O70,1,aux!$AL$1)>0,(O70-INDEX($K70:$O70,1,aux!$AL$1))/INDEX($K70:$O70,1,aux!$AL$1),"n.d.") -> 17.7838765 | AX70: 08
A71: 0810 | B71: Outras frutas frescas | C71: 4374.65 | D71: 4812.239 | E71: 5862.981 | F71: 7485.536 | G71: 9257.075 | H71: 6358.4962 | I71: 0.00935774431 | J71: 0.006712031881 | K71: 62964.273 | L71: 79762.652 | M71: 75912.217 | N71: 73974.459 | O71: 81288.957 | P71: 74780.5116 | Q71: 0.2028207117 | R71: 0.1180393064 | S71: 68422.0154 | U71: =G71-INDEX($C71:$G71,1,aux!$AL$1) -> 4882.425 | V71: 0.0136117382 | W71: 0.009489993095 | X71: =+IF(INDEX($C71:$G71,1,aux!$AL$1)>0,(G71/INDEX($C71:$G71,1,aux!$AL$1))^(1/($G$3-INDEX($C$3:$G$3,1,aux!$AL$1)))-1,"n.d.") -> 0.2060980561 | Y71: =IF(INDEX($C71:$G71,1,aux!$AL$1)>0,(G71-INDEX($C71:$G71,1,aux!$AL$1))/INDEX($C71:$G71,1,aux!$AL$1),"n.d.") -> 1.116072143 | AA71: =O71-INDEX($K71:$O71,1,aux!$AL$1) -> 18324.684 | AB71: 0.1236349163 | AC71: 0.09227944147 | AD71: =+IF(INDEX($K71:$O71,1,aux!$AL$1)>0,(O71/INDEX($K71:$O71,1,aux!$AL$1))^(1/($O$3-INDEX($K$3:$O$3,1,aux!$AL$1)))-1,"n.d.") -> 0.06594387759 | AE71: =IF(INDEX($K71:$O71,1,aux!$AL$1)>0,(O71-INDEX($K71:$O71,1,aux!$AL$1))/INDEX($K71:$O71,1,aux!$AL$1),"n.d.") -> 0.2910330435 | AX71: 08
A72: 0811 | B72: Frutas não cozidas ou cozidas em água ou vapor, congeladas | C72: 1229.452 | D72: 901.941 | E72: 1708.838 | F72: 1233.962 | G72: 1146.448 | H72: 1244.1282 | I72: 0.001830972799 | J72: 0.001313302372 | K72: 286.302 | L72: 19.026 | M72: 151.019 | N72: 687.357 | O72: 319.551 | P72: 292.651 | Q72: 0.0007937319874 | R72: 0.0004619428287 | S72: -951.4772 | U72: =G72-INDEX($C72:$G72,1,aux!$AL$1) -> -83.004 | V72: -0.0002314072858 | W72: -0.0001613352764 | X72: =+IF(INDEX($C72:$G72,1,aux!$AL$1)>0,(G72/INDEX($C72:$G72,1,aux!$AL$1))^(1/($G$3-INDEX($C$3:$G$3,1,aux!$AL$1)))-1,"n.d.") -> -0.0173232161 | Y72: =IF(INDEX($C72:$G72,1,aux!$AL$1)>0,(G72-INDEX($C72:$G72,1,aux!$AL$1))/INDEX($C72:$G72,1,aux!$AL$1),"n.d.") -> -0.06751300579 | AA72: =O72-INDEX($K72:$O72,1,aux!$AL$1) -> 33.249 | AB72: 0.00022432787 | AC72: 0.0001674353102 | AD72: =+IF(INDEX($K72:$O72,1,aux!$AL$1)>0,(O72/INDEX($K72:$O72,1,aux!$AL$1))^(1/($O$3-INDEX($K$3:$O$3,1,aux!$AL$1)))-1,"n.d.") -> 0.02784812926 | AE72: =IF(INDEX($K72:$O72,1,aux!$AL$1)>0,(O72-INDEX($K72:$O72,1,aux!$AL$1))/INDEX($K72:$O72,1,aux!$AL$1),"n.d.") -> 0.1161326152 | AX72: 08
A73: 0812 | B73: Frutas conservadas transitoriamente | C73: 0 | D73: 0 | E73: 10.209 | F73: 0.286 | G73: 3.103 | H73: 2.7196 | I73: 4.002411989e-06 | J73: 2.870811168e-06 | K73: 0.027 | L73: 0 | M73: 0.308 | N73: 0 | O73: 0 | P73: 0.067 | Q73: 1.817183032e-07 | R73: 1.05757949e-07 | S73: -2.6526 | U73: =G73-INDEX($C73:$G73,1,aux!$AL$1) -> 3.103 | V73: 8.650869931e-06 | W73: 6.031316113e-06 | X73: =+IF(INDEX($C73:$G73,1,aux!$AL$1)>0,(G73/INDEX($C73:$G73,1,aux!$AL$1))^(1/($G$3-INDEX($C$3:$G$3,1,aux!$AL$1)))-1,"n.d.") -> n.d. | Y73: =IF(INDEX($C73:$G73,1,aux!$AL$1)>0,(G73-INDEX($C73:$G73,1,aux!$AL$1))/INDEX($C73:$G73,1,aux!$AL$1),"n.d.") -> n.d. | AA73: =O73-INDEX($K73:$O73,1,aux!$AL$1) -> -0.027 | AB73: -1.821664559e-07 | AC73: -1.359665967e-07 | AD73: =+IF(INDEX($K73:$O73,1,aux!$AL$1)>0,(O73/INDEX($K73:$O73,1,aux!$AL$1))^(1/($O$3-INDEX($K$3:$O$3,1,aux!$AL$1)))-1,"n.d.") -> -1 | AE73: =IF(INDEX($K73:$O73,1,aux!$AL$1)>0,(O73-INDEX($K73:$O73,1,aux!$AL$1))/INDEX($K73:$O73,1,aux!$AL$1),"n.d.") -> -1 | AX73: 08
A74: 0813 | B74: Outras frutas secas | C74: 125.697 | D74: 137.724 | E74: 197.878 | F74: 436.91 | G74: 496.738 | H74: 278.9894 | I74: 0.0004105863066 | J74: 0.0002945013551 | K74: 74.293 | L74: 2.262 | M74: 1.517 | N74: 40.987 | O74: 0.825 | P74: 23.9768 | Q74: 6.503020019e-05 | R74: 3.784682375e-05 | S74: -255.0126 | U74: =G74-INDEX($C74:$G74,1,aux!$AL$1) -> 371.041 | V74: 0.001034427145 | W74: 0.0007211941869 | X74: =+IF(INDEX($C74:$G74,1,aux!$AL$1)>0,(G74/INDEX($C74:$G74,1,aux!$AL$1))^(1/($G$3-INDEX($C$3:$G$3,1,aux!$AL$1)))-1,"n.d.") -> 0.4099399556 | Y74: =IF(INDEX($C74:$G74,1,aux!$AL$1)>0,(G74-INDEX($C74:$G74,1,aux!$AL$1))/INDEX($C74:$G74,1,aux!$AL$1),"n.d.") -> 2.951868382 | AA74: =O74-INDEX($K74:$O74,1,aux!$AL$1) -> -73.468 | AB74: -0.0004956816733 | AC74: -0.0003699701455 | AD74: =+IF(INDEX($K74:$O74,1,aux!$AL$1)>0,(O74/INDEX($K74:$O74,1,aux!$AL$1))^(1/($O$3-INDEX($K$3:$O$3,1,aux!$AL$1)))-1,"n.d.") -> -0.6753790733 | AE74: =IF(INDEX($K74:$O74,1,aux!$AL$1)>0,(O74-INDEX($K74:$O74,1,aux!$AL$1))/INDEX($K74:$O74,1,aux!$AL$1),"n.d.") -> -0.9888953199 | AX74: 08
A75: 0814 | B75: Cascas de citrinos, melões ou melancias | C75: 0 | D75: 0 | E75: 0 | F75: 0.962 | G75: 0.808 | H75: 0.354 | I75: 5.209787631e-07 | J75: 3.736825833e-07 | K75: 0 | L75: 0 | M75: 0 | N75: 0 | O75: 0 | P75: 0 | Q75: 0 | R75: 0 | S75: -0.354 | U75: =G75-INDEX($C75:$G75,1,aux!$AL$1) -> 0.808 | V75: 2.252627426e-06 | W75: 1.570513509e-06 | X75: =+IF(INDEX($C75:$G75,1,aux!$AL$1)>0,(G75/INDEX($C75:$G75,1,aux!$AL$1))^(1/($G$3-INDEX($C$3:$G$3,1,aux!$AL$1)))-1,"n.d.") -> n.d. | Y75: =IF(INDEX($C75:$G75,1,aux!$AL$1)>0,(G75-INDEX($C75:$G75,1,aux!$AL$1))/INDEX($C75:$G75,1,aux!$AL$1),"n.d.") -> n.d. | AA75: =O75-INDEX($K75:$O75,1,aux!$AL$1) -> 0 | AB75: 0 | AC75: 0 | AD75: =+IF(INDEX($K75:$O75,1,aux!$AL$1)>0,(O75/INDEX($K75:$O75,1,aux!$AL$1))^(1/($O$3-INDEX($K$3:$O$3,1,aux!$AL$1)))-1,"n.d.") -> n.d. | AE75: =IF(INDEX($K75:$O75,1,aux!$AL$1)>0,(O75-INDEX($K75:$O75,1,aux!$AL$1))/INDEX($K75:$O75,1,aux!$AL$1),"n.d.") -> n.d. | AX75: =+LEFT(A75,2) -> 08
A76: 08SS | B76: Frutas; cascas de citrinos e de melões | C76: 0 | D76: 0 | E76: 0 | F76: 0 | G76: 0 | H76: 0 | I76: 0 | J76: 0 | K76: 0 | L76: 0 | M76: 0 | N76: 0 | O76: 0 | P76: 0 | Q76: 0 | R76: 0 | S76: 0 | U76: =G76-INDEX($C76:$G76,1,aux!$AL$1) -> 0 | V76: 0 | W76: 0 | X76: =+IF(INDEX($C76:$G76,1,aux!$AL$1)>0,(G76/INDEX($C76:$G76,1,aux!$AL$1))^(1/($G$3-INDEX($C$3:$G$3,1,aux!$AL$1)))-1,"n.d.") -> n.d. | Y76: =IF(INDEX($C76:$G76,1,aux!$AL$1)>0,(G76-INDEX($C76:$G76,1,aux!$AL$1))/INDEX($C76:$G76,1,aux!$AL$1),"n.d.") -> n.d. | AA76: =O76-INDEX($K76:$O76,1,aux!$AL$1) -> 0 | AB76: 0 | AC76: 0 | AD76: =+IF(INDEX($K76:$O76,1,aux!$AL$1)>0,(O76/INDEX($K76:$O76,1,aux!$AL$1))^(1/($O$3-INDEX($K$3:$O$3,1,aux!$AL$1)))-1,"n.d.") -> n.d. | AE76: =IF(INDEX($K76:$O76,1,aux!$AL$1)>0,(O76-INDEX($K76:$O76,1,aux!$AL$1))/INDEX($K76:$O76,1,aux!$AL$1),"n.d.") -> n.d. | AX76: 08
A77: 0901 | B77: Café | C77: 6448.886 | D77: 10603.554 | E77: 9750.353 | F77: 8307.565 | G77: 7482.76 | H77: 8518.6236 | I77: 0.01253678527 | J77: 0.008992263484 | K77: 1230.227 | L77: 3087.429 | M77: 4630.36 | N77: 5914.272 | O77: 3582.547 | P77: 3688.967 | Q77: 0.01000526603 | R77: 0.005822949011 | S77: -4829.6566 | U77: =G77-INDEX($C77:$G77,1,aux!$AL$1) -> 1033.874 | V77: 0.002882342733 | W77: 0.002009545896 | X77: =+IF(INDEX($C77:$G77,1,aux!$AL$1)>0,(G77/INDEX($C77:$G77,1,aux!$AL$1))^(1/($G$3-INDEX($C$3:$G$3,1,aux!$AL$1)))-1,"n.d.") -> 0.03787315538 | Y77: =IF(INDEX($C77:$G77,1,aux!$AL$1)>0,(G77-INDEX($C77:$G77,1,aux!$AL$1))/INDEX($C77:$G77,1,aux!$AL$1),"n.d.") -> 0.1603182317 | AA77: =O77-INDEX($K77:$O77,1,aux!$AL$1) -> 2352.32 | AB77: 0.01587088139 | AC77: 0.01184581277 | AD77: =+IF(INDEX($K77:$O77,1,aux!$AL$1)>0,(O77/INDEX($K77:$O77,1,aux!$AL$1))^(1/($O$3-INDEX($K$3:$O$3,1,aux!$AL$1)))-1,"n.d.") -> 0.3063262702 | AE77: =IF(INDEX($K77:$O77,1,aux!$AL$1)>0,(O77-INDEX($K77:$O77,1,aux!$AL$1))/INDEX($K77:$O77,1,aux!$AL$1),"n.d.") -> 1.912102401 | AX77: 09
A78: 0902 | B78: Chá | C78: 202.231 | D78: 145.985 | E78: 228.137 | F78: 245.852 | G78: 542.886 | H78: 273.0182 | I78: 0.0004017985428 | J78: 0.0002881981533 | K78: 1.367 | L78: 0.615 | M78: 1.492 | N78: 0.35 | O78: 0.532 | P78: 0.8712 | Q78: 2.362880385e-06 | R78: 1.375169032e-06 | S78: -272.147 | U78: =G78-INDEX($C78:$G78,1,aux!$AL$1) -> 340.655 | V78: 0.0009497138564 | W78: 0.0006621327717 | X78: =+IF(INDEX($C78:$G78,1,aux!$AL$1)>0,(G78/INDEX($C78:$G78,1,aux!$AL$1))^(1/($G$3-INDEX($C$3:$G$3,1,aux!$AL$1)))-1,"n.d.") -> 0.2800154987 | Y78: =IF(INDEX($C78:$G78,1,aux!$AL$1)>0,(G78-INDEX($C78:$G78,1,aux!$AL$1))/INDEX($C78:$G78,1,aux!$AL$1),"n.d.") -> 1.684484575 | AA78: =O78-INDEX($K78:$O78,1,aux!$AL$1) -> -0.835 | AB78: -5.63366632e-06 | AC78: -4.204892899e-06 | AD78: =+IF(INDEX($K78:$O78,1,aux!$AL$1)>0,(O78/INDEX($K78:$O78,1,aux!$AL$1))^(1/($O$3-INDEX($K$3:$O$3,1,aux!$AL$1)))-1,"n.d.") -> -0.2101660827 | AE78: =IF(INDEX($K78:$O78,1,aux!$AL$1)>0,(O78-INDEX($K78:$O78,1,aux!$AL$1))/INDEX($K78:$O78,1,aux!$AL$1),"n.d.") -> -0.6108266277 | AX78: 09
A79: 0903 | B79: Mate | C79: 0 | D79: 0 | E79: 29.197 | F79: 5.3 | G79: 13.725 | H79: 9.6444 | I79: 1.419358074e-05 | J79: 1.018063363e-05 | K79: 0.296 | L79: 0.367 | M79: 3.319 | N79: 1.937 | O79: 1.416 | P79: 1.467 | Q79: 3.978817177e-06 | R79: 2.31562554e-06 | S79: -8.1774 | U79: =G79-INDEX($C79:$G79,1,aux!$AL$1) -> 13.725 | V79: 3.826399929e-05 | W79: 2.667734891e-05 | X79: =+IF(INDEX($C79:$G79,1,aux!$AL$1)>0,(G79/INDEX($C79:$G79,1,aux!$AL$1))^(1/($G$3-INDEX($C$3:$G$3,1,aux!$AL$1)))-1,"n.d.") -> n.d. | Y79: =IF(INDEX($C79:$G79,1,aux!$AL$1)>0,(G79-INDEX($C79:$G79,1,aux!$AL$1))/INDEX($C79:$G79,1,aux!$AL$1),"n.d.") -> n.d. | AA79: =O79-INDEX($K79:$O79,1,aux!$AL$1) -> 1.12 | AB79: 7.556534466e-06 | AC79: 5.640095865e-06 | AD79: =+IF(INDEX($K79:$O79,1,aux!$AL$1)>0,(O79/INDEX($K79:$O79,1,aux!$AL$1))^(1/($O$3-INDEX($K$3:$O$3,1,aux!$AL$1)))-1,"n.d.") -> 0.4789138822 | AE79: =IF(INDEX($K79:$O79,1,aux!$AL$1)>0,(O79-INDEX($K79:$O79,1,aux!$AL$1))/INDEX($K79:$O79,1,aux!$AL$1),"n.d.") -> 3.783783784 | AX79: 09
A80: 0904 | B80: Pimenta | C80: 185.937 | D80: 77.581 | E80: 209.286 | F80: 271.868 | G80: 222.126 | H80: 193.3596 | I80: 0.0002845656645 | J80: 0.0002041104939 | K80: 1.651 | L80: 1.887 | M80: 2.99 | N80: 2.14 | O80: 0.664 | P80: 1.8664 | Q80: 5.062075241e-06 | R80: 2.946069194e-06 | S80: -191.4932 | U80: =G80-INDEX($C80:$G80,1,aux!$AL$1) -> 36.189 | V80: 0.0001008915024 | W80: 7.034073439e-05 | X80: =+IF(INDEX($C80:$G80,1,aux!$AL$1)>0,(G80/INDEX($C80:$G80,1,aux!$AL$1))^(1/($G$3-INDEX($C$3:$G$3,1,aux!$AL$1)))-1,"n.d.") -> 0.04546234235 | Y80: =IF(INDEX($C80:$G80,1,aux!$AL$1)>0,(G80-INDEX($C80:$G80,1,aux!$AL$1))/INDEX($C80:$G80,1,aux!$AL$1),"n.d.") -> 0.1946304393 | AA80: =O80-INDEX($K80:$O80,1,aux!$AL$1) -> -0.987 | AB80: -6.659195998e-06 | AC80: -4.970334481e-06 | AD80: =+IF(INDEX($K80:$O80,1,aux!$AL$1)>0,(O80/INDEX($K80:$O80,1,aux!$AL$1))^(1/($O$3-INDEX($K$3:$O$3,1,aux!$AL$1)))-1,"n.d.") -> -0.2036476765 | AE80: =IF(INDEX($K80:$O80,1,aux!$AL$1)>0,(O80-INDEX($K80:$O80,1,aux!$AL$1))/INDEX($K80:$O80,1,aux!$AL$1),"n.d.") -> -0.5978195033 | AX80: 09
A81: 0905 | B81: Baunilha | C81: 0.744 | D81: 0.499 | E81: 1.884 | F81: 1.013 | G81: 3.058 | H81: 1.4396 | I81: 2.11864697e-06 | J81: 1.519642505e-06 | K81: 0 | L81: 0.046 | M81: 0.058 | N81: 0 | O81: 0.019 | P81: 0.0246 | Q81: 6.672045163e-08 | R81: 3.883053052e-08 | S81: -1.415 | U81: =G81-INDEX($C81:$G81,1,aux!$AL$1) -> 2.314 | V81: 6.451212704e-06 | W81: 4.497732996e-06 | X81: =+IF(INDEX($C81:$G81,1,aux!$AL$1)>0,(G81/INDEX($C81:$G81,1,aux!$AL$1))^(1/($G$3-INDEX($C$3:$G$3,1,aux!$AL$1)))-1,"n.d.") -> 0.4238562188 | Y81: =IF(INDEX($C81:$G81,1,aux!$AL$1)>0,(G81-INDEX($C81:$G81,1,aux!$AL$1))/INDEX($C81:$G81,1,aux!$AL$1),"n.d.") -> 3.110215054 | AA81: =O81-INDEX($K81:$O81,1,aux!$AL$1) -> 0.019 | AB81: 1.281912097e-07 | AC81: 9.56801977e-08 | AD81: =+IF(INDEX($K81:$O81,1,aux!$AL$1)>0,(O81/INDEX($K81:$O81,1,aux!$AL$1))^(1/($O$3-INDEX($K$3:$O$3,1,aux!$AL$1)))-1,"n.d.") -> n.d. | AE81: =IF(INDEX($K81:$O81,1,aux!$AL$1)>0,(O81-INDEX($K81:$O81,1,aux!$AL$1))/INDEX($K81:$O81,1,aux!$AL$1),"n.d.") -> n.d. | AX81: 09
A82: 0906 | B82: Canela | C82: 129.816 | D82: 187.528 | E82: 327.51 | F82: 321.463 | G82: 505.698 | H82: 294.403 | I82: 0.0004332703695 | J82: 0.0003107719593 | K82: 0.403 | L82: 0.661 | M82: 0.703 | N82: 0.701 | O82: 0.621 | P82: 0.6178 | Q82: 1.675605489e-06 | R82: 9.751829982e-07 | S82: -293.7852 | U82: =G82-INDEX($C82:$G82,1,aux!$AL$1) -> 375.882 | V82: 0.001047923394 | W82: 0.000730603662 | X82: =+IF(INDEX($C82:$G82,1,aux!$AL$1)>0,(G82/INDEX($C82:$G82,1,aux!$AL$1))^(1/($G$3-INDEX($C$3:$G$3,1,aux!$AL$1)))-1,"n.d.") -> 0.4048849278 | Y82: =IF(INDEX($C82:$G82,1,aux!$AL$1)>0,(G82-INDEX($C82:$G82,1,aux!$AL$1))/INDEX($C82:$G82,1,aux!$AL$1),"n.d.") -> 2.895498244 | AA82: =O82-INDEX($K82:$O82,1,aux!$AL$1) -> 0.218 | AB82: 1.470825458e-06 | AC82: 1.097804374e-06 | AD82: =+IF(INDEX($K82:$O82,1,aux!$AL$1)>0,(O82/INDEX($K82:$O82,1,aux!$AL$1))^(1/($O$3-INDEX($K$3:$O$3,1,aux!$AL$1)))-1,"n.d.") -> 0.1141576293 | AE82: =IF(INDEX($K82:$O82,1,aux!$AL$1)>0,(O82-INDEX($K82:$O82,1,aux!$AL$1))/INDEX($K82:$O82,1,aux!$AL$1),"n.d.") -> 0.540942928 | AX82: 09
A83: 0907 | B83: Cravo-da-índia | C83: 18.066 | D83: 53.919 | E83: 6.936 | F83: 37.145 | G83: 56.394 | H83: 34.492 | I83: 5.07615805e-05 | J83: 3.640977306e-05 | K83: 0.066 | L83: 0.042 | M83: 0.071 | N83: 0.061 | O83: 0.023 | P83: 0.0526 | Q83: 1.426624291e-07 | R83: 8.302788233e-08 | S83: -34.4394 | U83: =G83-INDEX($C83:$G83,1,aux!$AL$1) -> 38.328 | V83: 0.0001068548317 | W83: 7.449831904e-05 | X83: =+IF(INDEX($C83:$G83,1,aux!$AL$1)>0,(G83/INDEX($C83:$G83,1,aux!$AL$1))^(1/($G$3-INDEX($C$3:$G$3,1,aux!$AL$1)))-1,"n.d.") -> 0.3292073176 | Y83: =IF(INDEX($C83:$G83,1,aux!$AL$1)>0,(G83-INDEX($C83:$G83,1,aux!$AL$1))/INDEX($C83:$G83,1,aux!$AL$1),"n.d.") -> 2.121554301 | AA83: =O83-INDEX($K83:$O83,1,aux!$AL$1) -> -0.043 | AB83: -2.901169482e-07 | AC83: -2.165393948e-07 | AD83: =+IF(INDEX($K83:$O83,1,aux!$AL$1)>0,(O83/INDEX($K83:$O83,1,aux!$AL$1))^(1/($O$3-INDEX($K$3:$O$3,1,aux!$AL$1)))-1,"n.d.") -> -0.2316732123 | AE83: =IF(INDEX($K83:$O83,1,aux!$AL$1)>0,(O83-INDEX($K83:$O83,1,aux!$AL$1))/INDEX($K83:$O83,1,aux!$AL$1),"n.d.") -> -0.6515151515 | AX83: 09
A84: 0908 | B84: Noz-moscada, etc. | C84: 75.356 | D84: 44.643 | E84: 46.024 | F84: 62.004 | G84: 48.111 | H84: 55.2276 | I84: 8.127798514e-05 | J84: 5.829828316e-05 | K84: 0.087 | L84: 0.052 | M84: 0.06 | N84: 0.014 | O84: 0.035 | P84: 0.0496 | Q84: 1.345257887e-07 | R84: 7.829245178e-08 | S84: -55.178 | U84: =G84-INDEX($C84:$G84,1,aux!$AL$1) -> -27.245 | V84: -7.595647801e-05 | W84: -5.295623832e-05 | X84: =+IF(INDEX($C84:$G84,1,aux!$AL$1)>0,(G84/INDEX($C84:$G84,1,aux!$AL$1))^(1/($G$3-INDEX($C$3:$G$3,1,aux!$AL$1)))-1,"n.d.") -> -0.1061150267 | Y84: =IF(INDEX($C84:$G84,1,aux!$AL$1)>0,(G84-INDEX($C84:$G84,1,aux!$AL$1))/INDEX($C84:$G84,1,aux!$AL$1),"n.d.") -> -0.3615505069 | AA84: =O84-INDEX($K84:$O84,1,aux!$AL$1) -> -0.052 | AB84: -3.508391002e-07 | AC84: -2.618615937e-07 | AD84: =+IF(INDEX($K84:$O84,1,aux!$AL$1)>0,(O84/INDEX($K84:$O84,1,aux!$AL$1))^(1/($O$3-INDEX($K$3:$O$3,1,aux!$AL$1)))-1,"n.d.") -> -0.2035890952 | AE84: =IF(INDEX($K84:$O84,1,aux!$AL$1)>0,(O84-INDEX($K84:$O84,1,aux!$AL$1))/INDEX($K84:$O84,1,aux!$AL$1),"n.d.") -> -0.5977011494 | AX84: 09
A85: 0909 | B85: Sementes de anis, funcho, etc. | C85: 59.004 | D85: 124.842 | E85: 159.482 | F85: 43.432 | G85: 32.815 | H85: 83.915 | I85: 0.0001234969856 | J85: 8.858071746e-05 | K85: 0.083 | L85: 0.273 | M85: 0.237 | N85: 0.117 | O85: 217.199 | P85: 43.5818 | Q85: 0.0001182031455 | R85: 6.87928624e-05 | S85: -40.3332 | U85: =G85-INDEX($C85:$G85,1,aux!$AL$1) -> -26.189 | V85: -7.301245009e-05 | W85: -5.090368601e-05 | X85: =+IF(INDEX($C85:$G85,1,aux!$AL$1)>0,(G85/INDEX($C85:$G85,1,aux!$AL$1))^(1/($G$3-INDEX($C$3:$G$3,1,aux!$AL$1)))-1,"n.d.") -> -0.1364296186 | Y85: =IF(INDEX($C85:$G85,1,aux!$AL$1)>0,(G85-INDEX($C85:$G85,1,aux!$AL$1))/INDEX($C85:$G85,1,aux!$AL$1),"n.d.") -> -0.4438512643 | AA85: =O85-INDEX($K85:$O85,1,aux!$AL$1) -> 217.116 | AB85: 0.001464861194 | AC85: 0.001093352727 | AD85: =+IF(INDEX($K85:$O85,1,aux!$AL$1)>0,(O85/INDEX($K85:$O85,1,aux!$AL$1))^(1/($O$3-INDEX($K$3:$O$3,1,aux!$AL$1)))-1,"n.d.") -> 6.152286986 | AE85: =IF(INDEX($K85:$O85,1,aux!$AL$1)>0,(O85-INDEX($K85:$O85,1,aux!$AL$1))/INDEX($K85:$O85,1,aux!$AL$1),"n.d.") -> 2615.855422 | AX85: 09
A86: 0910 | B86: Gengibre, açafrão, tomilho, louro, etc. | C86: 998.584 | D86: 1030.523 | E86: 1248.997 | F86: 1565.017 | G86: 2320.757 | H86: 1432.7756 | I86: 0.002108603559 | J86: 0.001512438665 | K86: 2.432 | L86: 67.827 | M86: 86.694 | N86: 62.162 | O86: 11.205 | P86: 46.064 | Q86: 0.0001249354018 | R86: 7.271095764e-05 | S86: -1386.7116 | U86: =G86-INDEX($C86:$G86,1,aux!$AL$1) -> 1322.173 | V86: 0.003686093023 | W86: 0.002569914057 | X86: =+IF(INDEX($C86:$G86,1,aux!$AL$1)>0,(G86/INDEX($C86:$G86,1,aux!$AL$1))^(1/($G$3-INDEX($C$3:$G$3,1,aux!$AL$1)))-1,"n.d.") -> 0.2346994835 | Y86: =IF(INDEX($C86:$G86,1,aux!$AL$1)>0,(G86-INDEX($C86:$G86,1,aux!$AL$1))/INDEX($C86:$G86,1,aux!$AL$1),"n.d.") -> 1.324047852 | AA86: =O86-INDEX($K86:$O86,1,aux!$AL$1) -> 8.773 | AB86: 5.919060435e-05 | AC86: 4.417907234e-05 | AD86: =+IF(INDEX($K86:$O86,1,aux!$AL$1)>0,(O86/INDEX($K86:$O86,1,aux!$AL$1))^(1/($O$3-INDEX($K$3:$O$3,1,aux!$AL$1)))-1,"n.d.") -> 0.465082472 | AE86: =IF(INDEX($K86:$O86,1,aux!$AL$1)>0,(O86-INDEX($K86:$O86,1,aux!$AL$1))/INDEX($K86:$O86,1,aux!$AL$1),"n.d.") -> 3.607319079 | AX86: 09
A87: 09SS | B87: Café, chá, mate e especiarias | C87: 0 | D87: 0 | E87: 0 | F87: 0 | G87: 0 | H87: 0 | I87: 0 | J87: 0 | K87: 0 | L87: 0 | M87: 0 | N87: 0 | O87: 0 | P87: 0 | Q87: 0 | R87: 0 | S87: 0 | U87: =G87-INDEX($C87:$G87,1,aux!$AL$1) -> 0 | V87: 0 | W87: 0 | X87: =+IF(INDEX($C87:$G87,1,aux!$AL$1)>0,(G87/INDEX($C87:$G87,1,aux!$AL$1))^(1/($G$3-INDEX($C$3:$G$3,1,aux!$AL$1)))-1,"n.d.") -> n.d. | Y87: =IF(INDEX($C87:$G87,1,aux!$AL$1)>0,(G87-INDEX($C87:$G87,1,aux!$AL$1))/INDEX($C87:$G87,1,aux!$AL$1),"n.d.") -> n.d. | AA87: =O87-INDEX($K87:$O87,1,aux!$AL$1) -> 0 | AB87: 0 | AC87: 0 | AD87: =+IF(INDEX($K87:$O87,1,aux!$AL$1)>0,(O87/INDEX($K87:$O87,1,aux!$AL$1))^(1/($O$3-INDEX($K$3:$O$3,1,aux!$AL$1)))-1,"n.d.") -> n.d. | AE87: =IF(INDEX($K87:$O87,1,aux!$AL$1)>0,(O87-INDEX($K87:$O87,1,aux!$AL$1))/INDEX($K87:$O87,1,aux!$AL$1),"n.d.") -> n.d. | AX87: 09
A88: 1001 | B88: Trigo e mistura trigo/centeio | C88: 20.845 | D88: 58.568 | E88: 54.914 | F88: 48.435 | G88: 0 | H88: 36.5524 | I88: 5.379385351e-05 | J88: 3.858473237e-05 | K88: 0 | L88: 0 | M88: 0 | N88: 0 | O88: 0 | P88: 0 | Q88: 0 | R88: 0 | S88: -36.5524 | U88: =G88-INDEX($C88:$G88,1,aux!$AL$1) -> -20.845 | V88: -5.811388453e-05 | W88: -4.051652735e-05 | X88: =+IF(INDEX($C88:$G88,1,aux!$AL$1)>0,(G88/INDEX($C88:$G88,1,aux!$AL$1))^(1/($G$3-INDEX($C$3:$G$3,1,aux!$AL$1)))-1,"n.d.") -> -1 | Y88: =IF(INDEX($C88:$G88,1,aux!$AL$1)>0,(G88-INDEX($C88:$G88,1,aux!$AL$1))/INDEX($C88:$G88,1,aux!$AL$1),"n.d.") -> -1 | AA88: =O88-INDEX($K88:$O88,1,aux!$AL$1) -> 0 | AB88: 0 | AC88: 0 | AD88: =+IF(INDEX($K88:$O88,1,aux!$AL$1)>0,(O88/INDEX($K88:$O88,1,aux!$AL$1))^(1/($O$3-INDEX($K$3:$O$3,1,aux!$AL$1)))-1,"n.d.") -> n.d. | AE88: =IF(INDEX($K88:$O88,1,aux!$AL$1)>0,(O88-INDEX($K88:$O88,1,aux!$AL$1))/INDEX($K88:$O88,1,aux!$AL$1),"n.d.") -> n.d. | AX88: 10
A89: 1002 | B89: Centeio | C89: 42.58 | D89: 0 | E89: 0 | F89: 15.2 | G89: 0.556 | H89: 11.6672 | I89: 1.717051815e-05 | J89: 1.231590236e-05 | K89: 0 | L89: 0 | M89: 0 | N89: 0 | O89: 0 | P89: 0 | Q89: 0 | R89: 0 | S89: -11.6672 | U89: =G89-INDEX($C89:$G89,1,aux!$AL$1) -> -42.024 | V89: -0.0001171589294 | W89: -8.168225212e-05 | X89: =+IF(INDEX($C89:$G89,1,aux!$AL$1)>0,(G89/INDEX($C89:$G89,1,aux!$AL$1))^(1/($G$3-INDEX($C$3:$G$3,1,aux!$AL$1)))-1,"n.d.") -> -0.66196063 | Y89: =IF(INDEX($C89:$G89,1,aux!$AL$1)>0,(G89-INDEX($C89:$G89,1,aux!$AL$1))/INDEX($C89:$G89,1,aux!$AL$1),"n.d.") -> -0.9869422264 | AA89: =O89-INDEX($K89:$O89,1,aux!$AL$1) -> 0 | AB89: 0 | AC89: 0 | AD89: =+IF(INDEX($K89:$O89,1,aux!$AL$1)>0,(O89/INDEX($K89:$O89,1,aux!$AL$1))^(1/($O$3-INDEX($K$3:$O$3,1,aux!$AL$1)))-1,"n.d.") -> n.d. | AE89: =IF(INDEX($K89:$O89,1,aux!$AL$1)>0,(O89-INDEX($K89:$O89,1,aux!$AL$1))/INDEX($K89:$O89,1,aux!$AL$1),"n.d.") -> n.d. | AX89: 10
A90: 1003 | B90: Cevada | C90: 992.634 | D90: 11.076 | E90: 45.799 | F90: 42.179 | G90: 29.837 | H90: 224.305 | I90: 0.0003301077442 | J90: 0.0002367764742 | K90: 0.051 | L90: 0.002 | M90: 0.017 | N90: 0.017 | O90: 0 | P90: 0.0174 | Q90: 4.719251457e-08 | R90: 2.74654972e-08 | S90: -224.2876 | U90: =G90-INDEX($C90:$G90,1,aux!$AL$1) -> -962.797 | V90: -0.002684186792 | W90: -0.001871393187 | X90: =+IF(INDEX($C90:$G90,1,aux!$AL$1)>0,(G90/INDEX($C90:$G90,1,aux!$AL$1))^(1/($G$3-INDEX($C$3:$G$3,1,aux!$AL$1)))-1,"n.d.") -> -0.5836184266 | Y90: =IF(INDEX($C90:$G90,1,aux!$AL$1)>0,(G90-INDEX($C90:$G90,1,aux!$AL$1))/INDEX($C90:$G90,1,aux!$AL$1),"n.d.") -> -0.9699415898 | AA90: =O90-INDEX($K90:$O90,1,aux!$AL$1) -> -0.051 | AB90: -3.440921944e-07 | AC90: -2.568257938e-07 | AD90: =+IF(INDEX($K90:$O90,1,aux!$AL$1)>0,(O90/INDEX($K90:$O90,1,aux!$AL$1))^(1/($O$3-INDEX($K$3:$O$3,1,aux!$AL$1)))-1,"n.d.") -> -1 | AE90: =IF(INDEX($K90:$O90,1,aux!$AL$1)>0,(O90-INDEX($K90:$O90,1,aux!$AL$1))/INDEX($K90:$O90,1,aux!$AL$1),"n.d.") -> -1 | AX90: 10
A91: 1004 | B91: Aveia | C91: 4.513 | D91: 0 | E91: 1.028 | F91: 37.125 | G91: 9.834 | H91: 10.5 | I91: 1.545275992e-05 | J91: 1.108380544e-05 | K91: 0 | L91: 0 | M91: 0 | N91: 0 | O91: 0 | P91: 0 | Q91: 0 | R91: 0 | S91: -10.5 | U91: =G91-INDEX($C91:$G91,1,aux!$AL$1) -> 5.321 | V91: 1.483444373e-05 | W91: 1.034245344e-05 | X91: =+IF(INDEX($C91:$G91,1,aux!$AL$1)>0,(G91/INDEX($C91:$G91,1,aux!$AL$1))^(1/($G$3-INDEX($C$3:$G$3,1,aux!$AL$1)))-1,"n.d.") -> 0.2149718551 | Y91: =IF(INDEX($C91:$G91,1,aux!$AL$1)>0,(G91-INDEX($C91:$G91,1,aux!$AL$1))/INDEX($C91:$G91,1,aux!$AL$1),"n.d.") -> 1.179038334 | AA91: =O91-INDEX($K91:$O91,1,aux!$AL$1) -> 0 | AB91: 0 | AC91: 0 | AD91: =+IF(INDEX($K91:$O91,1,aux!$AL$1)>0,(O91/INDEX($K91:$O91,1,aux!$AL$1))^(1/($O$3-INDEX($K$3:$O$3,1,aux!$AL$1)))-1,"n.d.") -> n.d. | AE91: =IF(INDEX($K91:$O91,1,aux!$AL$1)>0,(O91-INDEX($K91:$O91,1,aux!$AL$1))/INDEX($K91:$O91,1,aux!$AL$1),"n.d.") -> n.d. | AX91: 10
A92: 1005 | B92: Milho | C92: 3.321 | D92: 76.636 | E92: 19.264 | F92: 35.737 | G92: 366.168 | H92: 100.2252 | I92: 0.000147500567 | J92: 0.000105797773 | K92: 0.049 | L92: 0.079 | M92: 0.129 | N92: 2.085 | O92: 2.14 | P92: 0.8964 | Q92: 2.431228164e-06 | R92: 1.414946649e-06 | S92: -99.3288 | U92: =G92-INDEX($C92:$G92,1,aux!$AL$1) -> 362.847 | V92: 0.001011583049 | W92: 0.0007052674695 | X92: =+IF(INDEX($C92:$G92,1,aux!$AL$1)>0,(G92/INDEX($C92:$G92,1,aux!$AL$1))^(1/($G$3-INDEX($C$3:$G$3,1,aux!$AL$1)))-1,"n.d.") -> 2.240431745 | Y92: =IF(INDEX($C92:$G92,1,aux!$AL$1)>0,(G92-INDEX($C92:$G92,1,aux!$AL$1))/INDEX($C92:$G92,1,aux!$AL$1),"n.d.") -> 109.2583559 | AA92: =O92-INDEX($K92:$O92,1,aux!$AL$1) -> 2.091 | AB92: 1.410777997e-05 | AC92: 1.052985755e-05 | AD92: =+IF(INDEX($K92:$O92,1,aux!$AL$1)>0,(O92/INDEX($K92:$O92,1,aux!$AL$1))^(1/($O$3-INDEX($K$3:$O$3,1,aux!$AL$1)))-1,"n.d.") -> 1.57071791 | AE92: =IF(INDEX($K92:$O92,1,aux!$AL$1)>0,(O92-INDEX($K92:$O92,1,aux!$AL$1))/INDEX($K92:$O92,1,aux!$AL$1),"n.d.") -> 42.67346939 | AX92: 10
A93: 1006 | B93: Arroz | C93: 355.781 | D93: 461.618 | E93: 576.998 | F93: 559.932 | G93: 509.355 | H93: 492.7368 | I93: 0.0007251565215 | J93: 0.0005201332212 | K93: 2043.015 | L93: 3185.282 | M93: 2734.531 | N93: 3210.765 | O93: 4362.908 | P93: 3107.3002 | Q93: 0.008427661492 | R93: 0.004904801433 | S93: 2614.5634 | U93: =G93-INDEX($C93:$G93,1,aux!$AL$1) -> 153.574 | V93: 0.0004281497579 | W93: 0.0002985025268 | X93: =+IF(INDEX($C93:$G93,1,aux!$AL$1)>0,(G93/INDEX($C93:$G93,1,aux!$AL$1))^(1/($G$3-INDEX($C$3:$G$3,1,aux!$AL$1)))-1,"n.d.") -> 0.09385424253 | Y93: =IF(INDEX($C93:$G93,1,aux!$AL$1)>0,(G93-INDEX($C93:$G93,1,aux!$AL$1))/INDEX($C93:$G93,1,aux!$AL$1),"n.d.") -> 0.4316531799 | AA93: =O93-INDEX($K93:$O93,1,aux!$AL$1) -> 2319.893 | AB93: 0.01565209947 | AC93: 0.01168251689 | AD93: =+IF(INDEX($K93:$O93,1,aux!$AL$1)>0,(O93/INDEX($K93:$O93,1,aux!$AL$1))^(1/($O$3-INDEX($K$3:$O$3,1,aux!$AL$1)))-1,"n.d.") -> 0.2088603272 | AE93: =IF(INDEX($K93:$O93,1,aux!$AL$1)>0,(O93-INDEX($K93:$O93,1,aux!$AL$1))/INDEX($K93:$O93,1,aux!$AL$1),"n.d.") -> 1.135524213 | AX93: 10
A94: 1007 | B94: Sorgo de grão | C94: 0 | D94: 0 | E94: 79.662 | F94: 12.07 | G94: 0 | H94: 18.3464 | I94: 2.700023949e-05 | J94: 1.936646934e-05 | K94: 0 | L94: 0 | M94: 0 | N94: 0 | O94: 0 | P94: 0 | Q94: 0 | R94: 0 | S94: -18.3464 | U94: =G94-INDEX($C94:$G94,1,aux!$AL$1) -> 0 | V94: 0 | W94: 0 | X94: =+IF(INDEX($C94:$G94,1,aux!$AL$1)>0,(G94/INDEX($C94:$G94,1,aux!$AL$1))^(1/($G$3-INDEX($C$3:$G$3,1,aux!$AL$1)))-1,"n.d.") -> n.d. | Y94: =IF(INDEX($C94:$G94,1,aux!$AL$1)>0,(G94-INDEX($C94:$G94,1,aux!$AL$1))/INDEX($C94:$G94,1,aux!$AL$1),"n.d.") -> n.d. | AA94: =O94-INDEX($K94:$O94,1,aux!$AL$1) -> 0 | AB94: 0 | AC94: 0 | AD94: =+IF(INDEX($K94:$O94,1,aux!$AL$1)>0,(O94/INDEX($K94:$O94,1,aux!$AL$1))^(1/($O$3-INDEX($K$3:$O$3,1,aux!$AL$1)))-1,"n.d.") -> n.d. | AE94: =IF(INDEX($K94:$O94,1,aux!$AL$1)>0,(O94-INDEX($K94:$O94,1,aux!$AL$1))/INDEX($K94:$O94,1,aux!$AL$1),"n.d.") -> n.d. | AX94: 10
A95: 1008 | B95: Trigo mourisco, painço e outros cereais | C95: 542.253 | D95: 633.207 | E95: 494.572 | F95: 474.337 | G95: 680.27 | H95: 564.9278 | I95: 0.0008313993969 | J95: 0.0005963380782 | K95: 43.68 | L95: 0 | M95: 0.097 | N95: 0.015 | O95: 0 | P95: 8.7584 | Q95: 2.375465055e-05 | R95: 1.382493165e-05 | S95: -556.1694 | U95: =G95-INDEX($C95:$G95,1,aux!$AL$1) -> 138.017 | V95: 0.0003847783162 | W95: 0.0002682643107 | X95: =+IF(INDEX($C95:$G95,1,aux!$AL$1)>0,(G95/INDEX($C95:$G95,1,aux!$AL$1))^(1/($G$3-INDEX($C$3:$G$3,1,aux!$AL$1)))-1,"n.d.") -> 0.05832690961 | Y95: =IF(INDEX($C95:$G95,1,aux!$AL$1)>0,(G95-INDEX($C95:$G95,1,aux!$AL$1))/INDEX($C95:$G95,1,aux!$AL$1),"n.d.") -> 0.2545251018 | AA95: =O95-INDEX($K95:$O95,1,aux!$AL$1) -> -43.68 | AB95: -0.0002947048442 | AC95: -0.0002199637387 | AD95: =+IF(INDEX($K95:$O95,1,aux!$AL$1)>0,(O95/INDEX($K95:$O95,1,aux!$AL$1))^(1/($O$3-INDEX($K$3:$O$3,1,aux!$AL$1)))-1,"n.d.") -> -1 | AE95: =IF(INDEX($K95:$O95,1,aux!$AL$1)>0,(O95-INDEX($K95:$O95,1,aux!$AL$1))/INDEX($K95:$O95,1,aux!$AL$1),"n.d.") -> -1 | AX95: 10
A96: 10SS | B96: Cereais | C96: 0 | D96: 0 | E96: 0 | F96: 0 | G96: 0 | H96: 0 | I96: 0 | J96: 0 | K96: 0 | L96: 0 | M96: 0 | N96: 0 | O96: 0 | P96: 0 | Q96: 0 | R96: 0 | S96: 0 | U96: =G96-INDEX($C96:$G96,1,aux!$AL$1) -> 0 | V96: 0 | W96: 0 | X96: =+IF(INDEX($C96:$G96,1,aux!$AL$1)>0,(G96/INDEX($C96:$G96,1,aux!$AL$1))^(1/($G$3-INDEX($C$3:$G$3,1,aux!$AL$1)))-1,"n.d.") -> n.d. | Y96: =IF(INDEX($C96:$G96,1,aux!$AL$1)>0,(G96-INDEX($C96:$G96,1,aux!$AL$1))/INDEX($C96:$G96,1,aux!$AL$1),"n.d.") -> n.d. | AA96: =O96-INDEX($K96:$O96,1,aux!$AL$1) -> 0 | AB96: 0 | AC96: 0 | AD96: =+IF(INDEX($K96:$O96,1,aux!$AL$1)>0,(O96/INDEX($K96:$O96,1,aux!$AL$1))^(1/($O$3-INDEX($K$3:$O$3,1,aux!$AL$1)))-1,"n.d.") -> n.d. | AE96: =IF(INDEX($K96:$O96,1,aux!$AL$1)>0,(O96-INDEX($K96:$O96,1,aux!$AL$1))/INDEX($K96:$O96,1,aux!$AL$1),"n.d.") -> n.d. | AX96: 10
A97: 1101 | B97: Farinhas de trigo ou trigo/centeio | C97: 198.346 | D97: 160.513 | E97: 162.406 | F97: 279.542 | G97: 400.662 | H97: 240.2938 | I97: 0.000353638324 | J97: 0.0002536542597 | K97: 1.589 | L97: 4.929 | M97: 2.749 | N97: 3.837 | O97: 3.465 | P97: 3.3138 | Q97: 8.987733033e-06 | R97: 5.230756587e-06 | S97: -236.98 | U97: =G97-INDEX($C97:$G97,1,aux!$AL$1) -> 202.316 | V97: 0.0005640378347 | W97: 0.0003932425881 | X97: =+IF(INDEX($C97:$G97,1,aux!$AL$1)>0,(G97/INDEX($C97:$G97,1,aux!$AL$1))^(1/($G$3-INDEX($C$3:$G$3,1,aux!$AL$1)))-1,"n.d.") -> 0.1921713397 | Y97: =IF(INDEX($C97:$G97,1,aux!$AL$1)>0,(G97-INDEX($C97:$G97,1,aux!$AL$1))/INDEX($C97:$G97,1,aux!$AL$1),"n.d.") -> 1.020015528 | AA97: =O97-INDEX($K97:$O97,1,aux!$AL$1) -> 1.876 | AB97: 1.265719523e-05 | AC97: 9.447160573e-06 | AD97: =+IF(INDEX($K97:$O97,1,aux!$AL$1)>0,(O97/INDEX($K97:$O97,1,aux!$AL$1))^(1/($O$3-INDEX($K$3:$O$3,1,aux!$AL$1)))-1,"n.d.") -> 0.2151918144 | AE97: =IF(INDEX($K97:$O97,1,aux!$AL$1)>0,(O97-INDEX($K97:$O97,1,aux!$AL$1))/INDEX($K97:$O97,1,aux!$AL$1),"n.d.") -> 1.18061674 | AX97: 11
A98: 1102 | B98: Outras farinhas de cereais | C98: 272.275 | D98: 260.357 | E98: 886.759 | F98: 695.884 | G98: 586.228 | H98: 540.3006 | I98: 0.0007951557579 | J98: 0.0005703415932 | K98: 552.256 | L98: 1045.541 | M98: 841.198 | N98: 1000.589 | O98: 1093.631 | P98: 906.643 | Q98: 0.002459009367 | R98: 0.001431114987 | S98: 366.3424 | U98: =G98-INDEX($C98:$G98,1,aux!$AL$1) -> 313.953 | V98: 0.0008752712109 | W98: 0.0006102319651 | X98: =+IF(INDEX($C98:$G98,1,aux!$AL$1)>0,(G98/INDEX($C98:$G98,1,aux!$AL$1))^(1/($G$3-INDEX($C$3:$G$3,1,aux!$AL$1)))-1,"n.d.") -> 0.2113362049 | Y98: =IF(INDEX($C98:$G98,1,aux!$AL$1)>0,(G98-INDEX($C98:$G98,1,aux!$AL$1))/INDEX($C98:$G98,1,aux!$AL$1),"n.d.") -> 1.15307318 | AA98: =O98-INDEX($K98:$O98,1,aux!$AL$1) -> 541.375 | AB98: 0.003652606113 | AC98: 0.00272625616 | AD98: =+IF(INDEX($K98:$O98,1,aux!$AL$1)>0,(O98/INDEX($K98:$O98,1,aux!$AL$1))^(1/($O$3-INDEX($K$3:$O$3,1,aux!$AL$1)))-1,"n.d.") -> 0.1862673909 | AE98: =IF(INDEX($K98:$O98,1,aux!$AL$1)>0,(O98-INDEX($K98:$O98,1,aux!$AL$1))/INDEX($K98:$O98,1,aux!$AL$1),"n.d.") -> 0.980297181 | AX98: 11
A99: 1103 | B99: Grumos, sêmolas, etc. de cereais | C99: 37.423 | D99: 25.509 | E99: 33.494 | F99: 266.279 | G99: 2275.726 | H99: 527.6862 | I99: 0.0007765912536 | J99: 0.000557025826 | K99: 1.712 | L99: 0.165 | M99: 0.018 | N99: 0.048 | O99: 0.167 | P99: 0.422 | Q99: 1.144554089e-06 | R99: 6.661172309e-07 | S99: -527.2642 | U99: =G99-INDEX($C99:$G99,1,aux!$AL$1) -> 2238.303 | V99: 0.006240176642 | W99: 0.004350600371 | X99: =+IF(INDEX($C99:$G99,1,aux!$AL$1)>0,(G99/INDEX($C99:$G99,1,aux!$AL$1))^(1/($G$3-INDEX($C$3:$G$3,1,aux!$AL$1)))-1,"n.d.") -> 1.792513896 | Y99: =IF(INDEX($C99:$G99,1,aux!$AL$1)>0,(G99-INDEX($C99:$G99,1,aux!$AL$1))/INDEX($C99:$G99,1,aux!$AL$1),"n.d.") -> 59.8108917 | AA99: =O99-INDEX($K99:$O99,1,aux!$AL$1) -> -1.545 | AB99: -1.042396942e-05 | AC99: -7.780310813e-06 | AD99: =+IF(INDEX($K99:$O99,1,aux!$AL$1)>0,(O99/INDEX($K99:$O99,1,aux!$AL$1))^(1/($O$3-INDEX($K$3:$O$3,1,aux!$AL$1)))-1,"n.d.") -> -0.4411398053 | AE99: =IF(INDEX($K99:$O99,1,aux!$AL$1)>0,(O99-INDEX($K99:$O99,1,aux!$AL$1))/INDEX($K99:$O99,1,aux!$AL$1),"n.d.") -> -0.902453271 | AX99: 11
A100: 1104 | B100: Grãos de cereais processados | C100: 218.856 | D100: 187.355 | E100: 362.979 | F100: 717.361 | G100: 995.354 | H100: 496.381 | I100: 0.0007305196594 | J100: 0.0005239800407 | K100: 13.13 | L100: 1.161 | M100: 2.013 | N100: 8.169 | O100: 10.082 | P100: 6.911 | Q100: 1.874410737e-05 | R100: 1.090885351e-05 | S100: -489.47 | U100: =G100-INDEX($C100:$G100,1,aux!$AL$1) -> 776.498 | V100: 0.002164802836 | W100: 0.00150928292 | X100: =+IF(INDEX($C100:$G100,1,aux!$AL$1)>0,(G100/INDEX($C100:$G100,1,aux!$AL$1))^(1/($G$3-INDEX($C$3:$G$3,1,aux!$AL$1)))-1,"n.d.") -> 0.4603426769 | Y100: =IF(INDEX($C100:$G100,1,aux!$AL$1)>0,(G100-INDEX($C100:$G100,1,aux!$AL$1))/INDEX($C100:$G100,1,aux!$AL$1),"n.d.") -> 3.54798589 | AA100: =O100-INDEX($K100:$O100,1,aux!$AL$1) -> -3.048 | AB100: -2.05645688e-05 | AC100: -1.534911803e-05 | AD100: =+IF(INDEX($K100:$O100,1,aux!$AL$1)>0,(O100/INDEX($K100:$O100,1,aux!$AL$1))^(1/($O$3-INDEX($K$3:$O$3,1,aux!$AL$1)))-1,"n.d.") -> -0.06390377955 | AE100: =IF(INDEX($K100:$O100,1,aux!$AL$1)>0,(O100-INDEX($K100:$O100,1,aux!$AL$1))/INDEX($K100:$O100,1,aux!$AL$1),"n.d.") -> -0.2321401371 | AX100: 11
A101: 1105 | B101: Farinha, sêmola, etc. de batata | C101: 1131.828 | D101: 1089.822 | E101: 969.755 | F101: 2256.747 | G101: 3030.537 | H101: 1695.7378 | I101: 0.002495602773 | J101: 0.0017900217 | K101: 0 | L101: 0.112 | M101: 0.021 | N101: 0.011 | O101: 0.018 | P101: 0.0324 | Q101: 8.787571678e-08 | R101: 5.114264995e-08 | S101: -1695.7054 | U101: =G101-INDEX($C101:$G101,1,aux!$AL$1) -> 1898.709 | V101: 0.005293420753 | W101: 0.00369052987 | X101: =+IF(INDEX($C101:$G101,1,aux!$AL$1)>0,(G101/INDEX($C101:$G101,1,aux!$AL$1))^(1/($G$3-INDEX($C$3:$G$3,1,aux!$AL$1)))-1,"n.d.") -> 0.2791892153 | Y101: =IF(INDEX($C101:$G101,1,aux!$AL$1)>0,(G101-INDEX($C101:$G101,1,aux!$AL$1))/INDEX($C101:$G101,1,aux!$AL$1),"n.d.") -> 1.677559665 | AA101: =O101-INDEX($K101:$O101,1,aux!$AL$1) -> 0.018 | AB101: 1.214443039e-07 | AC101: 9.064439782e-08 | AD101: =+IF(INDEX($K101:$O101,1,aux!$AL$1)>0,(O101/INDEX($K101:$O101,1,aux!$AL$1))^(1/($O$3-INDEX($K$3:$O$3,1,aux!$AL$1)))-1,"n.d.") -> n.d. | AE101: =IF(INDEX($K101:$O101,1,aux!$AL$1)>0,(O101-INDEX($K101:$O101,1,aux!$AL$1))/INDEX($K101:$O101,1,aux!$AL$1),"n.d.") -> n.d. | AX101: 11
A102: 1106 | B102: Farinhas, etc. de leguminosas e outros tubérculos | C102: 56.636 | D102: 59.039 | E102: 99.565 | F102: 821.103 | G102: 1127.441 | H102: 432.7568 | I102: 0.00063688447 | J102: 0.0004568183022 | K102: 4.28 | L102: 3.445 | M102: 18.359 | N102: 4.582 | O102: 10.178 | P102: 8.1688 | Q102: 2.215552948e-05 | R102: 1.28942617e-05 | S102: -424.588 | U102: =G102-INDEX($C102:$G102,1,aux!$AL$1) -> 1070.805 | V102: 0.002985302861 | W102: 0.002081328859 | X102: =+IF(INDEX($C102:$G102,1,aux!$AL$1)>0,(G102/INDEX($C102:$G102,1,aux!$AL$1))^(1/($G$3-INDEX($C$3:$G$3,1,aux!$AL$1)))-1,"n.d.") -> 1.112274289 | Y102: =IF(INDEX($C102:$G102,1,aux!$AL$1)>0,(G102-INDEX($C102:$G102,1,aux!$AL$1))/INDEX($C102:$G102,1,aux!$AL$1),"n.d.") -> 18.90679073 | AA102: =O102-INDEX($K102:$O102,1,aux!$AL$1) -> 5.898 | AB102: 3.979325025e-05 | AC102: 2.970114769e-05 | AD102: =+IF(INDEX($K102:$O102,1,aux!$AL$1)>0,(O102/INDEX($K102:$O102,1,aux!$AL$1))^(1/($O$3-INDEX($K$3:$O$3,1,aux!$AL$1)))-1,"n.d.") -> 0.2418086177 | AE102: =IF(INDEX($K102:$O102,1,aux!$AL$1)>0,(O102-INDEX($K102:$O102,1,aux!$AL$1))/INDEX($K102:$O102,1,aux!$AL$1),"n.d.") -> 1.378037383 | AX102: 11
